Workbook

Sheet Simulador
R1: . | CA1: -
S2: CALCULO DE LA PORCION A CON BASE EN EL SSV REMANENTE | AD2: CALCULO CRÉDITO COFINAVIT
AJ3: =IF(OR(U39=4,U39=5),"SI","") -> 
S4: SSV INFONAVIT | AD4: Valor del inmueble | AE4: =O24 -> 0 | AJ4: =IF(OR(U39=4,U39=5),"NO","") -> 
C5: FINANCIAMIENTO RESIDENCIAL SCOTIABANK | S5: Uso de la SSV | V5: Proyección de Anualidades Garantizadas
S6: SSV Total | V6: Tasa SSV Proyectar | W6: 0.05 | AD6: Gastos relacionados | AE6: =O33 -> 0
A7: 1 | S7: SSV al frente | V7: Año | W7: 1 | X7: 2 | Y7: 3 | Z7: 4 | AA7: 5
C8: =TODAY() -> 2024-03-22 | S8: SSV Remanente | T8: =D36+D43 ->  | V8: Saldo Inicial | W8: =$T$8 ->  | X8: =W12 ->  | Y8: =X12 ->  | Z8: =Y12 ->  | AA8: =Z12 ->  | AD8: Valor del inmueble al 95% | AE8: =AE4*AE17 -> 0
V9: Tasa Efectiva | W9: =W6 -> 0.05 | X9: =W9 -> 0.05 | Y9: =X9 -> 0.05 | Z9: =Y9 -> 0.05 | AA9: =Z9 -> 0.05
V10: Intereses | W10: =W8*$W$6 ->  | X10: =X8*$W$6 ->  | Y10: =Y8*$W$6 ->  | Z10: =Z8*$W$6 ->  | AA10: =AA8*$W$6 -> 
C11: Nombre del Ejecutivo Especializado / Broker Hipotecario | G11: Sucursal | K11: Nombre del Cliente | V11: Anualidad Garantizada | W11: =(W8+W10)/5 ->  | X11: =(X8+X10)/4 ->  | Y11: =(Y8+Y10)/3 ->  | Z11: =(Z8+Z10)/2 ->  | AA11: =(AA8+AA10)/1 ->  | AD11: Crédito Infonavit Neto | AE11: =IFERROR((D37+D44),0) -> 0
V12: Saldo Final | W12: =W8+W10-W11 ->  | X12: =X8+X10-X11 ->  | Y12: =Y8+Y10-Y11 ->  | Z12: =Z8+Z10-Z11 ->  | AA12: =AA8+AA10-AA11 ->  | AD12: SSV al frente | AE12: =D35+D42 -> 0
C13: Teléfonos | K13: Teléfonos | V13: Calculo del Valor Presente de las Anualidades Garantizadas | AD13: Cred. Total Infonavit | AE13: =+AE11+AE12 -> 0
V14: Factor de Descuento | W14: =1/(1+$T$20)^1 -> 0.9070294785 | X14: =1/(1+$T$20)^2 -> 0.8227024748 | Y14: =1/(1+$T$20)^3 -> 0.7462153966 | Z14: =1/(1+$T$20)^4 -> 0.676839362 | AA14: =1/(1+$T$20)^5 -> 0.6139132535
V15: Valor Presente de la Anualidad | W15: =W11*W14 ->  | X15: =X11*X14 ->  | Y15: =Y11*Y14 ->  | Z15: =Z11*Z14 ->  | AA15: =AA11*AA14 -> 
V16: Total | W16: =SUM(W15:AA15) ->  | AD16: %Cred Infonavit | AE16: =IFERROR((AE11+AE12)/AE4,0) -> 0
C17: Escoja la opción de su interés: | G17: Detalle | S17: SCOTIABANK | AD17: %CB | AE17: =X34 -> 0.95
C18: Campaña | G18: Programa | I18: =IFERROR(VLOOKUP($U$39,$S$32:$T$38,2,0),"") -> Adquisición Tradicional | S18: Crédito SBI Porción A | V18: Proyección del Pago de la Porción A del Crédito SBI | AD18: Cred. Banco aforo máximo | AE18: =AE17*AE4 -> 0
C19: Como desea hacer su cálculo | G19: Producto | H19: =IF(T68=1,"Valora","Pagos Oportunos") -> Valora | L19: =IF(U39=7,"% de financiamiento CI+CB","% de financiamiento") -> % de financiamiento | V19: Tasa Interés Porción A | W19: =T20 -> 0.1025 | AD19: %ajustes | AE19: =IF(AE17+AE16>100%,AE17+AE16-100%,0%) -> 0
G20: Plazo | H20: =IFERROR(INDEX($S$63:$S$66,$T$62),"") -> 20 años | M20: =+IF(O24=0,0,IF(U39=7,AF26,IF(O25="",I25/O24,O25/O24))) -> 0 | S20: Tasa Descuento | T20: 0.1025 | V20: Año | W20: 1 | X20: 2 | Y20: 3 | Z20: 4 | AA20: 5 | AD20: Cred. Banco Ajustado | AE20: =AE18-(AE19*AE4) -> 0
C21: =IF(Y41=1,"Valor de la vivienda",IF(Y41=2,"Ingresos Mensuales","Monto de Crédito")) -> Monto de Crédito | S21: VP Anualidades | T21: =NPV(T20,W11:AA11) ->  | V21: Saldo Inicial | W21: =T21 ->  | X21: =W26 ->  | Y21: =X26 ->  | Z21: =Y26 ->  | AA21: =Z26 -> 
C22: Valor Destructible | V22: Tasa Efectiva | W22: =W19 -> 0.1025 | X22: =W22 -> 0.1025 | Y22: =X22 -> 0.1025 | Z22: =Y22 -> 0.1025 | AA22: =Z22 -> 0.1025
C23: =IF(D21=0,"",IF(AND($Y$41=1,D21<$AB$39),AD41,IF(D21<$Y$39,AD42,""))) ->  | H23: Recursos | L23: Gastos de Originación | T23: =IF(T8=0,0,T21/T8) ->  | V23: Anualidad | W23: =W11 ->  | X23: =X11 ->  | Y23: =Y11 ->  | Z23: =Z11 ->  | AA23: =AA11 ->  | AD23: CALCULO CRÉDITO CI+CB
C24: =IF(OR(U39=2,U39=5),"Sueldo cotización (Apoyo Infonavit)","") ->  | G24: Crédito Máximo posible | I24: =IF(AC86="",AD39,AC86) -> 0 | K24: Valor de vivienda | O24: =AA86 -> 0 | T24: Relación VP vs SSV | V24: Intereses | W24: =W21*W22 ->  | X24: =X21*X22 ->  | Y24: =Y21*Y22 ->  | Z24: =Z21*Z22 ->  | AA24: =AA21*AA22 ->  | AD24: Monto Maximo Autorizado | AE24: =+AE4*$X$38 -> 0
G25: Crédito solicitado | I25: =I24 -> 0 | K25: =IF(OR(I27="NO",I28=0,I28=""),"",IF(AND(I27="SI",OR(U39=4,U39=5)),"Monto Máximo Pago de Pasivo + Gastos Financiados")) ->  | O25: =IFERROR(IF(I28>0,I25+I28,""),"") ->  | V25: Amortización | W25: =W21-W26 ->  | X25: =X21-X26 ->  | Y25: =Y21-Y26 ->  | Z25: =Z21-Z26 ->  | AA25: =AA21-AA26 ->  | AD25: SSV (-) | AE25: =D35+D38 -> 0
C26: Actividad Económica | G26: =IF(I25=0,"",IF(I25>I24,$AD$43,IF(I25<Z39,"Crédito debajo del mínimo",""))) ->  | I26: =IF(I25=0,"",IF($I$25<$Z$39,$Z$39,"")) ->  | K26: =IF(U40=1,"Infonavit gastos de originación","") ->  | N26: =IF(U40=1,3%,"") ->  | O26: =IF(U40=1,I30*$AE$64,"") ->  | V26: Saldo Final | W26: =W21+W24-W23 ->  | X26: =X21+X24-X23 ->  | Y26: =Y21+Y24-Y23 ->  | Z26: =Z21+Z24-Z23 ->  | AA26: =AA21+AA24-AA23 ->  | AD26: Monto de Crédito otorgado | AE26: =IF(AE4>(AE24+AE25),AE24,AE4-AE25) -> 0 | AF26: =+AE26/AE4 -> 
C27: Que producto desea | G27: =+IF(OR(U39=4,U39=5),"Gastos Notariales Financiados","") ->  | I27: SI | K27: =IF(U40=1,"Infonavit impuestos y derechos","Impuestos y derechos") -> Impuestos y derechos | N27: =IFERROR(IF(M27="",O27/O$24,""),0) -> 0 | O27: =IFERROR(IF(AND(OR(U40=1),L47>0),L47-O26,IF(M27="",O24*$AE$65,O24*M27)),0) -> 0 | AD27: Crédito Infonavit | AE27: =MIN(AE29,AE26*30%) -> 0 | AF27: <- el Infonavit otorga el 30%
C28: Plazo del crédito | G28: =+IF(OR(U39=4,U39=5),"Monto Máximo Financiado","") ->  | I28: =+IF(AND(U39<>4,U39<>5),"",IF(I27="NO",0,IF(AND(Y41=1,O24*X39=I25),0,IF(AND(Y41=1,I25*6%+I25>I24),I24-I25,I25*6%)))) ->  | K28: Honorarios notariales | N28: =IFERROR(IF(M28="",O28/O$24,""),0) -> 0 | O28: =IFERROR(IF(M28="",O24*$AE$66,O24*M28),0) -> 0 | T28: Contratación de Seguros | W28: Actividad Económca | Z28: LTI | AD28: Crédito Banco | AE28: =+AE26-AE27 -> 0
C29: Tasa de interés (Solo para Valora) | D29: 1568700 | G29: =IF(OR(U39=3,U39=7),"Subcuenta vivienda","") ->  | I29: =IF(U39=3,D35+D42,IF(U39=7,D35+D38,"")) ->  | T29: SI | U29: 2 | W29: =IF(U39=7,"","Empleado") -> Empleado | X29: 1 | Z29: =+IF(OR(U39=1,U39=4,U39=6),1,0) -> 1 | AA29: Empleado sin apoyo (1=SI 0=NO) | AD29: *** Monto máximo Infonavit | AE29: 885445.6
C30: Tipo de comisión | G30: =IF(OR(U39=3,U39=7),"Crédito Infonavit","") ->  | I30: =IF(U39=3,D37+D44,IF(U39=7,D43,"")) ->  | L30: Costo Avalúo | M30: =IF(O24>$T$111,"'Favor de Cotizar'. Val. apróx.","") ->  | O30: =IF(W62=3,0,IFERROR(IF(OR(U39=4,U39=5),0,IF(OR(U39=4,U39=5),VLOOKUP(O24,$S$91:$V$112,4),VLOOKUP(O24,$S$91:$U$112,3))),0)) -> 0 | T30: NO | W30: =IF(OR(U39=2,U39=3,U39=5),"","Independiente") -> Independiente | Z30: =+IF(T68=2,1,IF(AND(T68=1,T72>3),1,0)) -> 0 | AA30: Valora por IR y PO todo
G31: =IF(D21="","",IF(AND(Y41=3,I24>AD44),"El crédito solicitado debe ser igual al máximo",IF(AND(Z29=1,Z30=1),"Línea máxima a otorgar puede ser menor por perfil del cliente",""))) ->  | L31: Comisión por apertura | O31: =IF(OR(W62=3,W62=4,W62=5),0,IFERROR(IF(T41=2,0,I25*V39),0)) -> 0 | T31: Tipo de Crédito | V31: Com Apert | W31: Coms. prepago | X31: LTV | Y31: Ingresos min. | Z31: Monto min. | AA31: Monto max | AB31: Valor min. viv. | AC31: PTI | AD31: Crédito máximo disponible
C32: El cliente opta por seguros externos | S32: 1 | T32: Adquisición Tradicional | V32: 0.0125 | W32: 0.03 | X32: =IF($X$29=1,AI48,AJ48) -> 0.95 | Y32: 10000 | Z32: 250000 | AA32: 15000000 | AB32: 400000 | AC32: 0.55 | AD32: =$W$86 -> 0 | AE32: CREDIRESIDENCIAL
C33: Comisión Manual por Apertura | G33: =IF(OR(U39=3,U39=7),"Recursos Totales:","Crédito Banco") -> Crédito Banco | I33: =IF(I25>I24,"Crédito solicitado fuera de rango",IF(OR(U39=3,U39=7),I25+I29+I30,I25)) -> 0 | L33: =+IF(OR(U39=4,U39=5),"Gastos de originación - Gastos Financiados","Gastos de originación") -> Gastos de originación | O33: =IFERROR(SUM(O26:O31)-I28,SUM(O26:O31)) -> 0 | S33: 2 | T33: Adquisición con Apoyo Infonavit | V33: 0.0075 | W33: 0 | X33: 0.95 | Y33: 7500 | Z33: 250000 | AA33: 15000000 | AB33: 400000 | AC33: 0.65 | AD33: =$W$86 -> 0 | AE33: CREDIRESIDENCIAL
C34: =IF(U39=3,"Cofinanciamientos (datos del titular)",IF(U39=7,"Cofinanciamientos CI+CB","")) ->  | G34: =IF(OR($U$39=3,U39=7),"Crédito SB + Crédito Infonavit + SSV al frente","") ->  | S34: 3 | T34: Cofinavit | V34: 0.0075 | W34: 0 | X34: 0.95 | Y34: 7500 | Z34: 120000 | AA34: 15000000 | AB34: 300000 | AC34: 0.65 | AD34: =AE20 -> 0 | AE34: CREDIRESIDENCIAL
C35: =IF(U39=3,"Subcuenta de vivienda",IF(U39=7,"Subcuenta de vivienda acreditado","")) ->  | I35: =IFERROR(IF($U$39=6,"",IF(OR(U39=4,U39=5),"Desembolso",IF(I33-O24>0,"Monto Remanente","Enganche para la compra"))),0) -> Enganche para la compra | L35: =IFERROR(IF(OR(U39=4,U39=5),0,$O$24-$I$33),0) -> 0 | S35: 4 | T35: Pasivo Hipotecario | V35: 0 | W35: 0.03 | X35: =IF($X$29=1,AI48,AJ48) -> 0.95 | Y35: 10000 | Z35: 125000 | AA35: 15000000 | AB35: 0 | AC35: 0.6 | AD35: =$W$86 -> 0 | AE35: CREDIRESIDENCIAL
M36: =IF(L35<0,"negativo significa remanente para el cliente","") ->  | S36: 5 | T36: Pasivo Hipotecario con Apoyo Infonavit | V36: 0 | W36: 0.03 | X36: 0.95 | Y36: 10000 | Z36: 125000 | AA36: 15000000 | AB36: 0 | AC36: 0.65 | AD36: =$W$86 -> 0 | AE36: CREDIRESIDENCIAL
C37: =IF(U39=3,"Crédito a otorgar (sin ecotecnologías)","") ->  | I37: Gastos de originación | L37: =O33 -> 0 | S37: 6 | T37: Liquidez Vivienda | V37: 0.0125 | W37: 0.03 | X37: =IF($X$29=1,AI48,AJ48) -> 0.95 | Y37: 20000 | Z37: 150000 | AA37: 2500000 | AB37: 1000000 | AC37: 0.55 | AD37: =$W$86 -> 0 | AE37: CREDILIQUIDEZ
C38: =IF(U39=7,"Subcuenta de vivienda conyuge","") ->  | I38: Inversión cliente | L38: =IF($U$39=6,L37,L35+L37) -> 0 | S38: 7 | T38: CI+CB Cofinavit | V38: 0.0125 | W38: 0 | X38: 0.9 | Y38: 10000 | Z38: 250000 | AA38: 15000000 | AB38: 300000 | AC38: 0.55 | AD38: =AE28 -> 0 | AE38: CREDIRESIDENCIAL
T39: Selección | U39: 1 | V39: =IFERROR(IF($D$33<>"",$D$33,VLOOKUP($U39,$S$32:$AC$37,4,0)),0) -> 0.0125 | W39: =IFERROR(VLOOKUP($U39,$S$32:$AC$37,5,0),0) -> 0.03 | X39: =IFERROR(VLOOKUP($U39,$S$32:$AB$38,6,0),0) -> 0.95 | Y39: =IFERROR(VLOOKUP($U39,$S$32:$AB$37,7,0),0) -> 10000 | Z39: =IFERROR(VLOOKUP($U39,$S$32:$AB$38,8,0),0) -> 250000 | AA39: =IFERROR(VLOOKUP($U39,$S$32:$AB$37,9,0),0) -> 15000000 | AB39: =IFERROR(VLOOKUP($U39,$S$32:$AB$38,10,0),0) -> 400000 | AC39: =IFERROR(VLOOKUP($U39,$S$32:$AC$38,11,0),0) -> 0.55 | AD39: =IFERROR(VLOOKUP($U39,$S$32:$AD$38,12,0),0) -> 0 | AJ39: Rango | AK39: =VLOOKUP($T$62,$AJ$40:$AM$43,2,0) -> 94971.44757 | AL39: =VLOOKUP($T$62,$AJ$40:$AM$43,3,0) -> 104650.0013 | AM39: =VLOOKUP($T$62,$AJ$40:$AM$43,4,0) -> 123462.8761
G40: CAT | I40: ='Tabla de amortizacion'!B11 -> 0 | U40: =+IF(OR(U39=3,U39=7),1,0) -> 0 | AJ40: 1 | AK40: 111500.0223 | AL40: 144950.0223 | AM40: 131300.0164
C41: =IF(U39=3,"Cofinanciamientos (datos del conyuge, si aplica))",IF(U39=7,"Crédito otorgado por el Infonavit CI+CB","")) ->  | G41: Mensualidad | I41: =IF(I25>I24,"Crédito solicitado fuera de rango",'Tabla de amortizacion'!D15+'Tabla de amortizacion'!T15+'Tabla de amortizacion'!V15) -> 0 | N41: Parámetros de crédito | S41: COMISION | T41: 1 | W41: CALCULO | Y41: 3 | AD41: Valor de vivienda debajo del mínimo | AJ41: 2 | AK41: 136571.4559 | AL41: 152100.0234 | AM41: 177542.8845
C42: =IF(U39=3,"Subcuenta de vivienda","") ->  | G42: Tasa | I42: =T83 -> 0.115 | N42: Crédito minimo | O42: =$Z$39 -> 250000 | S42: Apertura | W42: Por Valor del Inmueble | Z42: Seguros | AD42: Ingresos menores al mínimo | AJ42: 3 | AK42: 108000.0216 | AL42: 140400.0216 | AM42: 140400.0216
C43: =IF(U39=7,"Monto del Crédito*","") ->  | D43: =IF(U39=7,AE27,"") ->  | G43: Incremento anual | I43: =T85 -> 0.02 | N43: Valor mínimo inmueble | O43: =$AB$39 -> 400000 | S43: =IF(OR($U$39=2,$U$39=3,$U$39=5),"","Prepago") -> Prepago | W43: Por Ingresos | Z43: Vida | AA43: 0.0006 | AB43: =AA43 -> 0.0006 | AD43: Crédito fuera de rango | AJ43: 4 | AK43: 94971.44757 | AL43: 104650.0013 | AM43: 123462.8761
C44: =IF(U39=3,"Crédito a otorgar (sin ecotecnologías)","") ->  | G44: Pago al millar $ | I44: =T84 -> 9.93 | N44: Enganche mínimo | O44: =IF($X$39=0,0,1-$X$39) -> 0.05 | W44: Por Importe de Crédito | Z44: Daños | AA44: 0.00031 | AB44: =AA44 -> 0.00031 | AD44: =IF(T72=5,7000000,15000000) -> 15000000 | AE44: Rango de Política por monto máximo | AK44: 5000000 | AL44: 6500000 | AM44: 8000000
C45: =IF(U39=7,"* El monto del crédito aplica para el acreditado y conyuge, en su caso.","") ->  | G45: Ingreso mínimo | I45: =IF($T$62=1,AE59,IF($T$62=2,AB59,IF($T$62=3,Y59,IF($T$62=4,V59,0)))) -> 10000 | AK45: 1 | AL45: 2 | AM45: 3
G46: =IF($U$39=3,"Cofinavit (Ajustado al 100% de los gastos)","") ->  | S46: PRICING | AH46: Aforo para créditos <= $5'000,000 Valora y Pagos Oportunos | AK46: Aforo p/créd > $5'000,000 VA y PO | AQ46: 1 | AW46: 2 | BC46: 3 | BI46: 4 | BO46: 5 | BU46: Pasivo
G47: =IF($U$39=3,"Gastos exactos Infonavit (cuando se tenga el dato exacto)","") ->  | S47: Nuevo | U47: VAL 20 | V47: ppm | W47: Inc. Anual | X47: VAL 15 | Y47: ppm | Z47: Inc. Anual | AA47: VAL 10 | AB47: ppm | AC47: Inc. Anual | AD47: PAGOS OPORTUNOS | AE47: ppm mcdo abierto | AF47: ppm pago de pasivos | AG47: Desarrolladores | AH47: Emp. con apoyo | AI47: Emp. Sin apoyo | AJ47: Independientes | AK47: <= $6.5mdp | AL47: <= $8mdp | AM47: > $8 mdp | AN47: PTI | AQ47: VALORA | AR47: ppm 20 | AS47: ppm 15 | AT47: ppm 10 | AU47: Inc. Anual | AW47: VALORA 15 | AX47: ppm 20 | AY47: ppm 15 | AZ47: ppm 10 | BA47: Inc. Anual | BC47: VALORA 10 | BD47: ppm 20 | BE47: ppm 15 | BF47: ppm 10 | BG47: Inc. Anual | BI47: VALORA | BJ47: ppm 20 | BK47: ppm 15 | BL47: ppm 10 | BM47: Inc. Anual | BO47: VALORA | BP47: ppm 20 | BQ47: ppm 15 | BR47: ppm 10 | BS47: Inc. Anual | BU47: VALORA | BV47: ppm 20 | BW47: ppm 15 | BX47: ppm 10 | BY47: Inc. Anual
C48: Observaciones: | S48: =IF((IF(OR($U$39=4,$U$39=5),BT48,IF($W$62=1,AP48,IF($W$62=2,AV48,IF($W$62=3,BB48,IF($W$62=4,BH48,IF($W$62=5,BN48)))))))=0,"",(IF(OR($U$39=4,$U$39=5),BT48,IF($W$62=1,AP48,IF($W$62=2,AV48,IF($W$62=3,BB48,IF($W$62=4,BH48,IF($W$62=5,BN48)))))))) -> 1+ | T48: 1 | U48: =IF((IF(OR($U$39=4,$U$39=5),BU48,IF($W$62=1,AQ48,IF($W$62=2,AW48,IF($W$62=3,BC48,IF($W$62=4,BI48,IF($W$62=5,BO48)))))))=0,"",(IF(OR($U$39=4,$U$39=5),BU48,IF($W$62=1,AQ48,IF($W$62=2,AW48,IF($W$62=3,BC48,IF($W$62=4,BI48,IF($W$62=5,BO48)))))))) ->  | V48: =IF((IF(OR($U$39=4,$U$39=5),BV48,IF($W$62=1,AR48,IF($W$62=2,AX48,IF($W$62=3,BD48,IF($W$62=4,BJ48,IF($W$62=5,BP48)))))))=0,"",(IF(OR($U$39=4,$U$39=5),BV48,IF($W$62=1,AR48,IF($W$62=2,AX48,IF($W$62=3,BD48,IF($W$62=4,BJ48,IF($W$62=5,BP48)))))))) ->  | W48: =IF((IF(OR($U$39=4,$U$39=5),BY48,IF($W$62=1,AU48,IF($W$62=2,BA48,IF($W$62=3,BG48,IF($W$62=4,BM48,IF($W$62=5,BS48)))))))=0,"",(IF(OR($U$39=4,$U$39=5),BY48,IF($W$62=1,AU48,IF($W$62=2,BA48,IF($W$62=3,BG48,IF($W$62=4,BM48,IF($W$62=5,BS48)))))))) ->  | X48: =U48 ->  | Y48: =IF((IF(OR($U$39=4,$U$39=5),BW48,IF($W$62=1,AS48,IF($W$62=2,AY48,IF($W$62=3,BE48,IF($W$62=4,BK48,IF($W$62=5,BQ48)))))))=0,"",(IF(OR($U$39=4,$U$39=5),BW48,IF($W$62=1,AS48,IF($W$62=2,AY48,IF($W$62=3,BE48,IF($W$62=4,BK48,IF($W$62=5,BQ48)))))))) ->  | Z48: =W48 ->  | AA48: =U48 ->  | AB48: =IF((IF(OR($U$39=4,$U$39=5),BX48,IF($W$62=1,AT48,IF($W$62=2,AZ48,IF($W$62=3,BF48,IF($W$62=4,BL48,IF($W$62=5,BR48)))))))=0,"",(IF(OR($U$39=4,$U$39=5),BX48,IF($W$62=1,AT48,IF($W$62=2,AZ48,IF($W$62=3,BF48,IF($W$62=4,BL48,IF($W$62=5,BR48)))))))) ->  | AC48: =W48 ->  | AD48: 7 años | AE48: =AE56 -> 17.62 | AF48: =AE56 -> 17.62 | AG48: =AE56 -> 17.62 | AH48: 0.95 | AI48: 0.95 | AJ48: 0.9 | AK48: 0.8 | AL48: 0.8 | AM48: 0.65 | AN48: 0.55 | AP48: 1+ | AV48: 1+ | AW48: 0.1075 | AX48: 9.3 | AY48: 10.33 | AZ48: 12.75 | BA48: 0.024 | BB48: 1,2,3,4,R, EA | BC48: 0.095 | BD48: 8.38 | BE48: 9.5 | BF48: 11.98 | BG48: 0.026 | BH48: 1,2,3,4,R, EA | BI48: 0.105 | BJ48: 9.08 | BK48: 10.13 | BL48: 12.6 | BM48: 0.025 | BN48: 1,2,3,4,R, EA | BO48: 0.11 | BP48: 9.52 | BQ48: 10.54 | BR48: 12.93 | BS48: 0.023 | BT48: 1,2,3,4,R, EA | BU48: 0.1025 | BV48: 8.86 | BW48: 9.93 | BX48: 12.38 | BY48: 0.026
C49: =IFERROR("- Los impuestos y derechos están calculados al "&TEXT(($O$27/$O$24),"#,##0.00%")&" del valor del inmueble, pueden cambiar dependiendo de la entidad federativa.","") ->  | S49: =IF((IF(OR($U$39=4,$U$39=5),BS49,IF($W$62=1,AO49,IF($W$62=2,AU49,IF($W$62=3,BA49,IF($W$62=4,BG49,IF($W$62=5,BM49)))))))=0,"",(IF(OR($U$39=4,$U$39=5),BS49,IF($W$62=1,AO49,IF($W$62=2,AU49,IF($W$62=3,BA49,IF($W$62=4,BG49,IF($W$62=5,BM49)))))))) ->  | T49: 2 | U49: =IF((IF(OR($U$39=4,$U$39=5),BU49,IF($W$62=1,AQ49,IF($W$62=2,AW49,IF($W$62=3,BC49,IF($W$62=4,BI49,IF($W$62=5,BO49)))))))=0,"",(IF(OR($U$39=4,$U$39=5),BU49,IF($W$62=1,AQ49,IF($W$62=2,AW49,IF($W$62=3,BC49,IF($W$62=4,BI49,IF($W$62=5,BO49)))))))) -> 0.115 | V49: =IF((IF(OR($U$39=4,$U$39=5),BV49,IF($W$62=1,AR49,IF($W$62=2,AX49,IF($W$62=3,BD49,IF($W$62=4,BJ49,IF($W$62=5,BP49)))))))=0,"",(IF(OR($U$39=4,$U$39=5),BV49,IF($W$62=1,AR49,IF($W$62=2,AX49,IF($W$62=3,BD49,IF($W$62=4,BJ49,IF($W$62=5,BP49)))))))) -> 9.93 | W49: =IF((IF(OR($U$39=4,$U$39=5),BY49,IF($W$62=1,AU49,IF($W$62=2,BA49,IF($W$62=3,BG49,IF($W$62=4,BM49,IF($W$62=5,BS49)))))))=0,"",(IF(OR($U$39=4,$U$39=5),BY49,IF($W$62=1,AU49,IF($W$62=2,BA49,IF($W$62=3,BG49,IF($W$62=4,BM49,IF($W$62=5,BS49)))))))) -> 0.02 | X49: 0.115 | Y49: =IF((IF(OR($U$39=4,$U$39=5),BW49,IF($W$62=1,AS49,IF($W$62=2,AY49,IF($W$62=3,BE49,IF($W$62=4,BK49,IF($W$62=5,BQ49)))))))=0,"",(IF(OR($U$39=4,$U$39=5),BW49,IF($W$62=1,AS49,IF($W$62=2,AY49,IF($W$62=3,BE49,IF($W$62=4,BK49,IF($W$62=5,BQ49)))))))) -> 10.96 | Z49: =W49 -> 0.02 | AA49: 0.115 | AB49: =IF((IF(OR($U$39=4,$U$39=5),BX49,IF($W$62=1,AT49,IF($W$62=2,AZ49,IF($W$62=3,BF49,IF($W$62=4,BL49,IF($W$62=5,BR49)))))))=0,"",(IF(OR($U$39=4,$U$39=5),BX49,IF($W$62=1,AT49,IF($W$62=2,AZ49,IF($W$62=3,BF49,IF($W$62=4,BL49,IF($W$62=5,BR49)))))))) -> 13.35 | AC49: =W49 -> 0.02 | AD49: 10 años | AE49: =AB56 -> 14.31 | AF49: =AB56 -> 14.31 | AG49: =AB56 -> 14.31 | AH49: 0.95 | AI49: 0.95 | AJ49: 0.9 | AK49: 0.8 | AL49: 0.8 | AM49: 0.65 | AN49: 0.55 | AP49: 1 | AQ49: 0.115 | AR49: 9.93 | AS49: 10.96 | AT49: 13.35 | AU49: 0.02 | AV49: 2+,3+,4+,R | AW49: 0.115 | AX49: 9.93 | AY49: 10.96 | AZ49: 13.35 | BA49: 0.02
C50: =IFERROR("- Los honorarios notariales en los créditos en cofinanciamiento están calculados al "&TEXT(($O$28/$O$24),"#,##0.00%")&" del valor del inmueble, pueden variar dependiendo de la entidad federativa.","") ->  | T50: 3 | U50: 0.12 | V50: 10.39744444 | W50: 0.016 | X50: =U50 -> 0.12 | Y50: 11.42 | Z50: 0.016 | AA50: 0.12 | AB50: 13.8 | AC50: 0.016 | AD50: 15 años | AE50: =Y56 -> 12.3 | AF50: =Y56 -> 12.3 | AG50: =Y56 -> 12.3 | AH50: 0.95 | AI50: 0.9 | AJ50: 0.9 | AK50: 0.8 | AL50: 0.8 | AM50: 0.65 | AN50: 0.55 | AP50: 2 | AQ50: 0.12 | AR50: 10.39744444 | AS50: 11.42 | AT50: 13.8 | AU50: 0.016
C51: - El crédito solicitado dependerá de la capacidad de pago de cada cliente | S51: =IF((IF(OR($U$39=4,$U$39=5),BS51,IF($W$62=1,AO51,IF($W$62=2,AU51,IF($W$62=3,BA51,IF($W$62=4,BG51,IF($W$62=5,BM51)))))))=0,"",(IF(OR($U$39=4,$U$39=5),BS51,IF($W$62=1,AO51,IF($W$62=2,AU51,IF($W$62=3,BA51,IF($W$62=4,BG51,IF($W$62=5,BM51)))))))) ->  | T51: 4 | U51: 0.125 | V51: 10.83 | W51: 0.012 | X51: 0.125 | Y51: 11.84 | Z51: 0.012 | AA51: 0.125 | AB51: 14.22 | AC51: 0.012 | AD51: 20 años | AE51: =V56 -> 11.32 | AF51: =V56 -> 11.32 | AG51: =V56 -> 11.32 | AH51: 0.95 | AI51: 0.85 | AJ51: 0.85 | AK51: 0.7 | AL51: 0.7 | AM51: 0.55 | AN51: 0.5 | AP51: 3 | AQ51: 0.125 | AR51: 10.83 | AS51: 11.84 | AT51: 14.22 | AU51: 0.012
C52: - Scotiabank se reserva el derecho de solicitar información adicional y/o restringir parámetros de enganche, monto, plazo o tasa en función de las características específicas | T52: 5 | U52: 0.1275 | V52: 11.03 | W52: 0.01 | X52: 0.1275 | Y52: 12.03 | Z52: 0.01 | AA52: 0.1275 | AB52: 14.4 | AC52: 0.01 | AH52: 0.85 | AI52: 0.8 | AJ52: 0.75 | AK52: 0.65 | AL52: 0.55 | AM52: 0.55 | AN52: 0.45 | AP52: 4,R | AQ52: 0.1275 | AR52: 11.03 | AS52: 12.03 | AT52: 14.4 | AU52: 0.01
C53: del solicitante y del inmueble objeto de la operación. | T53: TP | U53: =IF((IF(OR($U$39=4,$U$39=5),BU53,IF($W$62=1,AQ53,IF($W$62=2,AW53,IF($W$62=3,BC53,IF($W$62=4,BI53,IF($W$62=5,BO53)))))))=0,"",(IF(OR($U$39=4,$U$39=5),BU53,IF($W$62=1,AQ53,IF($W$62=2,AW53,IF($W$62=3,BC53,IF($W$62=4,BI53,IF($W$62=5,BO53)))))))) -> 0.1075 | AD53: Tasa inicio | AE53: =IF(T62=1,AD56,IF(T62=2,AA56,IF(T62=3,X56,IF(T62=4,U56)))) -> 0.1225 | AF53: =IF(T62=1,AD56,IF(T62=2,AA56,IF(T62=3,X56,IF(T62=4,U56)))) -> 0.1225 | AG53: =IF(T62=1,AD56,IF(T62=2,AA56,IF(T62=3,X56,IF(T62=4,U56)))) -> 0.1225 | AH53: 0.8 | AI53: 0.7 | AJ53: 0.5 | AK53: 0.5 | AL53: 0.5 | AM53: 0.5 | AN53: 0.45 | AP53: Piso | AQ53: 0.1075 | AV53: Piso | AW53: 0.1075 | BB53: Piso | BC53: 0.095 | BH53: Piso | BI53: 0.105 | BN53: Piso | BO53: 0.11 | BT53: Piso | BU53: 0.1025
C54: - En caso de que aplique, la comisión por pagos anticipados causa I.V.A. | T54: TT | U54: 0.1275 | AP54: Techo | AQ54: 0.1275 | AV54: Techo | AW54: 0.1275 | BB54: Techo | BC54: 0.115 | BH54: Techo | BI54: 0.125 | BN54: Techo | BO54: 0.13 | BT54: Techo | BU54: 0.1225
C55: - Esta cotización tiene carácter informativo, Scotiabank se reserva el derecho de cambiar cualquier condición sin previo aviso - Este documento NO implica que el crédito ha sido autorizado, ni establece obligación alguna para Scotiabank. | U55: PO 20 | X55: PO 15 | AA55: PO 10 | AD55: PO 7 | AK55: =IF($Y$41=2,IF($D$21>=$AM$39,3,IF($D$21>=$AL$39,2,IF($D$21>=$AK$39,1,0))),IF($D$21>$AM$44,3,IF($D$21>$AL$44,2,IF($D$21>$AK$44,1,0)))) -> 0 | AQ55: PO | AR55: ppm | AW55: PO | BC55: PO | BD55: ppm | BI55: PO | BJ55: ppm | BO55: PO | BP55: ppm | BU55: PO | BV55: ppm
C56: - Para los esquemas de "Pagos Oportunos" y "Valora" se deberá cumplir con las reglas establecidas en los programas para la disminución de la tasa de interés | O56: v2024.01 | T56: =+IF(U56=10.25%,"PO mercado abierto","PO pago de pasivos") -> PO pago de pasivos | U56: =IF((IF(OR($U$39=4,$U$39=5),BU59,IF($W$62=1,AQ59,IF($W$62=2,AW59,IF($W$62=3,BC59,IF($W$62=4,BI59,IF($W$62=5,BO59)))))))=0,"",(IF(OR($U$39=4,$U$39=5),BU59,IF($W$62=1,AQ59,IF($W$62=2,AW59,IF($W$62=3,BC59,IF($W$62=4,BI59,IF($W$62=5,BO59)))))))) -> 0.1225 | V56: =IF((IF(OR($U$39=4,$U$39=5),BV59,IF($W$62=1,AR59,IF($W$62=2,AX59,IF($W$62=3,BD59,IF($W$62=4,BJ59,IF($W$62=5,BP59)))))))=0,"",(IF(OR($U$39=4,$U$39=5),BV59,IF($W$62=1,AR59,IF($W$62=2,AX59,IF($W$62=3,BD59,IF($W$62=4,BJ59,IF($W$62=5,BP59)))))))) -> 11.32 | W56: 0 | X56: =IF((IF(OR($U$39=4,$U$39=5),BU58,IF($W$62=1,AQ58,IF($W$62=2,AW58,IF($W$62=3,BC58,IF($W$62=4,BI58,IF($W$62=5,BO58)))))))=0,"",(IF(OR($U$39=4,$U$39=5),BU58,IF($W$62=1,AQ58,IF($W$62=2,AW58,IF($W$62=3,BC58,IF($W$62=4,BI58,IF($W$62=5,BO58)))))))) -> 0.1225 | Y56: =IF((IF(OR($U$39=4,$U$39=5),BV58,IF($W$62=1,AR58,IF($W$62=2,AX58,IF($W$62=3,BD58,IF($W$62=4,BJ58,IF($W$62=5,BP58)))))))=0,"",(IF(OR($U$39=4,$U$39=5),BV58,IF($W$62=1,AR58,IF($W$62=2,AX58,IF($W$62=3,BD58,IF($W$62=4,BJ58,IF($W$62=5,BP58)))))))) -> 12.3 | Z56: 0 | AA56: =IF((IF(OR($U$39=4,$U$39=5),BU57,IF($W$62=1,AQ57,IF($W$62=2,AW57,IF($W$62=3,BC57,IF($W$62=4,BI57,IF($W$62=5,BO57)))))))=0,"",(IF(OR($U$39=4,$U$39=5),BU57,IF($W$62=1,AQ57,IF($W$62=2,AW57,IF($W$62=3,BC57,IF($W$62=4,BI57,IF($W$62=5,BO57)))))))) -> 0.1175 | AB56: =IF((IF(OR($U$39=4,$U$39=5),BV57,IF($W$62=1,AR57,IF($W$62=2,AX57,IF($W$62=3,BD57,IF($W$62=4,BJ57,IF($W$62=5,BP57)))))))=0,"",(IF(OR($U$39=4,$U$39=5),BV57,IF($W$62=1,AR57,IF($W$62=2,AX57,IF($W$62=3,BD57,IF($W$62=4,BJ57,IF($W$62=5,BP57)))))))) -> 14.31 | AC56: 0 | AD56: =IF((IF(OR($U$39=4,$U$39=5),BU56,IF($W$62=1,AQ56,IF($W$62=2,AW56,IF($W$62=3,BC56,IF($W$62=4,BI56,IF($W$62=5,BO56)))))))=0,"",(IF(OR($U$39=4,$U$39=5),BU56,IF($W$62=1,AQ56,IF($W$62=2,AW56,IF($W$62=3,BC56,IF($W$62=4,BI56,IF($W$62=5,BO56)))))))) -> 0.1175 | AE56: =IF((IF(OR($U$39=4,$U$39=5),BV56,IF($W$62=1,AR56,IF($W$62=2,AX56,IF($W$62=3,BD56,IF($W$62=4,BJ56,IF($W$62=5,BP56)))))))=0,"",(IF(OR($U$39=4,$U$39=5),BV56,IF($W$62=1,AR56,IF($W$62=2,AX56,IF($W$62=3,BD56,IF($W$62=4,BJ56,IF($W$62=5,BP56)))))))) -> 17.62 | AF56: 0 | AH56: VALORA PASIVOS+DESARROLLADORES | AI56: Tasa | AJ56: PLAZO | AK56: PPM | AL56: INCA | AP56: 7 | AQ56: 0.1175 | AR56: 17.62 | AW56: NA | BB56: 7 | BC56: 0.095 | BD56: 16.42 | BH56: 7 | BI56: 0.105 | BJ56: 16.95 | BN56: 7 | BO56: 0.11 | BP56: 17.22 | BT56: 7 | BU56: 0.1025 | BV56: 16.82
T57: Condiciones Valora | U57: =IF(OR($U$39=4,$U$39=5),$AI$57,IFERROR(VLOOKUP($T$72,$T$48:$AC$54,2,0),0)) -> 0.115 | V57: =IF(OR($U$39=4,$U$39=5),IF(T72=3,$AK$57,IFERROR(VLOOKUP($T$72,$T$48:$AC$54,3,0),0)),IFERROR(VLOOKUP($T$72,$T$48:$AC$54,3,0),0)) -> 9.93 | W57: =IFERROR(VLOOKUP($T$72,$T$48:$AC$54,4,0),0) -> 0.02 | X57: =IF(OR($U$39=4,$U$39=5),$AI$57,IFERROR(VLOOKUP($T$72,$T$48:$AC$54,5,0),0)) -> 0.115 | Y57: =IF(OR($U$39=4,$U$39=5),IF(T72=3,$AK$58,IFERROR(VLOOKUP($T$72,$T$48:$AC$54,6,0),0)),IFERROR(VLOOKUP($T$72,$T$48:$AC$54,6,0),0)) -> 10.96 | Z57: =IFERROR(VLOOKUP($T$72,$T$48:$AC$54,7,0),0) -> 0.02 | AA57: =IF(OR($U$39=4,$U$39=5),$AI$57,IFERROR(VLOOKUP($T$72,$T$48:$AC$54,8,0),0)) -> 0.115 | AB57: =IF(OR($U$39=4,$U$39=5),IF(T72=3,$AK$59,IFERROR(VLOOKUP($T$72,$T$48:$AC$54,9,0),0)),IFERROR(VLOOKUP($T$72,$T$48:$AC$54,9,0),0)) -> 13.35 | AC57: =IFERROR(VLOOKUP($T$72,$T$48:$AC$54,10,0),0) -> 0.02 | AH57: TASA PISO | AI57: =T83 -> 0.115 | AJ57: 20 | AK57: =VLOOKUP(AI57,U48:V52,2,0) -> 9.93 | AL57: =VLOOKUP(AI57,U48:W52,3,0) -> 0.02 | AP57: 10 | AQ57: 0.1175 | AR57: 14.31 | AW57: NA | BB57: 10 | BC57: 0.095 | BD57: 13.02 | BH57: 10 | BI57: 0.105 | BJ57: 13.6 | BN57: 10 | BO57: 0.11 | BP57: 13.87 | BT57: 10 | BU57: 0.1025 | BV57: 13.45
T58: Condiciones Valora para cálculo de ingresos (IR 2) | V58: =V50 -> 10.39744444 | Y58: =Y50 -> 11.42 | AB58: =AB50 -> 13.8 | AH58: TASA TECHO | AJ58: 15 | AK58: =VLOOKUP(AI57,X48:Y52,2,0) -> 10.96 | AL58: =VLOOKUP(AI57,X48:Z52,3,0) -> 0.02 | AP58: 15 | AQ58: 0.1225 | AR58: 12.3 | AW58: NA | BB58: 15 | BC58: 0.095 | BD58: 10.53 | BH58: 15 | BI58: 0.105 | BJ58: 11.16 | BN58: 15 | BO58: 0.11 | BP58: 11.47 | BT58: 15 | BU58: 0.1025 | BV58: 11
T59: ingreso mínimo | V59: =IFERROR(IF($T$68=1,AC68,AC73),0) -> 10000 | Y59: =IFERROR(IF($T$68=1,AB68,AB73),0) -> 10000 | AB59: =IFERROR(IF($T$68=1,AA68,AA73),0) -> 10000 | AE59: =IFERROR(IF($T$68=1,Z68,Z73),0) -> 0 | AJ59: 10 | AK59: =VLOOKUP(AI57,AA48:AB52,2,0) -> 13.35 | AL59: =VLOOKUP(AI57,AA48:AC52,3,0) -> 0.02 | AP59: 20 | AQ59: 0.1225 | AR59: 11.32 | AW59: NA | BB59: 20 | BC59: 0.095 | BD59: 9.42 | BH59: 20 | BI59: 0.105 | BJ59: 10.1 | BN59: 20 | BO59: 0.11 | BP59: 10.44 | BT59: 20 | BU59: 0.1025 | BV59: 9.92
S62: Plazo | T62: 4 | V62: Campaña | W62: 1
S63: =IF($T$68=1,"","7 años") ->  | U63: 1 | V63: Ninguna | Y63: Cálculo de ingresos mínimpos por plazo | AD63: Monto máximo CI+CB | AE63: 885445.6
S64: 10 años | U64: 2 | V64: =IF(OR($U$39=4,$U$39=5),"","Enganches Altos >=35%") -> Enganches Altos >=35% | Y64: Valora | Z64: 7 años | AA64: 10 años | AB64: 15 años | AC64: 20 años | AD64: =IF($U$39=3,"Infonavit gastos de originación","") ->  | AE64: 0.03
S65: 15 años | U65: 3 | V65: =IF(OR($U$39=4,$U$39=5),"","Premium / WM") -> Premium / WM | Y65: Por Crédito solicitado | AA65: =IFERROR($I$25/1000*$AB$57/$AC$39,0) -> 0 | AB65: =IFERROR($I$25/1000*$Y$57/$AC$39,0) -> 0 | AC65: =IFERROR($I$25/1000*$V$57/$AC$39,0) -> 0 | AD65: =IF($U$39=3,"Infonavit impuestos y derechos","Impuestos y derechos") -> Impuestos y derechos | AE65: 0.03
S66: 20 años | U66: 4 | V66: =IF(OR($U$39=4,$U$39=5),"","Lealtad / Nómina") -> Lealtad / Nómina | Y66: Por Ingresos | AA66: =AA65 -> 0 | AB66: =AB65 -> 0 | AC66: =AC65 -> 0 | AD66: Honorarios notariales | AE66: 0.02
U67: 5 | V67: =IF(OR($U$39=4,$U$39=5),"","Desarrolladores") -> Desarrolladores | W67: Valora
S68: Producto | T68: 1 | V68: ppm | W68: Inc anuales | AA68: =MAX($Y$39,IF($Y$41=1,AA65,AA66)) -> 10000 | AB68: =MAX($Y$39,IF($Y$41=1,AB65,AB66)) -> 10000 | AC68: =MAX($Y$39,IF($Y$41=1,AC65,AC66)) -> 10000
S69: Valora | V69: =IF($T$62=1,AE57,IF($T$62=2,AB57,IF($T$62=3,Y57,V57))) -> 9.93 | W69: =IF($T$62=1,AF57,IF($T$62=2,AC57,IF($T$62=3,Z57,W57))) -> 0.02 | Y69: Pagos Oportunos | Z69: 7 años | AA69: 10 años | AB69: 15 años | AC69: 20 años | AD69: CALCULO PARA EL IMPORTE MAXIMO DE APORTACION PATRONAL
S70: Pagos Oportunos | T70: 1 | V70: =IF($T$62=1,AE56,IF($T$62=2,AB56,IF($T$62=3,Y56,V56))) -> 11.32 | W70: 0 | Y70: Por Crédito solicitado | Z70: =IFERROR($I$25/1000*$AE$56/$AC$39,0) -> 0 | AA70: =IFERROR($I$25/1000*$AB$56/$AC$39,0) -> 0 | AB70: =IFERROR($I$25/1000*$Y$56/$AC$39,0) -> 0 | AC70: =IFERROR($I$25/1000*$V$56/$AC$39,0) -> 0 | AD70: Salario diario nominal (UMA enero 2024) | AF70: 108.57 | AH70: =AF70*30.4 -> 3300.528
Y71: Por Ingresos | Z71: =Z70 -> 0 | AA71: =AA70 -> 0 | AB71: =AB70 -> 0 | AC71: =AC70 -> 0 | AD71: Tope de aportación patronal (Veces el SMGVDF) | AF71: 25
S72: Tasas | T72: 2 | AD72: Aportación patronal | AF72: =+AF70*AF71 -> 2714.25 | AH72: =AF72*30.4 -> 82513.2
S73: =+IF(T68=2,(IF(T62=4,U56,IF(T62=3,X56,IF(T62=2,AA56,IF(T62=1,AD56,""))))),(IF(T62=4,U48,IF(T62=3,X48,IF(T62=2,AA48,""))))) ->  | T73: 1+ | Z73: =MAX($Y$39,IF($Y$41=1,Z70,Z71)) -> 10000 | AA73: =MAX($Y$39,IF($Y$41=1,AA70,AA71)) -> 10000 | AB73: =MAX($Y$39,IF($Y$41=1,AB70,AB71)) -> 10000 | AC73: =MAX($Y$39,IF($Y$41=1,AC70,AC71)) -> 10000 | AD73: Aportación Patronal 5% | AF73: =+AF72*0.05 -> 135.7125
S74: =IF($T$68=2,"",U49) -> 0.115 | T74: 1 | AD74: (Crédito para vivienda) | AE74: 0.05
S75: =IF($T$68=2,"",IF(AND(T68=1,OR(U39=4,U39=5)),"",U50)) -> 0.12 | T75: 2 | AD75: No. de días del bimestre (promedio 60 días) | AF75: 60.8
S76: =IF($T$68=2,"",IF(AND(T68=1,OR(U39=4,U39=5)),"",U51)) -> 0.125 | T76: 3 | AD76: Aportación Patronal bimestral | AF76: =+AF73*AF75 -> 8251.32
S77: =IF($T$68=2,"",IF(AND(T68=1,OR(U39=4,U39=5)),"",U52)) -> 0.1275 | T77: 4,R | AD77: Incremento anual promedio para las aportaciones = | AF77: 0.03
T80: Selección
T81: =IF($T$68=1,S69,S70) -> Valora | W81: Cred. max | Y81: Erogación | AA81: Valor de vivienda | AC81: Ingresos
T82: =IF($T$62=1,S63,IF($T$62=2,S64,IF($T$62=3,S65,S66))) -> 20 años | V82: Por Valor Inmueble | W82: =IFERROR(IF($Y$41=3,D21,D21*X39),0) -> 0 | Y82: =W82/1000*$T$84 -> 0 | AA82: =IFERROR(IF($Y$41=3,D21/X39,D21),0) -> 0 | AC82: =W82/1000*$T$86/$AC$39 -> 0 | AD82: =$Y$39 -> 10000 | AE82: =MAX(AC82:AD82) -> 10000
T83: =IFERROR(IF(T68=2,INDEX($S$73:$S$79,1),INDEX($S$73:$S$79,$T$72)),0) -> 0.115 | V83: Por Ingresos | W83: =IFERROR(Y83/(T86/1000),0) -> 0 | Y83: =IFERROR(D21*AC39,0) -> 0 | AA83: =W83/$X$39 -> 0 | AC83: =D21 -> 0 | AD83: =$Y$39 -> 10000 | AE83: =MAX(AC83:AD83) -> 10000
T84: =+IF(T68=2,(IF(T62=4,V56,IF(T62=3,Y56,IF(T62=2,AB56,IF(T62=1,AE56,""))))),(IF(T62=4,AK57,IF(T62=3,AK58,IF(T62=2,AK59,""))))) -> 9.93
T85: =+IF(T68=2,0,(IF(T62=4,AL57,IF(T62=3,AL58,IF(T62=2,AL59,""))))) -> 0.02
S86: ppm (cap pago) | T86: =T84 -> 9.93 | V86: Cred. máximo | W86: =IF(OR($Y$41=1,$Y$41=3),W82,W83) -> 0 | AA86: =IF(OR($Y$41=1,$Y$41=3),AA82,AA83) -> 0 | AC86: =IF(AND(Y41=2,T68=1,T72>3,SUM(Z29:Z30)>0),AC83*25,"") ->  | AE86: =IF($Y$41=1,AE82,AE83) -> 10000
V87: Cred. Máximo Pago de Pasivos | AC87: LTI
S89: AVALUO
S90: Mayor a | T90: Hasta a | U90: Importe | V90: Switch | AB90: 25 | AC90: 1250000
S91: 0.01 | T91: 500000 | U91: 1900 | V91: 1253 | AB91: 25.9 | AC91: 1295000 | AD91: =+AC91-AC90 -> 45000
S92: 500001 | T92: 1000000 | U92: 3300 | V92: 1740 | AB92: 26 | AC92: 1300000
S93: 1000001 | T93: 1500000 | U93: 4500 | V93: 2784
S94: 1500001 | T94: 2000000 | U94: 5750 | V94: 2784
S95: 2000001 | T95: 2500000 | U95: 7000 | V95: 4663
S96: 2500001 | T96: 3000000 | U96: 8200 | V96: 4663
S97: 3000001 | T97: 4000000 | U97: 11000 | V97: 5000
S98: 4000001 | T98: 5000000 | U98: 13900 | V98: 5000
S99: 5000001 | T99: 6000000 | U99: 15500 | V99: 5000
S100: 6000001 | T100: 7000000 | U100: 19000 | V100: 5000
S101: 7000001 | T101: 8000000 | U101: 20000 | V101: 5000
S102: 8000001 | T102: 9000000 | U102: 20100 | V102: 5000
S103: 9000001 | T103: 10000000 | U103: 22500 | V103: 5000
S104: 10000001 | T104: 11000000 | U104: 27000 | V104: 5000
S105: 11000001 | T105: 12000000 | U105: 28000 | V105: 5000
S106: 12000001 | T106: 13000000 | U106: 30000 | V106: 5000
S107: 13000001 | T107: 14000000 | U107: 32000 | V107: 5000
S108: 14000001 | T108: 15000000 | U108: 34000 | V108: 5000
S109: 15000001 | T109: 20000000 | U109: 37000 | V109: 5000
S110: 20000001 | T110: 25000000 | U110: 39000 | V110: 5000
S111: 25000001 | T111: 30000000 | U111: 40000 | V111: 5000
S112: 30000001 | T112: 30000000 | U112: 40000 | V112: 5000

Sheet Tabla de amortizacion
A1: Scotiabank Inverlat, S.A., Institución de Banca Múltiple, Grupo Financiero Scotiabank Inverlat | BN1: -
A2: FINANCIAMIENTO RESIDENCIAL SCOTIABANK
A3: TABLA DE AMORTIZACION | AE3: 1 | AH3: Comisión por apertura | AK3: =IFERROR(Simulador!O31*1,0) -> 0 | AM3: Piso | AN3: Techo
A4: =IF(AND(Simulador!T68=1,Simulador!T62=2),"VALORA 10 AÑOS",IF(AND(Simulador!T68=1,Simulador!T62=3),"VALORA 15 AÑOS",IF(AND(Simulador!T68=1,Simulador!T62=4),"VALORA 20 AÑOS",IF(AND(Simulador!T68=2,Simulador!T62=1),"PAGOS OPORTUNOS 7 AÑOS",IF(AND(Simulador!T68=2,Simulador!T62=2),"PAGOS OPORTUNOS 10 AÑOS",IF(AND(Simulador!T68=2,Simulador!T62=3),"PAGOS OPORTUNOS 15 AÑOS","PAGOS OPORTUNOS 20 AÑOS")))))) -> VALORA 20 AÑOS | AE4: Disminución de plazo | AH4: Avalúo | AK4: =IFERROR(Simulador!O30*1,0) -> 0 | AM4: =Simulador!U53 -> 0.1075 | AN4: =Simulador!U54 -> 0.1275
A5: Observaciones | L5: =Simulador!C8 -> 2024-03-22 | AE5: Disminución de pago | AH5: Total | AK5: =+AK4+AK3 -> 0
A6: - En caso de que aplique la comisión por prepagos causa IVA y en la corrida ya lo incluye
A7: - El escenario que se presenta en la tabla de amortización siempre es considerando que se paga de manera puntual el crédito.
A8: - Para los esquemas de "Pagos Oportunos" y "Valora" se deberá cumplir con las reglas establecidas en los programas para la disminución de la tasa de interés | BB8: =BB12*12 -> 0
A9: - Esta cotización tiene carácter informativo, Scotiabank se reserva el derecho de cambiar cualquier condición sin previo aviso. | AH9: TIR | BB9: =((1+BB12)^12)-1 -> 0
A10: - Este documento NO implica que el crédito ha sido autorizado, ni establece obligación alguna para Scotiabank. | R10: El crédito se liquida | Y10: =AF14 -> 0 | Z10: Años | AH10: =IFERROR(IRR(AH14:AH254,0),0) -> 0 | AJ10: =AH10*12 -> 0 | AK10: =((1+AH10)^12)-1 -> 0 | BB10: Corrida para CAT
A11: - CAT =. | B11: =BB9 -> 0 | C11: "Para fines informativos de comparación exclusivamente sin IVA" | R11: por pago puntual en: | Y11: =AG14 -> 0 | Z11: Meses | AH11: Corrida para CAT | BB11: TIR
A12: - En caso de anticipos a capital escoja la opción: | BB12: =IFERROR(IRR(BB13:BB254,0),0) -> 0
AB13: . | AS13: . | BB13: =AK5-AT15 -> 0
A14: Período | B14: Saldo Inicial | D14: Erogación | F14: Interés | H14: Amortización | J14: Prepagos a capital | L14: Comisión por prepagos | N14: Aportación Bimestral (Apoyo Inf) | P14: Tasa aplicada | R14: Saldo Final | T14: Seguro de vida y desempleo | V14: Seguro de daños | Y14: Pago Mensual | AA14: Inc. Pago | AC14: años | AD14: meses | AE14: =SUM(AE15:AE254) -> 1 | AF14: =SUM(AF15:AF254) -> 0 | AG14: =SUM(AG15:AG254) -> 0 | AH14: =AK5-B15 -> 0 | AI14: Tasa aplicar | AJ14: Tasa Valora | AK14: Erogación | AL14: 7 años | AM14: 10 años | AN14: 15 años | AO14: 20 años | AP14: 30 años | AQ14: factor de pago - Valora | AR14: Tasa PO | AT14: Saldo Inicial | AU14: Erogación | AV14: Interés | AW14: Amortización | AX14: Saldo Final | AY14: Tasa Aplic. | AZ14: Seguros | BA14: Incremento Pago | BB14: Pago Mensual | BC14: Plazo | BD14: Fecha | BE14: Dias | BF14: Período | BG14: Año actual | BH14: Mes actual | BI14: Día actual | BJ14: Dia/corte | BK14: sumar a mes
A15: 1 | B15: =IFERROR(IF(Simulador!O25="",Simulador!I25,Simulador!O25),0) -> 0 | D15: =IFERROR(B15/1000*Simulador!T84,0) -> 0 | F15: =IFERROR(IF(B15=0,0,P15/360*BE15*B15),0) -> 0 | H15: =D15-F15 -> 0 | L15: =IF(Simulador!$T$41=1,0,J15*Simulador!$W$39*1.16) -> 0 | P15: =IF(B15=0,"",AI15) ->  | R15: =IFERROR(B15-H15-J15+L15-N15,0) -> 0 | T15: =IFERROR(IF(Simulador!$U$29=1,0,IF($B15<=0,0,$B15*Simulador!$AA$43)),0) -> 0 | V15: =IFERROR(IF(Simulador!$U$29=1,0,IF($B15<=0,0,IF(Simulador!$D$22>0,Simulador!$D$22,Simulador!$O$24)*Simulador!$AA$44)),0) -> 0 | Y15: =IF(B15<=0,0,D15+J15+T15+V15) -> 0 | AC15: 0 | AD15: =IF(B15=0,0,1) -> 0 | AE15: =IF(R15<=0,IF(R14>0,A15,0),0) -> 1 | AF15: =IF(AE15>0,AC15,0) -> 0 | AG15: =IF(AE15>0,AD15,0) -> 0 | AH15: =Y15 -> 0 | AI15: =IF(Simulador!$T$68=1,'Tabla de amortizacion'!AJ15,'Tabla de amortizacion'!AR15) -> 0.115 | AJ15: =Simulador!$I$42 -> 0.115 | AK15: =D15 -> 0 | AL15: =Simulador!AD56 -> 0.1175 | AM15: =Simulador!AA56 -> 0.1175 | AN15: =Simulador!X56 -> 0.1225 | AO15: =Simulador!U56 -> 0.1225 | AP15: 0 | AQ15: =IFERROR((AU15/AT15),0) -> 0 | AR15: =IF(AND(Simulador!$T$68=2,Simulador!$T$62=1),AL15,IF(AND(Simulador!$T$68=2,Simulador!$T$62=2),AM15,IF(AND(Simulador!$T$68=2,Simulador!$T$62=3),AN15,AO15))) -> 0.1225 | AT15: =B15 -> 0 | AU15: =D15 -> 0 | AV15: =IFERROR((AY15/360*BE15*AT15),0) -> 0 | AW15: =+AU15-AV15 -> 0 | AX15: =+AT15-AW15 -> 0 | AY15: =IF(AT15=0,"",AI15) ->  | AZ15: =IFERROR(IF(Simulador!$U$29=1,0,IF($AT15<=0.01,0,$AT15*Simulador!$AA$43)),0)+IFERROR(IF(Simulador!$U$29=1,0,IF($AT15<=0.01,0,IF(Simulador!$D$22>0,Simulador!$D$22,Simulador!$O$24)*Simulador!$AA$44)),0) -> 0 | BB15: =AV15+AW15+AZ15 -> 0 | BC15: =IF(Simulador!T62=2,120,IF(Simulador!T62=3,180,IF(Simulador!T62=4,240,84))) -> 240 | BD15: =IF(AT15=0,"",DATE(BG15,BH15+BK15,BJ15)) ->  | BE15: =IFERROR(DAY(DATE(YEAR(BD15),MONTH(BD15)+1,0)),0) -> 0 | BF15: 1 | BG15: =IFERROR(YEAR(Simulador!C8),YEAR(TODAY())) -> 2024 | BH15: =IFERROR(MONTH(Simulador!C8),MONTH(TODAY())) -> 3 | BI15: =IFERROR(DAY(Simulador!C8),DAY(TODAY())) -> 22 | BJ15: =IF(AND(DAY(Simulador!C8)>=3,DAY(Simulador!C8)<=16),3,17) -> 17 | BK15: =IF(BI15>BJ15,1,0) -> 1
A16: 2 | B16: =IF(R15<=0,0,R15) -> 0 | D16: =IF(B16+F16-D15<=0,B16+F16,IF(AND(OR(Simulador!$U$39=2,Simulador!$U$39=7),J15=0),D15*(1+AA16),IF($AE$3=2,B16*AQ16,D15*(1+AA16)))) -> 0 | F16: 0 | H16: =D16-F16 -> 0 | L16: =IF(Simulador!$T$41=1,0,J16*Simulador!$W$39*1.16) -> 0 | N16: =IF(AND(Simulador!U39<>2,Simulador!U39<>5),0,IF(Simulador!D24*Simulador!$AE$74*2>Simulador!$AF$76,Simulador!$AF$76,IF(B16=0,0,Simulador!D24*Simulador!$AE$74*2))) -> 0 | R16: =B16-H16-J16+L16-N16 -> 0 | T16: =IFERROR(IF(Simulador!$U$29=1,0,IF($B16<=0,0,$B16*Simulador!$AA$43)),0) -> 0 | V16: =IFERROR(IF(Simulador!$U$29=1,0,IF($B16<=0,0,IF(Simulador!$D$22>0,Simulador!$D$22,Simulador!$O$24)*Simulador!$AA$44)),0) -> 0 | Y16: 0 | AC16: 0 | AD16: 2 | AE16: =IF(R16<=0,IF(R15>0,A16,0),0) -> 0 | AF16: =IF(AE16>0,AC16,0) -> 0 | AG16: =IF(AE16>0,AD16,0) -> 0 | AH16: =Y16 -> 0 | AI16: =IF(Simulador!$T$68=1,'Tabla de amortizacion'!AJ16,'Tabla de amortizacion'!AR16) -> 0.115 | AJ16: =Simulador!$I$42 -> 0.115 | AK16: =AK15*(1+AA16) -> 0 | AL16: =AL15 -> 0.1175 | AM16: =AM15 -> 0.1175 | AN16: =AN15 -> 0.1225 | AO16: =AO15 -> 0.1225 | AP16: 0 | AQ16: =IFERROR((AU16/AT16),0) -> 0 | AR16: =IF(AND(Simulador!$T$68=2,Simulador!$T$62=1),AL16,IF(AND(Simulador!$T$68=2,Simulador!$T$62=2),AM16,IF(AND(Simulador!$T$68=2,Simulador!$T$62=3),AN16,AO16))) -> 0.1225 | AT16: =+AX15 -> 0 | AU16: =IFERROR((IF(AT16+AV16-AU15<0, AT16+AV16, AU15*(1+BA16))),0) -> 0 | AV16: 0 | AW16: 0 | AX16: =+AT16-AW16 -> 0 | AZ16: =IFERROR(IF(Simulador!$U$29=1,0,IF($AT16<=0.01,0,$AT16*Simulador!$AA$43)),0)+IFERROR(IF(Simulador!$U$29=1,0,IF($AT16<=0.01,0,IF(Simulador!$D$22>0,Simulador!$D$22,Simulador!$O$24)*Simulador!$AA$44)),0) -> 0 | BB16: 0 | BC16: =IFERROR(IF(AU16<=0.01,0,BC15-1),0) -> 0 | BD16: =IF(AT16=0,"",DATE(YEAR(BD15),MONTH(BD15)+1,1)) ->  | BE16: =IFERROR(DAY(DATE(YEAR(BD16),MONTH(BD16)+1,0)),0) -> 0 | BF16: 2
A17: 3 | B17: =IF(R16<=0,0,R16) -> 0 | D17: =IF(B17+F17-D16<=0,B17+F17,IF(AND(OR(Simulador!$U$39=2,Simulador!$U$39=7),J16=0),D16*(1+AA17),IF($AE$3=2,B17*AQ17,D16*(1+AA17)))) -> 0 | F17: 0 | H17: =D17-F17 -> 0 | L17: =IF(Simulador!$T$41=1,0,J17*Simulador!$W$39*1.16) -> 0 | R17: 0 | T17: =IFERROR(IF(Simulador!$U$29=1,0,IF($B17<=0,0,$B17*Simulador!$AA$43)),0) -> 0 | V17: =IFERROR(IF(Simulador!$U$29=1,0,IF($B17<=0,0,IF(Simulador!$D$22>0,Simulador!$D$22,Simulador!$O$24)*Simulador!$AA$44)),0) -> 0 | Y17: 0 | AC17: 0 | AD17: 3 | AE17: 0 | AF17: 0 | AG17: 0 | AH17: 0 | AI17: =IF(Simulador!$T$68=1,'Tabla de amortizacion'!AJ17,'Tabla de amortizacion'!AR17) -> 0.115 | AJ17: =Simulador!$I$42 -> 0.115 | AK17: 0 | AL17: =AL16 -> 0.1175 | AM17: 0.1175 | AN17: 0.1225 | AO17: 0.1225 | AP17: 0 | AQ17: 0 | AR17: =IF(AND(Simulador!$T$68=2,Simulador!$T$62=1),AL17,IF(AND(Simulador!$T$68=2,Simulador!$T$62=2),AM17,IF(AND(Simulador!$T$68=2,Simulador!$T$62=3),AN17,AO17))) -> 0.1225 | AT17: 0 | AU17: 0 | AV17: 0 | AW17: 0 | AX17: 0 | AZ17: =IFERROR(IF(Simulador!$U$29=1,0,IF($AT17<=0.01,0,$AT17*Simulador!$AA$43)),0)+IFERROR(IF(Simulador!$U$29=1,0,IF($AT17<=0.01,0,IF(Simulador!$D$22>0,Simulador!$D$22,Simulador!$O$24)*Simulador!$AA$44)),0) -> 0 | BB17: 0 | BC17: 0 | BE17: =IFERROR(DAY(DATE(YEAR(BD17),MONTH(BD17)+1,0)),0) -> 0 | BF17: 3 | BG17: Días/Mes | BH17: =365.25/12 -> 30.4375
A18: 4 | B18: 0 | D18: =IF(B18+F18-D17<=0,B18+F18,IF(AND(OR(Simulador!$U$39=2,Simulador!$U$39=7),J17=0),D17*(1+AA18),IF($AE$3=2,B18*AQ18,D17*(1+AA18)))) -> 0 | F18: 0 | H18: 0 | L18: =IF(Simulador!$T$41=1,0,J18*Simulador!$W$39*1.16) -> 0 | N18: =IF(B18-H18=0,0,N16) -> 0 | R18: 0 | T18: =IFERROR(IF(Simulador!$U$29=1,0,IF($B18<=0,0,$B18*Simulador!$AA$43)),0) -> 0 | V18: =IFERROR(IF(Simulador!$U$29=1,0,IF($B18<=0,0,IF(Simulador!$D$22>0,Simulador!$D$22,Simulador!$O$24)*Simulador!$AA$44)),0) -> 0 | Y18: 0 | AC18: 0 | AD18: 4 | AE18: 0 | AF18: 0 | AG18: 0 | AH18: 0 | AI18: =IF(Simulador!$T$68=1,'Tabla de amortizacion'!AJ18,'Tabla de amortizacion'!AR18) -> 0.115 | AJ18: =Simulador!$I$42 -> 0.115 | AK18: 0 | AL18: 0.1175 | AM18: 0.1175 | AN18: 0.1225 | AO18: 0.1225 | AP18: 0 | AQ18: 0 | AR18: =IF(AND(Simulador!$T$68=2,Simulador!$T$62=1),AL18,IF(AND(Simulador!$T$68=2,Simulador!$T$62=2),AM18,IF(AND(Simulador!$T$68=2,Simulador!$T$62=3),AN18,AO18))) -> 0.1225 | AT18: 0 | AU18: 0 | AV18: 0 | AW18: 0 | AX18: 0 | AZ18: =IFERROR(IF(Simulador!$U$29=1,0,IF($AT18<=0.01,0,$AT18*Simulador!$AA$43)),0)+IFERROR(IF(Simulador!$U$29=1,0,IF($AT18<=0.01,0,IF(Simulador!$D$22>0,Simulador!$D$22,Simulador!$O$24)*Simulador!$AA$44)),0) -> 0 | BB18: 0 | BC18: 0 | BE18: 0 | BF18: 4 | BH18: Interés mensual = Sdo inicial x tasa / 360 x # días del mes
A19: 5 | B19: 0 | D19: =IF(B19+F19-D18<=0,B19+F19,IF(AND(OR(Simulador!$U$39=2,Simulador!$U$39=7),J18=0),D18*(1+AA19),IF($AE$3=2,B19*AQ19,D18*(1+AA19)))) -> 0 | F19: 0 | H19: 0 | L19: =IF(Simulador!$T$41=1,0,J19*Simulador!$W$39*1.16) -> 0 | R19: 0 | T19: =IFERROR(IF(Simulador!$U$29=1,0,IF($B19<=0,0,$B19*Simulador!$AA$43)),0) -> 0 | V19: =IFERROR(IF(Simulador!$U$29=1,0,IF($B19<=0,0,IF(Simulador!$D$22>0,Simulador!$D$22,Simulador!$O$24)*Simulador!$AA$44)),0) -> 0 | Y19: 0 | AC19: 0 | AD19: 5 | AE19: 0 | AF19: 0 | AG19: 0 | AH19: 0 | AI19: =IF(Simulador!$T$68=1,'Tabla de amortizacion'!AJ19,'Tabla de amortizacion'!AR19) -> 0.115 | AJ19: =Simulador!$I$42 -> 0.115 | AK19: 0 | AL19: 0.1175 | AM19: 0.1175 | AN19: 0.1225 | AO19: 0.1225 | AP19: 0 | AQ19: 0 | AR19: =IF(AND(Simulador!$T$68=2,Simulador!$T$62=1),AL19,IF(AND(Simulador!$T$68=2,Simulador!$T$62=2),AM19,IF(AND(Simulador!$T$68=2,Simulador!$T$62=3),AN19,AO19))) -> 0.1225 | AT19: 0 | AU19: 0 | AV19: 0 | AW19: 0 | AX19: 0 | AZ19: =IFERROR(IF(Simulador!$U$29=1,0,IF($AT19<=0.01,0,$AT19*Simulador!$AA$43)),0)+IFERROR(IF(Simulador!$U$29=1,0,IF($AT19<=0.01,0,IF(Simulador!$D$22>0,Simulador!$D$22,Simulador!$O$24)*Simulador!$AA$44)),0) -> 0 | BB19: 0 | BC19: 0 | BE19: 0 | BF19: 5
A20: 6 | B20: 0 | D20: =IF(B20+F20-D19<=0,B20+F20,IF(AND(OR(Simulador!$U$39=2,Simulador!$U$39=7),J19=0),D19*(1+AA20),IF($AE$3=2,B20*AQ20,D19*(1+AA20)))) -> 0 | F20: 0 | H20: 0 | L20: =IF(Simulador!$T$41=1,0,J20*Simulador!$W$39*1.16) -> 0 | N20: =IF(B20-H20=0,0,N18) -> 0 | R20: 0 | T20: =IFERROR(IF(Simulador!$U$29=1,0,IF($B20<=0,0,$B20*Simulador!$AA$43)),0) -> 0 | V20: =IFERROR(IF(Simulador!$U$29=1,0,IF($B20<=0,0,IF(Simulador!$D$22>0,Simulador!$D$22,Simulador!$O$24)*Simulador!$AA$44)),0) -> 0 | Y20: 0 | AC20: 0 | AD20: 6 | AE20: 0 | AF20: 0 | AG20: 0 | AH20: 0 | AI20: =IF(Simulador!$T$68=1,'Tabla de amortizacion'!AJ20,'Tabla de amortizacion'!AR20) -> 0.115 | AJ20: =Simulador!$I$42 -> 0.115 | AK20: 0 | AL20: 0.1175 | AM20: 0.1175 | AN20: 0.1225 | AO20: 0.1225 | AP20: 0 | AQ20: 0 | AR20: =IF(AND(Simulador!$T$68=2,Simulador!$T$62=1),AL20,IF(AND(Simulador!$T$68=2,Simulador!$T$62=2),AM20,IF(AND(Simulador!$T$68=2,Simulador!$T$62=3),AN20,AO20))) -> 0.1225 | AT20: 0 | AU20: 0 | AV20: 0 | AW20: 0 | AX20: 0 | AZ20: =IFERROR(IF(Simulador!$U$29=1,0,IF($AT20<=0.01,0,$AT20*Simulador!$AA$43)),0)+IFERROR(IF(Simulador!$U$29=1,0,IF($AT20<=0.01,0,IF(Simulador!$D$22>0,Simulador!$D$22,Simulador!$O$24)*Simulador!$AA$44)),0) -> 0 | BB20: 0 | BC20: 0 | BE20: 0 | BF20: 6
A21: 7 | B21: 0 | D21: =IF(B21+F21-D20<=0,B21+F21,IF(AND(OR(Simulador!$U$39=2,Simulador!$U$39=7),J20=0),D20*(1+AA21),IF($AE$3=2,B21*AQ21,D20*(1+AA21)))) -> 0 | F21: 0 | H21: 0 | L21: =IF(Simulador!$T$41=1,0,J21*Simulador!$W$39*1.16) -> 0 | R21: 0 | T21: =IFERROR(IF(Simulador!$U$29=1,0,IF($B21<=0,0,$B21*Simulador!$AA$43)),0) -> 0 | V21: =IFERROR(IF(Simulador!$U$29=1,0,IF($B21<=0,0,IF(Simulador!$D$22>0,Simulador!$D$22,Simulador!$O$24)*Simulador!$AA$44)),0) -> 0 | Y21: 0 | AC21: 0 | AD21: 7 | AE21: 0 | AF21: 0 | AG21: 0 | AH21: 0 | AI21: =IF(Simulador!$T$68=1,'Tabla de amortizacion'!AJ21,'Tabla de amortizacion'!AR21) -> 0.115 | AJ21: =Simulador!$I$42 -> 0.115 | AK21: 0 | AL21: 0.1175 | AM21: 0.1175 | AN21: 0.1225 | AO21: 0.1225 | AP21: 0 | AQ21: 0 | AR21: =IF(AND(Simulador!$T$68=2,Simulador!$T$62=1),AL21,IF(AND(Simulador!$T$68=2,Simulador!$T$62=2),AM21,IF(AND(Simulador!$T$68=2,Simulador!$T$62=3),AN21,AO21))) -> 0.1225 | AT21: 0 | AU21: 0 | AV21: 0 | AW21: 0 | AX21: 0 | AZ21: =IFERROR(IF(Simulador!$U$29=1,0,IF($AT21<=0.01,0,$AT21*Simulador!$AA$43)),0)+IFERROR(IF(Simulador!$U$29=1,0,IF($AT21<=0.01,0,IF(Simulador!$D$22>0,Simulador!$D$22,Simulador!$O$24)*Simulador!$AA$44)),0) -> 0 | BB21: 0 | BC21: 0 | BE21: 0 | BF21: 7
A22: 8 | B22: 0 | D22: =IF(B22+F22-D21<=0,B22+F22,IF(AND(OR(Simulador!$U$39=2,Simulador!$U$39=7),J21=0),D21*(1+AA22),IF($AE$3=2,B22*AQ22,D21*(1+AA22)))) -> 0 | F22: 0 | H22: 0 | L22: =IF(Simulador!$T$41=1,0,J22*Simulador!$W$39*1.16) -> 0 | N22: =IF(B22-H22=0,0,N20) -> 0 | R22: 0 | T22: =IFERROR(IF(Simulador!$U$29=1,0,IF($B22<=0,0,$B22*Simulador!$AA$43)),0) -> 0 | V22: =IFERROR(IF(Simulador!$U$29=1,0,IF($B22<=0,0,IF(Simulador!$D$22>0,Simulador!$D$22,Simulador!$O$24)*Simulador!$AA$44)),0) -> 0 | Y22: 0 | AC22: 0 | AD22: 8 | AE22: 0 | AF22: 0 | AG22: 0 | AH22: 0 | AI22: =IF(Simulador!$T$68=1,'Tabla de amortizacion'!AJ22,'Tabla de amortizacion'!AR22) -> 0.115 | AJ22: =Simulador!$I$42 -> 0.115 | AK22: 0 | AL22: 0.1175 | AM22: 0.1175 | AN22: 0.1225 | AO22: 0.1225 | AP22: 0 | AQ22: 0 | AR22: =IF(AND(Simulador!$T$68=2,Simulador!$T$62=1),AL22,IF(AND(Simulador!$T$68=2,Simulador!$T$62=2),AM22,IF(AND(Simulador!$T$68=2,Simulador!$T$62=3),AN22,AO22))) -> 0.1225 | AT22: 0 | AU22: 0 | AV22: 0 | AW22: 0 | AX22: 0 | AZ22: =IFERROR(IF(Simulador!$U$29=1,0,IF($AT22<=0.01,0,$AT22*Simulador!$AA$43)),0)+IFERROR(IF(Simulador!$U$29=1,0,IF($AT22<=0.01,0,IF(Simulador!$D$22>0,Simulador!$D$22,Simulador!$O$24)*Simulador!$AA$44)),0) -> 0 | BB22: 0 | BC22: 0 | BE22: 0 | BF22: 8
A23: 9 | B23: 0 | D23: =IF(B23+F23-D22<=0,B23+F23,IF(AND(OR(Simulador!$U$39=2,Simulador!$U$39=7),J22=0),D22*(1+AA23),IF($AE$3=2,B23*AQ23,D22*(1+AA23)))) -> 0 | F23: 0 | H23: 0 | L23: =IF(Simulador!$T$41=1,0,J23*Simulador!$W$39*1.16) -> 0 | R23: 0 | T23: =IFERROR(IF(Simulador!$U$29=1,0,IF($B23<=0,0,$B23*Simulador!$AA$43)),0) -> 0 | V23: =IFERROR(IF(Simulador!$U$29=1,0,IF($B23<=0,0,IF(Simulador!$D$22>0,Simulador!$D$22,Simulador!$O$24)*Simulador!$AA$44)),0) -> 0 | Y23: 0 | AC23: 0 | AD23: 9 | AE23: 0 | AF23: 0 | AG23: 0 | AH23: 0 | AI23: =IF(Simulador!$T$68=1,'Tabla de amortizacion'!AJ23,'Tabla de amortizacion'!AR23) -> 0.115 | AJ23: =Simulador!$I$42 -> 0.115 | AK23: 0 | AL23: 0.1175 | AM23: 0.1175 | AN23: 0.1225 | AO23: 0.1225 | AP23: 0 | AQ23: 0 | AR23: =IF(AND(Simulador!$T$68=2,Simulador!$T$62=1),AL23,IF(AND(Simulador!$T$68=2,Simulador!$T$62=2),AM23,IF(AND(Simulador!$T$68=2,Simulador!$T$62=3),AN23,AO23))) -> 0.1225 | AT23: 0 | AU23: 0 | AV23: 0 | AW23: 0 | AX23: 0 | AZ23: =IFERROR(IF(Simulador!$U$29=1,0,IF($AT23<=0.01,0,$AT23*Simulador!$AA$43)),0)+IFERROR(IF(Simulador!$U$29=1,0,IF($AT23<=0.01,0,IF(Simulador!$D$22>0,Simulador!$D$22,Simulador!$O$24)*Simulador!$AA$44)),0) -> 0 | BB23: 0 | BC23: 0 | BE23: 0 | BF23: 9
A24: 10 | B24: 0 | D24: =IF(B24+F24-D23<=0,B24+F24,IF(AND(OR(Simulador!$U$39=2,Simulador!$U$39=7),J23=0),D23*(1+AA24),IF($AE$3=2,B24*AQ24,D23*(1+AA24)))) -> 0 | F24: 0 | H24: 0 | L24: =IF(Simulador!$T$41=1,0,J24*Simulador!$W$39*1.16) -> 0 | N24: =IF(B24-H24=0,0,N22) -> 0 | R24: 0 | T24: =IFERROR(IF(Simulador!$U$29=1,0,IF($B24<=0,0,$B24*Simulador!$AA$43)),0) -> 0 | V24: =IFERROR(IF(Simulador!$U$29=1,0,IF($B24<=0,0,IF(Simulador!$D$22>0,Simulador!$D$22,Simulador!$O$24)*Simulador!$AA$44)),0) -> 0 | Y24: 0 | AC24: 0 | AD24: 10 | AE24: 0 | AF24: 0 | AG24: 0 | AH24: 0 | AI24: =IF(Simulador!$T$68=1,'Tabla de amortizacion'!AJ24,'Tabla de amortizacion'!AR24) -> 0.115 | AJ24: =Simulador!$I$42 -> 0.115 | AK24: 0 | AL24: 0.1175 | AM24: 0.1175 | AN24: 0.1225 | AO24: 0.1225 | AP24: 0 | AQ24: 0 | AR24: =IF(AND(Simulador!$T$68=2,Simulador!$T$62=1),AL24,IF(AND(Simulador!$T$68=2,Simulador!$T$62=2),AM24,IF(AND(Simulador!$T$68=2,Simulador!$T$62=3),AN24,AO24))) -> 0.1225 | AT24: 0 | AU24: 0 | AV24: 0 | AW24: 0 | AX24: 0 | AZ24: =IFERROR(IF(Simulador!$U$29=1,0,IF($AT24<=0.01,0,$AT24*Simulador!$AA$43)),0)+IFERROR(IF(Simulador!$U$29=1,0,IF($AT24<=0.01,0,IF(Simulador!$D$22>0,Simulador!$D$22,Simulador!$O$24)*Simulador!$AA$44)),0) -> 0 | BB24: 0 | BC24: 0 | BE24: 0 | BF24: 10
A25: 11 | B25: 0 | D25: =IF(B25+F25-D24<=0,B25+F25,IF(AND(OR(Simulador!$U$39=2,Simulador!$U$39=7),J24=0),D24*(1+AA25),IF($AE$3=2,B25*AQ25,D24*(1+AA25)))) -> 0 | F25: 0 | H25: 0 | L25: =IF(Simulador!$T$41=1,0,J25*Simulador!$W$39*1.16) -> 0 | R25: 0 | T25: =IFERROR(IF(Simulador!$U$29=1,0,IF($B25<=0,0,$B25*Simulador!$AA$43)),0) -> 0 | V25: =IFERROR(IF(Simulador!$U$29=1,0,IF($B25<=0,0,IF(Simulador!$D$22>0,Simulador!$D$22,Simulador!$O$24)*Simulador!$AA$44)),0) -> 0 | Y25: 0 | AC25: 0 | AD25: 11 | AE25: 0 | AF25: 0 | AG25: 0 | AH25: 0 | AI25: =IF(Simulador!$T$68=1,'Tabla de amortizacion'!AJ25,'Tabla de amortizacion'!AR25) -> 0.115 | AJ25: =Simulador!$I$42 -> 0.115 | AK25: 0 | AL25: 0.1175 | AM25: 0.1175 | AN25: 0.1225 | AO25: 0.1225 | AP25: 0 | AQ25: 0 | AR25: =IF(AND(Simulador!$T$68=2,Simulador!$T$62=1),AL25,IF(AND(Simulador!$T$68=2,Simulador!$T$62=2),AM25,IF(AND(Simulador!$T$68=2,Simulador!$T$62=3),AN25,AO25))) -> 0.1225 | AT25: 0 | AU25: 0 | AV25: 0 | AW25: 0 | AX25: 0 | AZ25: =IFERROR(IF(Simulador!$U$29=1,0,IF($AT25<=0.01,0,$AT25*Simulador!$AA$43)),0)+IFERROR(IF(Simulador!$U$29=1,0,IF($AT25<=0.01,0,IF(Simulador!$D$22>0,Simulador!$D$22,Simulador!$O$24)*Simulador!$AA$44)),0) -> 0 | BB25: 0 | BC25: 0 | BE25: 0 | BF25: 11
A26: 12 | B26: 0 | D26: =IF(B26+F26-D25<=0,B26+F26,IF(AND(OR(Simulador!$U$39=2,Simulador!$U$39=7),J25=0),D25*(1+AA26),IF($AE$3=2,B26*AQ26,D25*(1+AA26)))) -> 0 | F26: 0 | H26: 0 | L26: =IF(Simulador!$T$41=1,0,J26*Simulador!$W$39*1.16) -> 0 | N26: =IF(B26-H26=0,0,N24) -> 0 | R26: 0 | T26: =IFERROR(IF(Simulador!$U$29=1,0,IF($B26<=0,0,$B26*Simulador!$AA$43)),0) -> 0 | V26: =IFERROR(IF(Simulador!$U$29=1,0,IF($B26<=0,0,IF(Simulador!$D$22>0,Simulador!$D$22,Simulador!$O$24)*Simulador!$AA$44)),0) -> 0 | Y26: 0 | AC26: 1 | AD26: 0 | AE26: 0 | AF26: 0 | AG26: 0 | AH26: 0 | AI26: =IF(Simulador!$T$68=1,'Tabla de amortizacion'!AJ26,'Tabla de amortizacion'!AR26) -> 0.115 | AJ26: =Simulador!$I$42 -> 0.115 | AK26: 0 | AL26: 0.1175 | AM26: 0.1175 | AN26: 0.1225 | AO26: 0.1225 | AP26: 0 | AQ26: 0 | AR26: =IF(AND(Simulador!$T$68=2,Simulador!$T$62=1),AL26,IF(AND(Simulador!$T$68=2,Simulador!$T$62=2),AM26,IF(AND(Simulador!$T$68=2,Simulador!$T$62=3),AN26,AO26))) -> 0.1225 | AT26: 0 | AU26: 0 | AV26: 0 | AW26: 0 | AX26: 0 | AZ26: =IFERROR(IF(Simulador!$U$29=1,0,IF($AT26<=0.01,0,$AT26*Simulador!$AA$43)),0)+IFERROR(IF(Simulador!$U$29=1,0,IF($AT26<=0.01,0,IF(Simulador!$D$22>0,Simulador!$D$22,Simulador!$O$24)*Simulador!$AA$44)),0) -> 0 | BB26: 0 | BC26: 0 | BE26: 0 | BF26: 12
A27: 13 | B27: 0 | D27: =IF(B27+F27-D26<=0,B27+F27,IF(AND(OR(Simulador!$U$39=2,Simulador!$U$39=7),J26=0),D26*(1+AA27),IF($AE$3=2,B27*AQ27,D26*(1+AA27)))) -> 0 | F27: 0 | H27: 0 | L27: =IF(Simulador!$T$41=1,0,J27*Simulador!$W$39*1.16) -> 0 | R27: 0 | T27: =IFERROR(IF(Simulador!$U$29=1,0,IF($B27<=0,0,$B27*Simulador!$AA$43)),0) -> 0 | V27: =IFERROR(IF(Simulador!$U$29=1,0,IF($B27<=0,0,IF(Simulador!$D$22>0,Simulador!$D$22,Simulador!$O$24)*Simulador!$AA$44)),0) -> 0 | Y27: 0 | AA27: =IF(B27<=0,0,Simulador!$I$43) -> 0 | AC27: 1 | AD27: 1 | AE27: 0 | AF27: 0 | AG27: 0 | AH27: 0 | AI27: =IF(Simulador!$T$68=1,'Tabla de amortizacion'!AJ27,'Tabla de amortizacion'!AR27) -> 0.115 | AJ27: =Simulador!$I$42 -> 0.115 | AK27: 0 | AL27: =AL26-0.2% -> 0.1155 | AM27: =AM26-0.2% -> 0.1155 | AN27: =AN26-0.2% -> 0.1205 | AO27: =AO26-0.2% -> 0.1205 | AP27: 0 | AQ27: 0 | AR27: =IF(AND(Simulador!$T$68=2,Simulador!$T$62=1),AL27,IF(AND(Simulador!$T$68=2,Simulador!$T$62=2),AM27,IF(AND(Simulador!$T$68=2,Simulador!$T$62=3),AN27,AO27))) -> 0.1205 | AT27: 0 | AU27: 0 | AV27: 0 | AW27: 0 | AX27: 0 | AZ27: =IFERROR(IF(Simulador!$U$29=1,0,IF($AT27<=0.01,0,$AT27*Simulador!$AA$43)),0)+IFERROR(IF(Simulador!$U$29=1,0,IF($AT27<=0.01,0,IF(Simulador!$D$22>0,Simulador!$D$22,Simulador!$O$24)*Simulador!$AA$44)),0) -> 0 | BA27: =IF(AT27<=0,0,Simulador!$I$43) -> 0 | BB27: 0 | BC27: 0 | BE27: 0 | BF27: 13
A28: 14 | B28: 0 | D28: =IF(B28+F28-D27<=0,B28+F28,IF(AND(OR(Simulador!$U$39=2,Simulador!$U$39=7),J27=0),D27*(1+AA28),IF($AE$3=2,B28*AQ28,D27*(1+AA28)))) -> 0 | F28: 0 | H28: 0 | L28: =IF(Simulador!$T$41=1,0,J28*Simulador!$W$39*1.16) -> 0 | N28: =IF(B28-H28=0,0,N26*(1+(Simulador!$AF$77))) -> 0 | R28: 0 | T28: =IFERROR(IF(Simulador!$U$29=1,0,IF($B28<=0,0,$B28*Simulador!$AA$43)),0) -> 0 | V28: =IFERROR(IF(Simulador!$U$29=1,0,IF($B28<=0,0,IF(Simulador!$D$22>0,Simulador!$D$22,Simulador!$O$24)*Simulador!$AA$44)),0) -> 0 | Y28: 0 | AC28: 1 | AD28: 2 | AE28: 0 | AF28: 0 | AG28: 0 | AH28: 0 | AI28: =IF(Simulador!$T$68=1,'Tabla de amortizacion'!AJ28,'Tabla de amortizacion'!AR28) -> 0.115 | AJ28: =Simulador!$I$42 -> 0.115 | AK28: 0 | AL28: =AL27 -> 0.1155 | AM28: =AM27 -> 0.1155 | AN28: =AN27 -> 0.1205 | AO28: =AO27 -> 0.1205 | AP28: 0 | AQ28: 0 | AR28: =IF(AND(Simulador!$T$68=2,Simulador!$T$62=1),AL28,IF(AND(Simulador!$T$68=2,Simulador!$T$62=2),AM28,IF(AND(Simulador!$T$68=2,Simulador!$T$62=3),AN28,AO28))) -> 0.1205 | AT28: 0 | AU28: 0 | AV28: 0 | AW28: 0 | AX28: 0 | AZ28: =IFERROR(IF(Simulador!$U$29=1,0,IF($AT28<=0.01,0,$AT28*Simulador!$AA$43)),0)+IFERROR(IF(Simulador!$U$29=1,0,IF($AT28<=0.01,0,IF(Simulador!$D$22>0,Simulador!$D$22,Simulador!$O$24)*Simulador!$AA$44)),0) -> 0 | BB28: 0 | BC28: 0 | BE28: 0 | BF28: 14
A29: 15 | B29: 0 | D29: =IF(B29+F29-D28<=0,B29+F29,IF(AND(OR(Simulador!$U$39=2,Simulador!$U$39=7),J28=0),D28*(1+AA29),IF($AE$3=2,B29*AQ29,D28*(1+AA29)))) -> 0 | F29: 0 | H29: 0 | L29: =IF(Simulador!$T$41=1,0,J29*Simulador!$W$39*1.16) -> 0 | R29: 0 | T29: =IFERROR(IF(Simulador!$U$29=1,0,IF($B29<=0,0,$B29*Simulador!$AA$43)),0) -> 0 | V29: =IFERROR(IF(Simulador!$U$29=1,0,IF($B29<=0,0,IF(Simulador!$D$22>0,Simulador!$D$22,Simulador!$O$24)*Simulador!$AA$44)),0) -> 0 | Y29: 0 | AC29: 1 | AD29: 3 | AE29: 0 | AF29: 0 | AG29: 0 | AH29: 0 | AI29: =IF(Simulador!$T$68=1,'Tabla de amortizacion'!AJ29,'Tabla de amortizacion'!AR29) -> 0.115 | AJ29: =Simulador!$I$42 -> 0.115 | AK29: 0 | AL29: =AL28 -> 0.1155 | AM29: 0.1155 | AN29: 0.1205 | AO29: 0.1205 | AP29: 0 | AQ29: 0 | AR29: =IF(AND(Simulador!$T$68=2,Simulador!$T$62=1),AL29,IF(AND(Simulador!$T$68=2,Simulador!$T$62=2),AM29,IF(AND(Simulador!$T$68=2,Simulador!$T$62=3),AN29,AO29))) -> 0.1205 | AT29: =IF(AX28<=0,0,AX28) -> 0 | AU29: 0 | AV29: 0 | AW29: 0 | AX29: 0 | AZ29: =IFERROR(IF(Simulador!$U$29=1,0,IF($AT29<=0.01,0,$AT29*Simulador!$AA$43)),0)+IFERROR(IF(Simulador!$U$29=1,0,IF($AT29<=0.01,0,IF(Simulador!$D$22>0,Simulador!$D$22,Simulador!$O$24)*Simulador!$AA$44)),0) -> 0 | BB29: 0 | BC29: 0 | BE29: 0 | BF29: 15
A30: 16 | B30: 0 | D30: =IF(B30+F30-D29<=0,B30+F30,IF(AND(OR(Simulador!$U$39=2,Simulador!$U$39=7),J29=0),D29*(1+AA30),IF($AE$3=2,B30*AQ30,D29*(1+AA30)))) -> 0 | F30: 0 | H30: 0 | L30: =IF(Simulador!$T$41=1,0,J30*Simulador!$W$39*1.16) -> 0 | N30: =IF(B30-H30=0,0,N28) -> 0 | R30: 0 | T30: =IFERROR(IF(Simulador!$U$29=1,0,IF($B30<=0,0,$B30*Simulador!$AA$43)),0) -> 0 | V30: =IFERROR(IF(Simulador!$U$29=1,0,IF($B30<=0,0,IF(Simulador!$D$22>0,Simulador!$D$22,Simulador!$O$24)*Simulador!$AA$44)),0) -> 0 | Y30: 0 | AC30: 1 | AD30: 4 | AE30: 0 | AF30: 0 | AG30: 0 | AH30: 0 | AI30: =IF(Simulador!$T$68=1,'Tabla de amortizacion'!AJ30,'Tabla de amortizacion'!AR30) -> 0.115 | AJ30: =Simulador!$I$42 -> 0.115 | AK30: 0 | AL30: 0.1155 | AM30: 0.1155 | AN30: 0.1205 | AO30: 0.1205 | AP30: 0 | AQ30: 0 | AR30: =IF(AND(Simulador!$T$68=2,Simulador!$T$62=1),AL30,IF(AND(Simulador!$T$68=2,Simulador!$T$62=2),AM30,IF(AND(Simulador!$T$68=2,Simulador!$T$62=3),AN30,AO30))) -> 0.1205 | AT30: 0 | AU30: 0 | AV30: 0 | AW30: 0 | AX30: 0 | AZ30: =IFERROR(IF(Simulador!$U$29=1,0,IF($AT30<=0.01,0,$AT30*Simulador!$AA$43)),0)+IFERROR(IF(Simulador!$U$29=1,0,IF($AT30<=0.01,0,IF(Simulador!$D$22>0,Simulador!$D$22,Simulador!$O$24)*Simulador!$AA$44)),0) -> 0 | BB30: 0 | BC30: 0 | BE30: 0 | BF30: 16
A31: 17 | B31: 0 | D31: =IF(B31+F31-D30<=0,B31+F31,IF(AND(OR(Simulador!$U$39=2,Simulador!$U$39=7),J30=0),D30*(1+AA31),IF($AE$3=2,B31*AQ31,D30*(1+AA31)))) -> 0 | F31: 0 | H31: 0 | L31: =IF(Simulador!$T$41=1,0,J31*Simulador!$W$39*1.16) -> 0 | R31: 0 | T31: =IFERROR(IF(Simulador!$U$29=1,0,IF($B31<=0,0,$B31*Simulador!$AA$43)),0) -> 0 | V31: =IFERROR(IF(Simulador!$U$29=1,0,IF($B31<=0,0,IF(Simulador!$D$22>0,Simulador!$D$22,Simulador!$O$24)*Simulador!$AA$44)),0) -> 0 | Y31: 0 | AC31: 1 | AD31: 5 | AE31: 0 | AF31: 0 | AG31: 0 | AH31: 0 | AI31: =IF(Simulador!$T$68=1,'Tabla de amortizacion'!AJ31,'Tabla de amortizacion'!AR31) -> 0.115 | AJ31: =Simulador!$I$42 -> 0.115 | AK31: 0 | AL31: 0.1155 | AM31: 0.1155 | AN31: 0.1205 | AO31: 0.1205 | AP31: 0 | AQ31: 0 | AR31: =IF(AND(Simulador!$T$68=2,Simulador!$T$62=1),AL31,IF(AND(Simulador!$T$68=2,Simulador!$T$62=2),AM31,IF(AND(Simulador!$T$68=2,Simulador!$T$62=3),AN31,AO31))) -> 0.1205 | AT31: 0 | AU31: 0 | AV31: 0 | AW31: 0 | AX31: 0 | AZ31: =IFERROR(IF(Simulador!$U$29=1,0,IF($AT31<=0.01,0,$AT31*Simulador!$AA$43)),0)+IFERROR(IF(Simulador!$U$29=1,0,IF($AT31<=0.01,0,IF(Simulador!$D$22>0,Simulador!$D$22,Simulador!$O$24)*Simulador!$AA$44)),0) -> 0 | BB31: 0 | BC31: 0 | BE31: 0 | BF31: 17
A32: 18 | B32: 0 | D32: =IF(B32+F32-D31<=0,B32+F32,IF(AND(OR(Simulador!$U$39=2,Simulador!$U$39=7),J31=0),D31*(1+AA32),IF($AE$3=2,B32*AQ32,D31*(1+AA32)))) -> 0 | F32: 0 | H32: 0 | L32: =IF(Simulador!$T$41=1,0,J32*Simulador!$W$39*1.16) -> 0 | N32: =IF(B32-H32=0,0,N30) -> 0 | R32: 0 | T32: =IFERROR(IF(Simulador!$U$29=1,0,IF($B32<=0,0,$B32*Simulador!$AA$43)),0) -> 0 | V32: =IFERROR(IF(Simulador!$U$29=1,0,IF($B32<=0,0,IF(Simulador!$D$22>0,Simulador!$D$22,Simulador!$O$24)*Simulador!$AA$44)),0) -> 0 | Y32: 0 | AC32: 1 | AD32: 6 | AE32: 0 | AF32: 0 | AG32: 0 | AH32: 0 | AI32: =IF(Simulador!$T$68=1,'Tabla de amortizacion'!AJ32,'Tabla de amortizacion'!AR32) -> 0.115 | AJ32: =Simulador!$I$42 -> 0.115 | AK32: 0 | AL32: 0.1155 | AM32: 0.1155 | AN32: 0.1205 | AO32: 0.1205 | AP32: 0 | AQ32: 0 | AR32: =IF(AND(Simulador!$T$68=2,Simulador!$T$62=1),AL32,IF(AND(Simulador!$T$68=2,Simulador!$T$62=2),AM32,IF(AND(Simulador!$T$68=2,Simulador!$T$62=3),AN32,AO32))) -> 0.1205 | AT32: 0 | AU32: 0 | AV32: 0 | AW32: 0 | AX32: 0 | AZ32: =IFERROR(IF(Simulador!$U$29=1,0,IF($AT32<=0.01,0,$AT32*Simulador!$AA$43)),0)+IFERROR(IF(Simulador!$U$29=1,0,IF($AT32<=0.01,0,IF(Simulador!$D$22>0,Simulador!$D$22,Simulador!$O$24)*Simulador!$AA$44)),0) -> 0 | BB32: 0 | BC32: 0 | BE32: 0 | BF32: 18
A33: 19 | B33: 0 | D33: =IF(B33+F33-D32<=0,B33+F33,IF(AND(OR(Simulador!$U$39=2,Simulador!$U$39=7),J32=0),D32*(1+AA33),IF($AE$3=2,B33*AQ33,D32*(1+AA33)))) -> 0 | F33: 0 | H33: 0 | L33: =IF(Simulador!$T$41=1,0,J33*Simulador!$W$39*1.16) -> 0 | R33: 0 | T33: =IFERROR(IF(Simulador!$U$29=1,0,IF($B33<=0,0,$B33*Simulador!$AA$43)),0) -> 0 | V33: =IFERROR(IF(Simulador!$U$29=1,0,IF($B33<=0,0,IF(Simulador!$D$22>0,Simulador!$D$22,Simulador!$O$24)*Simulador!$AA$44)),0) -> 0 | Y33: 0 | AC33: 1 | AD33: 7 | AE33: 0 | AF33: 0 | AG33: 0 | AH33: 0 | AI33: =IF(Simulador!$T$68=1,'Tabla de amortizacion'!AJ33,'Tabla de amortizacion'!AR33) -> 0.115 | AJ33: =Simulador!$I$42 -> 0.115 | AK33: 0 | AL33: 0.1155 | AM33: 0.1155 | AN33: 0.1205 | AO33: 0.1205 | AP33: 0 | AQ33: 0 | AR33: =IF(AND(Simulador!$T$68=2,Simulador!$T$62=1),AL33,IF(AND(Simulador!$T$68=2,Simulador!$T$62=2),AM33,IF(AND(Simulador!$T$68=2,Simulador!$T$62=3),AN33,AO33))) -> 0.1205 | AT33: 0 | AU33: 0 | AV33: 0 | AW33: 0 | AX33: 0 | AZ33: =IFERROR(IF(Simulador!$U$29=1,0,IF($AT33<=0.01,0,$AT33*Simulador!$AA$43)),0)+IFERROR(IF(Simulador!$U$29=1,0,IF($AT33<=0.01,0,IF(Simulador!$D$22>0,Simulador!$D$22,Simulador!$O$24)*Simulador!$AA$44)),0) -> 0 | BB33: 0 | BC33: 0 | BE33: 0 | BF33: 19
A34: 20 | B34: 0 | D34: =IF(B34+F34-D33<=0,B34+F34,IF(AND(OR(Simulador!$U$39=2,Simulador!$U$39=7),J33=0),D33*(1+AA34),IF($AE$3=2,B34*AQ34,D33*(1+AA34)))) -> 0 | F34: 0 | H34: 0 | L34: =IF(Simulador!$T$41=1,0,J34*Simulador!$W$39*1.16) -> 0 | N34: =IF(B34-H34=0,0,N32) -> 0 | R34: 0 | T34: =IFERROR(IF(Simulador!$U$29=1,0,IF($B34<=0,0,$B34*Simulador!$AA$43)),0) -> 0 | V34: =IFERROR(IF(Simulador!$U$29=1,0,IF($B34<=0,0,IF(Simulador!$D$22>0,Simulador!$D$22,Simulador!$O$24)*Simulador!$AA$44)),0) -> 0 | Y34: 0 | AC34: 1 | AD34: 8 | AE34: 0 | AF34: 0 | AG34: 0 | AH34: 0 | AI34: =IF(Simulador!$T$68=1,'Tabla de amortizacion'!AJ34,'Tabla de amortizacion'!AR34) -> 0.115 | AJ34: =Simulador!$I$42 -> 0.115 | AK34: 0 | AL34: 0.1155 | AM34: 0.1155 | AN34: 0.1205 | AO34: 0.1205 | AP34: 0 | AQ34: 0 | AR34: =IF(AND(Simulador!$T$68=2,Simulador!$T$62=1),AL34,IF(AND(Simulador!$T$68=2,Simulador!$T$62=2),AM34,IF(AND(Simulador!$T$68=2,Simulador!$T$62=3),AN34,AO34))) -> 0.1205 | AT34: 0 | AU34: 0 | AV34: 0 | AW34: 0 | AX34: 0 | AZ34: =IFERROR(IF(Simulador!$U$29=1,0,IF($AT34<=0.01,0,$AT34*Simulador!$AA$43)),0)+IFERROR(IF(Simulador!$U$29=1,0,IF($AT34<=0.01,0,IF(Simulador!$D$22>0,Simulador!$D$22,Simulador!$O$24)*Simulador!$AA$44)),0) -> 0 | BB34: 0 | BC34: 0 | BE34: 0 | BF34: 20
A35: 21 | B35: 0 | D35: =IF(B35+F35-D34<=0,B35+F35,IF(AND(OR(Simulador!$U$39=2,Simulador!$U$39=7),J34=0),D34*(1+AA35),IF($AE$3=2,B35*AQ35,D34*(1+AA35)))) -> 0 | F35: 0 | H35: 0 | L35: =IF(Simulador!$T$41=1,0,J35*Simulador!$W$39*1.16) -> 0 | R35: 0 | T35: =IFERROR(IF(Simulador!$U$29=1,0,IF($B35<=0,0,$B35*Simulador!$AA$43)),0) -> 0 | V35: =IFERROR(IF(Simulador!$U$29=1,0,IF($B35<=0,0,IF(Simulador!$D$22>0,Simulador!$D$22,Simulador!$O$24)*Simulador!$AA$44)),0) -> 0 | Y35: 0 | AC35: 1 | AD35: 9 | AE35: 0 | AF35: 0 | AG35: 0 | AH35: 0 | AI35: =IF(Simulador!$T$68=1,'Tabla de amortizacion'!AJ35,'Tabla de amortizacion'!AR35) -> 0.115 | AJ35: =Simulador!$I$42 -> 0.115 | AK35: 0 | AL35: 0.1155 | AM35: 0.1155 | AN35: 0.1205 | AO35: 0.1205 | AP35: 0 | AQ35: 0 | AR35: =IF(AND(Simulador!$T$68=2,Simulador!$T$62=1),AL35,IF(AND(Simulador!$T$68=2,Simulador!$T$62=2),AM35,IF(AND(Simulador!$T$68=2,Simulador!$T$62=3),AN35,AO35))) -> 0.1205 | AT35: 0 | AU35: 0 | AV35: 0 | AW35: 0 | AX35: 0 | AZ35: =IFERROR(IF(Simulador!$U$29=1,0,IF($AT35<=0.01,0,$AT35*Simulador!$AA$43)),0)+IFERROR(IF(Simulador!$U$29=1,0,IF($AT35<=0.01,0,IF(Simulador!$D$22>0,Simulador!$D$22,Simulador!$O$24)*Simulador!$AA$44)),0) -> 0 | BB35: 0 | BC35: 0 | BE35: 0 | BF35: 21
A36: 22 | B36: 0 | D36: =IF(B36+F36-D35<=0,B36+F36,IF(AND(OR(Simulador!$U$39=2,Simulador!$U$39=7),J35=0),D35*(1+AA36),IF($AE$3=2,B36*AQ36,D35*(1+AA36)))) -> 0 | F36: 0 | H36: 0 | L36: =IF(Simulador!$T$41=1,0,J36*Simulador!$W$39*1.16) -> 0 | N36: =IF(B36-H36=0,0,N34) -> 0 | R36: 0 | T36: =IFERROR(IF(Simulador!$U$29=1,0,IF($B36<=0,0,$B36*Simulador!$AA$43)),0) -> 0 | V36: =IFERROR(IF(Simulador!$U$29=1,0,IF($B36<=0,0,IF(Simulador!$D$22>0,Simulador!$D$22,Simulador!$O$24)*Simulador!$AA$44)),0) -> 0 | Y36: 0 | AC36: 1 | AD36: 10 | AE36: 0 | AF36: 0 | AG36: 0 | AH36: 0 | AI36: =IF(Simulador!$T$68=1,'Tabla de amortizacion'!AJ36,'Tabla de amortizacion'!AR36) -> 0.115 | AJ36: =Simulador!$I$42 -> 0.115 | AK36: 0 | AL36: 0.1155 | AM36: 0.1155 | AN36: 0.1205 | AO36: 0.1205 | AP36: 0 | AQ36: 0 | AR36: =IF(AND(Simulador!$T$68=2,Simulador!$T$62=1),AL36,IF(AND(Simulador!$T$68=2,Simulador!$T$62=2),AM36,IF(AND(Simulador!$T$68=2,Simulador!$T$62=3),AN36,AO36))) -> 0.1205 | AT36: 0 | AU36: 0 | AV36: 0 | AW36: 0 | AX36: 0 | AZ36: =IFERROR(IF(Simulador!$U$29=1,0,IF($AT36<=0.01,0,$AT36*Simulador!$AA$43)),0)+IFERROR(IF(Simulador!$U$29=1,0,IF($AT36<=0.01,0,IF(Simulador!$D$22>0,Simulador!$D$22,Simulador!$O$24)*Simulador!$AA$44)),0) -> 0 | BB36: 0 | BC36: 0 | BE36: 0 | BF36: 22
A37: 23 | B37: 0 | D37: =IF(B37+F37-D36<=0,B37+F37,IF(AND(OR(Simulador!$U$39=2,Simulador!$U$39=7),J36=0),D36*(1+AA37),IF($AE$3=2,B37*AQ37,D36*(1+AA37)))) -> 0 | F37: 0 | H37: 0 | L37: =IF(Simulador!$T$41=1,0,J37*Simulador!$W$39*1.16) -> 0 | R37: 0 | T37: =IFERROR(IF(Simulador!$U$29=1,0,IF($B37<=0,0,$B37*Simulador!$AA$43)),0) -> 0 | V37: =IFERROR(IF(Simulador!$U$29=1,0,IF($B37<=0,0,IF(Simulador!$D$22>0,Simulador!$D$22,Simulador!$O$24)*Simulador!$AA$44)),0) -> 0 | Y37: 0 | AC37: 1 | AD37: 11 | AE37: 0 | AF37: 0 | AG37: 0 | AH37: 0 | AI37: =IF(Simulador!$T$68=1,'Tabla de amortizacion'!AJ37,'Tabla de amortizacion'!AR37) -> 0.115 | AJ37: =Simulador!$I$42 -> 0.115 | AK37: 0 | AL37: 0.1155 | AM37: 0.1155 | AN37: 0.1205 | AO37: 0.1205 | AP37: 0 | AQ37: 0 | AR37: =IF(AND(Simulador!$T$68=2,Simulador!$T$62=1),AL37,IF(AND(Simulador!$T$68=2,Simulador!$T$62=2),AM37,IF(AND(Simulador!$T$68=2,Simulador!$T$62=3),AN37,AO37))) -> 0.1205 | AT37: 0 | AU37: 0 | AV37: 0 | AW37: 0 | AX37: 0 | AZ37: =IFERROR(IF(Simulador!$U$29=1,0,IF($AT37<=0.01,0,$AT37*Simulador!$AA$43)),0)+IFERROR(IF(Simulador!$U$29=1,0,IF($AT37<=0.01,0,IF(Simulador!$D$22>0,Simulador!$D$22,Simulador!$O$24)*Simulador!$AA$44)),0) -> 0 | BB37: 0 | BC37: 0 | BE37: 0 | BF37: 23
A38: 24 | B38: 0 | D38: =IF(B38+F38-D37<=0,B38+F38,IF(AND(OR(Simulador!$U$39=2,Simulador!$U$39=7),J37=0),D37*(1+AA38),IF($AE$3=2,B38*AQ38,D37*(1+AA38)))) -> 0 | F38: 0 | H38: 0 | L38: =IF(Simulador!$T$41=1,0,J38*Simulador!$W$39*1.16) -> 0 | N38: =IF(B38-H38=0,0,N36) -> 0 | R38: 0 | T38: =IFERROR(IF(Simulador!$U$29=1,0,IF($B38<=0,0,$B38*Simulador!$AA$43)),0) -> 0 | V38: =IFERROR(IF(Simulador!$U$29=1,0,IF($B38<=0,0,IF(Simulador!$D$22>0,Simulador!$D$22,Simulador!$O$24)*Simulador!$AA$44)),0) -> 0 | Y38: 0 | AC38: 2 | AD38: 0 | AE38: 0 | AF38: 0 | AG38: 0 | AH38: 0 | AI38: =IF(Simulador!$T$68=1,'Tabla de amortizacion'!AJ38,'Tabla de amortizacion'!AR38) -> 0.115 | AJ38: =Simulador!$I$42 -> 0.115 | AK38: 0 | AL38: 0.1155 | AM38: 0.1155 | AN38: 0.1205 | AO38: 0.1205 | AP38: 0 | AQ38: 0 | AR38: =IF(AND(Simulador!$T$68=2,Simulador!$T$62=1),AL38,IF(AND(Simulador!$T$68=2,Simulador!$T$62=2),AM38,IF(AND(Simulador!$T$68=2,Simulador!$T$62=3),AN38,AO38))) -> 0.1205 | AT38: 0 | AU38: 0 | AV38: 0 | AW38: 0 | AX38: 0 | AZ38: =IFERROR(IF(Simulador!$U$29=1,0,IF($AT38<=0.01,0,$AT38*Simulador!$AA$43)),0)+IFERROR(IF(Simulador!$U$29=1,0,IF($AT38<=0.01,0,IF(Simulador!$D$22>0,Simulador!$D$22,Simulador!$O$24)*Simulador!$AA$44)),0) -> 0 | BB38: 0 | BC38: 0 | BE38: 0 | BF38: 24
A39: 25 | B39: 0 | D39: =IF(B39+F39-D38<=0,B39+F39,IF(AND(OR(Simulador!$U$39=2,Simulador!$U$39=7),J38=0),D38*(1+AA39),IF($AE$3=2,B39*AQ39,D38*(1+AA39)))) -> 0 | F39: 0 | H39: 0 | L39: =IF(Simulador!$T$41=1,0,J39*Simulador!$W$39*1.16) -> 0 | R39: 0 | T39: =IFERROR(IF(Simulador!$U$29=1,0,IF($B39<=0,0,$B39*Simulador!$AA$43)),0) -> 0 | V39: =IFERROR(IF(Simulador!$U$29=1,0,IF($B39<=0,0,IF(Simulador!$D$22>0,Simulador!$D$22,Simulador!$O$24)*Simulador!$AA$44)),0) -> 0 | Y39: 0 | AA39: =IF(B39<=0,0,Simulador!$I$43) -> 0 | AC39: 2 | AD39: 1 | AE39: 0 | AF39: 0 | AG39: 0 | AH39: 0 | AI39: =IF(Simulador!$T$68=1,'Tabla de amortizacion'!AJ39,'Tabla de amortizacion'!AR39) -> 0.115 | AJ39: =Simulador!$I$42 -> 0.115 | AK39: 0 | AL39: =AL38-0.2% -> 0.1135 | AM39: =AM38-0.2% -> 0.1135 | AN39: =AN38-0.2% -> 0.1185 | AO39: =AO38-0.2% -> 0.1185 | AP39: 0 | AQ39: 0 | AR39: =IF(AND(Simulador!$T$68=2,Simulador!$T$62=1),AL39,IF(AND(Simulador!$T$68=2,Simulador!$T$62=2),AM39,IF(AND(Simulador!$T$68=2,Simulador!$T$62=3),AN39,AO39))) -> 0.1185 | AT39: 0 | AU39: 0 | AV39: 0 | AW39: 0 | AX39: 0 | AZ39: =IFERROR(IF(Simulador!$U$29=1,0,IF($AT39<=0.01,0,$AT39*Simulador!$AA$43)),0)+IFERROR(IF(Simulador!$U$29=1,0,IF($AT39<=0.01,0,IF(Simulador!$D$22>0,Simulador!$D$22,Simulador!$O$24)*Simulador!$AA$44)),0) -> 0 | BA39: =IF(AT39<=0,0,$BA$27) -> 0 | BB39: 0 | BC39: 0 | BE39: 0 | BF39: 25
A40: 26 | B40: 0 | D40: =IF(B40+F40-D39<=0,B40+F40,IF(AND(OR(Simulador!$U$39=2,Simulador!$U$39=7),J39=0),D39*(1+AA40),IF($AE$3=2,B40*AQ40,D39*(1+AA40)))) -> 0 | F40: 0 | H40: 0 | L40: =IF(Simulador!$T$41=1,0,J40*Simulador!$W$39*1.16) -> 0 | N40: =IF(B40-H40=0,0,N38*(1+(Simulador!$AF$77))) -> 0 | R40: 0 | T40: =IFERROR(IF(Simulador!$U$29=1,0,IF($B40<=0,0,$B40*Simulador!$AA$43)),0) -> 0 | V40: =IFERROR(IF(Simulador!$U$29=1,0,IF($B40<=0,0,IF(Simulador!$D$22>0,Simulador!$D$22,Simulador!$O$24)*Simulador!$AA$44)),0) -> 0 | Y40: 0 | AC40: 2 | AD40: 2 | AE40: 0 | AF40: 0 | AG40: 0 | AH40: 0 | AI40: =IF(Simulador!$T$68=1,'Tabla de amortizacion'!AJ40,'Tabla de amortizacion'!AR40) -> 0.115 | AJ40: =Simulador!$I$42 -> 0.115 | AK40: 0 | AL40: =AL39 -> 0.1135 | AM40: =AM39 -> 0.1135 | AN40: =AN39 -> 0.1185 | AO40: =AO39 -> 0.1185 | AP40: 0 | AQ40: 0 | AR40: =IF(AND(Simulador!$T$68=2,Simulador!$T$62=1),AL40,IF(AND(Simulador!$T$68=2,Simulador!$T$62=2),AM40,IF(AND(Simulador!$T$68=2,Simulador!$T$62=3),AN40,AO40))) -> 0.1185 | AT40: 0 | AU40: 0 | AV40: 0 | AW40: 0 | AX40: 0 | AZ40: =IFERROR(IF(Simulador!$U$29=1,0,IF($AT40<=0.01,0,$AT40*Simulador!$AA$43)),0)+IFERROR(IF(Simulador!$U$29=1,0,IF($AT40<=0.01,0,IF(Simulador!$D$22>0,Simulador!$D$22,Simulador!$O$24)*Simulador!$AA$44)),0) -> 0 | BB40: 0 | BC40: 0 | BE40: 0 | BF40: 26
A41: 27 | B41: 0 | D41: =IF(B41+F41-D40<=0,B41+F41,IF(AND(OR(Simulador!$U$39=2,Simulador!$U$39=7),J40=0),D40*(1+AA41),IF($AE$3=2,B41*AQ41,D40*(1+AA41)))) -> 0 | F41: 0 | H41: 0 | L41: =IF(Simulador!$T$41=1,0,J41*Simulador!$W$39*1.16) -> 0 | R41: 0 | T41: =IFERROR(IF(Simulador!$U$29=1,0,IF($B41<=0,0,$B41*Simulador!$AA$43)),0) -> 0 | V41: =IFERROR(IF(Simulador!$U$29=1,0,IF($B41<=0,0,IF(Simulador!$D$22>0,Simulador!$D$22,Simulador!$O$24)*Simulador!$AA$44)),0) -> 0 | Y41: 0 | AC41: 2 | AD41: 3 | AE41: 0 | AF41: 0 | AG41: 0 | AH41: 0 | AI41: =IF(Simulador!$T$68=1,'Tabla de amortizacion'!AJ41,'Tabla de amortizacion'!AR41) -> 0.115 | AJ41: =Simulador!$I$42 -> 0.115 | AK41: 0 | AL41: =AL40 -> 0.1135 | AM41: 0.1135 | AN41: 0.1185 | AO41: 0.1185 | AP41: 0 | AQ41: 0 | AR41: =IF(AND(Simulador!$T$68=2,Simulador!$T$62=1),AL41,IF(AND(Simulador!$T$68=2,Simulador!$T$62=2),AM41,IF(AND(Simulador!$T$68=2,Simulador!$T$62=3),AN41,AO41))) -> 0.1185 | AT41: 0 | AU41: 0 | AV41: 0 | AW41: 0 | AX41: 0 | AZ41: =IFERROR(IF(Simulador!$U$29=1,0,IF($AT41<=0.01,0,$AT41*Simulador!$AA$43)),0)+IFERROR(IF(Simulador!$U$29=1,0,IF($AT41<=0.01,0,IF(Simulador!$D$22>0,Simulador!$D$22,Simulador!$O$24)*Simulador!$AA$44)),0) -> 0 | BB41: 0 | BC41: 0 | BE41: 0 | BF41: 27
A42: 28 | B42: 0 | D42: =IF(B42+F42-D41<=0,B42+F42,IF(AND(OR(Simulador!$U$39=2,Simulador!$U$39=7),J41=0),D41*(1+AA42),IF($AE$3=2,B42*AQ42,D41*(1+AA42)))) -> 0 | F42: 0 | H42: 0 | L42: =IF(Simulador!$T$41=1,0,J42*Simulador!$W$39*1.16) -> 0 | N42: =IF(B42-H42=0,0,N40) -> 0 | R42: 0 | T42: =IFERROR(IF(Simulador!$U$29=1,0,IF($B42<=0,0,$B42*Simulador!$AA$43)),0) -> 0 | V42: =IFERROR(IF(Simulador!$U$29=1,0,IF($B42<=0,0,IF(Simulador!$D$22>0,Simulador!$D$22,Simulador!$O$24)*Simulador!$AA$44)),0) -> 0 | Y42: 0 | AC42: 2 | AD42: 4 | AE42: 0 | AF42: 0 | AG42: 0 | AH42: 0 | AI42: =IF(Simulador!$T$68=1,'Tabla de amortizacion'!AJ42,'Tabla de amortizacion'!AR42) -> 0.115 | AJ42: =Simulador!$I$42 -> 0.115 | AK42: 0 | AL42: 0.1135 | AM42: 0.1135 | AN42: 0.1185 | AO42: 0.1185 | AP42: 0 | AQ42: 0 | AR42: =IF(AND(Simulador!$T$68=2,Simulador!$T$62=1),AL42,IF(AND(Simulador!$T$68=2,Simulador!$T$62=2),AM42,IF(AND(Simulador!$T$68=2,Simulador!$T$62=3),AN42,AO42))) -> 0.1185 | AT42: 0 | AU42: 0 | AV42: 0 | AW42: 0 | AX42: 0 | AZ42: =IFERROR(IF(Simulador!$U$29=1,0,IF($AT42<=0.01,0,$AT42*Simulador!$AA$43)),0)+IFERROR(IF(Simulador!$U$29=1,0,IF($AT42<=0.01,0,IF(Simulador!$D$22>0,Simulador!$D$22,Simulador!$O$24)*Simulador!$AA$44)),0) -> 0 | BB42: 0 | BC42: 0 | BE42: 0 | BF42: 28
A43: 29 | B43: 0 | D43: =IF(B43+F43-D42<=0,B43+F43,IF(AND(OR(Simulador!$U$39=2,Simulador!$U$39=7),J42=0),D42*(1+AA43),IF($AE$3=2,B43*AQ43,D42*(1+AA43)))) -> 0 | F43: 0 | H43: 0 | L43: =IF(Simulador!$T$41=1,0,J43*Simulador!$W$39*1.16) -> 0 | R43: 0 | T43: =IFERROR(IF(Simulador!$U$29=1,0,IF($B43<=0,0,$B43*Simulador!$AA$43)),0) -> 0 | V43: =IFERROR(IF(Simulador!$U$29=1,0,IF($B43<=0,0,IF(Simulador!$D$22>0,Simulador!$D$22,Simulador!$O$24)*Simulador!$AA$44)),0) -> 0 | Y43: 0 | AC43: 2 | AD43: 5 | AE43: 0 | AF43: 0 | AG43: 0 | AH43: 0 | AI43: =IF(Simulador!$T$68=1,'Tabla de amortizacion'!AJ43,'Tabla de amortizacion'!AR43) -> 0.115 | AJ43: =Simulador!$I$42 -> 0.115 | AK43: 0 | AL43: 0.1135 | AM43: 0.1135 | AN43: 0.1185 | AO43: 0.1185 | AP43: 0 | AQ43: 0 | AR43: =IF(AND(Simulador!$T$68=2,Simulador!$T$62=1),AL43,IF(AND(Simulador!$T$68=2,Simulador!$T$62=2),AM43,IF(AND(Simulador!$T$68=2,Simulador!$T$62=3),AN43,AO43))) -> 0.1185 | AT43: 0 | AU43: 0 | AV43: 0 | AW43: 0 | AX43: 0 | AZ43: =IFERROR(IF(Simulador!$U$29=1,0,IF($AT43<=0.01,0,$AT43*Simulador!$AA$43)),0)+IFERROR(IF(Simulador!$U$29=1,0,IF($AT43<=0.01,0,IF(Simulador!$D$22>0,Simulador!$D$22,Simulador!$O$24)*Simulador!$AA$44)),0) -> 0 | BB43: 0 | BC43: 0 | BE43: 0 | BF43: 29
A44: 30 | B44: 0 | D44: =IF(B44+F44-D43<=0,B44+F44,IF(AND(OR(Simulador!$U$39=2,Simulador!$U$39=7),J43=0),D43*(1+AA44),IF($AE$3=2,B44*AQ44,D43*(1+AA44)))) -> 0 | F44: 0 | H44: 0 | L44: =IF(Simulador!$T$41=1,0,J44*Simulador!$W$39*1.16) -> 0 | N44: =IF(B44-H44=0,0,N42) -> 0 | R44: 0 | T44: =IFERROR(IF(Simulador!$U$29=1,0,IF($B44<=0,0,$B44*Simulador!$AA$43)),0) -> 0 | V44: =IFERROR(IF(Simulador!$U$29=1,0,IF($B44<=0,0,IF(Simulador!$D$22>0,Simulador!$D$22,Simulador!$O$24)*Simulador!$AA$44)),0) -> 0 | Y44: 0 | AC44: 2 | AD44: 6 | AE44: 0 | AF44: 0 | AG44: 0 | AH44: 0 | AI44: =IF(Simulador!$T$68=1,'Tabla de amortizacion'!AJ44,'Tabla de amortizacion'!AR44) -> 0.115 | AJ44: =Simulador!$I$42 -> 0.115 | AK44: 0 | AL44: 0.1135 | AM44: 0.1135 | AN44: 0.1185 | AO44: 0.1185 | AP44: 0 | AQ44: 0 | AR44: =IF(AND(Simulador!$T$68=2,Simulador!$T$62=1),AL44,IF(AND(Simulador!$T$68=2,Simulador!$T$62=2),AM44,IF(AND(Simulador!$T$68=2,Simulador!$T$62=3),AN44,AO44))) -> 0.1185 | AT44: 0 | AU44: 0 | AV44: 0 | AW44: 0 | AX44: 0 | AZ44: =IFERROR(IF(Simulador!$U$29=1,0,IF($AT44<=0.01,0,$AT44*Simulador!$AA$43)),0)+IFERROR(IF(Simulador!$U$29=1,0,IF($AT44<=0.01,0,IF(Simulador!$D$22>0,Simulador!$D$22,Simulador!$O$24)*Simulador!$AA$44)),0) -> 0 | BB44: 0 | BC44: 0 | BE44: 0 | BF44: 30
A45: 31 | B45: 0 | D45: =IF(B45+F45-D44<=0,B45+F45,IF(AND(OR(Simulador!$U$39=2,Simulador!$U$39=7),J44=0),D44*(1+AA45),IF($AE$3=2,B45*AQ45,D44*(1+AA45)))) -> 0 | F45: 0 | H45: 0 | L45: =IF(Simulador!$T$41=1,0,J45*Simulador!$W$39*1.16) -> 0 | R45: 0 | T45: =IFERROR(IF(Simulador!$U$29=1,0,IF($B45<=0,0,$B45*Simulador!$AA$43)),0) -> 0 | V45: =IFERROR(IF(Simulador!$U$29=1,0,IF($B45<=0,0,IF(Simulador!$D$22>0,Simulador!$D$22,Simulador!$O$24)*Simulador!$AA$44)),0) -> 0 | Y45: 0 | AC45: 2 | AD45: 7 | AE45: 0 | AF45: 0 | AG45: 0 | AH45: 0 | AI45: =IF(Simulador!$T$68=1,'Tabla de amortizacion'!AJ45,'Tabla de amortizacion'!AR45) -> 0.115 | AJ45: =Simulador!$I$42 -> 0.115 | AK45: 0 | AL45: 0.1135 | AM45: 0.1135 | AN45: 0.1185 | AO45: 0.1185 | AP45: 0 | AQ45: 0 | AR45: =IF(AND(Simulador!$T$68=2,Simulador!$T$62=1),AL45,IF(AND(Simulador!$T$68=2,Simulador!$T$62=2),AM45,IF(AND(Simulador!$T$68=2,Simulador!$T$62=3),AN45,AO45))) -> 0.1185 | AT45: 0 | AU45: 0 | AV45: 0 | AW45: 0 | AX45: 0 | AZ45: =IFERROR(IF(Simulador!$U$29=1,0,IF($AT45<=0.01,0,$AT45*Simulador!$AA$43)),0)+IFERROR(IF(Simulador!$U$29=1,0,IF($AT45<=0.01,0,IF(Simulador!$D$22>0,Simulador!$D$22,Simulador!$O$24)*Simulador!$AA$44)),0) -> 0 | BB45: 0 | BC45: 0 | BE45: 0 | BF45: 31
A46: 32 | B46: 0 | D46: =IF(B46+F46-D45<=0,B46+F46,IF(AND(OR(Simulador!$U$39=2,Simulador!$U$39=7),J45=0),D45*(1+AA46),IF($AE$3=2,B46*AQ46,D45*(1+AA46)))) -> 0 | F46: 0 | H46: 0 | L46: =IF(Simulador!$T$41=1,0,J46*Simulador!$W$39*1.16) -> 0 | N46: =IF(B46-H46=0,0,N44) -> 0 | R46: 0 | T46: =IFERROR(IF(Simulador!$U$29=1,0,IF($B46<=0,0,$B46*Simulador!$AA$43)),0) -> 0 | V46: =IFERROR(IF(Simulador!$U$29=1,0,IF($B46<=0,0,IF(Simulador!$D$22>0,Simulador!$D$22,Simulador!$O$24)*Simulador!$AA$44)),0) -> 0 | Y46: 0 | AC46: 2 | AD46: 8 | AE46: 0 | AF46: 0 | AG46: 0 | AH46: 0 | AI46: =IF(Simulador!$T$68=1,'Tabla de amortizacion'!AJ46,'Tabla de amortizacion'!AR46) -> 0.115 | AJ46: =Simulador!$I$42 -> 0.115 | AK46: 0 | AL46: 0.1135 | AM46: 0.1135 | AN46: 0.1185 | AO46: 0.1185 | AP46: 0 | AQ46: 0 | AR46: =IF(AND(Simulador!$T$68=2,Simulador!$T$62=1),AL46,IF(AND(Simulador!$T$68=2,Simulador!$T$62=2),AM46,IF(AND(Simulador!$T$68=2,Simulador!$T$62=3),AN46,AO46))) -> 0.1185 | AT46: 0 | AU46: 0 | AV46: 0 | AW46: 0 | AX46: 0 | AZ46: =IFERROR(IF(Simulador!$U$29=1,0,IF($AT46<=0.01,0,$AT46*Simulador!$AA$43)),0)+IFERROR(IF(Simulador!$U$29=1,0,IF($AT46<=0.01,0,IF(Simulador!$D$22>0,Simulador!$D$22,Simulador!$O$24)*Simulador!$AA$44)),0) -> 0 | BB46: 0 | BC46: 0 | BE46: 0 | BF46: 32
A47: 33 | B47: 0 | D47: =IF(B47+F47-D46<=0,B47+F47,IF(AND(OR(Simulador!$U$39=2,Simulador!$U$39=7),J46=0),D46*(1+AA47),IF($AE$3=2,B47*AQ47,D46*(1+AA47)))) -> 0 | F47: 0 | H47: 0 | L47: =IF(Simulador!$T$41=1,0,J47*Simulador!$W$39*1.16) -> 0 | R47: 0 | T47: =IFERROR(IF(Simulador!$U$29=1,0,IF($B47<=0,0,$B47*Simulador!$AA$43)),0) -> 0 | V47: =IFERROR(IF(Simulador!$U$29=1,0,IF($B47<=0,0,IF(Simulador!$D$22>0,Simulador!$D$22,Simulador!$O$24)*Simulador!$AA$44)),0) -> 0 | Y47: 0 | AC47: 2 | AD47: 9 | AE47: 0 | AF47: 0 | AG47: 0 | AH47: 0 | AI47: =IF(Simulador!$T$68=1,'Tabla de amortizacion'!AJ47,'Tabla de amortizacion'!AR47) -> 0.115 | AJ47: =Simulador!$I$42 -> 0.115 | AK47: 0 | AL47: 0.1135 | AM47: 0.1135 | AN47: 0.1185 | AO47: 0.1185 | AP47: 0 | AQ47: 0 | AR47: =IF(AND(Simulador!$T$68=2,Simulador!$T$62=1),AL47,IF(AND(Simulador!$T$68=2,Simulador!$T$62=2),AM47,IF(AND(Simulador!$T$68=2,Simulador!$T$62=3),AN47,AO47))) -> 0.1185 | AT47: 0 | AU47: 0 | AV47: 0 | AW47: 0 | AX47: 0 | AZ47: =IFERROR(IF(Simulador!$U$29=1,0,IF($AT47<=0.01,0,$AT47*Simulador!$AA$43)),0)+IFERROR(IF(Simulador!$U$29=1,0,IF($AT47<=0.01,0,IF(Simulador!$D$22>0,Simulador!$D$22,Simulador!$O$24)*Simulador!$AA$44)),0) -> 0 | BB47: 0 | BC47: 0 | BE47: 0 | BF47: 33
A48: 34 | B48: 0 | D48: =IF(B48+F48-D47<=0,B48+F48,IF(AND(OR(Simulador!$U$39=2,Simulador!$U$39=7),J47=0),D47*(1+AA48),IF($AE$3=2,B48*AQ48,D47*(1+AA48)))) -> 0 | F48: 0 | H48: 0 | L48: =IF(Simulador!$T$41=1,0,J48*Simulador!$W$39*1.16) -> 0 | N48: =IF(B48-H48=0,0,N46) -> 0 | R48: 0 | T48: =IFERROR(IF(Simulador!$U$29=1,0,IF($B48<=0,0,$B48*Simulador!$AA$43)),0) -> 0 | V48: =IFERROR(IF(Simulador!$U$29=1,0,IF($B48<=0,0,IF(Simulador!$D$22>0,Simulador!$D$22,Simulador!$O$24)*Simulador!$AA$44)),0) -> 0 | Y48: 0 | AC48: 2 | AD48: 10 | AE48: 0 | AF48: 0 | AG48: 0 | AH48: 0 | AI48: =IF(Simulador!$T$68=1,'Tabla de amortizacion'!AJ48,'Tabla de amortizacion'!AR48) -> 0.115 | AJ48: =Simulador!$I$42 -> 0.115 | AK48: 0 | AL48: 0.1135 | AM48: 0.1135 | AN48: 0.1185 | AO48: 0.1185 | AP48: 0 | AQ48: 0 | AR48: =IF(AND(Simulador!$T$68=2,Simulador!$T$62=1),AL48,IF(AND(Simulador!$T$68=2,Simulador!$T$62=2),AM48,IF(AND(Simulador!$T$68=2,Simulador!$T$62=3),AN48,AO48))) -> 0.1185 | AT48: 0 | AU48: 0 | AV48: 0 | AW48: 0 | AX48: 0 | AZ48: =IFERROR(IF(Simulador!$U$29=1,0,IF($AT48<=0.01,0,$AT48*Simulador!$AA$43)),0)+IFERROR(IF(Simulador!$U$29=1,0,IF($AT48<=0.01,0,IF(Simulador!$D$22>0,Simulador!$D$22,Simulador!$O$24)*Simulador!$AA$44)),0) -> 0 | BB48: 0 | BC48: 0 | BE48: 0 | BF48: 34
A49: 35 | B49: 0 | D49: =IF(B49+F49-D48<=0,B49+F49,IF(AND(OR(Simulador!$U$39=2,Simulador!$U$39=7),J48=0),D48*(1+AA49),IF($AE$3=2,B49*AQ49,D48*(1+AA49)))) -> 0 | F49: 0 | H49: 0 | L49: =IF(Simulador!$T$41=1,0,J49*Simulador!$W$39*1.16) -> 0 | R49: 0 | T49: =IFERROR(IF(Simulador!$U$29=1,0,IF($B49<=0,0,$B49*Simulador!$AA$43)),0) -> 0 | V49: =IFERROR(IF(Simulador!$U$29=1,0,IF($B49<=0,0,IF(Simulador!$D$22>0,Simulador!$D$22,Simulador!$O$24)*Simulador!$AA$44)),0) -> 0 | Y49: 0 | AC49: 2 | AD49: 11 | AE49: 0 | AF49: 0 | AG49: 0 | AH49: 0 | AI49: =IF(Simulador!$T$68=1,'Tabla de amortizacion'!AJ49,'Tabla de amortizacion'!AR49) -> 0.115 | AJ49: =Simulador!$I$42 -> 0.115 | AK49: 0 | AL49: 0.1135 | AM49: 0.1135 | AN49: 0.1185 | AO49: 0.1185 | AP49: 0 | AQ49: 0 | AR49: =IF(AND(Simulador!$T$68=2,Simulador!$T$62=1),AL49,IF(AND(Simulador!$T$68=2,Simulador!$T$62=2),AM49,IF(AND(Simulador!$T$68=2,Simulador!$T$62=3),AN49,AO49))) -> 0.1185 | AT49: 0 | AU49: 0 | AV49: 0 | AW49: 0 | AX49: 0 | AZ49: =IFERROR(IF(Simulador!$U$29=1,0,IF($AT49<=0.01,0,$AT49*Simulador!$AA$43)),0)+IFERROR(IF(Simulador!$U$29=1,0,IF($AT49<=0.01,0,IF(Simulador!$D$22>0,Simulador!$D$22,Simulador!$O$24)*Simulador!$AA$44)),0) -> 0 | BB49: 0 | BC49: 0 | BE49: 0 | BF49: 35
A50: 36 | B50: 0 | D50: =IF(B50+F50-D49<=0,B50+F50,IF(AND(OR(Simulador!$U$39=2,Simulador!$U$39=7),J49=0),D49*(1+AA50),IF($AE$3=2,B50*AQ50,D49*(1+AA50)))) -> 0 | F50: 0 | H50: 0 | L50: =IF(Simulador!$T$41=1,0,J50*Simulador!$W$39*1.16) -> 0 | N50: =IF(B50-H50=0,0,N48) -> 0 | R50: 0 | T50: =IFERROR(IF(Simulador!$U$29=1,0,IF($B50<=0,0,$B50*Simulador!$AA$43)),0) -> 0 | V50: =IFERROR(IF(Simulador!$U$29=1,0,IF($B50<=0,0,IF(Simulador!$D$22>0,Simulador!$D$22,Simulador!$O$24)*Simulador!$AA$44)),0) -> 0 | Y50: 0 | AC50: 3 | AD50: 0 | AE50: 0 | AF50: 0 | AG50: 0 | AH50: 0 | AI50: =IF(Simulador!$T$68=1,'Tabla de amortizacion'!AJ50,'Tabla de amortizacion'!AR50) -> 0.115 | AJ50: =Simulador!$I$42 -> 0.115 | AK50: 0 | AL50: 0.1135 | AM50: 0.1135 | AN50: 0.1185 | AO50: 0.1185 | AP50: 0 | AQ50: 0 | AR50: =IF(AND(Simulador!$T$68=2,Simulador!$T$62=1),AL50,IF(AND(Simulador!$T$68=2,Simulador!$T$62=2),AM50,IF(AND(Simulador!$T$68=2,Simulador!$T$62=3),AN50,AO50))) -> 0.1185 | AT50: 0 | AU50: 0 | AV50: 0 | AW50: 0 | AX50: 0 | AZ50: =IFERROR(IF(Simulador!$U$29=1,0,IF($AT50<=0.01,0,$AT50*Simulador!$AA$43)),0)+IFERROR(IF(Simulador!$U$29=1,0,IF($AT50<=0.01,0,IF(Simulador!$D$22>0,Simulador!$D$22,Simulador!$O$24)*Simulador!$AA$44)),0) -> 0 | BB50: 0 | BC50: 0 | BE50: 0 | BF50: 36
A51: 37 | B51: 0 | D51: =IF(B51+F51-D50<=0,B51+F51,IF(AND(OR(Simulador!$U$39=2,Simulador!$U$39=7),J50=0),D50*(1+AA51),IF($AE$3=2,B51*AQ51,D50*(1+AA51)))) -> 0 | F51: 0 | H51: 0 | L51: =IF(Simulador!$T$41=1,0,J51*Simulador!$W$39*1.16) -> 0 | R51: 0 | T51: =IFERROR(IF(Simulador!$U$29=1,0,IF($B51<=0,0,$B51*Simulador!$AA$43)),0) -> 0 | V51: =IFERROR(IF(Simulador!$U$29=1,0,IF($B51<=0,0,IF(Simulador!$D$22>0,Simulador!$D$22,Simulador!$O$24)*Simulador!$AA$44)),0) -> 0 | Y51: 0 | AA51: =IF(B51<=0,0,Simulador!$I$43) -> 0 | AC51: 3 | AD51: 1 | AE51: 0 | AF51: 0 | AG51: 0 | AH51: 0 | AI51: =IF(Simulador!$T$68=1,'Tabla de amortizacion'!AJ51,'Tabla de amortizacion'!AR51) -> 0.1125 | AJ51: =IF(AJ50=$AM$4,AJ50,IF(AJ50-0.25%<=$AM$4,$AM$4,AJ50-0.25%)) -> 0.1125 | AK51: 0 | AL51: =AL50-0.2% -> 0.1115 | AM51: =AM50-0.2% -> 0.1115 | AN51: =AN50-0.2% -> 0.1165 | AO51: =AO50-0.2% -> 0.1165 | AP51: 0 | AQ51: 0 | AR51: =IF(AND(Simulador!$T$68=2,Simulador!$T$62=1),AL51,IF(AND(Simulador!$T$68=2,Simulador!$T$62=2),AM51,IF(AND(Simulador!$T$68=2,Simulador!$T$62=3),AN51,AO51))) -> 0.1165 | AT51: 0 | AU51: 0 | AV51: 0 | AW51: 0 | AX51: 0 | AZ51: =IFERROR(IF(Simulador!$U$29=1,0,IF($AT51<=0.01,0,$AT51*Simulador!$AA$43)),0)+IFERROR(IF(Simulador!$U$29=1,0,IF($AT51<=0.01,0,IF(Simulador!$D$22>0,Simulador!$D$22,Simulador!$O$24)*Simulador!$AA$44)),0) -> 0 | BA51: =IF(AT51<=0,0,$BA$27) -> 0 | BB51: 0 | BC51: 0 | BE51: 0 | BF51: 37
A52: 38 | B52: 0 | D52: =IF(B52+F52-D51<=0,B52+F52,IF(AND(OR(Simulador!$U$39=2,Simulador!$U$39=7),J51=0),D51*(1+AA52),IF($AE$3=2,B52*AQ52,D51*(1+AA52)))) -> 0 | F52: 0 | H52: 0 | L52: =IF(Simulador!$T$41=1,0,J52*Simulador!$W$39*1.16) -> 0 | N52: =IF(B52-H52=0,0,N50*(1+(Simulador!$AF$77))) -> 0 | R52: 0 | T52: =IFERROR(IF(Simulador!$U$29=1,0,IF($B52<=0,0,$B52*Simulador!$AA$43)),0) -> 0 | V52: =IFERROR(IF(Simulador!$U$29=1,0,IF($B52<=0,0,IF(Simulador!$D$22>0,Simulador!$D$22,Simulador!$O$24)*Simulador!$AA$44)),0) -> 0 | Y52: 0 | AC52: 3 | AD52: 2 | AE52: 0 | AF52: 0 | AG52: 0 | AH52: 0 | AI52: =IF(Simulador!$T$68=1,'Tabla de amortizacion'!AJ52,'Tabla de amortizacion'!AR52) -> 0.1125 | AJ52: =AJ51 -> 0.1125 | AK52: 0 | AL52: =AL51 -> 0.1115 | AM52: =AM51 -> 0.1115 | AN52: =AN51 -> 0.1165 | AO52: =AO51 -> 0.1165 | AP52: 0 | AQ52: 0 | AR52: =IF(AND(Simulador!$T$68=2,Simulador!$T$62=1),AL52,IF(AND(Simulador!$T$68=2,Simulador!$T$62=2),AM52,IF(AND(Simulador!$T$68=2,Simulador!$T$62=3),AN52,AO52))) -> 0.1165 | AT52: 0 | AU52: 0 | AV52: 0 | AW52: 0 | AX52: 0 | AZ52: =IFERROR(IF(Simulador!$U$29=1,0,IF($AT52<=0.01,0,$AT52*Simulador!$AA$43)),0)+IFERROR(IF(Simulador!$U$29=1,0,IF($AT52<=0.01,0,IF(Simulador!$D$22>0,Simulador!$D$22,Simulador!$O$24)*Simulador!$AA$44)),0) -> 0 | BB52: 0 | BC52: 0 | BE52: 0 | BF52: 38
A53: 39 | B53: 0 | D53: =IF(B53+F53-D52<=0,B53+F53,IF(AND(OR(Simulador!$U$39=2,Simulador!$U$39=7),J52=0),D52*(1+AA53),IF($AE$3=2,B53*AQ53,D52*(1+AA53)))) -> 0 | F53: 0 | H53: 0 | L53: =IF(Simulador!$T$41=1,0,J53*Simulador!$W$39*1.16) -> 0 | R53: 0 | T53: =IFERROR(IF(Simulador!$U$29=1,0,IF($B53<=0,0,$B53*Simulador!$AA$43)),0) -> 0 | V53: =IFERROR(IF(Simulador!$U$29=1,0,IF($B53<=0,0,IF(Simulador!$D$22>0,Simulador!$D$22,Simulador!$O$24)*Simulador!$AA$44)),0) -> 0 | Y53: 0 | AC53: 3 | AD53: 3 | AE53: 0 | AF53: 0 | AG53: 0 | AH53: 0 | AI53: =IF(Simulador!$T$68=1,'Tabla de amortizacion'!AJ53,'Tabla de amortizacion'!AR53) -> 0.1125 | AJ53: =AJ52 -> 0.1125 | AK53: 0 | AL53: =AL52 -> 0.1115 | AM53: 0.1115 | AN53: 0.1165 | AO53: 0.1165 | AP53: 0 | AQ53: 0 | AR53: =IF(AND(Simulador!$T$68=2,Simulador!$T$62=1),AL53,IF(AND(Simulador!$T$68=2,Simulador!$T$62=2),AM53,IF(AND(Simulador!$T$68=2,Simulador!$T$62=3),AN53,AO53))) -> 0.1165 | AT53: 0 | AU53: 0 | AV53: 0 | AW53: 0 | AX53: 0 | AZ53: =IFERROR(IF(Simulador!$U$29=1,0,IF($AT53<=0.01,0,$AT53*Simulador!$AA$43)),0)+IFERROR(IF(Simulador!$U$29=1,0,IF($AT53<=0.01,0,IF(Simulador!$D$22>0,Simulador!$D$22,Simulador!$O$24)*Simulador!$AA$44)),0) -> 0 | BB53: 0 | BC53: 0 | BE53: 0 | BF53: 39
A54: 40 | B54: 0 | D54: =IF(B54+F54-D53<=0,B54+F54,IF(AND(OR(Simulador!$U$39=2,Simulador!$U$39=7),J53=0),D53*(1+AA54),IF($AE$3=2,B54*AQ54,D53*(1+AA54)))) -> 0 | F54: 0 | H54: 0 | L54: =IF(Simulador!$T$41=1,0,J54*Simulador!$W$39*1.16) -> 0 | N54: =IF(B54-H54=0,0,N52) -> 0 | R54: 0 | T54: =IFERROR(IF(Simulador!$U$29=1,0,IF($B54<=0,0,$B54*Simulador!$AA$43)),0) -> 0 | V54: =IFERROR(IF(Simulador!$U$29=1,0,IF($B54<=0,0,IF(Simulador!$D$22>0,Simulador!$D$22,Simulador!$O$24)*Simulador!$AA$44)),0) -> 0 | Y54: 0 | AC54: 3 | AD54: 4 | AE54: 0 | AF54: 0 | AG54: 0 | AH54: 0 | AI54: =IF(Simulador!$T$68=1,'Tabla de amortizacion'!AJ54,'Tabla de amortizacion'!AR54) -> 0.1125 | AJ54: 0.1125 | AK54: 0 | AL54: 0.1115 | AM54: 0.1115 | AN54: 0.1165 | AO54: 0.1165 | AP54: 0 | AQ54: 0 | AR54: =IF(AND(Simulador!$T$68=2,Simulador!$T$62=1),AL54,IF(AND(Simulador!$T$68=2,Simulador!$T$62=2),AM54,IF(AND(Simulador!$T$68=2,Simulador!$T$62=3),AN54,AO54))) -> 0.1165 | AT54: 0 | AU54: 0 | AV54: 0 | AW54: 0 | AX54: 0 | AZ54: =IFERROR(IF(Simulador!$U$29=1,0,IF($AT54<=0.01,0,$AT54*Simulador!$AA$43)),0)+IFERROR(IF(Simulador!$U$29=1,0,IF($AT54<=0.01,0,IF(Simulador!$D$22>0,Simulador!$D$22,Simulador!$O$24)*Simulador!$AA$44)),0) -> 0 | BB54: 0 | BC54: 0 | BE54: 0 | BF54: 40
A55: 41 | B55: 0 | D55: =IF(B55+F55-D54<=0,B55+F55,IF(AND(OR(Simulador!$U$39=2,Simulador!$U$39=7),J54=0),D54*(1+AA55),IF($AE$3=2,B55*AQ55,D54*(1+AA55)))) -> 0 | F55: 0 | H55: 0 | L55: =IF(Simulador!$T$41=1,0,J55*Simulador!$W$39*1.16) -> 0 | R55: 0 | T55: =IFERROR(IF(Simulador!$U$29=1,0,IF($B55<=0,0,$B55*Simulador!$AA$43)),0) -> 0 | V55: =IFERROR(IF(Simulador!$U$29=1,0,IF($B55<=0,0,IF(Simulador!$D$22>0,Simulador!$D$22,Simulador!$O$24)*Simulador!$AA$44)),0) -> 0 | Y55: 0 | AC55: 3 | AD55: 5 | AE55: 0 | AF55: 0 | AG55: 0 | AH55: 0 | AI55: =IF(Simulador!$T$68=1,'Tabla de amortizacion'!AJ55,'Tabla de amortizacion'!AR55) -> 0.1125 | AJ55: 0.1125 | AK55: 0 | AL55: 0.1115 | AM55: 0.1115 | AN55: 0.1165 | AO55: 0.1165 | AP55: 0 | AQ55: 0 | AR55: =IF(AND(Simulador!$T$68=2,Simulador!$T$62=1),AL55,IF(AND(Simulador!$T$68=2,Simulador!$T$62=2),AM55,IF(AND(Simulador!$T$68=2,Simulador!$T$62=3),AN55,AO55))) -> 0.1165 | AT55: 0 | AU55: 0 | AV55: 0 | AW55: 0 | AX55: 0 | AZ55: =IFERROR(IF(Simulador!$U$29=1,0,IF($AT55<=0.01,0,$AT55*Simulador!$AA$43)),0)+IFERROR(IF(Simulador!$U$29=1,0,IF($AT55<=0.01,0,IF(Simulador!$D$22>0,Simulador!$D$22,Simulador!$O$24)*Simulador!$AA$44)),0) -> 0 | BB55: 0 | BC55: 0 | BE55: 0 | BF55: 41
A56: 42 | B56: 0 | D56: =IF(B56+F56-D55<=0,B56+F56,IF(AND(OR(Simulador!$U$39=2,Simulador!$U$39=7),J55=0),D55*(1+AA56),IF($AE$3=2,B56*AQ56,D55*(1+AA56)))) -> 0 | F56: 0 | H56: 0 | L56: =IF(Simulador!$T$41=1,0,J56*Simulador!$W$39*1.16) -> 0 | N56: =IF(B56-H56=0,0,N54) -> 0 | R56: 0 | T56: =IFERROR(IF(Simulador!$U$29=1,0,IF($B56<=0,0,$B56*Simulador!$AA$43)),0) -> 0 | V56: =IFERROR(IF(Simulador!$U$29=1,0,IF($B56<=0,0,IF(Simulador!$D$22>0,Simulador!$D$22,Simulador!$O$24)*Simulador!$AA$44)),0) -> 0 | Y56: 0 | AC56: 3 | AD56: 6 | AE56: 0 | AF56: 0 | AG56: 0 | AH56: 0 | AI56: =IF(Simulador!$T$68=1,'Tabla de amortizacion'!AJ56,'Tabla de amortizacion'!AR56) -> 0.1125 | AJ56: 0.1125 | AK56: 0 | AL56: 0.1115 | AM56: 0.1115 | AN56: 0.1165 | AO56: 0.1165 | AP56: 0 | AQ56: 0 | AR56: =IF(AND(Simulador!$T$68=2,Simulador!$T$62=1),AL56,IF(AND(Simulador!$T$68=2,Simulador!$T$62=2),AM56,IF(AND(Simulador!$T$68=2,Simulador!$T$62=3),AN56,AO56))) -> 0.1165 | AT56: 0 | AU56: 0 | AV56: 0 | AW56: 0 | AX56: 0 | AZ56: =IFERROR(IF(Simulador!$U$29=1,0,IF($AT56<=0.01,0,$AT56*Simulador!$AA$43)),0)+IFERROR(IF(Simulador!$U$29=1,0,IF($AT56<=0.01,0,IF(Simulador!$D$22>0,Simulador!$D$22,Simulador!$O$24)*Simulador!$AA$44)),0) -> 0 | BB56: 0 | BC56: 0 | BE56: 0 | BF56: 42
A57: 43 | B57: 0 | D57: =IF(B57+F57-D56<=0,B57+F57,IF(AND(OR(Simulador!$U$39=2,Simulador!$U$39=7),J56=0),D56*(1+AA57),IF($AE$3=2,B57*AQ57,D56*(1+AA57)))) -> 0 | F57: 0 | H57: 0 | L57: =IF(Simulador!$T$41=1,0,J57*Simulador!$W$39*1.16) -> 0 | R57: 0 | T57: =IFERROR(IF(Simulador!$U$29=1,0,IF($B57<=0,0,$B57*Simulador!$AA$43)),0) -> 0 | V57: =IFERROR(IF(Simulador!$U$29=1,0,IF($B57<=0,0,IF(Simulador!$D$22>0,Simulador!$D$22,Simulador!$O$24)*Simulador!$AA$44)),0) -> 0 | Y57: 0 | AC57: 3 | AD57: 7 | AE57: 0 | AF57: 0 | AG57: 0 | AH57: 0 | AI57: =IF(Simulador!$T$68=1,'Tabla de amortizacion'!AJ57,'Tabla de amortizacion'!AR57) -> 0.1125 | AJ57: 0.1125 | AK57: 0 | AL57: 0.1115 | AM57: 0.1115 | AN57: 0.1165 | AO57: 0.1165 | AP57: 0 | AQ57: 0 | AR57: =IF(AND(Simulador!$T$68=2,Simulador!$T$62=1),AL57,IF(AND(Simulador!$T$68=2,Simulador!$T$62=2),AM57,IF(AND(Simulador!$T$68=2,Simulador!$T$62=3),AN57,AO57))) -> 0.1165 | AT57: 0 | AU57: 0 | AV57: 0 | AW57: 0 | AX57: 0 | AZ57: =IFERROR(IF(Simulador!$U$29=1,0,IF($AT57<=0.01,0,$AT57*Simulador!$AA$43)),0)+IFERROR(IF(Simulador!$U$29=1,0,IF($AT57<=0.01,0,IF(Simulador!$D$22>0,Simulador!$D$22,Simulador!$O$24)*Simulador!$AA$44)),0) -> 0 | BB57: 0 | BC57: 0 | BE57: 0 | BF57: 43
A58: 44 | B58: 0 | D58: =IF(B58+F58-D57<=0,B58+F58,IF(AND(OR(Simulador!$U$39=2,Simulador!$U$39=7),J57=0),D57*(1+AA58),IF($AE$3=2,B58*AQ58,D57*(1+AA58)))) -> 0 | F58: 0 | H58: 0 | L58: =IF(Simulador!$T$41=1,0,J58*Simulador!$W$39*1.16) -> 0 | N58: =IF(B58-H58=0,0,N56) -> 0 | R58: 0 | T58: =IFERROR(IF(Simulador!$U$29=1,0,IF($B58<=0,0,$B58*Simulador!$AA$43)),0) -> 0 | V58: =IFERROR(IF(Simulador!$U$29=1,0,IF($B58<=0,0,IF(Simulador!$D$22>0,Simulador!$D$22,Simulador!$O$24)*Simulador!$AA$44)),0) -> 0 | Y58: 0 | AC58: 3 | AD58: 8 | AE58: 0 | AF58: 0 | AG58: 0 | AH58: 0 | AI58: =IF(Simulador!$T$68=1,'Tabla de amortizacion'!AJ58,'Tabla de amortizacion'!AR58) -> 0.1125 | AJ58: 0.1125 | AK58: 0 | AL58: 0.1115 | AM58: 0.1115 | AN58: 0.1165 | AO58: 0.1165 | AP58: 0 | AQ58: 0 | AR58: =IF(AND(Simulador!$T$68=2,Simulador!$T$62=1),AL58,IF(AND(Simulador!$T$68=2,Simulador!$T$62=2),AM58,IF(AND(Simulador!$T$68=2,Simulador!$T$62=3),AN58,AO58))) -> 0.1165 | AT58: 0 | AU58: 0 | AV58: 0 | AW58: 0 | AX58: 0 | AZ58: =IFERROR(IF(Simulador!$U$29=1,0,IF($AT58<=0.01,0,$AT58*Simulador!$AA$43)),0)+IFERROR(IF(Simulador!$U$29=1,0,IF($AT58<=0.01,0,IF(Simulador!$D$22>0,Simulador!$D$22,Simulador!$O$24)*Simulador!$AA$44)),0) -> 0 | BB58: 0 | BC58: 0 | BE58: 0 | BF58: 44
A59: 45 | B59: 0 | D59: =IF(B59+F59-D58<=0,B59+F59,IF(AND(OR(Simulador!$U$39=2,Simulador!$U$39=7),J58=0),D58*(1+AA59),IF($AE$3=2,B59*AQ59,D58*(1+AA59)))) -> 0 | F59: 0 | H59: 0 | L59: =IF(Simulador!$T$41=1,0,J59*Simulador!$W$39*1.16) -> 0 | R59: 0 | T59: =IFERROR(IF(Simulador!$U$29=1,0,IF($B59<=0,0,$B59*Simulador!$AA$43)),0) -> 0 | V59: =IFERROR(IF(Simulador!$U$29=1,0,IF($B59<=0,0,IF(Simulador!$D$22>0,Simulador!$D$22,Simulador!$O$24)*Simulador!$AA$44)),0) -> 0 | Y59: 0 | AC59: 3 | AD59: 9 | AE59: 0 | AF59: 0 | AG59: 0 | AH59: 0 | AI59: =IF(Simulador!$T$68=1,'Tabla de amortizacion'!AJ59,'Tabla de amortizacion'!AR59) -> 0.1125 | AJ59: 0.1125 | AK59: 0 | AL59: 0.1115 | AM59: 0.1115 | AN59: 0.1165 | AO59: 0.1165 | AP59: 0 | AQ59: 0 | AR59: =IF(AND(Simulador!$T$68=2,Simulador!$T$62=1),AL59,IF(AND(Simulador!$T$68=2,Simulador!$T$62=2),AM59,IF(AND(Simulador!$T$68=2,Simulador!$T$62=3),AN59,AO59))) -> 0.1165 | AT59: 0 | AU59: 0 | AV59: 0 | AW59: 0 | AX59: 0 | AZ59: =IFERROR(IF(Simulador!$U$29=1,0,IF($AT59<=0.01,0,$AT59*Simulador!$AA$43)),0)+IFERROR(IF(Simulador!$U$29=1,0,IF($AT59<=0.01,0,IF(Simulador!$D$22>0,Simulador!$D$22,Simulador!$O$24)*Simulador!$AA$44)),0) -> 0 | BB59: 0 | BC59: 0 | BE59: 0 | BF59: 45
A60: 46 | B60: 0 | D60: =IF(B60+F60-D59<=0,B60+F60,IF(AND(OR(Simulador!$U$39=2,Simulador!$U$39=7),J59=0),D59*(1+AA60),IF($AE$3=2,B60*AQ60,D59*(1+AA60)))) -> 0 | F60: 0 | H60: 0 | L60: =IF(Simulador!$T$41=1,0,J60*Simulador!$W$39*1.16) -> 0 | N60: =IF(B60-H60=0,0,N58) -> 0 | R60: 0 | T60: =IFERROR(IF(Simulador!$U$29=1,0,IF($B60<=0,0,$B60*Simulador!$AA$43)),0) -> 0 | V60: =IFERROR(IF(Simulador!$U$29=1,0,IF($B60<=0,0,IF(Simulador!$D$22>0,Simulador!$D$22,Simulador!$O$24)*Simulador!$AA$44)),0) -> 0 | Y60: 0 | AC60: 3 | AD60: 10 | AE60: 0 | AF60: 0 | AG60: 0 | AH60: 0 | AI60: =IF(Simulador!$T$68=1,'Tabla de amortizacion'!AJ60,'Tabla de amortizacion'!AR60) -> 0.1125 | AJ60: 0.1125 | AK60: 0 | AL60: 0.1115 | AM60: 0.1115 | AN60: 0.1165 | AO60: 0.1165 | AP60: 0 | AQ60: 0 | AR60: =IF(AND(Simulador!$T$68=2,Simulador!$T$62=1),AL60,IF(AND(Simulador!$T$68=2,Simulador!$T$62=2),AM60,IF(AND(Simulador!$T$68=2,Simulador!$T$62=3),AN60,AO60))) -> 0.1165 | AT60: 0 | AU60: 0 | AV60: 0 | AW60: 0 | AX60: 0 | AZ60: =IFERROR(IF(Simulador!$U$29=1,0,IF($AT60<=0.01,0,$AT60*Simulador!$AA$43)),0)+IFERROR(IF(Simulador!$U$29=1,0,IF($AT60<=0.01,0,IF(Simulador!$D$22>0,Simulador!$D$22,Simulador!$O$24)*Simulador!$AA$44)),0) -> 0 | BB60: 0 | BC60: 0 | BE60: 0 | BF60: 46
A61: 47 | B61: 0 | D61: =IF(B61+F61-D60<=0,B61+F61,IF(AND(OR(Simulador!$U$39=2,Simulador!$U$39=7),J60=0),D60*(1+AA61),IF($AE$3=2,B61*AQ61,D60*(1+AA61)))) -> 0 | F61: 0 | H61: 0 | L61: =IF(Simulador!$T$41=1,0,J61*Simulador!$W$39*1.16) -> 0 | R61: 0 | T61: =IFERROR(IF(Simulador!$U$29=1,0,IF($B61<=0,0,$B61*Simulador!$AA$43)),0) -> 0 | V61: =IFERROR(IF(Simulador!$U$29=1,0,IF($B61<=0,0,IF(Simulador!$D$22>0,Simulador!$D$22,Simulador!$O$24)*Simulador!$AA$44)),0) -> 0 | Y61: 0 | AC61: 3 | AD61: 11 | AE61: 0 | AF61: 0 | AG61: 0 | AH61: 0 | AI61: =IF(Simulador!$T$68=1,'Tabla de amortizacion'!AJ61,'Tabla de amortizacion'!AR61) -> 0.1125 | AJ61: 0.1125 | AK61: 0 | AL61: 0.1115 | AM61: 0.1115 | AN61: 0.1165 | AO61: 0.1165 | AP61: 0 | AQ61: 0 | AR61: =IF(AND(Simulador!$T$68=2,Simulador!$T$62=1),AL61,IF(AND(Simulador!$T$68=2,Simulador!$T$62=2),AM61,IF(AND(Simulador!$T$68=2,Simulador!$T$62=3),AN61,AO61))) -> 0.1165 | AT61: 0 | AU61: 0 | AV61: 0 | AW61: 0 | AX61: 0 | AZ61: =IFERROR(IF(Simulador!$U$29=1,0,IF($AT61<=0.01,0,$AT61*Simulador!$AA$43)),0)+IFERROR(IF(Simulador!$U$29=1,0,IF($AT61<=0.01,0,IF(Simulador!$D$22>0,Simulador!$D$22,Simulador!$O$24)*Simulador!$AA$44)),0) -> 0 | BB61: 0 | BC61: 0 | BE61: 0 | BF61: 47
A62: 48 | B62: 0 | D62: =IF(B62+F62-D61<=0,B62+F62,IF(AND(OR(Simulador!$U$39=2,Simulador!$U$39=7),J61=0),D61*(1+AA62),IF($AE$3=2,B62*AQ62,D61*(1+AA62)))) -> 0 | F62: 0 | H62: 0 | L62: =IF(Simulador!$T$41=1,0,J62*Simulador!$W$39*1.16) -> 0 | N62: =IF(B62-H62=0,0,N60) -> 0 | R62: 0 | T62: =IFERROR(IF(Simulador!$U$29=1,0,IF($B62<=0,0,$B62*Simulador!$AA$43)),0) -> 0 | V62: =IFERROR(IF(Simulador!$U$29=1,0,IF($B62<=0,0,IF(Simulador!$D$22>0,Simulador!$D$22,Simulador!$O$24)*Simulador!$AA$44)),0) -> 0 | Y62: 0 | AC62: 4 | AD62: 0 | AE62: 0 | AF62: 0 | AG62: 0 | AH62: 0 | AI62: =IF(Simulador!$T$68=1,'Tabla de amortizacion'!AJ62,'Tabla de amortizacion'!AR62) -> 0.1125 | AJ62: 0.1125 | AK62: 0 | AL62: 0.1115 | AM62: 0.1115 | AN62: 0.1165 | AO62: 0.1165 | AP62: 0 | AQ62: 0 | AR62: =IF(AND(Simulador!$T$68=2,Simulador!$T$62=1),AL62,IF(AND(Simulador!$T$68=2,Simulador!$T$62=2),AM62,IF(AND(Simulador!$T$68=2,Simulador!$T$62=3),AN62,AO62))) -> 0.1165 | AT62: 0 | AU62: 0 | AV62: 0 | AW62: 0 | AX62: 0 | AZ62: =IFERROR(IF(Simulador!$U$29=1,0,IF($AT62<=0.01,0,$AT62*Simulador!$AA$43)),0)+IFERROR(IF(Simulador!$U$29=1,0,IF($AT62<=0.01,0,IF(Simulador!$D$22>0,Simulador!$D$22,Simulador!$O$24)*Simulador!$AA$44)),0) -> 0 | BB62: 0 | BC62: 0 | BE62: 0 | BF62: 48
A63: 49 | B63: 0 | D63: =IF(B63+F63-D62<=0,B63+F63,IF(AND(OR(Simulador!$U$39=2,Simulador!$U$39=7),J62=0),D62*(1+AA63),IF($AE$3=2,B63*AQ63,D62*(1+AA63)))) -> 0 | F63: 0 | H63: 0 | L63: =IF(Simulador!$T$41=1,0,J63*Simulador!$W$39*1.16) -> 0 | R63: 0 | T63: =IFERROR(IF(Simulador!$U$29=1,0,IF($B63<=0,0,$B63*Simulador!$AA$43)),0) -> 0 | V63: =IFERROR(IF(Simulador!$U$29=1,0,IF($B63<=0,0,IF(Simulador!$D$22>0,Simulador!$D$22,Simulador!$O$24)*Simulador!$AA$44)),0) -> 0 | Y63: 0 | AA63: =IF(B63<=0,0,Simulador!$I$43) -> 0 | AC63: 4 | AD63: 1 | AE63: 0 | AF63: 0 | AG63: 0 | AH63: 0 | AI63: =IF(Simulador!$T$68=1,'Tabla de amortizacion'!AJ63,'Tabla de amortizacion'!AR63) -> 0.11 | AJ63: =IF(AJ62=$AM$4,AJ62,IF(AJ62-0.25%<=$AM$4,$AM$4,AJ62-0.25%)) -> 0.11 | AK63: 0 | AL63: =AL62-0.15% -> 0.11 | AM63: =AM62-0.15% -> 0.11 | AN63: =AN62-0.15% -> 0.115 | AO63: =AO62-0.15% -> 0.115 | AP63: 0 | AQ63: 0 | AR63: =IF(AND(Simulador!$T$68=2,Simulador!$T$62=1),AL63,IF(AND(Simulador!$T$68=2,Simulador!$T$62=2),AM63,IF(AND(Simulador!$T$68=2,Simulador!$T$62=3),AN63,AO63))) -> 0.115 | AT63: 0 | AU63: 0 | AV63: 0 | AW63: 0 | AX63: 0 | AZ63: =IFERROR(IF(Simulador!$U$29=1,0,IF($AT63<=0.01,0,$AT63*Simulador!$AA$43)),0)+IFERROR(IF(Simulador!$U$29=1,0,IF($AT63<=0.01,0,IF(Simulador!$D$22>0,Simulador!$D$22,Simulador!$O$24)*Simulador!$AA$44)),0) -> 0 | BA63: =IF(AT63<=0,0,$BA$27) -> 0 | BB63: 0 | BC63: 0 | BE63: 0 | BF63: 49
A64: 50 | B64: 0 | D64: =IF(B64+F64-D63<=0,B64+F64,IF(AND(OR(Simulador!$U$39=2,Simulador!$U$39=7),J63=0),D63*(1+AA64),IF($AE$3=2,B64*AQ64,D63*(1+AA64)))) -> 0 | F64: 0 | H64: 0 | L64: =IF(Simulador!$T$41=1,0,J64*Simulador!$W$39*1.16) -> 0 | N64: =IF(B64-H64=0,0,N62*(1+(Simulador!$AF$77))) -> 0 | R64: 0 | T64: =IFERROR(IF(Simulador!$U$29=1,0,IF($B64<=0,0,$B64*Simulador!$AA$43)),0) -> 0 | V64: =IFERROR(IF(Simulador!$U$29=1,0,IF($B64<=0,0,IF(Simulador!$D$22>0,Simulador!$D$22,Simulador!$O$24)*Simulador!$AA$44)),0) -> 0 | Y64: 0 | AC64: 4 | AD64: 2 | AE64: 0 | AF64: 0 | AG64: 0 | AH64: 0 | AI64: =IF(Simulador!$T$68=1,'Tabla de amortizacion'!AJ64,'Tabla de amortizacion'!AR64) -> 0.11 | AJ64: =AJ63 -> 0.11 | AK64: 0 | AL64: =AL63 -> 0.11 | AM64: =AM63 -> 0.11 | AN64: =AN63 -> 0.115 | AO64: =AO63 -> 0.115 | AP64: 0 | AQ64: 0 | AR64: =IF(AND(Simulador!$T$68=2,Simulador!$T$62=1),AL64,IF(AND(Simulador!$T$68=2,Simulador!$T$62=2),AM64,IF(AND(Simulador!$T$68=2,Simulador!$T$62=3),AN64,AO64))) -> 0.115 | AT64: 0 | AU64: 0 | AV64: 0 | AW64: 0 | AX64: 0 | AZ64: =IFERROR(IF(Simulador!$U$29=1,0,IF($AT64<=0.01,0,$AT64*Simulador!$AA$43)),0)+IFERROR(IF(Simulador!$U$29=1,0,IF($AT64<=0.01,0,IF(Simulador!$D$22>0,Simulador!$D$22,Simulador!$O$24)*Simulador!$AA$44)),0) -> 0 | BB64: 0 | BC64: 0 | BE64: 0 | BF64: 50
A65: 51 | B65: 0 | D65: =IF(B65+F65-D64<=0,B65+F65,IF(AND(OR(Simulador!$U$39=2,Simulador!$U$39=7),J64=0),D64*(1+AA65),IF($AE$3=2,B65*AQ65,D64*(1+AA65)))) -> 0 | F65: 0 | H65: 0 | L65: =IF(Simulador!$T$41=1,0,J65*Simulador!$W$39*1.16) -> 0 | R65: 0 | T65: =IFERROR(IF(Simulador!$U$29=1,0,IF($B65<=0,0,$B65*Simulador!$AA$43)),0) -> 0 | V65: =IFERROR(IF(Simulador!$U$29=1,0,IF($B65<=0,0,IF(Simulador!$D$22>0,Simulador!$D$22,Simulador!$O$24)*Simulador!$AA$44)),0) -> 0 | Y65: 0 | AC65: 4 | AD65: 3 | AE65: 0 | AF65: 0 | AG65: 0 | AH65: 0 | AI65: =IF(Simulador!$T$68=1,'Tabla de amortizacion'!AJ65,'Tabla de amortizacion'!AR65) -> 0.11 | AJ65: =AJ64 -> 0.11 | AK65: 0 | AL65: =AL64 -> 0.11 | AM65: 0.11 | AN65: 0.115 | AO65: 0.115 | AP65: 0 | AQ65: 0 | AR65: =IF(AND(Simulador!$T$68=2,Simulador!$T$62=1),AL65,IF(AND(Simulador!$T$68=2,Simulador!$T$62=2),AM65,IF(AND(Simulador!$T$68=2,Simulador!$T$62=3),AN65,AO65))) -> 0.115 | AT65: 0 | AU65: 0 | AV65: 0 | AW65: 0 | AX65: 0 | AZ65: =IFERROR(IF(Simulador!$U$29=1,0,IF($AT65<=0.01,0,$AT65*Simulador!$AA$43)),0)+IFERROR(IF(Simulador!$U$29=1,0,IF($AT65<=0.01,0,IF(Simulador!$D$22>0,Simulador!$D$22,Simulador!$O$24)*Simulador!$AA$44)),0) -> 0 | BB65: 0 | BC65: 0 | BE65: 0 | BF65: 51
A66: 52 | B66: 0 | D66: =IF(B66+F66-D65<=0,B66+F66,IF(AND(OR(Simulador!$U$39=2,Simulador!$U$39=7),J65=0),D65*(1+AA66),IF($AE$3=2,B66*AQ66,D65*(1+AA66)))) -> 0 | F66: 0 | H66: 0 | L66: =IF(Simulador!$T$41=1,0,J66*Simulador!$W$39*1.16) -> 0 | N66: =IF(B66-H66=0,0,N64) -> 0 | R66: 0 | T66: =IFERROR(IF(Simulador!$U$29=1,0,IF($B66<=0,0,$B66*Simulador!$AA$43)),0) -> 0 | V66: =IFERROR(IF(Simulador!$U$29=1,0,IF($B66<=0,0,IF(Simulador!$D$22>0,Simulador!$D$22,Simulador!$O$24)*Simulador!$AA$44)),0) -> 0 | Y66: 0 | AC66: 4 | AD66: 4 | AE66: 0 | AF66: 0 | AG66: 0 | AH66: 0 | AI66: =IF(Simulador!$T$68=1,'Tabla de amortizacion'!AJ66,'Tabla de amortizacion'!AR66) -> 0.11 | AJ66: 0.11 | AK66: 0 | AL66: 0.11 | AM66: 0.11 | AN66: 0.115 | AO66: 0.115 | AP66: 0 | AQ66: 0 | AR66: =IF(AND(Simulador!$T$68=2,Simulador!$T$62=1),AL66,IF(AND(Simulador!$T$68=2,Simulador!$T$62=2),AM66,IF(AND(Simulador!$T$68=2,Simulador!$T$62=3),AN66,AO66))) -> 0.115 | AT66: 0 | AU66: 0 | AV66: 0 | AW66: 0 | AX66: 0 | AZ66: =IFERROR(IF(Simulador!$U$29=1,0,IF($AT66<=0.01,0,$AT66*Simulador!$AA$43)),0)+IFERROR(IF(Simulador!$U$29=1,0,IF($AT66<=0.01,0,IF(Simulador!$D$22>0,Simulador!$D$22,Simulador!$O$24)*Simulador!$AA$44)),0) -> 0 | BB66: 0 | BC66: 0 | BE66: 0 | BF66: 52
A67: 53 | B67: 0 | D67: =IF(B67+F67-D66<=0,B67+F67,IF(AND(OR(Simulador!$U$39=2,Simulador!$U$39=7),J66=0),D66*(1+AA67),IF($AE$3=2,B67*AQ67,D66*(1+AA67)))) -> 0 | F67: 0 | H67: 0 | L67: =IF(Simulador!$T$41=1,0,J67*Simulador!$W$39*1.16) -> 0 | R67: 0 | T67: =IFERROR(IF(Simulador!$U$29=1,0,IF($B67<=0,0,$B67*Simulador!$AA$43)),0) -> 0 | V67: =IFERROR(IF(Simulador!$U$29=1,0,IF($B67<=0,0,IF(Simulador!$D$22>0,Simulador!$D$22,Simulador!$O$24)*Simulador!$AA$44)),0) -> 0 | Y67: 0 | AC67: 4 | AD67: 5 | AE67: 0 | AF67: 0 | AG67: 0 | AH67: 0 | AI67: =IF(Simulador!$T$68=1,'Tabla de amortizacion'!AJ67,'Tabla de amortizacion'!AR67) -> 0.11 | AJ67: 0.11 | AK67: 0 | AL67: 0.11 | AM67: 0.11 | AN67: 0.115 | AO67: 0.115 | AP67: 0 | AQ67: 0 | AR67: =IF(AND(Simulador!$T$68=2,Simulador!$T$62=1),AL67,IF(AND(Simulador!$T$68=2,Simulador!$T$62=2),AM67,IF(AND(Simulador!$T$68=2,Simulador!$T$62=3),AN67,AO67))) -> 0.115 | AT67: 0 | AU67: 0 | AV67: 0 | AW67: 0 | AX67: 0 | AZ67: =IFERROR(IF(Simulador!$U$29=1,0,IF($AT67<=0.01,0,$AT67*Simulador!$AA$43)),0)+IFERROR(IF(Simulador!$U$29=1,0,IF($AT67<=0.01,0,IF(Simulador!$D$22>0,Simulador!$D$22,Simulador!$O$24)*Simulador!$AA$44)),0) -> 0 | BB67: 0 | BC67: 0 | BE67: 0 | BF67: 53
A68: 54 | B68: 0 | D68: =IF(B68+F68-D67<=0,B68+F68,IF(AND(OR(Simulador!$U$39=2,Simulador!$U$39=7),J67=0),D67*(1+AA68),IF($AE$3=2,B68*AQ68,D67*(1+AA68)))) -> 0 | F68: 0 | H68: 0 | L68: =IF(Simulador!$T$41=1,0,J68*Simulador!$W$39*1.16) -> 0 | N68: =IF(B68-H68=0,0,N66) -> 0 | R68: 0 | T68: =IFERROR(IF(Simulador!$U$29=1,0,IF($B68<=0,0,$B68*Simulador!$AA$43)),0) -> 0 | V68: =IFERROR(IF(Simulador!$U$29=1,0,IF($B68<=0,0,IF(Simulador!$D$22>0,Simulador!$D$22,Simulador!$O$24)*Simulador!$AA$44)),0) -> 0 | Y68: 0 | AC68: 4 | AD68: 6 | AE68: 0 | AF68: 0 | AG68: 0 | AH68: 0 | AI68: =IF(Simulador!$T$68=1,'Tabla de amortizacion'!AJ68,'Tabla de amortizacion'!AR68) -> 0.11 | AJ68: 0.11 | AK68: 0 | AL68: 0.11 | AM68: 0.11 | AN68: 0.115 | AO68: 0.115 | AP68: 0 | AQ68: 0 | AR68: =IF(AND(Simulador!$T$68=2,Simulador!$T$62=1),AL68,IF(AND(Simulador!$T$68=2,Simulador!$T$62=2),AM68,IF(AND(Simulador!$T$68=2,Simulador!$T$62=3),AN68,AO68))) -> 0.115 | AT68: 0 | AU68: 0 | AV68: 0 | AW68: 0 | AX68: 0 | AZ68: =IFERROR(IF(Simulador!$U$29=1,0,IF($AT68<=0.01,0,$AT68*Simulador!$AA$43)),0)+IFERROR(IF(Simulador!$U$29=1,0,IF($AT68<=0.01,0,IF(Simulador!$D$22>0,Simulador!$D$22,Simulador!$O$24)*Simulador!$AA$44)),0) -> 0 | BB68: 0 | BC68: 0 | BE68: 0 | BF68: 54
A69: 55 | B69: 0 | D69: =IF(B69+F69-D68<=0,B69+F69,IF(AND(OR(Simulador!$U$39=2,Simulador!$U$39=7),J68=0),D68*(1+AA69),IF($AE$3=2,B69*AQ69,D68*(1+AA69)))) -> 0 | F69: 0 | H69: 0 | L69: =IF(Simulador!$T$41=1,0,J69*Simulador!$W$39*1.16) -> 0 | R69: 0 | T69: =IFERROR(IF(Simulador!$U$29=1,0,IF($B69<=0,0,$B69*Simulador!$AA$43)),0) -> 0 | V69: =IFERROR(IF(Simulador!$U$29=1,0,IF($B69<=0,0,IF(Simulador!$D$22>0,Simulador!$D$22,Simulador!$O$24)*Simulador!$AA$44)),0) -> 0 | Y69: 0 | AC69: 4 | AD69: 7 | AE69: 0 | AF69: 0 | AG69: 0 | AH69: 0 | AI69: =IF(Simulador!$T$68=1,'Tabla de amortizacion'!AJ69,'Tabla de amortizacion'!AR69) -> 0.11 | AJ69: 0.11 | AK69: 0 | AL69: 0.11 | AM69: 0.11 | AN69: 0.115 | AO69: 0.115 | AP69: 0 | AQ69: 0 | AR69: =IF(AND(Simulador!$T$68=2,Simulador!$T$62=1),AL69,IF(AND(Simulador!$T$68=2,Simulador!$T$62=2),AM69,IF(AND(Simulador!$T$68=2,Simulador!$T$62=3),AN69,AO69))) -> 0.115 | AT69: 0 | AU69: 0 | AV69: 0 | AW69: 0 | AX69: 0 | AZ69: =IFERROR(IF(Simulador!$U$29=1,0,IF($AT69<=0.01,0,$AT69*Simulador!$AA$43)),0)+IFERROR(IF(Simulador!$U$29=1,0,IF($AT69<=0.01,0,IF(Simulador!$D$22>0,Simulador!$D$22,Simulador!$O$24)*Simulador!$AA$44)),0) -> 0 | BB69: 0 | BC69: 0 | BE69: 0 | BF69: 55
A70: 56 | B70: 0 | D70: =IF(B70+F70-D69<=0,B70+F70,IF(AND(OR(Simulador!$U$39=2,Simulador!$U$39=7),J69=0),D69*(1+AA70),IF($AE$3=2,B70*AQ70,D69*(1+AA70)))) -> 0 | F70: 0 | H70: 0 | L70: =IF(Simulador!$T$41=1,0,J70*Simulador!$W$39*1.16) -> 0 | N70: =IF(B70-H70=0,0,N68) -> 0 | R70: 0 | T70: =IFERROR(IF(Simulador!$U$29=1,0,IF($B70<=0,0,$B70*Simulador!$AA$43)),0) -> 0 | V70: =IFERROR(IF(Simulador!$U$29=1,0,IF($B70<=0,0,IF(Simulador!$D$22>0,Simulador!$D$22,Simulador!$O$24)*Simulador!$AA$44)),0) -> 0 | Y70: 0 | AC70: 4 | AD70: 8 | AE70: 0 | AF70: 0 | AG70: 0 | AH70: 0 | AI70: =IF(Simulador!$T$68=1,'Tabla de amortizacion'!AJ70,'Tabla de amortizacion'!AR70) -> 0.11 | AJ70: 0.11 | AK70: 0 | AL70: 0.11 | AM70: 0.11 | AN70: 0.115 | AO70: 0.115 | AP70: 0 | AQ70: 0 | AR70: =IF(AND(Simulador!$T$68=2,Simulador!$T$62=1),AL70,IF(AND(Simulador!$T$68=2,Simulador!$T$62=2),AM70,IF(AND(Simulador!$T$68=2,Simulador!$T$62=3),AN70,AO70))) -> 0.115 | AT70: 0 | AU70: 0 | AV70: 0 | AW70: 0 | AX70: 0 | AZ70: =IFERROR(IF(Simulador!$U$29=1,0,IF($AT70<=0.01,0,$AT70*Simulador!$AA$43)),0)+IFERROR(IF(Simulador!$U$29=1,0,IF($AT70<=0.01,0,IF(Simulador!$D$22>0,Simulador!$D$22,Simulador!$O$24)*Simulador!$AA$44)),0) -> 0 | BB70: 0 | BC70: 0 | BE70: 0 | BF70: 56
A71: 57 | B71: 0 | D71: =IF(B71+F71-D70<=0,B71+F71,IF(AND(OR(Simulador!$U$39=2,Simulador!$U$39=7),J70=0),D70*(1+AA71),IF($AE$3=2,B71*AQ71,D70*(1+AA71)))) -> 0 | F71: 0 | H71: 0 | L71: =IF(Simulador!$T$41=1,0,J71*Simulador!$W$39*1.16) -> 0 | R71: 0 | T71: =IFERROR(IF(Simulador!$U$29=1,0,IF($B71<=0,0,$B71*Simulador!$AA$43)),0) -> 0 | V71: =IFERROR(IF(Simulador!$U$29=1,0,IF($B71<=0,0,IF(Simulador!$D$22>0,Simulador!$D$22,Simulador!$O$24)*Simulador!$AA$44)),0) -> 0 | Y71: 0 | AC71: 4 | AD71: 9 | AE71: 0 | AF71: 0 | AG71: 0 | AH71: 0 | AI71: =IF(Simulador!$T$68=1,'Tabla de amortizacion'!AJ71,'Tabla de amortizacion'!AR71) -> 0.11 | AJ71: 0.11 | AK71: 0 | AL71: 0.11 | AM71: 0.11 | AN71: 0.115 | AO71: 0.115 | AP71: 0 | AQ71: 0 | AR71: =IF(AND(Simulador!$T$68=2,Simulador!$T$62=1),AL71,IF(AND(Simulador!$T$68=2,Simulador!$T$62=2),AM71,IF(AND(Simulador!$T$68=2,Simulador!$T$62=3),AN71,AO71))) -> 0.115 | AT71: 0 | AU71: 0 | AV71: 0 | AW71: 0 | AX71: 0 | AZ71: =IFERROR(IF(Simulador!$U$29=1,0,IF($AT71<=0.01,0,$AT71*Simulador!$AA$43)),0)+IFERROR(IF(Simulador!$U$29=1,0,IF($AT71<=0.01,0,IF(Simulador!$D$22>0,Simulador!$D$22,Simulador!$O$24)*Simulador!$AA$44)),0) -> 0 | BB71: 0 | BC71: 0 | BE71: 0 | BF71: 57
A72: 58 | B72: 0 | D72: =IF(B72+F72-D71<=0,B72+F72,IF(AND(OR(Simulador!$U$39=2,Simulador!$U$39=7),J71=0),D71*(1+AA72),IF($AE$3=2,B72*AQ72,D71*(1+AA72)))) -> 0 | F72: 0 | H72: 0 | L72: =IF(Simulador!$T$41=1,0,J72*Simulador!$W$39*1.16) -> 0 | N72: =IF(B72-H72=0,0,N70) -> 0 | R72: 0 | T72: =IFERROR(IF(Simulador!$U$29=1,0,IF($B72<=0,0,$B72*Simulador!$AA$43)),0) -> 0 | V72: =IFERROR(IF(Simulador!$U$29=1,0,IF($B72<=0,0,IF(Simulador!$D$22>0,Simulador!$D$22,Simulador!$O$24)*Simulador!$AA$44)),0) -> 0 | Y72: 0 | AC72: 4 | AD72: 10 | AE72: 0 | AF72: 0 | AG72: 0 | AH72: 0 | AI72: =IF(Simulador!$T$68=1,'Tabla de amortizacion'!AJ72,'Tabla de amortizacion'!AR72) -> 0.11 | AJ72: 0.11 | AK72: 0 | AL72: 0.11 | AM72: 0.11 | AN72: 0.115 | AO72: 0.115 | AP72: 0 | AQ72: 0 | AR72: =IF(AND(Simulador!$T$68=2,Simulador!$T$62=1),AL72,IF(AND(Simulador!$T$68=2,Simulador!$T$62=2),AM72,IF(AND(Simulador!$T$68=2,Simulador!$T$62=3),AN72,AO72))) -> 0.115 | AT72: 0 | AU72: 0 | AV72: 0 | AW72: 0 | AX72: 0 | AZ72: =IFERROR(IF(Simulador!$U$29=1,0,IF($AT72<=0.01,0,$AT72*Simulador!$AA$43)),0)+IFERROR(IF(Simulador!$U$29=1,0,IF($AT72<=0.01,0,IF(Simulador!$D$22>0,Simulador!$D$22,Simulador!$O$24)*Simulador!$AA$44)),0) -> 0 | BB72: 0 | BC72: 0 | BE72: 0 | BF72: 58
A73: 59 | B73: 0 | D73: =IF(B73+F73-D72<=0,B73+F73,IF(AND(OR(Simulador!$U$39=2,Simulador!$U$39=7),J72=0),D72*(1+AA73),IF($AE$3=2,B73*AQ73,D72*(1+AA73)))) -> 0 | F73: 0 | H73: 0 | L73: =IF(Simulador!$T$41=1,0,J73*Simulador!$W$39*1.16) -> 0 | R73: 0 | T73: =IFERROR(IF(Simulador!$U$29=1,0,IF($B73<=0,0,$B73*Simulador!$AA$43)),0) -> 0 | V73: =IFERROR(IF(Simulador!$U$29=1,0,IF($B73<=0,0,IF(Simulador!$D$22>0,Simulador!$D$22,Simulador!$O$24)*Simulador!$AA$44)),0) -> 0 | Y73: 0 | AC73: 4 | AD73: 11 | AE73: 0 | AF73: 0 | AG73: 0 | AH73: 0 | AI73: =IF(Simulador!$T$68=1,'Tabla de amortizacion'!AJ73,'Tabla de amortizacion'!AR73) -> 0.11 | AJ73: 0.11 | AK73: 0 | AL73: 0.11 | AM73: 0.11 | AN73: 0.115 | AO73: 0.115 | AP73: 0 | AQ73: 0 | AR73: =IF(AND(Simulador!$T$68=2,Simulador!$T$62=1),AL73,IF(AND(Simulador!$T$68=2,Simulador!$T$62=2),AM73,IF(AND(Simulador!$T$68=2,Simulador!$T$62=3),AN73,AO73))) -> 0.115 | AT73: 0 | AU73: 0 | AV73: 0 | AW73: 0 | AX73: 0 | AZ73: =IFERROR(IF(Simulador!$U$29=1,0,IF($AT73<=0.01,0,$AT73*Simulador!$AA$43)),0)+IFERROR(IF(Simulador!$U$29=1,0,IF($AT73<=0.01,0,IF(Simulador!$D$22>0,Simulador!$D$22,Simulador!$O$24)*Simulador!$AA$44)),0) -> 0 | BB73: 0 | BC73: 0 | BE73: 0 | BF73: 59
A74: 60 | B74: 0 | D74: =IF(B74+F74-D73<=0,B74+F74,IF(AND(OR(Simulador!$U$39=2,Simulador!$U$39=7),J73=0),D73*(1+AA74),IF($AE$3=2,B74*AQ74,D73*(1+AA74)))) -> 0 | F74: 0 | H74: 0 | L74: =IF(Simulador!$T$41=1,0,J74*Simulador!$W$39*1.16) -> 0 | N74: =IF(B74-H74=0,0,N72) -> 0 | R74: 0 | T74: =IFERROR(IF(Simulador!$U$29=1,0,IF($B74<=0,0,$B74*Simulador!$AA$43)),0) -> 0 | V74: =IFERROR(IF(Simulador!$U$29=1,0,IF($B74<=0,0,IF(Simulador!$D$22>0,Simulador!$D$22,Simulador!$O$24)*Simulador!$AA$44)),0) -> 0 | Y74: 0 | AC74: 5 | AD74: 0 | AE74: 0 | AF74: 0 | AG74: 0 | AH74: 0 | AI74: =IF(Simulador!$T$68=1,'Tabla de amortizacion'!AJ74,'Tabla de amortizacion'!AR74) -> 0.11 | AJ74: 0.11 | AK74: 0 | AL74: =AL73 -> 0.11 | AM74: =AM73 -> 0.11 | AN74: =AN73 -> 0.115 | AO74: =AO73 -> 0.115 | AP74: 0 | AQ74: 0 | AR74: =IF(AND(Simulador!$T$68=2,Simulador!$T$62=1),AL74,IF(AND(Simulador!$T$68=2,Simulador!$T$62=2),AM74,IF(AND(Simulador!$T$68=2,Simulador!$T$62=3),AN74,AO74))) -> 0.115 | AT74: 0 | AU74: 0 | AV74: 0 | AW74: 0 | AX74: 0 | AZ74: =IFERROR(IF(Simulador!$U$29=1,0,IF($AT74<=0.01,0,$AT74*Simulador!$AA$43)),0)+IFERROR(IF(Simulador!$U$29=1,0,IF($AT74<=0.01,0,IF(Simulador!$D$22>0,Simulador!$D$22,Simulador!$O$24)*Simulador!$AA$44)),0) -> 0 | BB74: 0 | BC74: 0 | BE74: 0 | BF74: 60
A75: 61 | B75: 0 | D75: =IF(B75+F75-D74<=0,B75+F75,IF(AND(OR(Simulador!$U$39=2,Simulador!$U$39=7),J74=0),D74*(1+AA75),IF($AE$3=2,B75*AQ75,D74*(1+AA75)))) -> 0 | F75: 0 | H75: 0 | L75: =IF(Simulador!$T$41=1,0,J75*Simulador!$W$39*1.16) -> 0 | R75: 0 | T75: =IFERROR(IF(Simulador!$U$29=1,0,IF($B75<=0,0,$B75*Simulador!$AA$43)),0) -> 0 | V75: =IFERROR(IF(Simulador!$U$29=1,0,IF($B75<=0,0,IF(Simulador!$D$22>0,Simulador!$D$22,Simulador!$O$24)*Simulador!$AA$44)),0) -> 0 | Y75: 0 | AA75: =IF(B75<=0,0,Simulador!$I$43) -> 0 | AC75: 5 | AD75: 1 | AE75: 0 | AF75: 0 | AG75: 0 | AH75: 0 | AI75: =IF(Simulador!$T$68=1,'Tabla de amortizacion'!AJ75,'Tabla de amortizacion'!AR75) -> 0.1075 | AJ75: =IF(AJ74=$AM$4,AJ74,IF(AJ74-0.25%<=$AM$4,$AM$4,AJ74-0.25%)) -> 0.1075 | AK75: 0 | AL75: 0.11 | AM75: 0.11 | AN75: 0.115 | AO75: 0.115 | AP75: 0 | AQ75: 0 | AR75: =IF(AND(Simulador!$T$68=2,Simulador!$T$62=1),AL75,IF(AND(Simulador!$T$68=2,Simulador!$T$62=2),AM75,IF(AND(Simulador!$T$68=2,Simulador!$T$62=3),AN75,AO75))) -> 0.115 | AT75: 0 | AU75: 0 | AV75: 0 | AW75: 0 | AX75: 0 | AZ75: =IFERROR(IF(Simulador!$U$29=1,0,IF($AT75<=0.01,0,$AT75*Simulador!$AA$43)),0)+IFERROR(IF(Simulador!$U$29=1,0,IF($AT75<=0.01,0,IF(Simulador!$D$22>0,Simulador!$D$22,Simulador!$O$24)*Simulador!$AA$44)),0) -> 0 | BA75: =IF(AT75<=0,0,$BA$27) -> 0 | BB75: 0 | BC75: 0 | BE75: 0 | BF75: 61
A76: 62 | B76: 0 | D76: =IF(B76+F76-D75<=0,B76+F76,IF(AND(OR(Simulador!$U$39=2,Simulador!$U$39=7),J75=0),D75*(1+AA76),IF($AE$3=2,B76*AQ76,D75*(1+AA76)))) -> 0 | F76: 0 | H76: 0 | L76: =IF(Simulador!$T$41=1,0,J76*Simulador!$W$39*1.16) -> 0 | N76: =IF(B76-H76=0,0,N74*(1+(Simulador!$AF$77))) -> 0 | R76: 0 | T76: =IFERROR(IF(Simulador!$U$29=1,0,IF($B76<=0,0,$B76*Simulador!$AA$43)),0) -> 0 | V76: =IFERROR(IF(Simulador!$U$29=1,0,IF($B76<=0,0,IF(Simulador!$D$22>0,Simulador!$D$22,Simulador!$O$24)*Simulador!$AA$44)),0) -> 0 | Y76: 0 | AC76: 5 | AD76: 2 | AE76: 0 | AF76: 0 | AG76: 0 | AH76: 0 | AI76: =IF(Simulador!$T$68=1,'Tabla de amortizacion'!AJ76,'Tabla de amortizacion'!AR76) -> 0.1075 | AJ76: =AJ75 -> 0.1075 | AK76: 0 | AL76: 0.11 | AM76: 0.11 | AN76: 0.115 | AO76: 0.115 | AP76: 0 | AQ76: 0 | AR76: =IF(AND(Simulador!$T$68=2,Simulador!$T$62=1),AL76,IF(AND(Simulador!$T$68=2,Simulador!$T$62=2),AM76,IF(AND(Simulador!$T$68=2,Simulador!$T$62=3),AN76,AO76))) -> 0.115 | AT76: 0 | AU76: 0 | AV76: 0 | AW76: 0 | AX76: 0 | AZ76: =IFERROR(IF(Simulador!$U$29=1,0,IF($AT76<=0.01,0,$AT76*Simulador!$AA$43)),0)+IFERROR(IF(Simulador!$U$29=1,0,IF($AT76<=0.01,0,IF(Simulador!$D$22>0,Simulador!$D$22,Simulador!$O$24)*Simulador!$AA$44)),0) -> 0 | BB76: 0 | BC76: 0 | BE76: 0 | BF76: 62
A77: 63 | B77: 0 | D77: =IF(B77+F77-D76<=0,B77+F77,IF(AND(OR(Simulador!$U$39=2,Simulador!$U$39=7),J76=0),D76*(1+AA77),IF($AE$3=2,B77*AQ77,D76*(1+AA77)))) -> 0 | F77: 0 | H77: 0 | L77: =IF(Simulador!$T$41=1,0,J77*Simulador!$W$39*1.16) -> 0 | R77: 0 | T77: =IFERROR(IF(Simulador!$U$29=1,0,IF($B77<=0,0,$B77*Simulador!$AA$43)),0) -> 0 | V77: =IFERROR(IF(Simulador!$U$29=1,0,IF($B77<=0,0,IF(Simulador!$D$22>0,Simulador!$D$22,Simulador!$O$24)*Simulador!$AA$44)),0) -> 0 | Y77: 0 | AC77: 5 | AD77: 3 | AE77: 0 | AF77: 0 | AG77: 0 | AH77: 0 | AI77: =IF(Simulador!$T$68=1,'Tabla de amortizacion'!AJ77,'Tabla de amortizacion'!AR77) -> 0.1075 | AJ77: =AJ76 -> 0.1075 | AK77: 0 | AL77: 0.11 | AM77: 0.11 | AN77: 0.115 | AO77: 0.115 | AP77: 0 | AQ77: 0 | AR77: =IF(AND(Simulador!$T$68=2,Simulador!$T$62=1),AL77,IF(AND(Simulador!$T$68=2,Simulador!$T$62=2),AM77,IF(AND(Simulador!$T$68=2,Simulador!$T$62=3),AN77,AO77))) -> 0.115 | AT77: 0 | AU77: 0 | AV77: 0 | AW77: 0 | AX77: 0 | AZ77: =IFERROR(IF(Simulador!$U$29=1,0,IF($AT77<=0.01,0,$AT77*Simulador!$AA$43)),0)+IFERROR(IF(Simulador!$U$29=1,0,IF($AT77<=0.01,0,IF(Simulador!$D$22>0,Simulador!$D$22,Simulador!$O$24)*Simulador!$AA$44)),0) -> 0 | BB77: 0 | BC77: 0 | BE77: 0 | BF77: 63
A78: 64 | B78: 0 | D78: =IF(B78+F78-D77<=0,B78+F78,IF(AND(OR(Simulador!$U$39=2,Simulador!$U$39=7),J77=0),D77*(1+AA78),IF($AE$3=2,B78*AQ78,D77*(1+AA78)))) -> 0 | F78: 0 | H78: 0 | L78: =IF(Simulador!$T$41=1,0,J78*Simulador!$W$39*1.16) -> 0 | N78: =IF(B78-H78=0,0,N76) -> 0 | R78: 0 | T78: =IFERROR(IF(Simulador!$U$29=1,0,IF($B78<=0,0,$B78*Simulador!$AA$43)),0) -> 0 | V78: =IFERROR(IF(Simulador!$U$29=1,0,IF($B78<=0,0,IF(Simulador!$D$22>0,Simulador!$D$22,Simulador!$O$24)*Simulador!$AA$44)),0) -> 0 | Y78: 0 | AC78: 5 | AD78: 4 | AE78: 0 | AF78: 0 | AG78: 0 | AH78: 0 | AI78: =IF(Simulador!$T$68=1,'Tabla de amortizacion'!AJ78,'Tabla de amortizacion'!AR78) -> 0.1075 | AJ78: 0.1075 | AK78: 0 | AL78: 0.11 | AM78: 0.11 | AN78: 0.115 | AO78: 0.115 | AP78: 0 | AQ78: 0 | AR78: =IF(AND(Simulador!$T$68=2,Simulador!$T$62=1),AL78,IF(AND(Simulador!$T$68=2,Simulador!$T$62=2),AM78,IF(AND(Simulador!$T$68=2,Simulador!$T$62=3),AN78,AO78))) -> 0.115 | AT78: 0 | AU78: 0 | AV78: 0 | AW78: 0 | AX78: 0 | AZ78: =IFERROR(IF(Simulador!$U$29=1,0,IF($AT78<=0.01,0,$AT78*Simulador!$AA$43)),0)+IFERROR(IF(Simulador!$U$29=1,0,IF($AT78<=0.01,0,IF(Simulador!$D$22>0,Simulador!$D$22,Simulador!$O$24)*Simulador!$AA$44)),0) -> 0 | BB78: 0 | BC78: 0 | BE78: 0 | BF78: 64
A79: 65 | B79: 0 | D79: =IF(B79+F79-D78<=0,B79+F79,IF(AND(OR(Simulador!$U$39=2,Simulador!$U$39=7),J78=0),D78*(1+AA79),IF($AE$3=2,B79*AQ79,D78*(1+AA79)))) -> 0 | F79: =IFERROR(IF(B79=0,0,P79/360*BE79*B79),0) -> 0 | H79: 0 | L79: =IF(Simulador!$T$41=1,0,J79*Simulador!$W$39*1.16) -> 0 | P79: =IF(B79=0,"",AI79) ->  | R79: 0 | T79: =IFERROR(IF(Simulador!$U$29=1,0,IF($B79<=0,0,$B79*Simulador!$AA$43)),0) -> 0 | V79: =IFERROR(IF(Simulador!$U$29=1,0,IF($B79<=0,0,IF(Simulador!$D$22>0,Simulador!$D$22,Simulador!$O$24)*Simulador!$AA$44)),0) -> 0 | Y79: =IF(B79<=0,0,D79+J79+T79+V79) -> 0 | AC79: 5 | AD79: 5 | AE79: 0 | AF79: 0 | AG79: 0 | AH79: 0 | AI79: =IF(Simulador!$T$68=1,'Tabla de amortizacion'!AJ79,'Tabla de amortizacion'!AR79) -> 0.1075 | AJ79: 0.1075 | AK79: 0 | AL79: 0.11 | AM79: 0.11 | AN79: 0.115 | AO79: 0.115 | AP79: 0 | AQ79: 0 | AR79: =IF(AND(Simulador!$T$68=2,Simulador!$T$62=1),AL79,IF(AND(Simulador!$T$68=2,Simulador!$T$62=2),AM79,IF(AND(Simulador!$T$68=2,Simulador!$T$62=3),AN79,AO79))) -> 0.115 | AT79: 0 | AU79: 0 | AV79: =IFERROR((AY79/360*BE79*AT79),0) -> 0 | AW79: =+AU79-AV79 -> 0 | AX79: 0 | AY79: =IF(AT79=0,"",AI79) ->  | AZ79: =IFERROR(IF(Simulador!$U$29=1,0,IF($AT79<=0.01,0,$AT79*Simulador!$AA$43)),0)+IFERROR(IF(Simulador!$U$29=1,0,IF($AT79<=0.01,0,IF(Simulador!$D$22>0,Simulador!$D$22,Simulador!$O$24)*Simulador!$AA$44)),0) -> 0 | BB79: =AV79+AW79+AZ79 -> 0 | BC79: 0 | BE79: 0 | BF79: 65
A80: 66 | B80: 0 | D80: =IF(B80+F80-D79<=0,B80+F80,IF(AND(OR(Simulador!$U$39=2,Simulador!$U$39=7),J79=0),D79*(1+AA80),IF($AE$3=2,B80*AQ80,D79*(1+AA80)))) -> 0 | F80: 0 | H80: 0 | L80: =IF(Simulador!$T$41=1,0,J80*Simulador!$W$39*1.16) -> 0 | N80: =IF(B80-H80=0,0,N78) -> 0 | R80: =B80-H80-J80+L80-N80 -> 0 | T80: =IFERROR(IF(Simulador!$U$29=1,0,IF($B80<=0,0,$B80*Simulador!$AA$43)),0) -> 0 | V80: =IFERROR(IF(Simulador!$U$29=1,0,IF($B80<=0,0,IF(Simulador!$D$22>0,Simulador!$D$22,Simulador!$O$24)*Simulador!$AA$44)),0) -> 0 | Y80: 0 | AC80: 5 | AD80: 6 | AE80: =IF(R80<=0,IF(R79>0,A80,0),0) -> 0 | AF80: =IF(AE80>0,AC80,0) -> 0 | AG80: =IF(AE80>0,AD80,0) -> 0 | AH80: =Y80 -> 0 | AI80: =IF(Simulador!$T$68=1,'Tabla de amortizacion'!AJ80,'Tabla de amortizacion'!AR80) -> 0.1075 | AJ80: 0.1075 | AK80: =AK79*(1+AA80) -> 0 | AL80: 0.11 | AM80: 0.11 | AN80: 0.115 | AO80: 0.115 | AP80: 0 | AQ80: =IFERROR((AU80/AT80),0) -> 0 | AR80: =IF(AND(Simulador!$T$68=2,Simulador!$T$62=1),AL80,IF(AND(Simulador!$T$68=2,Simulador!$T$62=2),AM80,IF(AND(Simulador!$T$68=2,Simulador!$T$62=3),AN80,AO80))) -> 0.115 | AT80: 0 | AU80: =IFERROR((IF(AT80+AV80-AU79<0, AT80+AV80, AU79*(1+BA80))),0) -> 0 | AV80: 0 | AW80: 0 | AX80: =+AT80-AW80 -> 0 | AZ80: =IFERROR(IF(Simulador!$U$29=1,0,IF($AT80<=0.01,0,$AT80*Simulador!$AA$43)),0)+IFERROR(IF(Simulador!$U$29=1,0,IF($AT80<=0.01,0,IF(Simulador!$D$22>0,Simulador!$D$22,Simulador!$O$24)*Simulador!$AA$44)),0) -> 0 | BB80: 0 | BC80: =IFERROR(IF(AU80<=0.01,0,BC79-1),0) -> 0 | BD80: =IF(AT80=0,"",DATE(YEAR(BD79),MONTH(BD79)+1,1)) ->  | BE80: =IFERROR(DAY(DATE(YEAR(BD80),MONTH(BD80)+1,0)),0) -> 0 | BF80: 66
A81: 67 | B81: =IF(R80<=0,0,R80) -> 0 | D81: =IF(B81+F81-D80<=0,B81+F81,IF(AND(OR(Simulador!$U$39=2,Simulador!$U$39=7),J80=0),D80*(1+AA81),IF($AE$3=2,B81*AQ81,D80*(1+AA81)))) -> 0 | F81: 0 | H81: =D81-F81 -> 0 | L81: =IF(Simulador!$T$41=1,0,J81*Simulador!$W$39*1.16) -> 0 | R81: 0 | T81: =IFERROR(IF(Simulador!$U$29=1,0,IF($B81<=0,0,$B81*Simulador!$AA$43)),0) -> 0 | V81: =IFERROR(IF(Simulador!$U$29=1,0,IF($B81<=0,0,IF(Simulador!$D$22>0,Simulador!$D$22,Simulador!$O$24)*Simulador!$AA$44)),0) -> 0 | Y81: 0 | AC81: 5 | AD81: 7 | AE81: 0 | AF81: 0 | AG81: 0 | AH81: 0 | AI81: =IF(Simulador!$T$68=1,'Tabla de amortizacion'!AJ81,'Tabla de amortizacion'!AR81) -> 0.1075 | AJ81: 0.1075 | AK81: 0 | AL81: 0.11 | AM81: 0.11 | AN81: 0.115 | AO81: 0.115 | AP81: 0 | AQ81: 0 | AR81: =IF(AND(Simulador!$T$68=2,Simulador!$T$62=1),AL81,IF(AND(Simulador!$T$68=2,Simulador!$T$62=2),AM81,IF(AND(Simulador!$T$68=2,Simulador!$T$62=3),AN81,AO81))) -> 0.115 | AT81: 0 | AU81: 0 | AV81: 0 | AW81: 0 | AX81: 0 | AZ81: =IFERROR(IF(Simulador!$U$29=1,0,IF($AT81<=0.01,0,$AT81*Simulador!$AA$43)),0)+IFERROR(IF(Simulador!$U$29=1,0,IF($AT81<=0.01,0,IF(Simulador!$D$22>0,Simulador!$D$22,Simulador!$O$24)*Simulador!$AA$44)),0) -> 0 | BB81: 0 | BC81: 0 | BE81: 0 | BF81: 67
A82: 68 | B82: 0 | D82: =IF(B82+F82-D81<=0,B82+F82,IF(AND(OR(Simulador!$U$39=2,Simulador!$U$39=7),J81=0),D81*(1+AA82),IF($AE$3=2,B82*AQ82,D81*(1+AA82)))) -> 0 | F82: 0 | H82: 0 | L82: =IF(Simulador!$T$41=1,0,J82*Simulador!$W$39*1.16) -> 0 | N82: =IF(B82-H82=0,0,N80) -> 0 | R82: 0 | T82: =IFERROR(IF(Simulador!$U$29=1,0,IF($B82<=0,0,$B82*Simulador!$AA$43)),0) -> 0 | V82: =IFERROR(IF(Simulador!$U$29=1,0,IF($B82<=0,0,IF(Simulador!$D$22>0,Simulador!$D$22,Simulador!$O$24)*Simulador!$AA$44)),0) -> 0 | Y82: 0 | AC82: 5 | AD82: 8 | AE82: 0 | AF82: 0 | AG82: 0 | AH82: 0 | AI82: =IF(Simulador!$T$68=1,'Tabla de amortizacion'!AJ82,'Tabla de amortizacion'!AR82) -> 0.1075 | AJ82: 0.1075 | AK82: 0 | AL82: 0.11 | AM82: 0.11 | AN82: 0.115 | AO82: 0.115 | AP82: 0 | AQ82: 0 | AR82: =IF(AND(Simulador!$T$68=2,Simulador!$T$62=1),AL82,IF(AND(Simulador!$T$68=2,Simulador!$T$62=2),AM82,IF(AND(Simulador!$T$68=2,Simulador!$T$62=3),AN82,AO82))) -> 0.115 | AT82: 0 | AU82: 0 | AV82: 0 | AW82: 0 | AX82: 0 | AZ82: =IFERROR(IF(Simulador!$U$29=1,0,IF($AT82<=0.01,0,$AT82*Simulador!$AA$43)),0)+IFERROR(IF(Simulador!$U$29=1,0,IF($AT82<=0.01,0,IF(Simulador!$D$22>0,Simulador!$D$22,Simulador!$O$24)*Simulador!$AA$44)),0) -> 0 | BB82: 0 | BC82: 0 | BE82: 0 | BF82: 68
A83: 69 | B83: 0 | D83: =IF(B83+F83-D82<=0,B83+F83,IF(AND(OR(Simulador!$U$39=2,Simulador!$U$39=7),J82=0),D82*(1+AA83),IF($AE$3=2,B83*AQ83,D82*(1+AA83)))) -> 0 | F83: 0 | H83: 0 | L83: =IF(Simulador!$T$41=1,0,J83*Simulador!$W$39*1.16) -> 0 | R83: 0 | T83: =IFERROR(IF(Simulador!$U$29=1,0,IF($B83<=0,0,$B83*Simulador!$AA$43)),0) -> 0 | V83: =IFERROR(IF(Simulador!$U$29=1,0,IF($B83<=0,0,IF(Simulador!$D$22>0,Simulador!$D$22,Simulador!$O$24)*Simulador!$AA$44)),0) -> 0 | Y83: 0 | AC83: 5 | AD83: 9 | AE83: 0 | AF83: 0 | AG83: 0 | AH83: 0 | AI83: =IF(Simulador!$T$68=1,'Tabla de amortizacion'!AJ83,'Tabla de amortizacion'!AR83) -> 0.1075 | AJ83: 0.1075 | AK83: 0 | AL83: 0.11 | AM83: 0.11 | AN83: 0.115 | AO83: 0.115 | AP83: 0 | AQ83: 0 | AR83: =IF(AND(Simulador!$T$68=2,Simulador!$T$62=1),AL83,IF(AND(Simulador!$T$68=2,Simulador!$T$62=2),AM83,IF(AND(Simulador!$T$68=2,Simulador!$T$62=3),AN83,AO83))) -> 0.115 | AT83: 0 | AU83: 0 | AV83: 0 | AW83: 0 | AX83: 0 | AZ83: =IFERROR(IF(Simulador!$U$29=1,0,IF($AT83<=0.01,0,$AT83*Simulador!$AA$43)),0)+IFERROR(IF(Simulador!$U$29=1,0,IF($AT83<=0.01,0,IF(Simulador!$D$22>0,Simulador!$D$22,Simulador!$O$24)*Simulador!$AA$44)),0) -> 0 | BB83: 0 | BC83: 0 | BE83: 0 | BF83: 69
A84: 70 | B84: 0 | D84: =IF(B84+F84-D83<=0,B84+F84,IF(AND(OR(Simulador!$U$39=2,Simulador!$U$39=7),J83=0),D83*(1+AA84),IF($AE$3=2,B84*AQ84,D83*(1+AA84)))) -> 0 | F84: 0 | H84: 0 | L84: =IF(Simulador!$T$41=1,0,J84*Simulador!$W$39*1.16) -> 0 | N84: =IF(B84-H84=0,0,N82) -> 0 | R84: 0 | T84: =IFERROR(IF(Simulador!$U$29=1,0,IF($B84<=0,0,$B84*Simulador!$AA$43)),0) -> 0 | V84: =IFERROR(IF(Simulador!$U$29=1,0,IF($B84<=0,0,IF(Simulador!$D$22>0,Simulador!$D$22,Simulador!$O$24)*Simulador!$AA$44)),0) -> 0 | Y84: 0 | AC84: 5 | AD84: 10 | AE84: 0 | AF84: 0 | AG84: 0 | AH84: 0 | AI84: =IF(Simulador!$T$68=1,'Tabla de amortizacion'!AJ84,'Tabla de amortizacion'!AR84) -> 0.1075 | AJ84: 0.1075 | AK84: 0 | AL84: 0.11 | AM84: 0.11 | AN84: 0.115 | AO84: 0.115 | AP84: 0 | AQ84: 0 | AR84: =IF(AND(Simulador!$T$68=2,Simulador!$T$62=1),AL84,IF(AND(Simulador!$T$68=2,Simulador!$T$62=2),AM84,IF(AND(Simulador!$T$68=2,Simulador!$T$62=3),AN84,AO84))) -> 0.115 | AT84: 0 | AU84: 0 | AV84: 0 | AW84: 0 | AX84: 0 | AZ84: =IFERROR(IF(Simulador!$U$29=1,0,IF($AT84<=0.01,0,$AT84*Simulador!$AA$43)),0)+IFERROR(IF(Simulador!$U$29=1,0,IF($AT84<=0.01,0,IF(Simulador!$D$22>0,Simulador!$D$22,Simulador!$O$24)*Simulador!$AA$44)),0) -> 0 | BB84: 0 | BC84: 0 | BE84: 0 | BF84: 70
A85: 71 | B85: 0 | D85: =IF(B85+F85-D84<=0,B85+F85,IF(AND(OR(Simulador!$U$39=2,Simulador!$U$39=7),J84=0),D84*(1+AA85),IF($AE$3=2,B85*AQ85,D84*(1+AA85)))) -> 0 | F85: 0 | H85: 0 | L85: =IF(Simulador!$T$41=1,0,J85*Simulador!$W$39*1.16) -> 0 | R85: 0 | T85: =IFERROR(IF(Simulador!$U$29=1,0,IF($B85<=0,0,$B85*Simulador!$AA$43)),0) -> 0 | V85: =IFERROR(IF(Simulador!$U$29=1,0,IF($B85<=0,0,IF(Simulador!$D$22>0,Simulador!$D$22,Simulador!$O$24)*Simulador!$AA$44)),0) -> 0 | Y85: 0 | AC85: 5 | AD85: 11 | AE85: 0 | AF85: 0 | AG85: 0 | AH85: 0 | AI85: =IF(Simulador!$T$68=1,'Tabla de amortizacion'!AJ85,'Tabla de amortizacion'!AR85) -> 0.1075 | AJ85: 0.1075 | AK85: 0 | AL85: 0.11 | AM85: 0.11 | AN85: 0.115 | AO85: 0.115 | AP85: 0 | AQ85: 0 | AR85: =IF(AND(Simulador!$T$68=2,Simulador!$T$62=1),AL85,IF(AND(Simulador!$T$68=2,Simulador!$T$62=2),AM85,IF(AND(Simulador!$T$68=2,Simulador!$T$62=3),AN85,AO85))) -> 0.115 | AT85: 0 | AU85: 0 | AV85: 0 | AW85: 0 | AX85: 0 | AZ85: =IFERROR(IF(Simulador!$U$29=1,0,IF($AT85<=0.01,0,$AT85*Simulador!$AA$43)),0)+IFERROR(IF(Simulador!$U$29=1,0,IF($AT85<=0.01,0,IF(Simulador!$D$22>0,Simulador!$D$22,Simulador!$O$24)*Simulador!$AA$44)),0) -> 0 | BB85: 0 | BC85: 0 | BE85: 0 | BF85: 71
A86: 72 | B86: 0 | D86: =IF(B86+F86-D85<=0,B86+F86,IF(AND(OR(Simulador!$U$39=2,Simulador!$U$39=7),J85=0),D85*(1+AA86),IF($AE$3=2,B86*AQ86,D85*(1+AA86)))) -> 0 | F86: 0 | H86: 0 | L86: =IF(Simulador!$T$41=1,0,J86*Simulador!$W$39*1.16) -> 0 | N86: =IF(B86-H86=0,0,N84) -> 0 | R86: 0 | T86: =IFERROR(IF(Simulador!$U$29=1,0,IF($B86<=0,0,$B86*Simulador!$AA$43)),0) -> 0 | V86: =IFERROR(IF(Simulador!$U$29=1,0,IF($B86<=0,0,IF(Simulador!$D$22>0,Simulador!$D$22,Simulador!$O$24)*Simulador!$AA$44)),0) -> 0 | Y86: 0 | AC86: 6 | AD86: 0 | AE86: 0 | AF86: 0 | AG86: 0 | AH86: 0 | AI86: =IF(Simulador!$T$68=1,'Tabla de amortizacion'!AJ86,'Tabla de amortizacion'!AR86) -> 0.1075 | AJ86: 0.1075 | AK86: 0 | AL86: 0.11 | AM86: 0.11 | AN86: 0.115 | AO86: 0.115 | AP86: 0 | AQ86: 0 | AR86: =IF(AND(Simulador!$T$68=2,Simulador!$T$62=1),AL86,IF(AND(Simulador!$T$68=2,Simulador!$T$62=2),AM86,IF(AND(Simulador!$T$68=2,Simulador!$T$62=3),AN86,AO86))) -> 0.115 | AT86: 0 | AU86: 0 | AV86: 0 | AW86: 0 | AX86: 0 | AZ86: =IFERROR(IF(Simulador!$U$29=1,0,IF($AT86<=0.01,0,$AT86*Simulador!$AA$43)),0)+IFERROR(IF(Simulador!$U$29=1,0,IF($AT86<=0.01,0,IF(Simulador!$D$22>0,Simulador!$D$22,Simulador!$O$24)*Simulador!$AA$44)),0) -> 0 | BB86: 0 | BC86: 0 | BE86: 0 | BF86: 72
A87: 73 | B87: 0 | D87: =IF(B87+F87-D86<=0,B87+F87,IF(AND(OR(Simulador!$U$39=2,Simulador!$U$39=7),J86=0),D86*(1+AA87),IF($AE$3=2,B87*AQ87,D86*(1+AA87)))) -> 0 | F87: 0 | H87: 0 | L87: =IF(Simulador!$T$41=1,0,J87*Simulador!$W$39*1.16) -> 0 | R87: 0 | T87: =IFERROR(IF(Simulador!$U$29=1,0,IF($B87<=0,0,$B87*Simulador!$AA$43)),0) -> 0 | V87: =IFERROR(IF(Simulador!$U$29=1,0,IF($B87<=0,0,IF(Simulador!$D$22>0,Simulador!$D$22,Simulador!$O$24)*Simulador!$AA$44)),0) -> 0 | Y87: 0 | AA87: =IF(B87<=0,0,Simulador!$I$43) -> 0 | AC87: 6 | AD87: 1 | AE87: 0 | AF87: 0 | AG87: 0 | AH87: 0 | AI87: =IF(Simulador!$T$68=1,'Tabla de amortizacion'!AJ87,'Tabla de amortizacion'!AR87) -> 0.1075 | AJ87: =IF(AJ86=$AM$4,AJ86,IF(AJ86-0.25%<=$AM$4,$AM$4,AJ86-0.25%)) -> 0.1075 | AK87: 0 | AL87: 0.11 | AM87: 0.11 | AN87: 0.115 | AO87: 0.115 | AP87: 0 | AQ87: 0 | AR87: =IF(AND(Simulador!$T$68=2,Simulador!$T$62=1),AL87,IF(AND(Simulador!$T$68=2,Simulador!$T$62=2),AM87,IF(AND(Simulador!$T$68=2,Simulador!$T$62=3),AN87,AO87))) -> 0.115 | AT87: 0 | AU87: 0 | AV87: 0 | AW87: 0 | AX87: 0 | AZ87: =IFERROR(IF(Simulador!$U$29=1,0,IF($AT87<=0.01,0,$AT87*Simulador!$AA$43)),0)+IFERROR(IF(Simulador!$U$29=1,0,IF($AT87<=0.01,0,IF(Simulador!$D$22>0,Simulador!$D$22,Simulador!$O$24)*Simulador!$AA$44)),0) -> 0 | BA87: =IF(AT87<=0,0,$BA$27) -> 0 | BB87: 0 | BC87: 0 | BE87: 0 | BF87: 73
A88: 74 | B88: 0 | D88: =IF(B88+F88-D87<=0,B88+F88,IF(AND(OR(Simulador!$U$39=2,Simulador!$U$39=7),J87=0),D87*(1+AA88),IF($AE$3=2,B88*AQ88,D87*(1+AA88)))) -> 0 | F88: 0 | H88: 0 | L88: =IF(Simulador!$T$41=1,0,J88*Simulador!$W$39*1.16) -> 0 | N88: =IF(B88-H88=0,0,N86*(1+(Simulador!$AF$77))) -> 0 | R88: 0 | T88: =IFERROR(IF(Simulador!$U$29=1,0,IF($B88<=0,0,$B88*Simulador!$AA$43)),0) -> 0 | V88: =IFERROR(IF(Simulador!$U$29=1,0,IF($B88<=0,0,IF(Simulador!$D$22>0,Simulador!$D$22,Simulador!$O$24)*Simulador!$AA$44)),0) -> 0 | Y88: 0 | AC88: 6 | AD88: 2 | AE88: 0 | AF88: 0 | AG88: 0 | AH88: 0 | AI88: =IF(Simulador!$T$68=1,'Tabla de amortizacion'!AJ88,'Tabla de amortizacion'!AR88) -> 0.1075 | AJ88: =AJ87 -> 0.1075 | AK88: 0 | AL88: 0.11 | AM88: 0.11 | AN88: 0.115 | AO88: 0.115 | AP88: 0 | AQ88: 0 | AR88: =IF(AND(Simulador!$T$68=2,Simulador!$T$62=1),AL88,IF(AND(Simulador!$T$68=2,Simulador!$T$62=2),AM88,IF(AND(Simulador!$T$68=2,Simulador!$T$62=3),AN88,AO88))) -> 0.115 | AT88: 0 | AU88: 0 | AV88: 0 | AW88: 0 | AX88: 0 | AZ88: =IFERROR(IF(Simulador!$U$29=1,0,IF($AT88<=0.01,0,$AT88*Simulador!$AA$43)),0)+IFERROR(IF(Simulador!$U$29=1,0,IF($AT88<=0.01,0,IF(Simulador!$D$22>0,Simulador!$D$22,Simulador!$O$24)*Simulador!$AA$44)),0) -> 0 | BB88: 0 | BC88: 0 | BE88: 0 | BF88: 74
A89: 75 | B89: 0 | D89: =IF(B89+F89-D88<=0,B89+F89,IF(AND(OR(Simulador!$U$39=2,Simulador!$U$39=7),J88=0),D88*(1+AA89),IF($AE$3=2,B89*AQ89,D88*(1+AA89)))) -> 0 | F89: 0 | H89: 0 | L89: =IF(Simulador!$T$41=1,0,J89*Simulador!$W$39*1.16) -> 0 | R89: 0 | T89: =IFERROR(IF(Simulador!$U$29=1,0,IF($B89<=0,0,$B89*Simulador!$AA$43)),0) -> 0 | V89: =IFERROR(IF(Simulador!$U$29=1,0,IF($B89<=0,0,IF(Simulador!$D$22>0,Simulador!$D$22,Simulador!$O$24)*Simulador!$AA$44)),0) -> 0 | Y89: 0 | AC89: 6 | AD89: 3 | AE89: 0 | AF89: 0 | AG89: 0 | AH89: 0 | AI89: =IF(Simulador!$T$68=1,'Tabla de amortizacion'!AJ89,'Tabla de amortizacion'!AR89) -> 0.1075 | AJ89: =AJ88 -> 0.1075 | AK89: 0 | AL89: 0.11 | AM89: 0.11 | AN89: 0.115 | AO89: 0.115 | AP89: 0 | AQ89: 0 | AR89: =IF(AND(Simulador!$T$68=2,Simulador!$T$62=1),AL89,IF(AND(Simulador!$T$68=2,Simulador!$T$62=2),AM89,IF(AND(Simulador!$T$68=2,Simulador!$T$62=3),AN89,AO89))) -> 0.115 | AT89: 0 | AU89: 0 | AV89: 0 | AW89: 0 | AX89: 0 | AZ89: =IFERROR(IF(Simulador!$U$29=1,0,IF($AT89<=0.01,0,$AT89*Simulador!$AA$43)),0)+IFERROR(IF(Simulador!$U$29=1,0,IF($AT89<=0.01,0,IF(Simulador!$D$22>0,Simulador!$D$22,Simulador!$O$24)*Simulador!$AA$44)),0) -> 0 | BB89: 0 | BC89: 0 | BE89: 0 | BF89: 75
A90: 76 | B90: 0 | D90: =IF(B90+F90-D89<=0,B90+F90,IF(AND(OR(Simulador!$U$39=2,Simulador!$U$39=7),J89=0),D89*(1+AA90),IF($AE$3=2,B90*AQ90,D89*(1+AA90)))) -> 0 | F90: 0 | H90: 0 | L90: =IF(Simulador!$T$41=1,0,J90*Simulador!$W$39*1.16) -> 0 | N90: =IF(B90-H90=0,0,N88) -> 0 | R90: 0 | T90: =IFERROR(IF(Simulador!$U$29=1,0,IF($B90<=0,0,$B90*Simulador!$AA$43)),0) -> 0 | V90: =IFERROR(IF(Simulador!$U$29=1,0,IF($B90<=0,0,IF(Simulador!$D$22>0,Simulador!$D$22,Simulador!$O$24)*Simulador!$AA$44)),0) -> 0 | Y90: 0 | AC90: 6 | AD90: 4 | AE90: 0 | AF90: 0 | AG90: 0 | AH90: 0 | AI90: =IF(Simulador!$T$68=1,'Tabla de amortizacion'!AJ90,'Tabla de amortizacion'!AR90) -> 0.1075 | AJ90: 0.1075 | AK90: 0 | AL90: 0.11 | AM90: 0.11 | AN90: 0.115 | AO90: 0.115 | AP90: 0 | AQ90: 0 | AR90: =IF(AND(Simulador!$T$68=2,Simulador!$T$62=1),AL90,IF(AND(Simulador!$T$68=2,Simulador!$T$62=2),AM90,IF(AND(Simulador!$T$68=2,Simulador!$T$62=3),AN90,AO90))) -> 0.115 | AT90: 0 | AU90: 0 | AV90: 0 | AW90: 0 | AX90: 0 | AZ90: =IFERROR(IF(Simulador!$U$29=1,0,IF($AT90<=0.01,0,$AT90*Simulador!$AA$43)),0)+IFERROR(IF(Simulador!$U$29=1,0,IF($AT90<=0.01,0,IF(Simulador!$D$22>0,Simulador!$D$22,Simulador!$O$24)*Simulador!$AA$44)),0) -> 0 | BB90: 0 | BC90: 0 | BE90: 0 | BF90: 76
A91: 77 | B91: 0 | D91: =IF(B91+F91-D90<=0,B91+F91,IF(AND(OR(Simulador!$U$39=2,Simulador!$U$39=7),J90=0),D90*(1+AA91),IF($AE$3=2,B91*AQ91,D90*(1+AA91)))) -> 0 | F91: 0 | H91: 0 | L91: =IF(Simulador!$T$41=1,0,J91*Simulador!$W$39*1.16) -> 0 | R91: 0 | T91: =IFERROR(IF(Simulador!$U$29=1,0,IF($B91<=0,0,$B91*Simulador!$AA$43)),0) -> 0 | V91: =IFERROR(IF(Simulador!$U$29=1,0,IF($B91<=0,0,IF(Simulador!$D$22>0,Simulador!$D$22,Simulador!$O$24)*Simulador!$AA$44)),0) -> 0 | Y91: 0 | AC91: 6 | AD91: 5 | AE91: 0 | AF91: 0 | AG91: 0 | AH91: 0 | AI91: =IF(Simulador!$T$68=1,'Tabla de amortizacion'!AJ91,'Tabla de amortizacion'!AR91) -> 0.1075 | AJ91: 0.1075 | AK91: 0 | AL91: 0.11 | AM91: 0.11 | AN91: 0.115 | AO91: 0.115 | AP91: 0 | AQ91: 0 | AR91: =IF(AND(Simulador!$T$68=2,Simulador!$T$62=1),AL91,IF(AND(Simulador!$T$68=2,Simulador!$T$62=2),AM91,IF(AND(Simulador!$T$68=2,Simulador!$T$62=3),AN91,AO91))) -> 0.115 | AT91: 0 | AU91: 0 | AV91: 0 | AW91: 0 | AX91: 0 | AZ91: =IFERROR(IF(Simulador!$U$29=1,0,IF($AT91<=0.01,0,$AT91*Simulador!$AA$43)),0)+IFERROR(IF(Simulador!$U$29=1,0,IF($AT91<=0.01,0,IF(Simulador!$D$22>0,Simulador!$D$22,Simulador!$O$24)*Simulador!$AA$44)),0) -> 0 | BB91: 0 | BC91: 0 | BE91: 0 | BF91: 77
A92: 78 | B92: 0 | D92: =IF(B92+F92-D91<=0,B92+F92,IF(AND(OR(Simulador!$U$39=2,Simulador!$U$39=7),J91=0),D91*(1+AA92),IF($AE$3=2,B92*AQ92,D91*(1+AA92)))) -> 0 | F92: 0 | H92: 0 | L92: =IF(Simulador!$T$41=1,0,J92*Simulador!$W$39*1.16) -> 0 | N92: =IF(B92-H92=0,0,N90) -> 0 | R92: 0 | T92: =IFERROR(IF(Simulador!$U$29=1,0,IF($B92<=0,0,$B92*Simulador!$AA$43)),0) -> 0 | V92: =IFERROR(IF(Simulador!$U$29=1,0,IF($B92<=0,0,IF(Simulador!$D$22>0,Simulador!$D$22,Simulador!$O$24)*Simulador!$AA$44)),0) -> 0 | Y92: 0 | AC92: 6 | AD92: 6 | AE92: 0 | AF92: 0 | AG92: 0 | AH92: 0 | AI92: =IF(Simulador!$T$68=1,'Tabla de amortizacion'!AJ92,'Tabla de amortizacion'!AR92) -> 0.1075 | AJ92: 0.1075 | AK92: 0 | AL92: 0.11 | AM92: 0.11 | AN92: 0.115 | AO92: 0.115 | AP92: 0 | AQ92: 0 | AR92: =IF(AND(Simulador!$T$68=2,Simulador!$T$62=1),AL92,IF(AND(Simulador!$T$68=2,Simulador!$T$62=2),AM92,IF(AND(Simulador!$T$68=2,Simulador!$T$62=3),AN92,AO92))) -> 0.115 | AT92: 0 | AU92: 0 | AV92: 0 | AW92: 0 | AX92: 0 | AZ92: =IFERROR(IF(Simulador!$U$29=1,0,IF($AT92<=0.01,0,$AT92*Simulador!$AA$43)),0)+IFERROR(IF(Simulador!$U$29=1,0,IF($AT92<=0.01,0,IF(Simulador!$D$22>0,Simulador!$D$22,Simulador!$O$24)*Simulador!$AA$44)),0) -> 0 | BB92: 0 | BC92: 0 | BE92: 0 | BF92: 78
A93: 79 | B93: 0 | D93: =IF(B93+F93-D92<=0,B93+F93,IF(AND(OR(Simulador!$U$39=2,Simulador!$U$39=7),J92=0),D92*(1+AA93),IF($AE$3=2,B93*AQ93,D92*(1+AA93)))) -> 0 | F93: 0 | H93: 0 | L93: =IF(Simulador!$T$41=1,0,J93*Simulador!$W$39*1.16) -> 0 | R93: 0 | T93: =IFERROR(IF(Simulador!$U$29=1,0,IF($B93<=0,0,$B93*Simulador!$AA$43)),0) -> 0 | V93: =IFERROR(IF(Simulador!$U$29=1,0,IF($B93<=0,0,IF(Simulador!$D$22>0,Simulador!$D$22,Simulador!$O$24)*Simulador!$AA$44)),0) -> 0 | Y93: 0 | AC93: 6 | AD93: 7 | AE93: 0 | AF93: 0 | AG93: 0 | AH93: 0 | AI93: =IF(Simulador!$T$68=1,'Tabla de amortizacion'!AJ93,'Tabla de amortizacion'!AR93) -> 0.1075 | AJ93: 0.1075 | AK93: 0 | AL93: 0.11 | AM93: 0.11 | AN93: 0.115 | AO93: 0.115 | AP93: 0 | AQ93: 0 | AR93: =IF(AND(Simulador!$T$68=2,Simulador!$T$62=1),AL93,IF(AND(Simulador!$T$68=2,Simulador!$T$62=2),AM93,IF(AND(Simulador!$T$68=2,Simulador!$T$62=3),AN93,AO93))) -> 0.115 | AT93: =IF(AX92<=0,0,AX92) -> 0 | AU93: 0 | AV93: 0 | AW93: 0 | AX93: 0 | AZ93: =IFERROR(IF(Simulador!$U$29=1,0,IF($AT93<=0.01,0,$AT93*Simulador!$AA$43)),0)+IFERROR(IF(Simulador!$U$29=1,0,IF($AT93<=0.01,0,IF(Simulador!$D$22>0,Simulador!$D$22,Simulador!$O$24)*Simulador!$AA$44)),0) -> 0 | BB93: 0 | BC93: 0 | BE93: 0 | BF93: 79
A94: 80 | B94: 0 | D94: =IF(B94+F94-D93<=0,B94+F94,IF(AND(OR(Simulador!$U$39=2,Simulador!$U$39=7),J93=0),D93*(1+AA94),IF($AE$3=2,B94*AQ94,D93*(1+AA94)))) -> 0 | F94: 0 | H94: 0 | L94: =IF(Simulador!$T$41=1,0,J94*Simulador!$W$39*1.16) -> 0 | N94: =IF(B94-H94=0,0,N92) -> 0 | R94: 0 | T94: =IFERROR(IF(Simulador!$U$29=1,0,IF($B94<=0,0,$B94*Simulador!$AA$43)),0) -> 0 | V94: =IFERROR(IF(Simulador!$U$29=1,0,IF($B94<=0,0,IF(Simulador!$D$22>0,Simulador!$D$22,Simulador!$O$24)*Simulador!$AA$44)),0) -> 0 | Y94: 0 | AC94: 6 | AD94: 8 | AE94: 0 | AF94: 0 | AG94: 0 | AH94: 0 | AI94: =IF(Simulador!$T$68=1,'Tabla de amortizacion'!AJ94,'Tabla de amortizacion'!AR94) -> 0.1075 | AJ94: 0.1075 | AK94: 0 | AL94: 0.11 | AM94: 0.11 | AN94: 0.115 | AO94: 0.115 | AP94: 0 | AQ94: 0 | AR94: =IF(AND(Simulador!$T$68=2,Simulador!$T$62=1),AL94,IF(AND(Simulador!$T$68=2,Simulador!$T$62=2),AM94,IF(AND(Simulador!$T$68=2,Simulador!$T$62=3),AN94,AO94))) -> 0.115 | AT94: 0 | AU94: 0 | AV94: 0 | AW94: 0 | AX94: 0 | AZ94: =IFERROR(IF(Simulador!$U$29=1,0,IF($AT94<=0.01,0,$AT94*Simulador!$AA$43)),0)+IFERROR(IF(Simulador!$U$29=1,0,IF($AT94<=0.01,0,IF(Simulador!$D$22>0,Simulador!$D$22,Simulador!$O$24)*Simulador!$AA$44)),0) -> 0 | BB94: 0 | BC94: 0 | BE94: 0 | BF94: 80
A95: 81 | B95: 0 | D95: =IF(B95+F95-D94<=0,B95+F95,IF(AND(OR(Simulador!$U$39=2,Simulador!$U$39=7),J94=0),D94*(1+AA95),IF($AE$3=2,B95*AQ95,D94*(1+AA95)))) -> 0 | F95: 0 | H95: 0 | L95: =IF(Simulador!$T$41=1,0,J95*Simulador!$W$39*1.16) -> 0 | R95: 0 | T95: =IFERROR(IF(Simulador!$U$29=1,0,IF($B95<=0,0,$B95*Simulador!$AA$43)),0) -> 0 | V95: =IFERROR(IF(Simulador!$U$29=1,0,IF($B95<=0,0,IF(Simulador!$D$22>0,Simulador!$D$22,Simulador!$O$24)*Simulador!$AA$44)),0) -> 0 | Y95: 0 | AC95: 6 | AD95: 9 | AE95: 0 | AF95: 0 | AG95: 0 | AH95: 0 | AI95: =IF(Simulador!$T$68=1,'Tabla de amortizacion'!AJ95,'Tabla de amortizacion'!AR95) -> 0.1075 | AJ95: 0.1075 | AK95: 0 | AL95: 0.11 | AM95: 0.11 | AN95: 0.115 | AO95: 0.115 | AP95: 0 | AQ95: 0 | AR95: =IF(AND(Simulador!$T$68=2,Simulador!$T$62=1),AL95,IF(AND(Simulador!$T$68=2,Simulador!$T$62=2),AM95,IF(AND(Simulador!$T$68=2,Simulador!$T$62=3),AN95,AO95))) -> 0.115 | AT95: 0 | AU95: 0 | AV95: 0 | AW95: 0 | AX95: 0 | AZ95: =IFERROR(IF(Simulador!$U$29=1,0,IF($AT95<=0.01,0,$AT95*Simulador!$AA$43)),0)+IFERROR(IF(Simulador!$U$29=1,0,IF($AT95<=0.01,0,IF(Simulador!$D$22>0,Simulador!$D$22,Simulador!$O$24)*Simulador!$AA$44)),0) -> 0 | BB95: 0 | BC95: 0 | BE95: 0 | BF95: 81
A96: 82 | B96: 0 | D96: =IF(B96+F96-D95<=0,B96+F96,IF(AND(OR(Simulador!$U$39=2,Simulador!$U$39=7),J95=0),D95*(1+AA96),IF($AE$3=2,B96*AQ96,D95*(1+AA96)))) -> 0 | F96: 0 | H96: 0 | L96: =IF(Simulador!$T$41=1,0,J96*Simulador!$W$39*1.16) -> 0 | N96: =IF(B96-H96=0,0,N94) -> 0 | R96: 0 | T96: =IFERROR(IF(Simulador!$U$29=1,0,IF($B96<=0,0,$B96*Simulador!$AA$43)),0) -> 0 | V96: =IFERROR(IF(Simulador!$U$29=1,0,IF($B96<=0,0,IF(Simulador!$D$22>0,Simulador!$D$22,Simulador!$O$24)*Simulador!$AA$44)),0) -> 0 | Y96: 0 | AC96: 6 | AD96: 10 | AE96: 0 | AF96: 0 | AG96: 0 | AH96: 0 | AI96: =IF(Simulador!$T$68=1,'Tabla de amortizacion'!AJ96,'Tabla de amortizacion'!AR96) -> 0.1075 | AJ96: 0.1075 | AK96: 0 | AL96: 0.11 | AM96: 0.11 | AN96: 0.115 | AO96: 0.115 | AP96: 0 | AQ96: 0 | AR96: =IF(AND(Simulador!$T$68=2,Simulador!$T$62=1),AL96,IF(AND(Simulador!$T$68=2,Simulador!$T$62=2),AM96,IF(AND(Simulador!$T$68=2,Simulador!$T$62=3),AN96,AO96))) -> 0.115 | AT96: 0 | AU96: 0 | AV96: 0 | AW96: 0 | AX96: 0 | AZ96: =IFERROR(IF(Simulador!$U$29=1,0,IF($AT96<=0.01,0,$AT96*Simulador!$AA$43)),0)+IFERROR(IF(Simulador!$U$29=1,0,IF($AT96<=0.01,0,IF(Simulador!$D$22>0,Simulador!$D$22,Simulador!$O$24)*Simulador!$AA$44)),0) -> 0 | BB96: 0 | BC96: 0 | BE96: 0 | BF96: 82
A97: 83 | B97: 0 | D97: =IF(B97+F97-D96<=0,B97+F97,IF(AND(OR(Simulador!$U$39=2,Simulador!$U$39=7),J96=0),D96*(1+AA97),IF($AE$3=2,B97*AQ97,D96*(1+AA97)))) -> 0 | F97: 0 | H97: 0 | L97: =IF(Simulador!$T$41=1,0,J97*Simulador!$W$39*1.16) -> 0 | R97: 0 | T97: =IFERROR(IF(Simulador!$U$29=1,0,IF($B97<=0,0,$B97*Simulador!$AA$43)),0) -> 0 | V97: =IFERROR(IF(Simulador!$U$29=1,0,IF($B97<=0,0,IF(Simulador!$D$22>0,Simulador!$D$22,Simulador!$O$24)*Simulador!$AA$44)),0) -> 0 | Y97: 0 | AC97: 6 | AD97: 11 | AE97: 0 | AF97: 0 | AG97: 0 | AH97: 0 | AI97: =IF(Simulador!$T$68=1,'Tabla de amortizacion'!AJ97,'Tabla de amortizacion'!AR97) -> 0.1075 | AJ97: 0.1075 | AK97: 0 | AL97: 0.11 | AM97: 0.11 | AN97: 0.115 | AO97: 0.115 | AP97: 0 | AQ97: 0 | AR97: =IF(AND(Simulador!$T$68=2,Simulador!$T$62=1),AL97,IF(AND(Simulador!$T$68=2,Simulador!$T$62=2),AM97,IF(AND(Simulador!$T$68=2,Simulador!$T$62=3),AN97,AO97))) -> 0.115 | AT97: 0 | AU97: 0 | AV97: 0 | AW97: 0 | AX97: 0 | AZ97: =IFERROR(IF(Simulador!$U$29=1,0,IF($AT97<=0.01,0,$AT97*Simulador!$AA$43)),0)+IFERROR(IF(Simulador!$U$29=1,0,IF($AT97<=0.01,0,IF(Simulador!$D$22>0,Simulador!$D$22,Simulador!$O$24)*Simulador!$AA$44)),0) -> 0 | BB97: 0 | BC97: 0 | BE97: 0 | BF97: 83
A98: 84 | B98: 0 | D98: =IF(B98+F98-D97<=0,B98+F98,IF(AND(OR(Simulador!$U$39=2,Simulador!$U$39=7),J97=0),D97*(1+AA98),IF($AE$3=2,B98*AQ98,D97*(1+AA98)))) -> 0 | F98: 0 | H98: 0 | L98: =IF(Simulador!$T$41=1,0,J98*Simulador!$W$39*1.16) -> 0 | N98: =IF(B98-H98=0,0,N96) -> 0 | R98: 0 | T98: =IFERROR(IF(Simulador!$U$29=1,0,IF($B98<=0,0,$B98*Simulador!$AA$43)),0) -> 0 | V98: =IFERROR(IF(Simulador!$U$29=1,0,IF($B98<=0,0,IF(Simulador!$D$22>0,Simulador!$D$22,Simulador!$O$24)*Simulador!$AA$44)),0) -> 0 | Y98: 0 | AC98: 7 | AD98: 0 | AE98: 0 | AF98: 0 | AG98: 0 | AH98: 0 | AI98: =IF(Simulador!$T$68=1,'Tabla de amortizacion'!AJ98,'Tabla de amortizacion'!AR98) -> 0.1075 | AJ98: 0.1075 | AK98: 0 | AL98: 0.11 | AM98: 0.11 | AN98: 0.115 | AO98: 0.115 | AP98: 0 | AQ98: 0 | AR98: =IF(AND(Simulador!$T$68=2,Simulador!$T$62=1),AL98,IF(AND(Simulador!$T$68=2,Simulador!$T$62=2),AM98,IF(AND(Simulador!$T$68=2,Simulador!$T$62=3),AN98,AO98))) -> 0.115 | AT98: 0 | AU98: 0 | AV98: 0 | AW98: 0 | AX98: 0 | AZ98: =IFERROR(IF(Simulador!$U$29=1,0,IF($AT98<=0.01,0,$AT98*Simulador!$AA$43)),0)+IFERROR(IF(Simulador!$U$29=1,0,IF($AT98<=0.01,0,IF(Simulador!$D$22>0,Simulador!$D$22,Simulador!$O$24)*Simulador!$AA$44)),0) -> 0 | BB98: 0 | BC98: 0 | BE98: 0 | BF98: 84
A99: 85 | B99: 0 | D99: =IF(B99+F99-D98<=0,B99+F99,IF(AND(OR(Simulador!$U$39=2,Simulador!$U$39=7),J98=0),D98*(1+AA99),IF($AE$3=2,B99*AQ99,D98*(1+AA99)))) -> 0 | F99: 0 | H99: 0 | L99: =IF(Simulador!$T$41=1,0,J99*Simulador!$W$39*1.16) -> 0 | R99: 0 | T99: =IFERROR(IF(Simulador!$U$29=1,0,IF($B99<=0,0,$B99*Simulador!$AA$43)),0) -> 0 | V99: =IFERROR(IF(Simulador!$U$29=1,0,IF($B99<=0,0,IF(Simulador!$D$22>0,Simulador!$D$22,Simulador!$O$24)*Simulador!$AA$44)),0) -> 0 | Y99: 0 | AA99: =IF(B99<=0,0,Simulador!$I$43) -> 0 | AC99: 7 | AD99: 1 | AE99: 0 | AF99: 0 | AG99: 0 | AH99: 0 | AI99: =IF(Simulador!$T$68=1,'Tabla de amortizacion'!AJ99,'Tabla de amortizacion'!AR99) -> 0.1075 | AJ99: =IF(AJ98=$AM$4,AJ98,IF(AJ98-0.25%<=$AM$4,$AM$4,AJ98-0.25%)) -> 0.1075 | AK99: 0 | AM99: 0.11 | AN99: 0.115 | AO99: 0.115 | AP99: 0 | AQ99: 0 | AR99: =IF(AND(Simulador!$T$68=2,Simulador!$T$62=1),AL99,IF(AND(Simulador!$T$68=2,Simulador!$T$62=2),AM99,IF(AND(Simulador!$T$68=2,Simulador!$T$62=3),AN99,AO99))) -> 0.115 | AT99: 0 | AU99: 0 | AV99: 0 | AW99: 0 | AX99: 0 | AZ99: =IFERROR(IF(Simulador!$U$29=1,0,IF($AT99<=0.01,0,$AT99*Simulador!$AA$43)),0)+IFERROR(IF(Simulador!$U$29=1,0,IF($AT99<=0.01,0,IF(Simulador!$D$22>0,Simulador!$D$22,Simulador!$O$24)*Simulador!$AA$44)),0) -> 0 | BA99: =IF(AT99<=0,0,$BA$27) -> 0 | BB99: 0 | BC99: 0 | BE99: 0 | BF99: 85
A100: 86 | B100: 0 | D100: =IF(B100+F100-D99<=0,B100+F100,IF(AND(OR(Simulador!$U$39=2,Simulador!$U$39=7),J99=0),D99*(1+AA100),IF($AE$3=2,B100*AQ100,D99*(1+AA100)))) -> 0 | F100: 0 | H100: 0 | L100: =IF(Simulador!$T$41=1,0,J100*Simulador!$W$39*1.16) -> 0 | N100: =IF(B100-H100=0,0,N98*(1+(Simulador!$AF$77))) -> 0 | R100: 0 | T100: =IFERROR(IF(Simulador!$U$29=1,0,IF($B100<=0,0,$B100*Simulador!$AA$43)),0) -> 0 | V100: =IFERROR(IF(Simulador!$U$29=1,0,IF($B100<=0,0,IF(Simulador!$D$22>0,Simulador!$D$22,Simulador!$O$24)*Simulador!$AA$44)),0) -> 0 | Y100: 0 | AC100: 7 | AD100: 2 | AE100: 0 | AF100: 0 | AG100: 0 | AH100: 0 | AI100: =IF(Simulador!$T$68=1,'Tabla de amortizacion'!AJ100,'Tabla de amortizacion'!AR100) -> 0.1075 | AJ100: =AJ99 -> 0.1075 | AK100: 0 | AM100: 0.11 | AN100: 0.115 | AO100: 0.115 | AP100: 0 | AQ100: 0 | AR100: =IF(AND(Simulador!$T$68=2,Simulador!$T$62=1),AL100,IF(AND(Simulador!$T$68=2,Simulador!$T$62=2),AM100,IF(AND(Simulador!$T$68=2,Simulador!$T$62=3),AN100,AO100))) -> 0.115 | AT100: 0 | AU100: 0 | AV100: 0 | AW100: 0 | AX100: 0 | AZ100: =IFERROR(IF(Simulador!$U$29=1,0,IF($AT100<=0.01,0,$AT100*Simulador!$AA$43)),0)+IFERROR(IF(Simulador!$U$29=1,0,IF($AT100<=0.01,0,IF(Simulador!$D$22>0,Simulador!$D$22,Simulador!$O$24)*Simulador!$AA$44)),0) -> 0 | BB100: 0 | BC100: 0 | BE100: 0 | BF100: 86
A101: 87 | B101: 0 | D101: =IF(B101+F101-D100<=0,B101+F101,IF(AND(OR(Simulador!$U$39=2,Simulador!$U$39=7),J100=0),D100*(1+AA101),IF($AE$3=2,B101*AQ101,D100*(1+AA101)))) -> 0 | F101: 0 | H101: 0 | L101: =IF(Simulador!$T$41=1,0,J101*Simulador!$W$39*1.16) -> 0 | R101: 0 | T101: =IFERROR(IF(Simulador!$U$29=1,0,IF($B101<=0,0,$B101*Simulador!$AA$43)),0) -> 0 | V101: =IFERROR(IF(Simulador!$U$29=1,0,IF($B101<=0,0,IF(Simulador!$D$22>0,Simulador!$D$22,Simulador!$O$24)*Simulador!$AA$44)),0) -> 0 | Y101: 0 | AC101: 7 | AD101: 3 | AE101: 0 | AF101: 0 | AG101: 0 | AH101: 0 | AI101: =IF(Simulador!$T$68=1,'Tabla de amortizacion'!AJ101,'Tabla de amortizacion'!AR101) -> 0.1075 | AJ101: =AJ100 -> 0.1075 | AK101: 0 | AM101: 0.11 | AN101: 0.115 | AO101: 0.115 | AP101: 0 | AQ101: 0 | AR101: =IF(AND(Simulador!$T$68=2,Simulador!$T$62=1),AL101,IF(AND(Simulador!$T$68=2,Simulador!$T$62=2),AM101,IF(AND(Simulador!$T$68=2,Simulador!$T$62=3),AN101,AO101))) -> 0.115 | AT101: 0 | AU101: 0 | AV101: 0 | AW101: 0 | AX101: 0 | AZ101: =IFERROR(IF(Simulador!$U$29=1,0,IF($AT101<=0.01,0,$AT101*Simulador!$AA$43)),0)+IFERROR(IF(Simulador!$U$29=1,0,IF($AT101<=0.01,0,IF(Simulador!$D$22>0,Simulador!$D$22,Simulador!$O$24)*Simulador!$AA$44)),0) -> 0 | BB101: 0 | BC101: 0 | BE101: 0 | BF101: 87
A102: 88 | B102: 0 | D102: =IF(B102+F102-D101<=0,B102+F102,IF(AND(OR(Simulador!$U$39=2,Simulador!$U$39=7),J101=0),D101*(1+AA102),IF($AE$3=2,B102*AQ102,D101*(1+AA102)))) -> 0 | F102: 0 | H102: 0 | L102: =IF(Simulador!$T$41=1,0,J102*Simulador!$W$39*1.16) -> 0 | N102: =IF(B102-H102=0,0,N100) -> 0 | R102: 0 | T102: =IFERROR(IF(Simulador!$U$29=1,0,IF($B102<=0,0,$B102*Simulador!$AA$43)),0) -> 0 | V102: =IFERROR(IF(Simulador!$U$29=1,0,IF($B102<=0,0,IF(Simulador!$D$22>0,Simulador!$D$22,Simulador!$O$24)*Simulador!$AA$44)),0) -> 0 | Y102: 0 | AC102: 7 | AD102: 4 | AE102: 0 | AF102: 0 | AG102: 0 | AH102: 0 | AI102: =IF(Simulador!$T$68=1,'Tabla de amortizacion'!AJ102,'Tabla de amortizacion'!AR102) -> 0.1075 | AJ102: 0.1075 | AK102: 0 | AM102: 0.11 | AN102: 0.115 | AO102: 0.115 | AP102: 0 | AQ102: 0 | AR102: =IF(AND(Simulador!$T$68=2,Simulador!$T$62=1),AL102,IF(AND(Simulador!$T$68=2,Simulador!$T$62=2),AM102,IF(AND(Simulador!$T$68=2,Simulador!$T$62=3),AN102,AO102))) -> 0.115 | AT102: 0 | AU102: 0 | AV102: 0 | AW102: 0 | AX102: 0 | AZ102: =IFERROR(IF(Simulador!$U$29=1,0,IF($AT102<=0.01,0,$AT102*Simulador!$AA$43)),0)+IFERROR(IF(Simulador!$U$29=1,0,IF($AT102<=0.01,0,IF(Simulador!$D$22>0,Simulador!$D$22,Simulador!$O$24)*Simulador!$AA$44)),0) -> 0 | BB102: 0 | BC102: 0 | BE102: 0 | BF102: 88
A103: 89 | B103: 0 | D103: =IF(B103+F103-D102<=0,B103+F103,IF(AND(OR(Simulador!$U$39=2,Simulador!$U$39=7),J102=0),D102*(1+AA103),IF($AE$3=2,B103*AQ103,D102*(1+AA103)))) -> 0 | F103: 0 | H103: 0 | L103: =IF(Simulador!$T$41=1,0,J103*Simulador!$W$39*1.16) -> 0 | R103: 0 | T103: =IFERROR(IF(Simulador!$U$29=1,0,IF($B103<=0,0,$B103*Simulador!$AA$43)),0) -> 0 | V103: =IFERROR(IF(Simulador!$U$29=1,0,IF($B103<=0,0,IF(Simulador!$D$22>0,Simulador!$D$22,Simulador!$O$24)*Simulador!$AA$44)),0) -> 0 | Y103: 0 | AC103: 7 | AD103: 5 | AE103: 0 | AF103: 0 | AG103: 0 | AH103: 0 | AI103: =IF(Simulador!$T$68=1,'Tabla de amortizacion'!AJ103,'Tabla de amortizacion'!AR103) -> 0.1075 | AJ103: 0.1075 | AK103: 0 | AM103: 0.11 | AN103: 0.115 | AO103: 0.115 | AP103: 0 | AQ103: 0 | AR103: =IF(AND(Simulador!$T$68=2,Simulador!$T$62=1),AL103,IF(AND(Simulador!$T$68=2,Simulador!$T$62=2),AM103,IF(AND(Simulador!$T$68=2,Simulador!$T$62=3),AN103,AO103))) -> 0.115 | AT103: 0 | AU103: 0 | AV103: 0 | AW103: 0 | AX103: 0 | AZ103: =IFERROR(IF(Simulador!$U$29=1,0,IF($AT103<=0.01,0,$AT103*Simulador!$AA$43)),0)+IFERROR(IF(Simulador!$U$29=1,0,IF($AT103<=0.01,0,IF(Simulador!$D$22>0,Simulador!$D$22,Simulador!$O$24)*Simulador!$AA$44)),0) -> 0 | BB103: 0 | BC103: 0 | BE103: 0 | BF103: 89
A104: 90 | B104: 0 | D104: =IF(B104+F104-D103<=0,B104+F104,IF(AND(OR(Simulador!$U$39=2,Simulador!$U$39=7),J103=0),D103*(1+AA104),IF($AE$3=2,B104*AQ104,D103*(1+AA104)))) -> 0 | F104: 0 | H104: 0 | L104: =IF(Simulador!$T$41=1,0,J104*Simulador!$W$39*1.16) -> 0 | N104: =IF(B104-H104=0,0,N102) -> 0 | R104: 0 | T104: =IFERROR(IF(Simulador!$U$29=1,0,IF($B104<=0,0,$B104*Simulador!$AA$43)),0) -> 0 | V104: =IFERROR(IF(Simulador!$U$29=1,0,IF($B104<=0,0,IF(Simulador!$D$22>0,Simulador!$D$22,Simulador!$O$24)*Simulador!$AA$44)),0) -> 0 | Y104: 0 | AC104: 7 | AD104: 6 | AE104: 0 | AF104: 0 | AG104: 0 | AH104: 0 | AI104: =IF(Simulador!$T$68=1,'Tabla de amortizacion'!AJ104,'Tabla de amortizacion'!AR104) -> 0.1075 | AJ104: 0.1075 | AK104: 0 | AM104: 0.11 | AN104: 0.115 | AO104: 0.115 | AP104: 0 | AQ104: 0 | AR104: =IF(AND(Simulador!$T$68=2,Simulador!$T$62=1),AL104,IF(AND(Simulador!$T$68=2,Simulador!$T$62=2),AM104,IF(AND(Simulador!$T$68=2,Simulador!$T$62=3),AN104,AO104))) -> 0.115 | AT104: 0 | AU104: 0 | AV104: 0 | AW104: 0 | AX104: 0 | AZ104: =IFERROR(IF(Simulador!$U$29=1,0,IF($AT104<=0.01,0,$AT104*Simulador!$AA$43)),0)+IFERROR(IF(Simulador!$U$29=1,0,IF($AT104<=0.01,0,IF(Simulador!$D$22>0,Simulador!$D$22,Simulador!$O$24)*Simulador!$AA$44)),0) -> 0 | BB104: 0 | BC104: 0 | BE104: 0 | BF104: 90
A105: 91 | B105: 0 | D105: =IF(B105+F105-D104<=0,B105+F105,IF(AND(OR(Simulador!$U$39=2,Simulador!$U$39=7),J104=0),D104*(1+AA105),IF($AE$3=2,B105*AQ105,D104*(1+AA105)))) -> 0 | F105: 0 | H105: 0 | L105: =IF(Simulador!$T$41=1,0,J105*Simulador!$W$39*1.16) -> 0 | R105: 0 | T105: =IFERROR(IF(Simulador!$U$29=1,0,IF($B105<=0,0,$B105*Simulador!$AA$43)),0) -> 0 | V105: =IFERROR(IF(Simulador!$U$29=1,0,IF($B105<=0,0,IF(Simulador!$D$22>0,Simulador!$D$22,Simulador!$O$24)*Simulador!$AA$44)),0) -> 0 | Y105: 0 | AC105: 7 | AD105: 7 | AE105: 0 | AF105: 0 | AG105: 0 | AH105: 0 | AI105: =IF(Simulador!$T$68=1,'Tabla de amortizacion'!AJ105,'Tabla de amortizacion'!AR105) -> 0.1075 | AJ105: 0.1075 | AK105: 0 | AM105: 0.11 | AN105: 0.115 | AO105: 0.115 | AP105: 0 | AQ105: 0 | AR105: =IF(AND(Simulador!$T$68=2,Simulador!$T$62=1),AL105,IF(AND(Simulador!$T$68=2,Simulador!$T$62=2),AM105,IF(AND(Simulador!$T$68=2,Simulador!$T$62=3),AN105,AO105))) -> 0.115 | AT105: 0 | AU105: 0 | AV105: 0 | AW105: 0 | AX105: 0 | AZ105: =IFERROR(IF(Simulador!$U$29=1,0,IF($AT105<=0.01,0,$AT105*Simulador!$AA$43)),0)+IFERROR(IF(Simulador!$U$29=1,0,IF($AT105<=0.01,0,IF(Simulador!$D$22>0,Simulador!$D$22,Simulador!$O$24)*Simulador!$AA$44)),0) -> 0 | BB105: 0 | BC105: 0 | BE105: 0 | BF105: 91
A106: 92 | B106: 0 | D106: =IF(B106+F106-D105<=0,B106+F106,IF(AND(OR(Simulador!$U$39=2,Simulador!$U$39=7),J105=0),D105*(1+AA106),IF($AE$3=2,B106*AQ106,D105*(1+AA106)))) -> 0 | F106: 0 | H106: 0 | L106: =IF(Simulador!$T$41=1,0,J106*Simulador!$W$39*1.16) -> 0 | N106: =IF(B106-H106=0,0,N104) -> 0 | R106: 0 | T106: =IFERROR(IF(Simulador!$U$29=1,0,IF($B106<=0,0,$B106*Simulador!$AA$43)),0) -> 0 | V106: =IFERROR(IF(Simulador!$U$29=1,0,IF($B106<=0,0,IF(Simulador!$D$22>0,Simulador!$D$22,Simulador!$O$24)*Simulador!$AA$44)),0) -> 0 | Y106: 0 | AC106: 7 | AD106: 8 | AE106: 0 | AF106: 0 | AG106: 0 | AH106: 0 | AI106: =IF(Simulador!$T$68=1,'Tabla de amortizacion'!AJ106,'Tabla de amortizacion'!AR106) -> 0.1075 | AJ106: 0.1075 | AK106: 0 | AM106: 0.11 | AN106: 0.115 | AO106: 0.115 | AP106: 0 | AQ106: 0 | AR106: =IF(AND(Simulador!$T$68=2,Simulador!$T$62=1),AL106,IF(AND(Simulador!$T$68=2,Simulador!$T$62=2),AM106,IF(AND(Simulador!$T$68=2,Simulador!$T$62=3),AN106,AO106))) -> 0.115 | AT106: 0 | AU106: 0 | AV106: 0 | AW106: 0 | AX106: 0 | AZ106: =IFERROR(IF(Simulador!$U$29=1,0,IF($AT106<=0.01,0,$AT106*Simulador!$AA$43)),0)+IFERROR(IF(Simulador!$U$29=1,0,IF($AT106<=0.01,0,IF(Simulador!$D$22>0,Simulador!$D$22,Simulador!$O$24)*Simulador!$AA$44)),0) -> 0 | BB106: 0 | BC106: 0 | BE106: 0 | BF106: 92
A107: 93 | B107: 0 | D107: =IF(B107+F107-D106<=0,B107+F107,IF(AND(OR(Simulador!$U$39=2,Simulador!$U$39=7),J106=0),D106*(1+AA107),IF($AE$3=2,B107*AQ107,D106*(1+AA107)))) -> 0 | F107: 0 | H107: 0 | L107: =IF(Simulador!$T$41=1,0,J107*Simulador!$W$39*1.16) -> 0 | R107: 0 | T107: =IFERROR(IF(Simulador!$U$29=1,0,IF($B107<=0,0,$B107*Simulador!$AA$43)),0) -> 0 | V107: =IFERROR(IF(Simulador!$U$29=1,0,IF($B107<=0,0,IF(Simulador!$D$22>0,Simulador!$D$22,Simulador!$O$24)*Simulador!$AA$44)),0) -> 0 | Y107: 0 | AC107: 7 | AD107: 9 | AE107: 0 | AF107: 0 | AG107: 0 | AH107: 0 | AI107: =IF(Simulador!$T$68=1,'Tabla de amortizacion'!AJ107,'Tabla de amortizacion'!AR107) -> 0.1075 | AJ107: 0.1075 | AK107: 0 | AM107: 0.11 | AN107: 0.115 | AO107: 0.115 | AP107: 0 | AQ107: 0 | AR107: =IF(AND(Simulador!$T$68=2,Simulador!$T$62=1),AL107,IF(AND(Simulador!$T$68=2,Simulador!$T$62=2),AM107,IF(AND(Simulador!$T$68=2,Simulador!$T$62=3),AN107,AO107))) -> 0.115 | AT107: 0 | AU107: 0 | AV107: 0 | AW107: 0 | AX107: 0 | AZ107: =IFERROR(IF(Simulador!$U$29=1,0,IF($AT107<=0.01,0,$AT107*Simulador!$AA$43)),0)+IFERROR(IF(Simulador!$U$29=1,0,IF($AT107<=0.01,0,IF(Simulador!$D$22>0,Simulador!$D$22,Simulador!$O$24)*Simulador!$AA$44)),0) -> 0 | BB107: 0 | BC107: 0 | BE107: 0 | BF107: 93
A108: 94 | B108: 0 | D108: =IF(B108+F108-D107<=0,B108+F108,IF(AND(OR(Simulador!$U$39=2,Simulador!$U$39=7),J107=0),D107*(1+AA108),IF($AE$3=2,B108*AQ108,D107*(1+AA108)))) -> 0 | F108: 0 | H108: 0 | L108: =IF(Simulador!$T$41=1,0,J108*Simulador!$W$39*1.16) -> 0 | N108: =IF(B108-H108=0,0,N106) -> 0 | R108: 0 | T108: =IFERROR(IF(Simulador!$U$29=1,0,IF($B108<=0,0,$B108*Simulador!$AA$43)),0) -> 0 | V108: =IFERROR(IF(Simulador!$U$29=1,0,IF($B108<=0,0,IF(Simulador!$D$22>0,Simulador!$D$22,Simulador!$O$24)*Simulador!$AA$44)),0) -> 0 | Y108: 0 | AC108: 7 | AD108: 10 | AE108: 0 | AF108: 0 | AG108: 0 | AH108: 0 | AI108: =IF(Simulador!$T$68=1,'Tabla de amortizacion'!AJ108,'Tabla de amortizacion'!AR108) -> 0.1075 | AJ108: 0.1075 | AK108: 0 | AM108: 0.11 | AN108: 0.115 | AO108: 0.115 | AP108: 0 | AQ108: 0 | AR108: =IF(AND(Simulador!$T$68=2,Simulador!$T$62=1),AL108,IF(AND(Simulador!$T$68=2,Simulador!$T$62=2),AM108,IF(AND(Simulador!$T$68=2,Simulador!$T$62=3),AN108,AO108))) -> 0.115 | AT108: 0 | AU108: 0 | AV108: 0 | AW108: 0 | AX108: 0 | AZ108: =IFERROR(IF(Simulador!$U$29=1,0,IF($AT108<=0.01,0,$AT108*Simulador!$AA$43)),0)+IFERROR(IF(Simulador!$U$29=1,0,IF($AT108<=0.01,0,IF(Simulador!$D$22>0,Simulador!$D$22,Simulador!$O$24)*Simulador!$AA$44)),0) -> 0 | BB108: 0 | BC108: 0 | BE108: 0 | BF108: 94
A109: 95 | B109: 0 | D109: =IF(B109+F109-D108<=0,B109+F109,IF(AND(OR(Simulador!$U$39=2,Simulador!$U$39=7),J108=0),D108*(1+AA109),IF($AE$3=2,B109*AQ109,D108*(1+AA109)))) -> 0 | F109: 0 | H109: 0 | L109: =IF(Simulador!$T$41=1,0,J109*Simulador!$W$39*1.16) -> 0 | R109: 0 | T109: =IFERROR(IF(Simulador!$U$29=1,0,IF($B109<=0,0,$B109*Simulador!$AA$43)),0) -> 0 | V109: =IFERROR(IF(Simulador!$U$29=1,0,IF($B109<=0,0,IF(Simulador!$D$22>0,Simulador!$D$22,Simulador!$O$24)*Simulador!$AA$44)),0) -> 0 | Y109: 0 | AC109: 7 | AD109: 11 | AE109: 0 | AF109: 0 | AG109: 0 | AH109: 0 | AI109: =IF(Simulador!$T$68=1,'Tabla de amortizacion'!AJ109,'Tabla de amortizacion'!AR109) -> 0.1075 | AJ109: 0.1075 | AK109: 0 | AM109: 0.11 | AN109: 0.115 | AO109: 0.115 | AP109: 0 | AQ109: 0 | AR109: =IF(AND(Simulador!$T$68=2,Simulador!$T$62=1),AL109,IF(AND(Simulador!$T$68=2,Simulador!$T$62=2),AM109,IF(AND(Simulador!$T$68=2,Simulador!$T$62=3),AN109,AO109))) -> 0.115 | AT109: 0 | AU109: 0 | AV109: 0 | AW109: 0 | AX109: 0 | AZ109: =IFERROR(IF(Simulador!$U$29=1,0,IF($AT109<=0.01,0,$AT109*Simulador!$AA$43)),0)+IFERROR(IF(Simulador!$U$29=1,0,IF($AT109<=0.01,0,IF(Simulador!$D$22>0,Simulador!$D$22,Simulador!$O$24)*Simulador!$AA$44)),0) -> 0 | BB109: 0 | BC109: 0 | BE109: 0 | BF109: 95
A110: 96 | B110: 0 | D110: =IF(B110+F110-D109<=0,B110+F110,IF(AND(OR(Simulador!$U$39=2,Simulador!$U$39=7),J109=0),D109*(1+AA110),IF($AE$3=2,B110*AQ110,D109*(1+AA110)))) -> 0 | F110: 0 | H110: 0 | L110: =IF(Simulador!$T$41=1,0,J110*Simulador!$W$39*1.16) -> 0 | N110: =IF(B110-H110=0,0,N108) -> 0 | R110: 0 | T110: =IFERROR(IF(Simulador!$U$29=1,0,IF($B110<=0,0,$B110*Simulador!$AA$43)),0) -> 0 | V110: =IFERROR(IF(Simulador!$U$29=1,0,IF($B110<=0,0,IF(Simulador!$D$22>0,Simulador!$D$22,Simulador!$O$24)*Simulador!$AA$44)),0) -> 0 | Y110: 0 | AC110: 8 | AD110: 0 | AE110: 0 | AF110: 0 | AG110: 0 | AH110: 0 | AI110: =IF(Simulador!$T$68=1,'Tabla de amortizacion'!AJ110,'Tabla de amortizacion'!AR110) -> 0.1075 | AJ110: 0.1075 | AK110: 0 | AM110: 0.11 | AN110: 0.115 | AO110: 0.115 | AP110: 0 | AQ110: 0 | AR110: =IF(AND(Simulador!$T$68=2,Simulador!$T$62=1),AL110,IF(AND(Simulador!$T$68=2,Simulador!$T$62=2),AM110,IF(AND(Simulador!$T$68=2,Simulador!$T$62=3),AN110,AO110))) -> 0.115 | AT110: 0 | AU110: 0 | AV110: 0 | AW110: 0 | AX110: 0 | AZ110: =IFERROR(IF(Simulador!$U$29=1,0,IF($AT110<=0.01,0,$AT110*Simulador!$AA$43)),0)+IFERROR(IF(Simulador!$U$29=1,0,IF($AT110<=0.01,0,IF(Simulador!$D$22>0,Simulador!$D$22,Simulador!$O$24)*Simulador!$AA$44)),0) -> 0 | BB110: 0 | BC110: 0 | BE110: 0 | BF110: 96
A111: 97 | B111: 0 | D111: =IF(B111+F111-D110<=0,B111+F111,IF(AND(OR(Simulador!$U$39=2,Simulador!$U$39=7),J110=0),D110*(1+AA111),IF($AE$3=2,B111*AQ111,D110*(1+AA111)))) -> 0 | F111: 0 | H111: 0 | L111: =IF(Simulador!$T$41=1,0,J111*Simulador!$W$39*1.16) -> 0 | R111: 0 | T111: =IFERROR(IF(Simulador!$U$29=1,0,IF($B111<=0,0,$B111*Simulador!$AA$43)),0) -> 0 | V111: =IFERROR(IF(Simulador!$U$29=1,0,IF($B111<=0,0,IF(Simulador!$D$22>0,Simulador!$D$22,Simulador!$O$24)*Simulador!$AA$44)),0) -> 0 | Y111: 0 | AA111: =IF(B111<=0,0,Simulador!$I$43) -> 0 | AC111: 8 | AD111: 1 | AE111: 0 | AF111: 0 | AG111: 0 | AH111: 0 | AI111: =IF(Simulador!$T$68=1,'Tabla de amortizacion'!AJ111,'Tabla de amortizacion'!AR111) -> 0.1075 | AJ111: =IF(AJ110=$AM$4,AJ110,IF(AJ110-0.25%<=$AM$4,$AM$4,AJ110-0.25%)) -> 0.1075 | AK111: 0 | AM111: 0.11 | AN111: 0.115 | AO111: 0.115 | AP111: 0 | AQ111: 0 | AR111: =IF(AND(Simulador!$T$68=2,Simulador!$T$62=1),AL111,IF(AND(Simulador!$T$68=2,Simulador!$T$62=2),AM111,IF(AND(Simulador!$T$68=2,Simulador!$T$62=3),AN111,AO111))) -> 0.115 | AT111: 0 | AU111: 0 | AV111: 0 | AW111: 0 | AX111: 0 | AZ111: =IFERROR(IF(Simulador!$U$29=1,0,IF($AT111<=0.01,0,$AT111*Simulador!$AA$43)),0)+IFERROR(IF(Simulador!$U$29=1,0,IF($AT111<=0.01,0,IF(Simulador!$D$22>0,Simulador!$D$22,Simulador!$O$24)*Simulador!$AA$44)),0) -> 0 | BA111: =IF(AT111<=0,0,$BA$27) -> 0 | BB111: 0 | BC111: 0 | BE111: 0 | BF111: 97
A112: 98 | B112: 0 | D112: =IF(B112+F112-D111<=0,B112+F112,IF(AND(OR(Simulador!$U$39=2,Simulador!$U$39=7),J111=0),D111*(1+AA112),IF($AE$3=2,B112*AQ112,D111*(1+AA112)))) -> 0 | F112: 0 | H112: 0 | L112: =IF(Simulador!$T$41=1,0,J112*Simulador!$W$39*1.16) -> 0 | N112: =IF(B112-H112=0,0,N110*(1+(Simulador!$AF$77))) -> 0 | R112: 0 | T112: =IFERROR(IF(Simulador!$U$29=1,0,IF($B112<=0,0,$B112*Simulador!$AA$43)),0) -> 0 | V112: =IFERROR(IF(Simulador!$U$29=1,0,IF($B112<=0,0,IF(Simulador!$D$22>0,Simulador!$D$22,Simulador!$O$24)*Simulador!$AA$44)),0) -> 0 | Y112: 0 | AC112: 8 | AD112: 2 | AE112: 0 | AF112: 0 | AG112: 0 | AH112: 0 | AI112: =IF(Simulador!$T$68=1,'Tabla de amortizacion'!AJ112,'Tabla de amortizacion'!AR112) -> 0.1075 | AJ112: =AJ111 -> 0.1075 | AK112: 0 | AM112: 0.11 | AN112: 0.115 | AO112: 0.115 | AP112: 0 | AQ112: 0 | AR112: =IF(AND(Simulador!$T$68=2,Simulador!$T$62=1),AL112,IF(AND(Simulador!$T$68=2,Simulador!$T$62=2),AM112,IF(AND(Simulador!$T$68=2,Simulador!$T$62=3),AN112,AO112))) -> 0.115 | AT112: 0 | AU112: 0 | AV112: 0 | AW112: 0 | AX112: 0 | AZ112: =IFERROR(IF(Simulador!$U$29=1,0,IF($AT112<=0.01,0,$AT112*Simulador!$AA$43)),0)+IFERROR(IF(Simulador!$U$29=1,0,IF($AT112<=0.01,0,IF(Simulador!$D$22>0,Simulador!$D$22,Simulador!$O$24)*Simulador!$AA$44)),0) -> 0 | BB112: 0 | BC112: 0 | BE112: 0 | BF112: 98
A113: 99 | B113: 0 | D113: =IF(B113+F113-D112<=0,B113+F113,IF(AND(OR(Simulador!$U$39=2,Simulador!$U$39=7),J112=0),D112*(1+AA113),IF($AE$3=2,B113*AQ113,D112*(1+AA113)))) -> 0 | F113: 0 | H113: 0 | L113: =IF(Simulador!$T$41=1,0,J113*Simulador!$W$39*1.16) -> 0 | R113: 0 | T113: =IFERROR(IF(Simulador!$U$29=1,0,IF($B113<=0,0,$B113*Simulador!$AA$43)),0) -> 0 | V113: =IFERROR(IF(Simulador!$U$29=1,0,IF($B113<=0,0,IF(Simulador!$D$22>0,Simulador!$D$22,Simulador!$O$24)*Simulador!$AA$44)),0) -> 0 | Y113: 0 | AC113: 8 | AD113: 3 | AE113: 0 | AF113: 0 | AG113: 0 | AH113: 0 | AI113: =IF(Simulador!$T$68=1,'Tabla de amortizacion'!AJ113,'Tabla de amortizacion'!AR113) -> 0.1075 | AJ113: =AJ112 -> 0.1075 | AK113: 0 | AM113: 0.11 | AN113: 0.115 | AO113: 0.115 | AP113: 0 | AQ113: 0 | AR113: =IF(AND(Simulador!$T$68=2,Simulador!$T$62=1),AL113,IF(AND(Simulador!$T$68=2,Simulador!$T$62=2),AM113,IF(AND(Simulador!$T$68=2,Simulador!$T$62=3),AN113,AO113))) -> 0.115 | AT113: 0 | AU113: 0 | AV113: 0 | AW113: 0 | AX113: 0 | AZ113: =IFERROR(IF(Simulador!$U$29=1,0,IF($AT113<=0.01,0,$AT113*Simulador!$AA$43)),0)+IFERROR(IF(Simulador!$U$29=1,0,IF($AT113<=0.01,0,IF(Simulador!$D$22>0,Simulador!$D$22,Simulador!$O$24)*Simulador!$AA$44)),0) -> 0 | BB113: 0 | BC113: 0 | BE113: 0 | BF113: 99
A114: 100 | B114: 0 | D114: =IF(B114+F114-D113<=0,B114+F114,IF(AND(OR(Simulador!$U$39=2,Simulador!$U$39=7),J113=0),D113*(1+AA114),IF($AE$3=2,B114*AQ114,D113*(1+AA114)))) -> 0 | F114: 0 | H114: 0 | L114: =IF(Simulador!$T$41=1,0,J114*Simulador!$W$39*1.16) -> 0 | N114: =IF(B114-H114=0,0,N112) -> 0 | R114: 0 | T114: =IFERROR(IF(Simulador!$U$29=1,0,IF($B114<=0,0,$B114*Simulador!$AA$43)),0) -> 0 | V114: =IFERROR(IF(Simulador!$U$29=1,0,IF($B114<=0,0,IF(Simulador!$D$22>0,Simulador!$D$22,Simulador!$O$24)*Simulador!$AA$44)),0) -> 0 | Y114: 0 | AC114: 8 | AD114: 4 | AE114: 0 | AF114: 0 | AG114: 0 | AH114: 0 | AI114: =IF(Simulador!$T$68=1,'Tabla de amortizacion'!AJ114,'Tabla de amortizacion'!AR114) -> 0.1075 | AJ114: 0.1075 | AK114: 0 | AM114: 0.11 | AN114: 0.115 | AO114: 0.115 | AP114: 0 | AQ114: 0 | AR114: =IF(AND(Simulador!$T$68=2,Simulador!$T$62=1),AL114,IF(AND(Simulador!$T$68=2,Simulador!$T$62=2),AM114,IF(AND(Simulador!$T$68=2,Simulador!$T$62=3),AN114,AO114))) -> 0.115 | AT114: 0 | AU114: 0 | AV114: 0 | AW114: 0 | AX114: 0 | AZ114: =IFERROR(IF(Simulador!$U$29=1,0,IF($AT114<=0.01,0,$AT114*Simulador!$AA$43)),0)+IFERROR(IF(Simulador!$U$29=1,0,IF($AT114<=0.01,0,IF(Simulador!$D$22>0,Simulador!$D$22,Simulador!$O$24)*Simulador!$AA$44)),0) -> 0 | BB114: 0 | BC114: 0 | BE114: 0 | BF114: 100
A115: 101 | B115: 0 | D115: =IF(B115+F115-D114<=0,B115+F115,IF(AND(OR(Simulador!$U$39=2,Simulador!$U$39=7),J114=0),D114*(1+AA115),IF($AE$3=2,B115*AQ115,D114*(1+AA115)))) -> 0 | F115: 0 | H115: 0 | L115: =IF(Simulador!$T$41=1,0,J115*Simulador!$W$39*1.16) -> 0 | R115: 0 | T115: =IFERROR(IF(Simulador!$U$29=1,0,IF($B115<=0,0,$B115*Simulador!$AA$43)),0) -> 0 | V115: =IFERROR(IF(Simulador!$U$29=1,0,IF($B115<=0,0,IF(Simulador!$D$22>0,Simulador!$D$22,Simulador!$O$24)*Simulador!$AA$44)),0) -> 0 | Y115: 0 | AC115: 8 | AD115: 5 | AE115: 0 | AF115: 0 | AG115: 0 | AH115: 0 | AI115: =IF(Simulador!$T$68=1,'Tabla de amortizacion'!AJ115,'Tabla de amortizacion'!AR115) -> 0.1075 | AJ115: 0.1075 | AK115: 0 | AM115: 0.11 | AN115: 0.115 | AO115: 0.115 | AP115: 0 | AQ115: 0 | AR115: =IF(AND(Simulador!$T$68=2,Simulador!$T$62=1),AL115,IF(AND(Simulador!$T$68=2,Simulador!$T$62=2),AM115,IF(AND(Simulador!$T$68=2,Simulador!$T$62=3),AN115,AO115))) -> 0.115 | AT115: 0 | AU115: 0 | AV115: 0 | AW115: 0 | AX115: 0 | AZ115: =IFERROR(IF(Simulador!$U$29=1,0,IF($AT115<=0.01,0,$AT115*Simulador!$AA$43)),0)+IFERROR(IF(Simulador!$U$29=1,0,IF($AT115<=0.01,0,IF(Simulador!$D$22>0,Simulador!$D$22,Simulador!$O$24)*Simulador!$AA$44)),0) -> 0 | BB115: 0 | BC115: 0 | BE115: 0 | BF115: 101
A116: 102 | B116: 0 | D116: =IF(B116+F116-D115<=0,B116+F116,IF(AND(OR(Simulador!$U$39=2,Simulador!$U$39=7),J115=0),D115*(1+AA116),IF($AE$3=2,B116*AQ116,D115*(1+AA116)))) -> 0 | F116: 0 | H116: 0 | L116: =IF(Simulador!$T$41=1,0,J116*Simulador!$W$39*1.16) -> 0 | N116: =IF(B116-H116=0,0,N114) -> 0 | R116: 0 | T116: =IFERROR(IF(Simulador!$U$29=1,0,IF($B116<=0,0,$B116*Simulador!$AA$43)),0) -> 0 | V116: =IFERROR(IF(Simulador!$U$29=1,0,IF($B116<=0,0,IF(Simulador!$D$22>0,Simulador!$D$22,Simulador!$O$24)*Simulador!$AA$44)),0) -> 0 | Y116: 0 | AC116: 8 | AD116: 6 | AE116: 0 | AF116: 0 | AG116: 0 | AH116: 0 | AI116: =IF(Simulador!$T$68=1,'Tabla de amortizacion'!AJ116,'Tabla de amortizacion'!AR116) -> 0.1075 | AJ116: 0.1075 | AK116: 0 | AM116: 0.11 | AN116: 0.115 | AO116: 0.115 | AP116: 0 | AQ116: 0 | AR116: =IF(AND(Simulador!$T$68=2,Simulador!$T$62=1),AL116,IF(AND(Simulador!$T$68=2,Simulador!$T$62=2),AM116,IF(AND(Simulador!$T$68=2,Simulador!$T$62=3),AN116,AO116))) -> 0.115 | AT116: 0 | AU116: 0 | AV116: 0 | AW116: 0 | AX116: 0 | AZ116: =IFERROR(IF(Simulador!$U$29=1,0,IF($AT116<=0.01,0,$AT116*Simulador!$AA$43)),0)+IFERROR(IF(Simulador!$U$29=1,0,IF($AT116<=0.01,0,IF(Simulador!$D$22>0,Simulador!$D$22,Simulador!$O$24)*Simulador!$AA$44)),0) -> 0 | BB116: 0 | BC116: 0 | BE116: 0 | BF116: 102
A117: 103 | B117: 0 | D117: =IF(B117+F117-D116<=0,B117+F117,IF(AND(OR(Simulador!$U$39=2,Simulador!$U$39=7),J116=0),D116*(1+AA117),IF($AE$3=2,B117*AQ117,D116*(1+AA117)))) -> 0 | F117: 0 | H117: 0 | L117: =IF(Simulador!$T$41=1,0,J117*Simulador!$W$39*1.16) -> 0 | R117: 0 | T117: =IFERROR(IF(Simulador!$U$29=1,0,IF($B117<=0,0,$B117*Simulador!$AA$43)),0) -> 0 | V117: =IFERROR(IF(Simulador!$U$29=1,0,IF($B117<=0,0,IF(Simulador!$D$22>0,Simulador!$D$22,Simulador!$O$24)*Simulador!$AA$44)),0) -> 0 | Y117: 0 | AC117: 8 | AD117: 7 | AE117: 0 | AF117: 0 | AG117: 0 | AH117: 0 | AI117: =IF(Simulador!$T$68=1,'Tabla de amortizacion'!AJ117,'Tabla de amortizacion'!AR117) -> 0.1075 | AJ117: 0.1075 | AK117: 0 | AM117: 0.11 | AN117: 0.115 | AO117: 0.115 | AP117: 0 | AQ117: 0 | AR117: =IF(AND(Simulador!$T$68=2,Simulador!$T$62=1),AL117,IF(AND(Simulador!$T$68=2,Simulador!$T$62=2),AM117,IF(AND(Simulador!$T$68=2,Simulador!$T$62=3),AN117,AO117))) -> 0.115 | AT117: 0 | AU117: 0 | AV117: 0 | AW117: 0 | AX117: 0 | AZ117: =IFERROR(IF(Simulador!$U$29=1,0,IF($AT117<=0.01,0,$AT117*Simulador!$AA$43)),0)+IFERROR(IF(Simulador!$U$29=1,0,IF($AT117<=0.01,0,IF(Simulador!$D$22>0,Simulador!$D$22,Simulador!$O$24)*Simulador!$AA$44)),0) -> 0 | BB117: 0 | BC117: 0 | BE117: 0 | BF117: 103
A118: 104 | B118: 0 | D118: =IF(B118+F118-D117<=0,B118+F118,IF(AND(OR(Simulador!$U$39=2,Simulador!$U$39=7),J117=0),D117*(1+AA118),IF($AE$3=2,B118*AQ118,D117*(1+AA118)))) -> 0 | F118: 0 | H118: 0 | L118: =IF(Simulador!$T$41=1,0,J118*Simulador!$W$39*1.16) -> 0 | N118: =IF(B118-H118=0,0,N116) -> 0 | R118: 0 | T118: =IFERROR(IF(Simulador!$U$29=1,0,IF($B118<=0,0,$B118*Simulador!$AA$43)),0) -> 0 | V118: =IFERROR(IF(Simulador!$U$29=1,0,IF($B118<=0,0,IF(Simulador!$D$22>0,Simulador!$D$22,Simulador!$O$24)*Simulador!$AA$44)),0) -> 0 | Y118: 0 | AC118: 8 | AD118: 8 | AE118: 0 | AF118: 0 | AG118: 0 | AH118: 0 | AI118: =IF(Simulador!$T$68=1,'Tabla de amortizacion'!AJ118,'Tabla de amortizacion'!AR118) -> 0.1075 | AJ118: 0.1075 | AK118: 0 | AM118: 0.11 | AN118: 0.115 | AO118: 0.115 | AP118: 0 | AQ118: 0 | AR118: =IF(AND(Simulador!$T$68=2,Simulador!$T$62=1),AL118,IF(AND(Simulador!$T$68=2,Simulador!$T$62=2),AM118,IF(AND(Simulador!$T$68=2,Simulador!$T$62=3),AN118,AO118))) -> 0.115 | AT118: 0 | AU118: 0 | AV118: 0 | AW118: 0 | AX118: 0 | AZ118: =IFERROR(IF(Simulador!$U$29=1,0,IF($AT118<=0.01,0,$AT118*Simulador!$AA$43)),0)+IFERROR(IF(Simulador!$U$29=1,0,IF($AT118<=0.01,0,IF(Simulador!$D$22>0,Simulador!$D$22,Simulador!$O$24)*Simulador!$AA$44)),0) -> 0 | BB118: 0 | BC118: 0 | BE118: 0 | BF118: 104
A119: 105 | B119: 0 | D119: =IF(B119+F119-D118<=0,B119+F119,IF(AND(OR(Simulador!$U$39=2,Simulador!$U$39=7),J118=0),D118*(1+AA119),IF($AE$3=2,B119*AQ119,D118*(1+AA119)))) -> 0 | F119: 0 | H119: 0 | L119: =IF(Simulador!$T$41=1,0,J119*Simulador!$W$39*1.16) -> 0 | R119: 0 | T119: =IFERROR(IF(Simulador!$U$29=1,0,IF($B119<=0,0,$B119*Simulador!$AA$43)),0) -> 0 | V119: =IFERROR(IF(Simulador!$U$29=1,0,IF($B119<=0,0,IF(Simulador!$D$22>0,Simulador!$D$22,Simulador!$O$24)*Simulador!$AA$44)),0) -> 0 | Y119: 0 | AC119: 8 | AD119: 9 | AE119: 0 | AF119: 0 | AG119: 0 | AH119: 0 | AI119: =IF(Simulador!$T$68=1,'Tabla de amortizacion'!AJ119,'Tabla de amortizacion'!AR119) -> 0.1075 | AJ119: 0.1075 | AK119: 0 | AM119: 0.11 | AN119: 0.115 | AO119: 0.115 | AP119: 0 | AQ119: 0 | AR119: =IF(AND(Simulador!$T$68=2,Simulador!$T$62=1),AL119,IF(AND(Simulador!$T$68=2,Simulador!$T$62=2),AM119,IF(AND(Simulador!$T$68=2,Simulador!$T$62=3),AN119,AO119))) -> 0.115 | AT119: 0 | AU119: 0 | AV119: 0 | AW119: 0 | AX119: 0 | AZ119: =IFERROR(IF(Simulador!$U$29=1,0,IF($AT119<=0.01,0,$AT119*Simulador!$AA$43)),0)+IFERROR(IF(Simulador!$U$29=1,0,IF($AT119<=0.01,0,IF(Simulador!$D$22>0,Simulador!$D$22,Simulador!$O$24)*Simulador!$AA$44)),0) -> 0 | BB119: 0 | BC119: 0 | BE119: 0 | BF119: 105
A120: 106 | B120: 0 | D120: =IF(B120+F120-D119<=0,B120+F120,IF(AND(OR(Simulador!$U$39=2,Simulador!$U$39=7),J119=0),D119*(1+AA120),IF($AE$3=2,B120*AQ120,D119*(1+AA120)))) -> 0 | F120: 0 | H120: 0 | L120: =IF(Simulador!$T$41=1,0,J120*Simulador!$W$39*1.16) -> 0 | N120: =IF(B120-H120=0,0,N118) -> 0 | R120: 0 | T120: =IFERROR(IF(Simulador!$U$29=1,0,IF($B120<=0,0,$B120*Simulador!$AA$43)),0) -> 0 | V120: =IFERROR(IF(Simulador!$U$29=1,0,IF($B120<=0,0,IF(Simulador!$D$22>0,Simulador!$D$22,Simulador!$O$24)*Simulador!$AA$44)),0) -> 0 | Y120: 0 | AC120: 8 | AD120: 10 | AE120: 0 | AF120: 0 | AG120: 0 | AH120: 0 | AI120: =IF(Simulador!$T$68=1,'Tabla de amortizacion'!AJ120,'Tabla de amortizacion'!AR120) -> 0.1075 | AJ120: 0.1075 | AK120: 0 | AM120: 0.11 | AN120: 0.115 | AO120: 0.115 | AP120: 0 | AQ120: 0 | AR120: =IF(AND(Simulador!$T$68=2,Simulador!$T$62=1),AL120,IF(AND(Simulador!$T$68=2,Simulador!$T$62=2),AM120,IF(AND(Simulador!$T$68=2,Simulador!$T$62=3),AN120,AO120))) -> 0.115 | AT120: 0 | AU120: 0 | AV120: 0 | AW120: 0 | AX120: 0 | AZ120: =IFERROR(IF(Simulador!$U$29=1,0,IF($AT120<=0.01,0,$AT120*Simulador!$AA$43)),0)+IFERROR(IF(Simulador!$U$29=1,0,IF($AT120<=0.01,0,IF(Simulador!$D$22>0,Simulador!$D$22,Simulador!$O$24)*Simulador!$AA$44)),0) -> 0 | BB120: 0 | BC120: 0 | BE120: 0 | BF120: 106
A121: 107 | B121: 0 | D121: =IF(B121+F121-D120<=0,B121+F121,IF(AND(OR(Simulador!$U$39=2,Simulador!$U$39=7),J120=0),D120*(1+AA121),IF($AE$3=2,B121*AQ121,D120*(1+AA121)))) -> 0 | F121: 0 | H121: 0 | L121: =IF(Simulador!$T$41=1,0,J121*Simulador!$W$39*1.16) -> 0 | R121: 0 | T121: =IFERROR(IF(Simulador!$U$29=1,0,IF($B121<=0,0,$B121*Simulador!$AA$43)),0) -> 0 | V121: =IFERROR(IF(Simulador!$U$29=1,0,IF($B121<=0,0,IF(Simulador!$D$22>0,Simulador!$D$22,Simulador!$O$24)*Simulador!$AA$44)),0) -> 0 | Y121: 0 | AC121: 8 | AD121: 11 | AE121: 0 | AF121: 0 | AG121: 0 | AH121: 0 | AI121: =IF(Simulador!$T$68=1,'Tabla de amortizacion'!AJ121,'Tabla de amortizacion'!AR121) -> 0.1075 | AJ121: 0.1075 | AK121: 0 | AM121: 0.11 | AN121: 0.115 | AO121: 0.115 | AP121: 0 | AQ121: 0 | AR121: =IF(AND(Simulador!$T$68=2,Simulador!$T$62=1),AL121,IF(AND(Simulador!$T$68=2,Simulador!$T$62=2),AM121,IF(AND(Simulador!$T$68=2,Simulador!$T$62=3),AN121,AO121))) -> 0.115 | AT121: 0 | AU121: 0 | AV121: 0 | AW121: 0 | AX121: 0 | AZ121: =IFERROR(IF(Simulador!$U$29=1,0,IF($AT121<=0.01,0,$AT121*Simulador!$AA$43)),0)+IFERROR(IF(Simulador!$U$29=1,0,IF($AT121<=0.01,0,IF(Simulador!$D$22>0,Simulador!$D$22,Simulador!$O$24)*Simulador!$AA$44)),0) -> 0 | BB121: 0 | BC121: 0 | BE121: 0 | BF121: 107
A122: 108 | B122: 0 | D122: =IF(B122+F122-D121<=0,B122+F122,IF(AND(OR(Simulador!$U$39=2,Simulador!$U$39=7),J121=0),D121*(1+AA122),IF($AE$3=2,B122*AQ122,D121*(1+AA122)))) -> 0 | F122: 0 | H122: 0 | L122: =IF(Simulador!$T$41=1,0,J122*Simulador!$W$39*1.16) -> 0 | N122: =IF(B122-H122=0,0,N120) -> 0 | R122: 0 | T122: =IFERROR(IF(Simulador!$U$29=1,0,IF($B122<=0,0,$B122*Simulador!$AA$43)),0) -> 0 | V122: =IFERROR(IF(Simulador!$U$29=1,0,IF($B122<=0,0,IF(Simulador!$D$22>0,Simulador!$D$22,Simulador!$O$24)*Simulador!$AA$44)),0) -> 0 | Y122: 0 | AC122: 9 | AD122: 0 | AE122: 0 | AF122: 0 | AG122: 0 | AH122: 0 | AI122: =IF(Simulador!$T$68=1,'Tabla de amortizacion'!AJ122,'Tabla de amortizacion'!AR122) -> 0.1075 | AJ122: 0.1075 | AK122: 0 | AM122: 0.11 | AN122: 0.115 | AO122: 0.115 | AP122: 0 | AQ122: 0 | AR122: =IF(AND(Simulador!$T$68=2,Simulador!$T$62=1),AL122,IF(AND(Simulador!$T$68=2,Simulador!$T$62=2),AM122,IF(AND(Simulador!$T$68=2,Simulador!$T$62=3),AN122,AO122))) -> 0.115 | AT122: 0 | AU122: 0 | AV122: 0 | AW122: 0 | AX122: 0 | AZ122: =IFERROR(IF(Simulador!$U$29=1,0,IF($AT122<=0.01,0,$AT122*Simulador!$AA$43)),0)+IFERROR(IF(Simulador!$U$29=1,0,IF($AT122<=0.01,0,IF(Simulador!$D$22>0,Simulador!$D$22,Simulador!$O$24)*Simulador!$AA$44)),0) -> 0 | BB122: 0 | BC122: 0 | BE122: 0 | BF122: 108
A123: 109 | B123: 0 | D123: =IF(B123+F123-D122<=0,B123+F123,IF(AND(OR(Simulador!$U$39=2,Simulador!$U$39=7),J122=0),D122*(1+AA123),IF($AE$3=2,B123*AQ123,D122*(1+AA123)))) -> 0 | F123: 0 | H123: 0 | L123: =IF(Simulador!$T$41=1,0,J123*Simulador!$W$39*1.16) -> 0 | R123: 0 | T123: =IFERROR(IF(Simulador!$U$29=1,0,IF($B123<=0,0,$B123*Simulador!$AA$43)),0) -> 0 | V123: =IFERROR(IF(Simulador!$U$29=1,0,IF($B123<=0,0,IF(Simulador!$D$22>0,Simulador!$D$22,Simulador!$O$24)*Simulador!$AA$44)),0) -> 0 | Y123: 0 | AA123: =IF(B123<=0,0,Simulador!$I$43) -> 0 | AC123: 9 | AD123: 1 | AE123: 0 | AF123: 0 | AG123: 0 | AH123: 0 | AI123: =IF(Simulador!$T$68=1,'Tabla de amortizacion'!AJ123,'Tabla de amortizacion'!AR123) -> 0.1075 | AJ123: =IF(AJ122=$AM$4,AJ122,IF(AJ122-0.25%<=$AM$4,$AM$4,AJ122-0.25%)) -> 0.1075 | AK123: 0 | AM123: 0.11 | AN123: 0.115 | AO123: 0.115 | AP123: 0 | AQ123: 0 | AR123: =IF(AND(Simulador!$T$68=2,Simulador!$T$62=1),AL123,IF(AND(Simulador!$T$68=2,Simulador!$T$62=2),AM123,IF(AND(Simulador!$T$68=2,Simulador!$T$62=3),AN123,AO123))) -> 0.115 | AT123: 0 | AU123: 0 | AV123: 0 | AW123: 0 | AX123: 0 | AZ123: =IFERROR(IF(Simulador!$U$29=1,0,IF($AT123<=0.01,0,$AT123*Simulador!$AA$43)),0)+IFERROR(IF(Simulador!$U$29=1,0,IF($AT123<=0.01,0,IF(Simulador!$D$22>0,Simulador!$D$22,Simulador!$O$24)*Simulador!$AA$44)),0) -> 0 | BA123: =IF(AT123<=0,0,$BA$27) -> 0 | BB123: 0 | BC123: 0 | BE123: 0 | BF123: 109
A124: 110 | B124: 0 | D124: =IF(B124+F124-D123<=0,B124+F124,IF(AND(OR(Simulador!$U$39=2,Simulador!$U$39=7),J123=0),D123*(1+AA124),IF($AE$3=2,B124*AQ124,D123*(1+AA124)))) -> 0 | F124: 0 | H124: 0 | L124: =IF(Simulador!$T$41=1,0,J124*Simulador!$W$39*1.16) -> 0 | N124: =IF(B124-H124=0,0,N122*(1+(Simulador!$AF$77))) -> 0 | R124: 0 | T124: =IFERROR(IF(Simulador!$U$29=1,0,IF($B124<=0,0,$B124*Simulador!$AA$43)),0) -> 0 | V124: =IFERROR(IF(Simulador!$U$29=1,0,IF($B124<=0,0,IF(Simulador!$D$22>0,Simulador!$D$22,Simulador!$O$24)*Simulador!$AA$44)),0) -> 0 | Y124: 0 | AC124: 9 | AD124: 2 | AE124: 0 | AF124: 0 | AG124: 0 | AH124: 0 | AI124: =IF(Simulador!$T$68=1,'Tabla de amortizacion'!AJ124,'Tabla de amortizacion'!AR124) -> 0.1075 | AJ124: =AJ123 -> 0.1075 | AK124: 0 | AM124: 0.11 | AN124: 0.115 | AO124: 0.115 | AP124: 0 | AQ124: 0 | AR124: =IF(AND(Simulador!$T$68=2,Simulador!$T$62=1),AL124,IF(AND(Simulador!$T$68=2,Simulador!$T$62=2),AM124,IF(AND(Simulador!$T$68=2,Simulador!$T$62=3),AN124,AO124))) -> 0.115 | AT124: 0 | AU124: 0 | AV124: 0 | AW124: 0 | AX124: 0 | AZ124: =IFERROR(IF(Simulador!$U$29=1,0,IF($AT124<=0.01,0,$AT124*Simulador!$AA$43)),0)+IFERROR(IF(Simulador!$U$29=1,0,IF($AT124<=0.01,0,IF(Simulador!$D$22>0,Simulador!$D$22,Simulador!$O$24)*Simulador!$AA$44)),0) -> 0 | BB124: 0 | BC124: 0 | BE124: 0 | BF124: 110
A125: 111 | B125: 0 | D125: =IF(B125+F125-D124<=0,B125+F125,IF(AND(OR(Simulador!$U$39=2,Simulador!$U$39=7),J124=0),D124*(1+AA125),IF($AE$3=2,B125*AQ125,D124*(1+AA125)))) -> 0 | F125: 0 | H125: 0 | L125: =IF(Simulador!$T$41=1,0,J125*Simulador!$W$39*1.16) -> 0 | R125: 0 | T125: =IFERROR(IF(Simulador!$U$29=1,0,IF($B125<=0,0,$B125*Simulador!$AA$43)),0) -> 0 | V125: =IFERROR(IF(Simulador!$U$29=1,0,IF($B125<=0,0,IF(Simulador!$D$22>0,Simulador!$D$22,Simulador!$O$24)*Simulador!$AA$44)),0) -> 0 | Y125: 0 | AC125: 9 | AD125: 3 | AE125: 0 | AF125: 0 | AG125: 0 | AH125: 0 | AI125: =IF(Simulador!$T$68=1,'Tabla de amortizacion'!AJ125,'Tabla de amortizacion'!AR125) -> 0.1075 | AJ125: =AJ124 -> 0.1075 | AK125: 0 | AM125: 0.11 | AN125: 0.115 | AO125: 0.115 | AP125: 0 | AQ125: 0 | AR125: =IF(AND(Simulador!$T$68=2,Simulador!$T$62=1),AL125,IF(AND(Simulador!$T$68=2,Simulador!$T$62=2),AM125,IF(AND(Simulador!$T$68=2,Simulador!$T$62=3),AN125,AO125))) -> 0.115 | AT125: 0 | AU125: 0 | AV125: 0 | AW125: 0 | AX125: 0 | AZ125: =IFERROR(IF(Simulador!$U$29=1,0,IF($AT125<=0.01,0,$AT125*Simulador!$AA$43)),0)+IFERROR(IF(Simulador!$U$29=1,0,IF($AT125<=0.01,0,IF(Simulador!$D$22>0,Simulador!$D$22,Simulador!$O$24)*Simulador!$AA$44)),0) -> 0 | BB125: 0 | BC125: 0 | BE125: 0 | BF125: 111
A126: 112 | B126: 0 | D126: =IF(B126+F126-D125<=0,B126+F126,IF(AND(OR(Simulador!$U$39=2,Simulador!$U$39=7),J125=0),D125*(1+AA126),IF($AE$3=2,B126*AQ126,D125*(1+AA126)))) -> 0 | F126: 0 | H126: 0 | L126: =IF(Simulador!$T$41=1,0,J126*Simulador!$W$39*1.16) -> 0 | N126: =IF(B126-H126=0,0,N124) -> 0 | R126: 0 | T126: =IFERROR(IF(Simulador!$U$29=1,0,IF($B126<=0,0,$B126*Simulador!$AA$43)),0) -> 0 | V126: =IFERROR(IF(Simulador!$U$29=1,0,IF($B126<=0,0,IF(Simulador!$D$22>0,Simulador!$D$22,Simulador!$O$24)*Simulador!$AA$44)),0) -> 0 | Y126: 0 | AC126: 9 | AD126: 4 | AE126: 0 | AF126: 0 | AG126: 0 | AH126: 0 | AI126: =IF(Simulador!$T$68=1,'Tabla de amortizacion'!AJ126,'Tabla de amortizacion'!AR126) -> 0.1075 | AJ126: 0.1075 | AK126: 0 | AM126: 0.11 | AN126: 0.115 | AO126: 0.115 | AP126: 0 | AQ126: 0 | AR126: =IF(AND(Simulador!$T$68=2,Simulador!$T$62=1),AL126,IF(AND(Simulador!$T$68=2,Simulador!$T$62=2),AM126,IF(AND(Simulador!$T$68=2,Simulador!$T$62=3),AN126,AO126))) -> 0.115 | AT126: 0 | AU126: 0 | AV126: 0 | AW126: 0 | AX126: 0 | AZ126: =IFERROR(IF(Simulador!$U$29=1,0,IF($AT126<=0.01,0,$AT126*Simulador!$AA$43)),0)+IFERROR(IF(Simulador!$U$29=1,0,IF($AT126<=0.01,0,IF(Simulador!$D$22>0,Simulador!$D$22,Simulador!$O$24)*Simulador!$AA$44)),0) -> 0 | BB126: 0 | BC126: 0 | BE126: 0 | BF126: 112
A127: 113 | B127: 0 | D127: =IF(B127+F127-D126<=0,B127+F127,IF(AND(OR(Simulador!$U$39=2,Simulador!$U$39=7),J126=0),D126*(1+AA127),IF($AE$3=2,B127*AQ127,D126*(1+AA127)))) -> 0 | F127: 0 | H127: 0 | L127: =IF(Simulador!$T$41=1,0,J127*Simulador!$W$39*1.16) -> 0 | R127: 0 | T127: =IFERROR(IF(Simulador!$U$29=1,0,IF($B127<=0,0,$B127*Simulador!$AA$43)),0) -> 0 | V127: =IFERROR(IF(Simulador!$U$29=1,0,IF($B127<=0,0,IF(Simulador!$D$22>0,Simulador!$D$22,Simulador!$O$24)*Simulador!$AA$44)),0) -> 0 | Y127: 0 | AC127: 9 | AD127: 5 | AE127: 0 | AF127: 0 | AG127: 0 | AH127: 0 | AI127: =IF(Simulador!$T$68=1,'Tabla de amortizacion'!AJ127,'Tabla de amortizacion'!AR127) -> 0.1075 | AJ127: 0.1075 | AK127: 0 | AM127: 0.11 | AN127: 0.115 | AO127: 0.115 | AP127: 0 | AQ127: 0 | AR127: =IF(AND(Simulador!$T$68=2,Simulador!$T$62=1),AL127,IF(AND(Simulador!$T$68=2,Simulador!$T$62=2),AM127,IF(AND(Simulador!$T$68=2,Simulador!$T$62=3),AN127,AO127))) -> 0.115 | AT127: 0 | AU127: 0 | AV127: 0 | AW127: 0 | AX127: 0 | AZ127: =IFERROR(IF(Simulador!$U$29=1,0,IF($AT127<=0.01,0,$AT127*Simulador!$AA$43)),0)+IFERROR(IF(Simulador!$U$29=1,0,IF($AT127<=0.01,0,IF(Simulador!$D$22>0,Simulador!$D$22,Simulador!$O$24)*Simulador!$AA$44)),0) -> 0 | BB127: 0 | BC127: 0 | BE127: 0 | BF127: 113
A128: 114 | B128: 0 | D128: =IF(B128+F128-D127<=0,B128+F128,IF(AND(OR(Simulador!$U$39=2,Simulador!$U$39=7),J127=0),D127*(1+AA128),IF($AE$3=2,B128*AQ128,D127*(1+AA128)))) -> 0 | F128: 0 | H128: 0 | L128: =IF(Simulador!$T$41=1,0,J128*Simulador!$W$39*1.16) -> 0 | N128: =IF(B128-H128=0,0,N126) -> 0 | R128: 0 | T128: =IFERROR(IF(Simulador!$U$29=1,0,IF($B128<=0,0,$B128*Simulador!$AA$43)),0) -> 0 | V128: =IFERROR(IF(Simulador!$U$29=1,0,IF($B128<=0,0,IF(Simulador!$D$22>0,Simulador!$D$22,Simulador!$O$24)*Simulador!$AA$44)),0) -> 0 | Y128: 0 | AC128: 9 | AD128: 6 | AE128: 0 | AF128: 0 | AG128: 0 | AH128: 0 | AI128: =IF(Simulador!$T$68=1,'Tabla de amortizacion'!AJ128,'Tabla de amortizacion'!AR128) -> 0.1075 | AJ128: 0.1075 | AK128: 0 | AM128: 0.11 | AN128: 0.115 | AO128: 0.115 | AP128: 0 | AQ128: 0 | AR128: =IF(AND(Simulador!$T$68=2,Simulador!$T$62=1),AL128,IF(AND(Simulador!$T$68=2,Simulador!$T$62=2),AM128,IF(AND(Simulador!$T$68=2,Simulador!$T$62=3),AN128,AO128))) -> 0.115 | AT128: 0 | AU128: 0 | AV128: 0 | AW128: 0 | AX128: 0 | AZ128: =IFERROR(IF(Simulador!$U$29=1,0,IF($AT128<=0.01,0,$AT128*Simulador!$AA$43)),0)+IFERROR(IF(Simulador!$U$29=1,0,IF($AT128<=0.01,0,IF(Simulador!$D$22>0,Simulador!$D$22,Simulador!$O$24)*Simulador!$AA$44)),0) -> 0 | BB128: 0 | BC128: 0 | BE128: 0 | BF128: 114
A129: 115 | B129: 0 | D129: =IF(B129+F129-D128<=0,B129+F129,IF(AND(OR(Simulador!$U$39=2,Simulador!$U$39=7),J128=0),D128*(1+AA129),IF($AE$3=2,B129*AQ129,D128*(1+AA129)))) -> 0 | F129: 0 | H129: 0 | L129: =IF(Simulador!$T$41=1,0,J129*Simulador!$W$39*1.16) -> 0 | R129: 0 | T129: =IFERROR(IF(Simulador!$U$29=1,0,IF($B129<=0,0,$B129*Simulador!$AA$43)),0) -> 0 | V129: =IFERROR(IF(Simulador!$U$29=1,0,IF($B129<=0,0,IF(Simulador!$D$22>0,Simulador!$D$22,Simulador!$O$24)*Simulador!$AA$44)),0) -> 0 | Y129: 0 | AC129: 9 | AD129: 7 | AE129: 0 | AF129: 0 | AG129: 0 | AH129: 0 | AI129: =IF(Simulador!$T$68=1,'Tabla de amortizacion'!AJ129,'Tabla de amortizacion'!AR129) -> 0.1075 | AJ129: 0.1075 | AK129: 0 | AM129: 0.11 | AN129: 0.115 | AO129: 0.115 | AP129: 0 | AQ129: 0 | AR129: =IF(AND(Simulador!$T$68=2,Simulador!$T$62=1),AL129,IF(AND(Simulador!$T$68=2,Simulador!$T$62=2),AM129,IF(AND(Simulador!$T$68=2,Simulador!$T$62=3),AN129,AO129))) -> 0.115 | AT129: 0 | AU129: 0 | AV129: 0 | AW129: 0 | AX129: 0 | AZ129: =IFERROR(IF(Simulador!$U$29=1,0,IF($AT129<=0.01,0,$AT129*Simulador!$AA$43)),0)+IFERROR(IF(Simulador!$U$29=1,0,IF($AT129<=0.01,0,IF(Simulador!$D$22>0,Simulador!$D$22,Simulador!$O$24)*Simulador!$AA$44)),0) -> 0 | BB129: 0 | BC129: 0 | BE129: 0 | BF129: 115
A130: 116 | B130: 0 | D130: =IF(B130+F130-D129<=0,B130+F130,IF(AND(OR(Simulador!$U$39=2,Simulador!$U$39=7),J129=0),D129*(1+AA130),IF($AE$3=2,B130*AQ130,D129*(1+AA130)))) -> 0 | F130: 0 | H130: 0 | L130: =IF(Simulador!$T$41=1,0,J130*Simulador!$W$39*1.16) -> 0 | N130: =IF(B130-H130=0,0,N128) -> 0 | R130: 0 | T130: =IFERROR(IF(Simulador!$U$29=1,0,IF($B130<=0,0,$B130*Simulador!$AA$43)),0) -> 0 | V130: =IFERROR(IF(Simulador!$U$29=1,0,IF($B130<=0,0,IF(Simulador!$D$22>0,Simulador!$D$22,Simulador!$O$24)*Simulador!$AA$44)),0) -> 0 | Y130: 0 | AC130: 9 | AD130: 8 | AE130: 0 | AF130: 0 | AG130: 0 | AH130: 0 | AI130: =IF(Simulador!$T$68=1,'Tabla de amortizacion'!AJ130,'Tabla de amortizacion'!AR130) -> 0.1075 | AJ130: 0.1075 | AK130: 0 | AM130: 0.11 | AN130: 0.115 | AO130: 0.115 | AP130: 0 | AQ130: 0 | AR130: =IF(AND(Simulador!$T$68=2,Simulador!$T$62=1),AL130,IF(AND(Simulador!$T$68=2,Simulador!$T$62=2),AM130,IF(AND(Simulador!$T$68=2,Simulador!$T$62=3),AN130,AO130))) -> 0.115 | AT130: 0 | AU130: 0 | AV130: 0 | AW130: 0 | AX130: 0 | AZ130: =IFERROR(IF(Simulador!$U$29=1,0,IF($AT130<=0.01,0,$AT130*Simulador!$AA$43)),0)+IFERROR(IF(Simulador!$U$29=1,0,IF($AT130<=0.01,0,IF(Simulador!$D$22>0,Simulador!$D$22,Simulador!$O$24)*Simulador!$AA$44)),0) -> 0 | BB130: 0 | BC130: 0 | BE130: 0 | BF130: 116
A131: 117 | B131: 0 | D131: =IF(B131+F131-D130<=0,B131+F131,IF(AND(OR(Simulador!$U$39=2,Simulador!$U$39=7),J130=0),D130*(1+AA131),IF($AE$3=2,B131*AQ131,D130*(1+AA131)))) -> 0 | F131: 0 | H131: 0 | L131: =IF(Simulador!$T$41=1,0,J131*Simulador!$W$39*1.16) -> 0 | R131: 0 | T131: =IFERROR(IF(Simulador!$U$29=1,0,IF($B131<=0,0,$B131*Simulador!$AA$43)),0) -> 0 | V131: =IFERROR(IF(Simulador!$U$29=1,0,IF($B131<=0,0,IF(Simulador!$D$22>0,Simulador!$D$22,Simulador!$O$24)*Simulador!$AA$44)),0) -> 0 | Y131: 0 | AC131: 9 | AD131: 9 | AE131: 0 | AF131: 0 | AG131: 0 | AH131: 0 | AI131: =IF(Simulador!$T$68=1,'Tabla de amortizacion'!AJ131,'Tabla de amortizacion'!AR131) -> 0.1075 | AJ131: 0.1075 | AK131: 0 | AM131: 0.11 | AN131: 0.115 | AO131: 0.115 | AP131: 0 | AQ131: 0 | AR131: =IF(AND(Simulador!$T$68=2,Simulador!$T$62=1),AL131,IF(AND(Simulador!$T$68=2,Simulador!$T$62=2),AM131,IF(AND(Simulador!$T$68=2,Simulador!$T$62=3),AN131,AO131))) -> 0.115 | AT131: 0 | AU131: 0 | AV131: 0 | AW131: 0 | AX131: 0 | AZ131: =IFERROR(IF(Simulador!$U$29=1,0,IF($AT131<=0.01,0,$AT131*Simulador!$AA$43)),0)+IFERROR(IF(Simulador!$U$29=1,0,IF($AT131<=0.01,0,IF(Simulador!$D$22>0,Simulador!$D$22,Simulador!$O$24)*Simulador!$AA$44)),0) -> 0 | BB131: 0 | BC131: 0 | BE131: 0 | BF131: 117
A132: 118 | B132: 0 | D132: =IF(B132+F132-D131<=0,B132+F132,IF(AND(OR(Simulador!$U$39=2,Simulador!$U$39=7),J131=0),D131*(1+AA132),IF($AE$3=2,B132*AQ132,D131*(1+AA132)))) -> 0 | F132: 0 | H132: 0 | L132: =IF(Simulador!$T$41=1,0,J132*Simulador!$W$39*1.16) -> 0 | N132: =IF(B132-H132=0,0,N130) -> 0 | R132: 0 | T132: =IFERROR(IF(Simulador!$U$29=1,0,IF($B132<=0,0,$B132*Simulador!$AA$43)),0) -> 0 | V132: =IFERROR(IF(Simulador!$U$29=1,0,IF($B132<=0,0,IF(Simulador!$D$22>0,Simulador!$D$22,Simulador!$O$24)*Simulador!$AA$44)),0) -> 0 | Y132: 0 | AC132: 9 | AD132: 10 | AE132: 0 | AF132: 0 | AG132: 0 | AH132: 0 | AI132: =IF(Simulador!$T$68=1,'Tabla de amortizacion'!AJ132,'Tabla de amortizacion'!AR132) -> 0.1075 | AJ132: 0.1075 | AK132: 0 | AM132: 0.11 | AN132: 0.115 | AO132: 0.115 | AP132: 0 | AQ132: 0 | AR132: =IF(AND(Simulador!$T$68=2,Simulador!$T$62=1),AL132,IF(AND(Simulador!$T$68=2,Simulador!$T$62=2),AM132,IF(AND(Simulador!$T$68=2,Simulador!$T$62=3),AN132,AO132))) -> 0.115 | AT132: 0 | AU132: 0 | AV132: 0 | AW132: 0 | AX132: 0 | AZ132: =IFERROR(IF(Simulador!$U$29=1,0,IF($AT132<=0.01,0,$AT132*Simulador!$AA$43)),0)+IFERROR(IF(Simulador!$U$29=1,0,IF($AT132<=0.01,0,IF(Simulador!$D$22>0,Simulador!$D$22,Simulador!$O$24)*Simulador!$AA$44)),0) -> 0 | BB132: 0 | BC132: 0 | BE132: 0 | BF132: 118
A133: 119 | B133: 0 | D133: =IF(B133+F133-D132<=0,B133+F133,IF(AND(OR(Simulador!$U$39=2,Simulador!$U$39=7),J132=0),D132*(1+AA133),IF($AE$3=2,B133*AQ133,D132*(1+AA133)))) -> 0 | F133: 0 | H133: 0 | L133: =IF(Simulador!$T$41=1,0,J133*Simulador!$W$39*1.16) -> 0 | R133: 0 | T133: =IFERROR(IF(Simulador!$U$29=1,0,IF($B133<=0,0,$B133*Simulador!$AA$43)),0) -> 0 | V133: =IFERROR(IF(Simulador!$U$29=1,0,IF($B133<=0,0,IF(Simulador!$D$22>0,Simulador!$D$22,Simulador!$O$24)*Simulador!$AA$44)),0) -> 0 | Y133: 0 | AC133: 9 | AD133: 11 | AE133: 0 | AF133: 0 | AG133: 0 | AH133: 0 | AI133: =IF(Simulador!$T$68=1,'Tabla de amortizacion'!AJ133,'Tabla de amortizacion'!AR133) -> 0.1075 | AJ133: 0.1075 | AK133: 0 | AM133: 0.11 | AN133: 0.115 | AO133: 0.115 | AP133: 0 | AQ133: 0 | AR133: =IF(AND(Simulador!$T$68=2,Simulador!$T$62=1),AL133,IF(AND(Simulador!$T$68=2,Simulador!$T$62=2),AM133,IF(AND(Simulador!$T$68=2,Simulador!$T$62=3),AN133,AO133))) -> 0.115 | AT133: 0 | AU133: 0 | AV133: 0 | AW133: 0 | AX133: 0 | AZ133: =IFERROR(IF(Simulador!$U$29=1,0,IF($AT133<=0.01,0,$AT133*Simulador!$AA$43)),0)+IFERROR(IF(Simulador!$U$29=1,0,IF($AT133<=0.01,0,IF(Simulador!$D$22>0,Simulador!$D$22,Simulador!$O$24)*Simulador!$AA$44)),0) -> 0 | BB133: 0 | BC133: 0 | BE133: 0 | BF133: 119
A134: 120 | B134: 0 | D134: =IF(B134+F134-D133<=0,B134+F134,IF(AND(OR(Simulador!$U$39=2,Simulador!$U$39=7),J133=0),D133*(1+AA134),IF($AE$3=2,B134*AQ134,D133*(1+AA134)))) -> 0 | F134: 0 | H134: 0 | L134: =IF(Simulador!$T$41=1,0,J134*Simulador!$W$39*1.16) -> 0 | N134: =IF(B134-H134=0,0,N132) -> 0 | R134: 0 | T134: =IFERROR(IF(Simulador!$U$29=1,0,IF($B134<=0,0,$B134*Simulador!$AA$43)),0) -> 0 | V134: =IFERROR(IF(Simulador!$U$29=1,0,IF($B134<=0,0,IF(Simulador!$D$22>0,Simulador!$D$22,Simulador!$O$24)*Simulador!$AA$44)),0) -> 0 | Y134: 0 | AC134: 10 | AD134: 0 | AE134: 0 | AF134: 0 | AG134: 0 | AH134: 0 | AI134: =IF(Simulador!$T$68=1,'Tabla de amortizacion'!AJ134,'Tabla de amortizacion'!AR134) -> 0.1075 | AJ134: 0.1075 | AK134: 0 | AM134: 0.11 | AN134: 0.115 | AO134: 0.115 | AP134: 0 | AQ134: 0 | AR134: =IF(AND(Simulador!$T$68=2,Simulador!$T$62=1),AL134,IF(AND(Simulador!$T$68=2,Simulador!$T$62=2),AM134,IF(AND(Simulador!$T$68=2,Simulador!$T$62=3),AN134,AO134))) -> 0.115 | AT134: 0 | AU134: 0 | AV134: 0 | AW134: 0 | AX134: 0 | AZ134: =IFERROR(IF(Simulador!$U$29=1,0,IF($AT134<=0.01,0,$AT134*Simulador!$AA$43)),0)+IFERROR(IF(Simulador!$U$29=1,0,IF($AT134<=0.01,0,IF(Simulador!$D$22>0,Simulador!$D$22,Simulador!$O$24)*Simulador!$AA$44)),0) -> 0 | BB134: 0 | BC134: 0 | BE134: 0 | BF134: 120
A135: 121 | B135: 0 | D135: =IF(B135+F135-D134<=0,B135+F135,IF(AND(OR(Simulador!$U$39=2,Simulador!$U$39=7),J134=0),D134*(1+AA135),IF($AE$3=2,B135*AQ135,D134*(1+AA135)))) -> 0 | F135: 0 | H135: 0 | L135: =IF(Simulador!$T$41=1,0,J135*Simulador!$W$39*1.16) -> 0 | R135: 0 | T135: =IFERROR(IF(Simulador!$U$29=1,0,IF($B135<=0,0,$B135*Simulador!$AA$43)),0) -> 0 | V135: =IFERROR(IF(Simulador!$U$29=1,0,IF($B135<=0,0,IF(Simulador!$D$22>0,Simulador!$D$22,Simulador!$O$24)*Simulador!$AA$44)),0) -> 0 | Y135: 0 | AA135: =IF(B135<=0,0,Simulador!$I$43) -> 0 | AC135: 10 | AD135: 1 | AE135: 0 | AF135: 0 | AG135: 0 | AH135: 0 | AI135: =IF(Simulador!$T$68=1,'Tabla de amortizacion'!AJ135,'Tabla de amortizacion'!AR135) -> 0.1075 | AJ135: =IF(AJ134=$AM$4,AJ134,IF(AJ134-0.25%<=$AM$4,$AM$4,AJ134-0.25%)) -> 0.1075 | AK135: 0 | AN135: 0.115 | AO135: 0.115 | AP135: 0 | AQ135: 0 | AR135: =IF(AND(Simulador!$T$68=2,Simulador!$T$62=1),AL135,IF(AND(Simulador!$T$68=2,Simulador!$T$62=2),AM135,IF(AND(Simulador!$T$68=2,Simulador!$T$62=3),AN135,AO135))) -> 0.115 | AT135: 0 | AU135: 0 | AV135: 0 | AW135: 0 | AX135: 0 | AZ135: =IFERROR(IF(Simulador!$U$29=1,0,IF($AT135<=0.01,0,$AT135*Simulador!$AA$43)),0)+IFERROR(IF(Simulador!$U$29=1,0,IF($AT135<=0.01,0,IF(Simulador!$D$22>0,Simulador!$D$22,Simulador!$O$24)*Simulador!$AA$44)),0) -> 0 | BA135: =IF(AT135<=0,0,$BA$27) -> 0 | BB135: 0 | BC135: 0 | BE135: 0 | BF135: 121
A136: 122 | B136: 0 | D136: =IF(B136+F136-D135<=0,B136+F136,IF(AND(OR(Simulador!$U$39=2,Simulador!$U$39=7),J135=0),D135*(1+AA136),IF($AE$3=2,B136*AQ136,D135*(1+AA136)))) -> 0 | F136: 0 | H136: 0 | L136: =IF(Simulador!$T$41=1,0,J136*Simulador!$W$39*1.16) -> 0 | N136: =IF(B136-H136=0,0,N134*(1+(Simulador!$AF$77))) -> 0 | R136: 0 | T136: =IFERROR(IF(Simulador!$U$29=1,0,IF($B136<=0,0,$B136*Simulador!$AA$43)),0) -> 0 | V136: =IFERROR(IF(Simulador!$U$29=1,0,IF($B136<=0,0,IF(Simulador!$D$22>0,Simulador!$D$22,Simulador!$O$24)*Simulador!$AA$44)),0) -> 0 | Y136: 0 | AC136: 10 | AD136: 2 | AE136: 0 | AF136: 0 | AG136: 0 | AH136: 0 | AI136: =IF(Simulador!$T$68=1,'Tabla de amortizacion'!AJ136,'Tabla de amortizacion'!AR136) -> 0.1075 | AJ136: =AJ135 -> 0.1075 | AK136: 0 | AN136: 0.115 | AO136: 0.115 | AP136: 0 | AQ136: 0 | AR136: =IF(AND(Simulador!$T$68=2,Simulador!$T$62=1),AL136,IF(AND(Simulador!$T$68=2,Simulador!$T$62=2),AM136,IF(AND(Simulador!$T$68=2,Simulador!$T$62=3),AN136,AO136))) -> 0.115 | AT136: 0 | AU136: 0 | AV136: 0 | AW136: 0 | AX136: 0 | AZ136: =IFERROR(IF(Simulador!$U$29=1,0,IF($AT136<=0.01,0,$AT136*Simulador!$AA$43)),0)+IFERROR(IF(Simulador!$U$29=1,0,IF($AT136<=0.01,0,IF(Simulador!$D$22>0,Simulador!$D$22,Simulador!$O$24)*Simulador!$AA$44)),0) -> 0 | BB136: 0 | BC136: 0 | BE136: 0 | BF136: 122
A137: 123 | B137: 0 | D137: =IF(B137+F137-D136<=0,B137+F137,IF(AND(OR(Simulador!$U$39=2,Simulador!$U$39=7),J136=0),D136*(1+AA137),IF($AE$3=2,B137*AQ137,D136*(1+AA137)))) -> 0 | F137: 0 | H137: 0 | L137: =IF(Simulador!$T$41=1,0,J137*Simulador!$W$39*1.16) -> 0 | R137: 0 | T137: =IFERROR(IF(Simulador!$U$29=1,0,IF($B137<=0,0,$B137*Simulador!$AA$43)),0) -> 0 | V137: =IFERROR(IF(Simulador!$U$29=1,0,IF($B137<=0,0,IF(Simulador!$D$22>0,Simulador!$D$22,Simulador!$O$24)*Simulador!$AA$44)),0) -> 0 | Y137: 0 | AC137: 10 | AD137: 3 | AE137: 0 | AF137: 0 | AG137: 0 | AH137: 0 | AI137: =IF(Simulador!$T$68=1,'Tabla de amortizacion'!AJ137,'Tabla de amortizacion'!AR137) -> 0.1075 | AJ137: =AJ136 -> 0.1075 | AK137: 0 | AN137: 0.115 | AO137: 0.115 | AP137: 0 | AQ137: 0 | AR137: =IF(AND(Simulador!$T$68=2,Simulador!$T$62=1),AL137,IF(AND(Simulador!$T$68=2,Simulador!$T$62=2),AM137,IF(AND(Simulador!$T$68=2,Simulador!$T$62=3),AN137,AO137))) -> 0.115 | AT137: 0 | AU137: 0 | AV137: 0 | AW137: 0 | AX137: 0 | AZ137: =IFERROR(IF(Simulador!$U$29=1,0,IF($AT137<=0.01,0,$AT137*Simulador!$AA$43)),0)+IFERROR(IF(Simulador!$U$29=1,0,IF($AT137<=0.01,0,IF(Simulador!$D$22>0,Simulador!$D$22,Simulador!$O$24)*Simulador!$AA$44)),0) -> 0 | BB137: 0 | BC137: 0 | BE137: 0 | BF137: 123
A138: 124 | B138: 0 | D138: =IF(B138+F138-D137<=0,B138+F138,IF(AND(OR(Simulador!$U$39=2,Simulador!$U$39=7),J137=0),D137*(1+AA138),IF($AE$3=2,B138*AQ138,D137*(1+AA138)))) -> 0 | F138: 0 | H138: 0 | L138: =IF(Simulador!$T$41=1,0,J138*Simulador!$W$39*1.16) -> 0 | N138: =IF(B138-H138=0,0,N136) -> 0 | R138: 0 | T138: =IFERROR(IF(Simulador!$U$29=1,0,IF($B138<=0,0,$B138*Simulador!$AA$43)),0) -> 0 | V138: =IFERROR(IF(Simulador!$U$29=1,0,IF($B138<=0,0,IF(Simulador!$D$22>0,Simulador!$D$22,Simulador!$O$24)*Simulador!$AA$44)),0) -> 0 | Y138: 0 | AC138: 10 | AD138: 4 | AE138: 0 | AF138: 0 | AG138: 0 | AH138: 0 | AI138: =IF(Simulador!$T$68=1,'Tabla de amortizacion'!AJ138,'Tabla de amortizacion'!AR138) -> 0.1075 | AJ138: 0.1075 | AK138: 0 | AN138: =AN137 -> 0.115 | AO138: 0.115 | AP138: 0 | AQ138: 0 | AR138: =IF(AND(Simulador!$T$68=2,Simulador!$T$62=1),AL138,IF(AND(Simulador!$T$68=2,Simulador!$T$62=2),AM138,IF(AND(Simulador!$T$68=2,Simulador!$T$62=3),AN138,AO138))) -> 0.115 | AT138: 0 | AU138: 0 | AV138: 0 | AW138: 0 | AX138: 0 | AZ138: =IFERROR(IF(Simulador!$U$29=1,0,IF($AT138<=0.01,0,$AT138*Simulador!$AA$43)),0)+IFERROR(IF(Simulador!$U$29=1,0,IF($AT138<=0.01,0,IF(Simulador!$D$22>0,Simulador!$D$22,Simulador!$O$24)*Simulador!$AA$44)),0) -> 0 | BB138: 0 | BC138: 0 | BE138: 0 | BF138: 124
A139: 125 | B139: 0 | D139: =IF(B139+F139-D138<=0,B139+F139,IF(AND(OR(Simulador!$U$39=2,Simulador!$U$39=7),J138=0),D138*(1+AA139),IF($AE$3=2,B139*AQ139,D138*(1+AA139)))) -> 0 | F139: 0 | H139: 0 | L139: =IF(Simulador!$T$41=1,0,J139*Simulador!$W$39*1.16) -> 0 | R139: 0 | T139: =IFERROR(IF(Simulador!$U$29=1,0,IF($B139<=0,0,$B139*Simulador!$AA$43)),0) -> 0 | V139: =IFERROR(IF(Simulador!$U$29=1,0,IF($B139<=0,0,IF(Simulador!$D$22>0,Simulador!$D$22,Simulador!$O$24)*Simulador!$AA$44)),0) -> 0 | Y139: 0 | AC139: 10 | AD139: 5 | AE139: 0 | AF139: 0 | AG139: 0 | AH139: 0 | AI139: =IF(Simulador!$T$68=1,'Tabla de amortizacion'!AJ139,'Tabla de amortizacion'!AR139) -> 0.1075 | AJ139: 0.1075 | AK139: 0 | AN139: 0.115 | AO139: 0.115 | AP139: 0 | AQ139: 0 | AR139: =IF(AND(Simulador!$T$68=2,Simulador!$T$62=1),AL139,IF(AND(Simulador!$T$68=2,Simulador!$T$62=2),AM139,IF(AND(Simulador!$T$68=2,Simulador!$T$62=3),AN139,AO139))) -> 0.115 | AT139: 0 | AU139: 0 | AV139: 0 | AW139: 0 | AX139: 0 | AZ139: =IFERROR(IF(Simulador!$U$29=1,0,IF($AT139<=0.01,0,$AT139*Simulador!$AA$43)),0)+IFERROR(IF(Simulador!$U$29=1,0,IF($AT139<=0.01,0,IF(Simulador!$D$22>0,Simulador!$D$22,Simulador!$O$24)*Simulador!$AA$44)),0) -> 0 | BB139: 0 | BC139: 0 | BE139: 0 | BF139: 125
A140: 126 | B140: 0 | D140: =IF(B140+F140-D139<=0,B140+F140,IF(AND(OR(Simulador!$U$39=2,Simulador!$U$39=7),J139=0),D139*(1+AA140),IF($AE$3=2,B140*AQ140,D139*(1+AA140)))) -> 0 | F140: 0 | H140: 0 | L140: =IF(Simulador!$T$41=1,0,J140*Simulador!$W$39*1.16) -> 0 | N140: =IF(B140-H140=0,0,N138) -> 0 | R140: 0 | T140: =IFERROR(IF(Simulador!$U$29=1,0,IF($B140<=0,0,$B140*Simulador!$AA$43)),0) -> 0 | V140: =IFERROR(IF(Simulador!$U$29=1,0,IF($B140<=0,0,IF(Simulador!$D$22>0,Simulador!$D$22,Simulador!$O$24)*Simulador!$AA$44)),0) -> 0 | Y140: 0 | AC140: 10 | AD140: 6 | AE140: 0 | AF140: 0 | AG140: 0 | AH140: 0 | AI140: =IF(Simulador!$T$68=1,'Tabla de amortizacion'!AJ140,'Tabla de amortizacion'!AR140) -> 0.1075 | AJ140: 0.1075 | AK140: 0 | AN140: 0.115 | AO140: 0.115 | AP140: 0 | AQ140: 0 | AR140: =IF(AND(Simulador!$T$68=2,Simulador!$T$62=1),AL140,IF(AND(Simulador!$T$68=2,Simulador!$T$62=2),AM140,IF(AND(Simulador!$T$68=2,Simulador!$T$62=3),AN140,AO140))) -> 0.115 | AT140: 0 | AU140: 0 | AV140: 0 | AW140: 0 | AX140: 0 | AZ140: =IFERROR(IF(Simulador!$U$29=1,0,IF($AT140<=0.01,0,$AT140*Simulador!$AA$43)),0)+IFERROR(IF(Simulador!$U$29=1,0,IF($AT140<=0.01,0,IF(Simulador!$D$22>0,Simulador!$D$22,Simulador!$O$24)*Simulador!$AA$44)),0) -> 0 | BB140: 0 | BC140: 0 | BE140: 0 | BF140: 126
A141: 127 | B141: 0 | D141: =IF(B141+F141-D140<=0,B141+F141,IF(AND(OR(Simulador!$U$39=2,Simulador!$U$39=7),J140=0),D140*(1+AA141),IF($AE$3=2,B141*AQ141,D140*(1+AA141)))) -> 0 | F141: 0 | H141: 0 | L141: =IF(Simulador!$T$41=1,0,J141*Simulador!$W$39*1.16) -> 0 | R141: 0 | T141: =IFERROR(IF(Simulador!$U$29=1,0,IF($B141<=0,0,$B141*Simulador!$AA$43)),0) -> 0 | V141: =IFERROR(IF(Simulador!$U$29=1,0,IF($B141<=0,0,IF(Simulador!$D$22>0,Simulador!$D$22,Simulador!$O$24)*Simulador!$AA$44)),0) -> 0 | Y141: 0 | AC141: 10 | AD141: 7 | AE141: 0 | AF141: 0 | AG141: 0 | AH141: 0 | AI141: =IF(Simulador!$T$68=1,'Tabla de amortizacion'!AJ141,'Tabla de amortizacion'!AR141) -> 0.1075 | AJ141: 0.1075 | AK141: 0 | AN141: 0.115 | AO141: 0.115 | AP141: 0 | AQ141: 0 | AR141: =IF(AND(Simulador!$T$68=2,Simulador!$T$62=1),AL141,IF(AND(Simulador!$T$68=2,Simulador!$T$62=2),AM141,IF(AND(Simulador!$T$68=2,Simulador!$T$62=3),AN141,AO141))) -> 0.115 | AT141: 0 | AU141: 0 | AV141: 0 | AW141: 0 | AX141: 0 | AZ141: =IFERROR(IF(Simulador!$U$29=1,0,IF($AT141<=0.01,0,$AT141*Simulador!$AA$43)),0)+IFERROR(IF(Simulador!$U$29=1,0,IF($AT141<=0.01,0,IF(Simulador!$D$22>0,Simulador!$D$22,Simulador!$O$24)*Simulador!$AA$44)),0) -> 0 | BB141: 0 | BC141: 0 | BE141: 0 | BF141: 127
A142: 128 | B142: 0 | D142: =IF(B142+F142-D141<=0,B142+F142,IF(AND(OR(Simulador!$U$39=2,Simulador!$U$39=7),J141=0),D141*(1+AA142),IF($AE$3=2,B142*AQ142,D141*(1+AA142)))) -> 0 | F142: 0 | H142: 0 | L142: =IF(Simulador!$T$41=1,0,J142*Simulador!$W$39*1.16) -> 0 | N142: =IF(B142-H142=0,0,N140) -> 0 | R142: 0 | T142: =IFERROR(IF(Simulador!$U$29=1,0,IF($B142<=0,0,$B142*Simulador!$AA$43)),0) -> 0 | V142: =IFERROR(IF(Simulador!$U$29=1,0,IF($B142<=0,0,IF(Simulador!$D$22>0,Simulador!$D$22,Simulador!$O$24)*Simulador!$AA$44)),0) -> 0 | Y142: 0 | AC142: 10 | AD142: 8 | AE142: 0 | AF142: 0 | AG142: 0 | AH142: 0 | AI142: =IF(Simulador!$T$68=1,'Tabla de amortizacion'!AJ142,'Tabla de amortizacion'!AR142) -> 0.1075 | AJ142: 0.1075 | AK142: 0 | AN142: 0.115 | AO142: 0.115 | AP142: 0 | AQ142: 0 | AR142: =IF(AND(Simulador!$T$68=2,Simulador!$T$62=1),AL142,IF(AND(Simulador!$T$68=2,Simulador!$T$62=2),AM142,IF(AND(Simulador!$T$68=2,Simulador!$T$62=3),AN142,AO142))) -> 0.115 | AT142: 0 | AU142: 0 | AV142: 0 | AW142: 0 | AX142: 0 | AZ142: =IFERROR(IF(Simulador!$U$29=1,0,IF($AT142<=0.01,0,$AT142*Simulador!$AA$43)),0)+IFERROR(IF(Simulador!$U$29=1,0,IF($AT142<=0.01,0,IF(Simulador!$D$22>0,Simulador!$D$22,Simulador!$O$24)*Simulador!$AA$44)),0) -> 0 | BB142: 0 | BC142: 0 | BE142: 0 | BF142: 128
A143: 129 | B143: 0 | D143: =IF(B143+F143-D142<=0,B143+F143,IF(AND(OR(Simulador!$U$39=2,Simulador!$U$39=7),J142=0),D142*(1+AA143),IF($AE$3=2,B143*AQ143,D142*(1+AA143)))) -> 0 | F143: =IFERROR(IF(B143=0,0,P143/360*BE143*B143),0) -> 0 | H143: 0 | L143: =IF(Simulador!$T$41=1,0,J143*Simulador!$W$39*1.16) -> 0 | P143: =IF(B143=0,"",AI143) ->  | R143: 0 | T143: =IFERROR(IF(Simulador!$U$29=1,0,IF($B143<=0,0,$B143*Simulador!$AA$43)),0) -> 0 | V143: =IFERROR(IF(Simulador!$U$29=1,0,IF($B143<=0,0,IF(Simulador!$D$22>0,Simulador!$D$22,Simulador!$O$24)*Simulador!$AA$44)),0) -> 0 | Y143: =IF(B143<=0,0,D143+J143+T143+V143) -> 0 | AC143: 10 | AD143: 9 | AE143: 0 | AF143: 0 | AG143: 0 | AH143: 0 | AI143: =IF(Simulador!$T$68=1,'Tabla de amortizacion'!AJ143,'Tabla de amortizacion'!AR143) -> 0.1075 | AJ143: 0.1075 | AK143: 0 | AN143: 0.115 | AO143: 0.115 | AP143: 0 | AQ143: 0 | AR143: =IF(AND(Simulador!$T$68=2,Simulador!$T$62=1),AL143,IF(AND(Simulador!$T$68=2,Simulador!$T$62=2),AM143,IF(AND(Simulador!$T$68=2,Simulador!$T$62=3),AN143,AO143))) -> 0.115 | AT143: 0 | AU143: 0 | AV143: =IFERROR((AY143/360*BE143*AT143),0) -> 0 | AW143: =+AU143-AV143 -> 0 | AX143: 0 | AY143: =IF(AT143=0,"",AI143) ->  | AZ143: =IFERROR(IF(Simulador!$U$29=1,0,IF($AT143<=0.01,0,$AT143*Simulador!$AA$43)),0)+IFERROR(IF(Simulador!$U$29=1,0,IF($AT143<=0.01,0,IF(Simulador!$D$22>0,Simulador!$D$22,Simulador!$O$24)*Simulador!$AA$44)),0) -> 0 | BB143: =AV143+AW143+AZ143 -> 0 | BC143: 0 | BE143: 0 | BF143: 129
A144: 130 | B144: 0 | D144: =IF(B144+F144-D143<=0,B144+F144,IF(AND(OR(Simulador!$U$39=2,Simulador!$U$39=7),J143=0),D143*(1+AA144),IF($AE$3=2,B144*AQ144,D143*(1+AA144)))) -> 0 | F144: 0 | H144: 0 | L144: =IF(Simulador!$T$41=1,0,J144*Simulador!$W$39*1.16) -> 0 | N144: =IF(B144-H144=0,0,N142) -> 0 | R144: =B144-H144-J144+L144-N144 -> 0 | T144: =IFERROR(IF(Simulador!$U$29=1,0,IF($B144<=0,0,$B144*Simulador!$AA$43)),0) -> 0 | V144: =IFERROR(IF(Simulador!$U$29=1,0,IF($B144<=0,0,IF(Simulador!$D$22>0,Simulador!$D$22,Simulador!$O$24)*Simulador!$AA$44)),0) -> 0 | Y144: 0 | AC144: 10 | AD144: 10 | AE144: =IF(R144<=0,IF(R143>0,A144,0),0) -> 0 | AF144: =IF(AE144>0,AC144,0) -> 0 | AG144: =IF(AE144>0,AD144,0) -> 0 | AH144: =Y144 -> 0 | AI144: =IF(Simulador!$T$68=1,'Tabla de amortizacion'!AJ144,'Tabla de amortizacion'!AR144) -> 0.1075 | AJ144: 0.1075 | AK144: =AK143*(1+AA144) -> 0 | AN144: 0.115 | AO144: 0.115 | AP144: 0 | AQ144: =IFERROR((AU144/AT144),0) -> 0 | AR144: =IF(AND(Simulador!$T$68=2,Simulador!$T$62=1),AL144,IF(AND(Simulador!$T$68=2,Simulador!$T$62=2),AM144,IF(AND(Simulador!$T$68=2,Simulador!$T$62=3),AN144,AO144))) -> 0.115 | AT144: 0 | AU144: =IFERROR((IF(AT144+AV144-AU143<0, AT144+AV144, AU143*(1+BA144))),0) -> 0 | AV144: 0 | AW144: 0 | AX144: =+AT144-AW144 -> 0 | AZ144: =IFERROR(IF(Simulador!$U$29=1,0,IF($AT144<=0.01,0,$AT144*Simulador!$AA$43)),0)+IFERROR(IF(Simulador!$U$29=1,0,IF($AT144<=0.01,0,IF(Simulador!$D$22>0,Simulador!$D$22,Simulador!$O$24)*Simulador!$AA$44)),0) -> 0 | BB144: 0 | BC144: =IFERROR(IF(AU144<=0.01,0,BC143-1),0) -> 0 | BD144: =IF(AT144=0,"",DATE(YEAR(BD143),MONTH(BD143)+1,1)) ->  | BE144: =IFERROR(DAY(DATE(YEAR(BD144),MONTH(BD144)+1,0)),0) -> 0 | BF144: 130
A145: 131 | B145: =IF(R144<=0,0,R144) -> 0 | D145: =IF(B145+F145-D144<=0,B145+F145,IF(AND(OR(Simulador!$U$39=2,Simulador!$U$39=7),J144=0),D144*(1+AA145),IF($AE$3=2,B145*AQ145,D144*(1+AA145)))) -> 0 | F145: 0 | H145: =D145-F145 -> 0 | L145: =IF(Simulador!$T$41=1,0,J145*Simulador!$W$39*1.16) -> 0 | R145: 0 | T145: =IFERROR(IF(Simulador!$U$29=1,0,IF($B145<=0,0,$B145*Simulador!$AA$43)),0) -> 0 | V145: =IFERROR(IF(Simulador!$U$29=1,0,IF($B145<=0,0,IF(Simulador!$D$22>0,Simulador!$D$22,Simulador!$O$24)*Simulador!$AA$44)),0) -> 0 | Y145: 0 | AC145: 10 | AD145: 11 | AE145: 0 | AF145: 0 | AG145: 0 | AH145: 0 | AI145: =IF(Simulador!$T$68=1,'Tabla de amortizacion'!AJ145,'Tabla de amortizacion'!AR145) -> 0.1075 | AJ145: 0.1075 | AK145: 0 | AN145: 0.115 | AO145: 0.115 | AP145: 0 | AQ145: 0 | AR145: =IF(AND(Simulador!$T$68=2,Simulador!$T$62=1),AL145,IF(AND(Simulador!$T$68=2,Simulador!$T$62=2),AM145,IF(AND(Simulador!$T$68=2,Simulador!$T$62=3),AN145,AO145))) -> 0.115 | AT145: 0 | AU145: 0 | AV145: 0 | AW145: 0 | AX145: 0 | AZ145: =IFERROR(IF(Simulador!$U$29=1,0,IF($AT145<=0.01,0,$AT145*Simulador!$AA$43)),0)+IFERROR(IF(Simulador!$U$29=1,0,IF($AT145<=0.01,0,IF(Simulador!$D$22>0,Simulador!$D$22,Simulador!$O$24)*Simulador!$AA$44)),0) -> 0 | BB145: 0 | BC145: 0 | BE145: 0 | BF145: 131
A146: 132 | B146: 0 | D146: =IF(B146+F146-D145<=0,B146+F146,IF(AND(OR(Simulador!$U$39=2,Simulador!$U$39=7),J145=0),D145*(1+AA146),IF($AE$3=2,B146*AQ146,D145*(1+AA146)))) -> 0 | F146: 0 | H146: 0 | L146: =IF(Simulador!$T$41=1,0,J146*Simulador!$W$39*1.16) -> 0 | N146: =IF(B146-H146=0,0,N144) -> 0 | R146: 0 | T146: =IFERROR(IF(Simulador!$U$29=1,0,IF($B146<=0,0,$B146*Simulador!$AA$43)),0) -> 0 | V146: =IFERROR(IF(Simulador!$U$29=1,0,IF($B146<=0,0,IF(Simulador!$D$22>0,Simulador!$D$22,Simulador!$O$24)*Simulador!$AA$44)),0) -> 0 | Y146: 0 | AC146: 11 | AD146: 0 | AE146: 0 | AF146: 0 | AG146: 0 | AH146: 0 | AI146: =IF(Simulador!$T$68=1,'Tabla de amortizacion'!AJ146,'Tabla de amortizacion'!AR146) -> 0.1075 | AJ146: 0.1075 | AK146: 0 | AN146: 0.115 | AO146: 0.115 | AP146: 0 | AQ146: 0 | AR146: =IF(AND(Simulador!$T$68=2,Simulador!$T$62=1),AL146,IF(AND(Simulador!$T$68=2,Simulador!$T$62=2),AM146,IF(AND(Simulador!$T$68=2,Simulador!$T$62=3),AN146,AO146))) -> 0.115 | AT146: 0 | AU146: 0 | AV146: 0 | AW146: 0 | AX146: 0 | AZ146: =IFERROR(IF(Simulador!$U$29=1,0,IF($AT146<=0.01,0,$AT146*Simulador!$AA$43)),0)+IFERROR(IF(Simulador!$U$29=1,0,IF($AT146<=0.01,0,IF(Simulador!$D$22>0,Simulador!$D$22,Simulador!$O$24)*Simulador!$AA$44)),0) -> 0 | BB146: 0 | BC146: 0 | BE146: 0 | BF146: 132
A147: 133 | B147: 0 | D147: =IF(B147+F147-D146<=0,B147+F147,IF(AND(OR(Simulador!$U$39=2,Simulador!$U$39=7),J146=0),D146*(1+AA147),IF($AE$3=2,B147*AQ147,D146*(1+AA147)))) -> 0 | F147: 0 | H147: 0 | L147: =IF(Simulador!$T$41=1,0,J147*Simulador!$W$39*1.16) -> 0 | R147: 0 | T147: =IFERROR(IF(Simulador!$U$29=1,0,IF($B147<=0,0,$B147*Simulador!$AA$43)),0) -> 0 | V147: =IFERROR(IF(Simulador!$U$29=1,0,IF($B147<=0,0,IF(Simulador!$D$22>0,Simulador!$D$22,Simulador!$O$24)*Simulador!$AA$44)),0) -> 0 | Y147: 0 | AA147: =IF(B147<=0,0,Simulador!$I$43) -> 0 | AC147: 11 | AD147: 1 | AE147: 0 | AF147: 0 | AG147: 0 | AH147: 0 | AI147: =IF(Simulador!$T$68=1,'Tabla de amortizacion'!AJ147,'Tabla de amortizacion'!AR147) -> 0.1075 | AJ147: =IF(AJ146=$AM$4,AJ146,IF(AJ146-0.25%<=$AM$4,$AM$4,AJ146-0.25%)) -> 0.1075 | AK147: 0 | AN147: 0.115 | AO147: 0.115 | AP147: 0 | AQ147: 0 | AR147: =IF(AND(Simulador!$T$68=2,Simulador!$T$62=1),AL147,IF(AND(Simulador!$T$68=2,Simulador!$T$62=2),AM147,IF(AND(Simulador!$T$68=2,Simulador!$T$62=3),AN147,AO147))) -> 0.115 | AT147: 0 | AU147: 0 | AV147: 0 | AW147: 0 | AX147: 0 | AZ147: =IFERROR(IF(Simulador!$U$29=1,0,IF($AT147<=0.01,0,$AT147*Simulador!$AA$43)),0)+IFERROR(IF(Simulador!$U$29=1,0,IF($AT147<=0.01,0,IF(Simulador!$D$22>0,Simulador!$D$22,Simulador!$O$24)*Simulador!$AA$44)),0) -> 0 | BA147: =IF(AT147<=0,0,$BA$27) -> 0 | BB147: 0 | BC147: 0 | BE147: 0 | BF147: 133
A148: 134 | B148: 0 | D148: =IF(B148+F148-D147<=0,B148+F148,IF(AND(OR(Simulador!$U$39=2,Simulador!$U$39=7),J147=0),D147*(1+AA148),IF($AE$3=2,B148*AQ148,D147*(1+AA148)))) -> 0 | F148: 0 | H148: 0 | L148: =IF(Simulador!$T$41=1,0,J148*Simulador!$W$39*1.16) -> 0 | N148: =IF(B148-H148=0,0,N146*(1+(Simulador!$AF$77))) -> 0 | R148: 0 | T148: =IFERROR(IF(Simulador!$U$29=1,0,IF($B148<=0,0,$B148*Simulador!$AA$43)),0) -> 0 | V148: =IFERROR(IF(Simulador!$U$29=1,0,IF($B148<=0,0,IF(Simulador!$D$22>0,Simulador!$D$22,Simulador!$O$24)*Simulador!$AA$44)),0) -> 0 | Y148: 0 | AC148: 11 | AD148: 2 | AE148: 0 | AF148: 0 | AG148: 0 | AH148: 0 | AI148: =IF(Simulador!$T$68=1,'Tabla de amortizacion'!AJ148,'Tabla de amortizacion'!AR148) -> 0.1075 | AJ148: =AJ147 -> 0.1075 | AK148: 0 | AN148: 0.115 | AO148: 0.115 | AP148: 0 | AQ148: 0 | AR148: =IF(AND(Simulador!$T$68=2,Simulador!$T$62=1),AL148,IF(AND(Simulador!$T$68=2,Simulador!$T$62=2),AM148,IF(AND(Simulador!$T$68=2,Simulador!$T$62=3),AN148,AO148))) -> 0.115 | AT148: 0 | AU148: 0 | AV148: 0 | AW148: 0 | AX148: 0 | AZ148: =IFERROR(IF(Simulador!$U$29=1,0,IF($AT148<=0.01,0,$AT148*Simulador!$AA$43)),0)+IFERROR(IF(Simulador!$U$29=1,0,IF($AT148<=0.01,0,IF(Simulador!$D$22>0,Simulador!$D$22,Simulador!$O$24)*Simulador!$AA$44)),0) -> 0 | BB148: 0 | BC148: 0 | BE148: 0 | BF148: 134
A149: 135 | B149: 0 | D149: =IF(B149+F149-D148<=0,B149+F149,IF(AND(OR(Simulador!$U$39=2,Simulador!$U$39=7),J148=0),D148*(1+AA149),IF($AE$3=2,B149*AQ149,D148*(1+AA149)))) -> 0 | F149: 0 | H149: 0 | L149: =IF(Simulador!$T$41=1,0,J149*Simulador!$W$39*1.16) -> 0 | R149: 0 | T149: =IFERROR(IF(Simulador!$U$29=1,0,IF($B149<=0,0,$B149*Simulador!$AA$43)),0) -> 0 | V149: =IFERROR(IF(Simulador!$U$29=1,0,IF($B149<=0,0,IF(Simulador!$D$22>0,Simulador!$D$22,Simulador!$O$24)*Simulador!$AA$44)),0) -> 0 | Y149: 0 | AC149: 11 | AD149: 3 | AE149: 0 | AF149: 0 | AG149: 0 | AH149: 0 | AI149: =IF(Simulador!$T$68=1,'Tabla de amortizacion'!AJ149,'Tabla de amortizacion'!AR149) -> 0.1075 | AJ149: =AJ148 -> 0.1075 | AK149: 0 | AN149: 0.115 | AO149: 0.115 | AP149: 0 | AQ149: 0 | AR149: =IF(AND(Simulador!$T$68=2,Simulador!$T$62=1),AL149,IF(AND(Simulador!$T$68=2,Simulador!$T$62=2),AM149,IF(AND(Simulador!$T$68=2,Simulador!$T$62=3),AN149,AO149))) -> 0.115 | AT149: 0 | AU149: 0 | AV149: 0 | AW149: 0 | AX149: 0 | AZ149: =IFERROR(IF(Simulador!$U$29=1,0,IF($AT149<=0.01,0,$AT149*Simulador!$AA$43)),0)+IFERROR(IF(Simulador!$U$29=1,0,IF($AT149<=0.01,0,IF(Simulador!$D$22>0,Simulador!$D$22,Simulador!$O$24)*Simulador!$AA$44)),0) -> 0 | BB149: 0 | BC149: 0 | BE149: 0 | BF149: 135
A150: 136 | B150: 0 | D150: =IF(B150+F150-D149<=0,B150+F150,IF(AND(OR(Simulador!$U$39=2,Simulador!$U$39=7),J149=0),D149*(1+AA150),IF($AE$3=2,B150*AQ150,D149*(1+AA150)))) -> 0 | F150: 0 | H150: 0 | L150: =IF(Simulador!$T$41=1,0,J150*Simulador!$W$39*1.16) -> 0 | N150: =IF(B150-H150=0,0,N148) -> 0 | R150: 0 | T150: =IFERROR(IF(Simulador!$U$29=1,0,IF($B150<=0,0,$B150*Simulador!$AA$43)),0) -> 0 | V150: =IFERROR(IF(Simulador!$U$29=1,0,IF($B150<=0,0,IF(Simulador!$D$22>0,Simulador!$D$22,Simulador!$O$24)*Simulador!$AA$44)),0) -> 0 | Y150: 0 | AC150: 11 | AD150: 4 | AE150: 0 | AF150: 0 | AG150: 0 | AH150: 0 | AI150: =IF(Simulador!$T$68=1,'Tabla de amortizacion'!AJ150,'Tabla de amortizacion'!AR150) -> 0.1075 | AJ150: 0.1075 | AK150: 0 | AN150: 0.115 | AO150: 0.115 | AP150: 0 | AQ150: 0 | AR150: =IF(AND(Simulador!$T$68=2,Simulador!$T$62=1),AL150,IF(AND(Simulador!$T$68=2,Simulador!$T$62=2),AM150,IF(AND(Simulador!$T$68=2,Simulador!$T$62=3),AN150,AO150))) -> 0.115 | AT150: 0 | AU150: 0 | AV150: 0 | AW150: 0 | AX150: 0 | AZ150: =IFERROR(IF(Simulador!$U$29=1,0,IF($AT150<=0.01,0,$AT150*Simulador!$AA$43)),0)+IFERROR(IF(Simulador!$U$29=1,0,IF($AT150<=0.01,0,IF(Simulador!$D$22>0,Simulador!$D$22,Simulador!$O$24)*Simulador!$AA$44)),0) -> 0 | BB150: 0 | BC150: 0 | BE150: 0 | BF150: 136
A151: 137 | B151: 0 | D151: =IF(B151+F151-D150<=0,B151+F151,IF(AND(OR(Simulador!$U$39=2,Simulador!$U$39=7),J150=0),D150*(1+AA151),IF($AE$3=2,B151*AQ151,D150*(1+AA151)))) -> 0 | F151: 0 | H151: 0 | L151: =IF(Simulador!$T$41=1,0,J151*Simulador!$W$39*1.16) -> 0 | R151: 0 | T151: =IFERROR(IF(Simulador!$U$29=1,0,IF($B151<=0,0,$B151*Simulador!$AA$43)),0) -> 0 | V151: =IFERROR(IF(Simulador!$U$29=1,0,IF($B151<=0,0,IF(Simulador!$D$22>0,Simulador!$D$22,Simulador!$O$24)*Simulador!$AA$44)),0) -> 0 | Y151: 0 | AC151: 11 | AD151: 5 | AE151: 0 | AF151: 0 | AG151: 0 | AH151: 0 | AI151: =IF(Simulador!$T$68=1,'Tabla de amortizacion'!AJ151,'Tabla de amortizacion'!AR151) -> 0.1075 | AJ151: 0.1075 | AK151: 0 | AN151: 0.115 | AO151: 0.115 | AP151: 0 | AQ151: 0 | AR151: =IF(AND(Simulador!$T$68=2,Simulador!$T$62=1),AL151,IF(AND(Simulador!$T$68=2,Simulador!$T$62=2),AM151,IF(AND(Simulador!$T$68=2,Simulador!$T$62=3),AN151,AO151))) -> 0.115 | AT151: 0 | AU151: 0 | AV151: 0 | AW151: 0 | AX151: 0 | AZ151: =IFERROR(IF(Simulador!$U$29=1,0,IF($AT151<=0.01,0,$AT151*Simulador!$AA$43)),0)+IFERROR(IF(Simulador!$U$29=1,0,IF($AT151<=0.01,0,IF(Simulador!$D$22>0,Simulador!$D$22,Simulador!$O$24)*Simulador!$AA$44)),0) -> 0 | BB151: 0 | BC151: 0 | BE151: 0 | BF151: 137
A152: 138 | B152: 0 | D152: =IF(B152+F152-D151<=0,B152+F152,IF(AND(OR(Simulador!$U$39=2,Simulador!$U$39=7),J151=0),D151*(1+AA152),IF($AE$3=2,B152*AQ152,D151*(1+AA152)))) -> 0 | F152: 0 | H152: 0 | L152: =IF(Simulador!$T$41=1,0,J152*Simulador!$W$39*1.16) -> 0 | N152: =IF(B152-H152=0,0,N150) -> 0 | R152: 0 | T152: =IFERROR(IF(Simulador!$U$29=1,0,IF($B152<=0,0,$B152*Simulador!$AA$43)),0) -> 0 | V152: =IFERROR(IF(Simulador!$U$29=1,0,IF($B152<=0,0,IF(Simulador!$D$22>0,Simulador!$D$22,Simulador!$O$24)*Simulador!$AA$44)),0) -> 0 | Y152: 0 | AC152: 11 | AD152: 6 | AE152: 0 | AF152: 0 | AG152: 0 | AH152: 0 | AI152: =IF(Simulador!$T$68=1,'Tabla de amortizacion'!AJ152,'Tabla de amortizacion'!AR152) -> 0.1075 | AJ152: 0.1075 | AK152: 0 | AN152: 0.115 | AO152: 0.115 | AP152: 0 | AQ152: 0 | AR152: =IF(AND(Simulador!$T$68=2,Simulador!$T$62=1),AL152,IF(AND(Simulador!$T$68=2,Simulador!$T$62=2),AM152,IF(AND(Simulador!$T$68=2,Simulador!$T$62=3),AN152,AO152))) -> 0.115 | AT152: 0 | AU152: 0 | AV152: 0 | AW152: 0 | AX152: 0 | AZ152: =IFERROR(IF(Simulador!$U$29=1,0,IF($AT152<=0.01,0,$AT152*Simulador!$AA$43)),0)+IFERROR(IF(Simulador!$U$29=1,0,IF($AT152<=0.01,0,IF(Simulador!$D$22>0,Simulador!$D$22,Simulador!$O$24)*Simulador!$AA$44)),0) -> 0 | BB152: 0 | BC152: 0 | BE152: 0 | BF152: 138
A153: 139 | B153: 0 | D153: =IF(B153+F153-D152<=0,B153+F153,IF(AND(OR(Simulador!$U$39=2,Simulador!$U$39=7),J152=0),D152*(1+AA153),IF($AE$3=2,B153*AQ153,D152*(1+AA153)))) -> 0 | F153: 0 | H153: 0 | L153: =IF(Simulador!$T$41=1,0,J153*Simulador!$W$39*1.16) -> 0 | R153: 0 | T153: =IFERROR(IF(Simulador!$U$29=1,0,IF($B153<=0,0,$B153*Simulador!$AA$43)),0) -> 0 | V153: =IFERROR(IF(Simulador!$U$29=1,0,IF($B153<=0,0,IF(Simulador!$D$22>0,Simulador!$D$22,Simulador!$O$24)*Simulador!$AA$44)),0) -> 0 | Y153: 0 | AC153: 11 | AD153: 7 | AE153: 0 | AF153: 0 | AG153: 0 | AH153: 0 | AI153: =IF(Simulador!$T$68=1,'Tabla de amortizacion'!AJ153,'Tabla de amortizacion'!AR153) -> 0.1075 | AJ153: 0.1075 | AK153: 0 | AN153: 0.115 | AO153: 0.115 | AP153: 0 | AQ153: 0 | AR153: =IF(AND(Simulador!$T$68=2,Simulador!$T$62=1),AL153,IF(AND(Simulador!$T$68=2,Simulador!$T$62=2),AM153,IF(AND(Simulador!$T$68=2,Simulador!$T$62=3),AN153,AO153))) -> 0.115 | AT153: 0 | AU153: 0 | AV153: 0 | AW153: 0 | AX153: 0 | AZ153: =IFERROR(IF(Simulador!$U$29=1,0,IF($AT153<=0.01,0,$AT153*Simulador!$AA$43)),0)+IFERROR(IF(Simulador!$U$29=1,0,IF($AT153<=0.01,0,IF(Simulador!$D$22>0,Simulador!$D$22,Simulador!$O$24)*Simulador!$AA$44)),0) -> 0 | BB153: 0 | BC153: 0 | BE153: 0 | BF153: 139
A154: 140 | B154: 0 | D154: =IF(B154+F154-D153<=0,B154+F154,IF(AND(OR(Simulador!$U$39=2,Simulador!$U$39=7),J153=0),D153*(1+AA154),IF($AE$3=2,B154*AQ154,D153*(1+AA154)))) -> 0 | F154: 0 | H154: 0 | L154: =IF(Simulador!$T$41=1,0,J154*Simulador!$W$39*1.16) -> 0 | N154: =IF(B154-H154=0,0,N152) -> 0 | R154: 0 | T154: =IFERROR(IF(Simulador!$U$29=1,0,IF($B154<=0,0,$B154*Simulador!$AA$43)),0) -> 0 | V154: =IFERROR(IF(Simulador!$U$29=1,0,IF($B154<=0,0,IF(Simulador!$D$22>0,Simulador!$D$22,Simulador!$O$24)*Simulador!$AA$44)),0) -> 0 | Y154: 0 | AC154: 11 | AD154: 8 | AE154: 0 | AF154: 0 | AG154: 0 | AH154: 0 | AI154: =IF(Simulador!$T$68=1,'Tabla de amortizacion'!AJ154,'Tabla de amortizacion'!AR154) -> 0.1075 | AJ154: 0.1075 | AK154: 0 | AN154: 0.115 | AO154: 0.115 | AP154: 0 | AQ154: 0 | AR154: =IF(AND(Simulador!$T$68=2,Simulador!$T$62=1),AL154,IF(AND(Simulador!$T$68=2,Simulador!$T$62=2),AM154,IF(AND(Simulador!$T$68=2,Simulador!$T$62=3),AN154,AO154))) -> 0.115 | AT154: 0 | AU154: 0 | AV154: 0 | AW154: 0 | AX154: 0 | AZ154: =IFERROR(IF(Simulador!$U$29=1,0,IF($AT154<=0.01,0,$AT154*Simulador!$AA$43)),0)+IFERROR(IF(Simulador!$U$29=1,0,IF($AT154<=0.01,0,IF(Simulador!$D$22>0,Simulador!$D$22,Simulador!$O$24)*Simulador!$AA$44)),0) -> 0 | BB154: 0 | BC154: 0 | BE154: 0 | BF154: 140
A155: 141 | B155: 0 | D155: =IF(B155+F155-D154<=0,B155+F155,IF(AND(OR(Simulador!$U$39=2,Simulador!$U$39=7),J154=0),D154*(1+AA155),IF($AE$3=2,B155*AQ155,D154*(1+AA155)))) -> 0 | F155: 0 | H155: 0 | L155: =IF(Simulador!$T$41=1,0,J155*Simulador!$W$39*1.16) -> 0 | R155: 0 | T155: =IFERROR(IF(Simulador!$U$29=1,0,IF($B155<=0,0,$B155*Simulador!$AA$43)),0) -> 0 | V155: =IFERROR(IF(Simulador!$U$29=1,0,IF($B155<=0,0,IF(Simulador!$D$22>0,Simulador!$D$22,Simulador!$O$24)*Simulador!$AA$44)),0) -> 0 | Y155: 0 | AC155: 11 | AD155: 9 | AE155: 0 | AF155: 0 | AG155: 0 | AH155: 0 | AI155: =IF(Simulador!$T$68=1,'Tabla de amortizacion'!AJ155,'Tabla de amortizacion'!AR155) -> 0.1075 | AJ155: 0.1075 | AK155: 0 | AN155: 0.115 | AO155: 0.115 | AP155: 0 | AQ155: 0 | AR155: =IF(AND(Simulador!$T$68=2,Simulador!$T$62=1),AL155,IF(AND(Simulador!$T$68=2,Simulador!$T$62=2),AM155,IF(AND(Simulador!$T$68=2,Simulador!$T$62=3),AN155,AO155))) -> 0.115 | AT155: 0 | AU155: 0 | AV155: 0 | AW155: 0 | AX155: 0 | AZ155: =IFERROR(IF(Simulador!$U$29=1,0,IF($AT155<=0.01,0,$AT155*Simulador!$AA$43)),0)+IFERROR(IF(Simulador!$U$29=1,0,IF($AT155<=0.01,0,IF(Simulador!$D$22>0,Simulador!$D$22,Simulador!$O$24)*Simulador!$AA$44)),0) -> 0 | BB155: 0 | BC155: 0 | BE155: 0 | BF155: 141
A156: 142 | B156: 0 | D156: =IF(B156+F156-D155<=0,B156+F156,IF(AND(OR(Simulador!$U$39=2,Simulador!$U$39=7),J155=0),D155*(1+AA156),IF($AE$3=2,B156*AQ156,D155*(1+AA156)))) -> 0 | F156: 0 | H156: 0 | L156: =IF(Simulador!$T$41=1,0,J156*Simulador!$W$39*1.16) -> 0 | N156: =IF(B156-H156=0,0,N154) -> 0 | R156: 0 | T156: =IFERROR(IF(Simulador!$U$29=1,0,IF($B156<=0,0,$B156*Simulador!$AA$43)),0) -> 0 | V156: =IFERROR(IF(Simulador!$U$29=1,0,IF($B156<=0,0,IF(Simulador!$D$22>0,Simulador!$D$22,Simulador!$O$24)*Simulador!$AA$44)),0) -> 0 | Y156: 0 | AC156: 11 | AD156: 10 | AE156: 0 | AF156: 0 | AG156: 0 | AH156: 0 | AI156: =IF(Simulador!$T$68=1,'Tabla de amortizacion'!AJ156,'Tabla de amortizacion'!AR156) -> 0.1075 | AJ156: 0.1075 | AK156: 0 | AN156: 0.115 | AO156: 0.115 | AP156: 0 | AQ156: 0 | AR156: =IF(AND(Simulador!$T$68=2,Simulador!$T$62=1),AL156,IF(AND(Simulador!$T$68=2,Simulador!$T$62=2),AM156,IF(AND(Simulador!$T$68=2,Simulador!$T$62=3),AN156,AO156))) -> 0.115 | AT156: 0 | AU156: 0 | AV156: 0 | AW156: 0 | AX156: 0 | AZ156: =IFERROR(IF(Simulador!$U$29=1,0,IF($AT156<=0.01,0,$AT156*Simulador!$AA$43)),0)+IFERROR(IF(Simulador!$U$29=1,0,IF($AT156<=0.01,0,IF(Simulador!$D$22>0,Simulador!$D$22,Simulador!$O$24)*Simulador!$AA$44)),0) -> 0 | BB156: 0 | BC156: 0 | BE156: 0 | BF156: 142
A157: 143 | B157: 0 | D157: =IF(B157+F157-D156<=0,B157+F157,IF(AND(OR(Simulador!$U$39=2,Simulador!$U$39=7),J156=0),D156*(1+AA157),IF($AE$3=2,B157*AQ157,D156*(1+AA157)))) -> 0 | F157: 0 | H157: 0 | L157: =IF(Simulador!$T$41=1,0,J157*Simulador!$W$39*1.16) -> 0 | R157: 0 | T157: =IFERROR(IF(Simulador!$U$29=1,0,IF($B157<=0,0,$B157*Simulador!$AA$43)),0) -> 0 | V157: =IFERROR(IF(Simulador!$U$29=1,0,IF($B157<=0,0,IF(Simulador!$D$22>0,Simulador!$D$22,Simulador!$O$24)*Simulador!$AA$44)),0) -> 0 | Y157: 0 | AC157: 11 | AD157: 11 | AE157: 0 | AF157: 0 | AG157: 0 | AH157: 0 | AI157: =IF(Simulador!$T$68=1,'Tabla de amortizacion'!AJ157,'Tabla de amortizacion'!AR157) -> 0.1075 | AJ157: 0.1075 | AK157: 0 | AN157: 0.115 | AO157: 0.115 | AP157: 0 | AQ157: 0 | AR157: =IF(AND(Simulador!$T$68=2,Simulador!$T$62=1),AL157,IF(AND(Simulador!$T$68=2,Simulador!$T$62=2),AM157,IF(AND(Simulador!$T$68=2,Simulador!$T$62=3),AN157,AO157))) -> 0.115 | AT157: =IF(AX156<=0,0,AX156) -> 0 | AU157: 0 | AV157: 0 | AW157: 0 | AX157: 0 | AZ157: =IFERROR(IF(Simulador!$U$29=1,0,IF($AT157<=0.01,0,$AT157*Simulador!$AA$43)),0)+IFERROR(IF(Simulador!$U$29=1,0,IF($AT157<=0.01,0,IF(Simulador!$D$22>0,Simulador!$D$22,Simulador!$O$24)*Simulador!$AA$44)),0) -> 0 | BB157: 0 | BC157: 0 | BE157: 0 | BF157: 143
A158: 144 | B158: 0 | D158: =IF(B158+F158-D157<=0,B158+F158,IF(AND(OR(Simulador!$U$39=2,Simulador!$U$39=7),J157=0),D157*(1+AA158),IF($AE$3=2,B158*AQ158,D157*(1+AA158)))) -> 0 | F158: 0 | H158: 0 | L158: =IF(Simulador!$T$41=1,0,J158*Simulador!$W$39*1.16) -> 0 | N158: =IF(B158-H158=0,0,N156) -> 0 | R158: 0 | T158: =IFERROR(IF(Simulador!$U$29=1,0,IF($B158<=0,0,$B158*Simulador!$AA$43)),0) -> 0 | V158: =IFERROR(IF(Simulador!$U$29=1,0,IF($B158<=0,0,IF(Simulador!$D$22>0,Simulador!$D$22,Simulador!$O$24)*Simulador!$AA$44)),0) -> 0 | Y158: 0 | AC158: 12 | AD158: 0 | AE158: 0 | AF158: 0 | AG158: 0 | AH158: 0 | AI158: =IF(Simulador!$T$68=1,'Tabla de amortizacion'!AJ158,'Tabla de amortizacion'!AR158) -> 0.1075 | AJ158: 0.1075 | AK158: 0 | AN158: 0.115 | AO158: 0.115 | AP158: 0 | AQ158: 0 | AR158: =IF(AND(Simulador!$T$68=2,Simulador!$T$62=1),AL158,IF(AND(Simulador!$T$68=2,Simulador!$T$62=2),AM158,IF(AND(Simulador!$T$68=2,Simulador!$T$62=3),AN158,AO158))) -> 0.115 | AT158: 0 | AU158: 0 | AV158: 0 | AW158: 0 | AX158: 0 | AZ158: =IFERROR(IF(Simulador!$U$29=1,0,IF($AT158<=0.01,0,$AT158*Simulador!$AA$43)),0)+IFERROR(IF(Simulador!$U$29=1,0,IF($AT158<=0.01,0,IF(Simulador!$D$22>0,Simulador!$D$22,Simulador!$O$24)*Simulador!$AA$44)),0) -> 0 | BB158: 0 | BC158: 0 | BE158: 0 | BF158: 144
A159: 145 | B159: 0 | D159: =IF(B159+F159-D158<=0,B159+F159,IF(AND(OR(Simulador!$U$39=2,Simulador!$U$39=7),J158=0),D158*(1+AA159),IF($AE$3=2,B159*AQ159,D158*(1+AA159)))) -> 0 | F159: 0 | H159: 0 | L159: =IF(Simulador!$T$41=1,0,J159*Simulador!$W$39*1.16) -> 0 | R159: 0 | T159: =IFERROR(IF(Simulador!$U$29=1,0,IF($B159<=0,0,$B159*Simulador!$AA$43)),0) -> 0 | V159: =IFERROR(IF(Simulador!$U$29=1,0,IF($B159<=0,0,IF(Simulador!$D$22>0,Simulador!$D$22,Simulador!$O$24)*Simulador!$AA$44)),0) -> 0 | Y159: 0 | AA159: =IF(B159<=0,0,Simulador!$I$43) -> 0 | AC159: 12 | AD159: 1 | AE159: 0 | AF159: 0 | AG159: 0 | AH159: 0 | AI159: =IF(Simulador!$T$68=1,'Tabla de amortizacion'!AJ159,'Tabla de amortizacion'!AR159) -> 0.1075 | AJ159: =IF(AJ158=$AM$4,AJ158,IF(AJ158-0.25%<=$AM$4,$AM$4,AJ158-0.25%)) -> 0.1075 | AK159: 0 | AN159: 0.115 | AO159: 0.115 | AP159: 0 | AQ159: 0 | AR159: =IF(AND(Simulador!$T$68=2,Simulador!$T$62=1),AL159,IF(AND(Simulador!$T$68=2,Simulador!$T$62=2),AM159,IF(AND(Simulador!$T$68=2,Simulador!$T$62=3),AN159,AO159))) -> 0.115 | AT159: 0 | AU159: 0 | AV159: 0 | AW159: 0 | AX159: 0 | AZ159: =IFERROR(IF(Simulador!$U$29=1,0,IF($AT159<=0.01,0,$AT159*Simulador!$AA$43)),0)+IFERROR(IF(Simulador!$U$29=1,0,IF($AT159<=0.01,0,IF(Simulador!$D$22>0,Simulador!$D$22,Simulador!$O$24)*Simulador!$AA$44)),0) -> 0 | BA159: =IF(AT159<=0,0,$BA$27) -> 0 | BB159: 0 | BC159: 0 | BE159: 0 | BF159: 145
A160: 146 | B160: 0 | D160: =IF(B160+F160-D159<=0,B160+F160,IF(AND(OR(Simulador!$U$39=2,Simulador!$U$39=7),J159=0),D159*(1+AA160),IF($AE$3=2,B160*AQ160,D159*(1+AA160)))) -> 0 | F160: 0 | H160: 0 | L160: =IF(Simulador!$T$41=1,0,J160*Simulador!$W$39*1.16) -> 0 | N160: =IF(B160-H160=0,0,N158*(1+(Simulador!$AF$77))) -> 0 | R160: 0 | T160: =IFERROR(IF(Simulador!$U$29=1,0,IF($B160<=0,0,$B160*Simulador!$AA$43)),0) -> 0 | V160: =IFERROR(IF(Simulador!$U$29=1,0,IF($B160<=0,0,IF(Simulador!$D$22>0,Simulador!$D$22,Simulador!$O$24)*Simulador!$AA$44)),0) -> 0 | Y160: 0 | AC160: 12 | AD160: 2 | AE160: 0 | AF160: 0 | AG160: 0 | AH160: 0 | AI160: =IF(Simulador!$T$68=1,'Tabla de amortizacion'!AJ160,'Tabla de amortizacion'!AR160) -> 0.1075 | AJ160: =AJ159 -> 0.1075 | AK160: 0 | AN160: 0.115 | AO160: 0.115 | AP160: 0 | AQ160: 0 | AR160: =IF(AND(Simulador!$T$68=2,Simulador!$T$62=1),AL160,IF(AND(Simulador!$T$68=2,Simulador!$T$62=2),AM160,IF(AND(Simulador!$T$68=2,Simulador!$T$62=3),AN160,AO160))) -> 0.115 | AT160: 0 | AU160: 0 | AV160: 0 | AW160: 0 | AX160: 0 | AZ160: =IFERROR(IF(Simulador!$U$29=1,0,IF($AT160<=0.01,0,$AT160*Simulador!$AA$43)),0)+IFERROR(IF(Simulador!$U$29=1,0,IF($AT160<=0.01,0,IF(Simulador!$D$22>0,Simulador!$D$22,Simulador!$O$24)*Simulador!$AA$44)),0) -> 0 | BB160: 0 | BC160: 0 | BE160: 0 | BF160: 146
A161: 147 | B161: 0 | D161: =IF(B161+F161-D160<=0,B161+F161,IF(AND(OR(Simulador!$U$39=2,Simulador!$U$39=7),J160=0),D160*(1+AA161),IF($AE$3=2,B161*AQ161,D160*(1+AA161)))) -> 0 | F161: 0 | H161: 0 | L161: =IF(Simulador!$T$41=1,0,J161*Simulador!$W$39*1.16) -> 0 | R161: 0 | T161: =IFERROR(IF(Simulador!$U$29=1,0,IF($B161<=0,0,$B161*Simulador!$AA$43)),0) -> 0 | V161: =IFERROR(IF(Simulador!$U$29=1,0,IF($B161<=0,0,IF(Simulador!$D$22>0,Simulador!$D$22,Simulador!$O$24)*Simulador!$AA$44)),0) -> 0 | Y161: 0 | AC161: 12 | AD161: 3 | AE161: 0 | AF161: 0 | AG161: 0 | AH161: 0 | AI161: =IF(Simulador!$T$68=1,'Tabla de amortizacion'!AJ161,'Tabla de amortizacion'!AR161) -> 0.1075 | AJ161: =AJ160 -> 0.1075 | AK161: 0 | AN161: 0.115 | AO161: 0.115 | AP161: 0 | AQ161: 0 | AR161: =IF(AND(Simulador!$T$68=2,Simulador!$T$62=1),AL161,IF(AND(Simulador!$T$68=2,Simulador!$T$62=2),AM161,IF(AND(Simulador!$T$68=2,Simulador!$T$62=3),AN161,AO161))) -> 0.115 | AT161: 0 | AU161: 0 | AV161: 0 | AW161: 0 | AX161: 0 | AZ161: =IFERROR(IF(Simulador!$U$29=1,0,IF($AT161<=0.01,0,$AT161*Simulador!$AA$43)),0)+IFERROR(IF(Simulador!$U$29=1,0,IF($AT161<=0.01,0,IF(Simulador!$D$22>0,Simulador!$D$22,Simulador!$O$24)*Simulador!$AA$44)),0) -> 0 | BB161: 0 | BC161: 0 | BE161: 0 | BF161: 147
A162: 148 | B162: 0 | D162: =IF(B162+F162-D161<=0,B162+F162,IF(AND(OR(Simulador!$U$39=2,Simulador!$U$39=7),J161=0),D161*(1+AA162),IF($AE$3=2,B162*AQ162,D161*(1+AA162)))) -> 0 | F162: 0 | H162: 0 | L162: =IF(Simulador!$T$41=1,0,J162*Simulador!$W$39*1.16) -> 0 | N162: =IF(B162-H162=0,0,N160) -> 0 | R162: 0 | T162: =IFERROR(IF(Simulador!$U$29=1,0,IF($B162<=0,0,$B162*Simulador!$AA$43)),0) -> 0 | V162: =IFERROR(IF(Simulador!$U$29=1,0,IF($B162<=0,0,IF(Simulador!$D$22>0,Simulador!$D$22,Simulador!$O$24)*Simulador!$AA$44)),0) -> 0 | Y162: 0 | AC162: 12 | AD162: 4 | AE162: 0 | AF162: 0 | AG162: 0 | AH162: 0 | AI162: =IF(Simulador!$T$68=1,'Tabla de amortizacion'!AJ162,'Tabla de amortizacion'!AR162) -> 0.1075 | AJ162: 0.1075 | AK162: 0 | AN162: 0.115 | AO162: 0.115 | AP162: 0 | AQ162: 0 | AR162: =IF(AND(Simulador!$T$68=2,Simulador!$T$62=1),AL162,IF(AND(Simulador!$T$68=2,Simulador!$T$62=2),AM162,IF(AND(Simulador!$T$68=2,Simulador!$T$62=3),AN162,AO162))) -> 0.115 | AT162: 0 | AU162: 0 | AV162: 0 | AW162: 0 | AX162: 0 | AZ162: =IFERROR(IF(Simulador!$U$29=1,0,IF($AT162<=0.01,0,$AT162*Simulador!$AA$43)),0)+IFERROR(IF(Simulador!$U$29=1,0,IF($AT162<=0.01,0,IF(Simulador!$D$22>0,Simulador!$D$22,Simulador!$O$24)*Simulador!$AA$44)),0) -> 0 | BB162: 0 | BC162: 0 | BE162: 0 | BF162: 148
A163: 149 | B163: 0 | D163: =IF(B163+F163-D162<=0,B163+F163,IF(AND(OR(Simulador!$U$39=2,Simulador!$U$39=7),J162=0),D162*(1+AA163),IF($AE$3=2,B163*AQ163,D162*(1+AA163)))) -> 0 | F163: 0 | H163: 0 | L163: =IF(Simulador!$T$41=1,0,J163*Simulador!$W$39*1.16) -> 0 | R163: 0 | T163: =IFERROR(IF(Simulador!$U$29=1,0,IF($B163<=0,0,$B163*Simulador!$AA$43)),0) -> 0 | V163: =IFERROR(IF(Simulador!$U$29=1,0,IF($B163<=0,0,IF(Simulador!$D$22>0,Simulador!$D$22,Simulador!$O$24)*Simulador!$AA$44)),0) -> 0 | Y163: 0 | AC163: 12 | AD163: 5 | AE163: 0 | AF163: 0 | AG163: 0 | AH163: 0 | AI163: =IF(Simulador!$T$68=1,'Tabla de amortizacion'!AJ163,'Tabla de amortizacion'!AR163) -> 0.1075 | AJ163: 0.1075 | AK163: 0 | AN163: 0.115 | AO163: 0.115 | AP163: 0 | AQ163: 0 | AR163: =IF(AND(Simulador!$T$68=2,Simulador!$T$62=1),AL163,IF(AND(Simulador!$T$68=2,Simulador!$T$62=2),AM163,IF(AND(Simulador!$T$68=2,Simulador!$T$62=3),AN163,AO163))) -> 0.115 | AT163: 0 | AU163: 0 | AV163: 0 | AW163: 0 | AX163: 0 | AZ163: =IFERROR(IF(Simulador!$U$29=1,0,IF($AT163<=0.01,0,$AT163*Simulador!$AA$43)),0)+IFERROR(IF(Simulador!$U$29=1,0,IF($AT163<=0.01,0,IF(Simulador!$D$22>0,Simulador!$D$22,Simulador!$O$24)*Simulador!$AA$44)),0) -> 0 | BB163: 0 | BC163: 0 | BE163: 0 | BF163: 149
A164: 150 | B164: 0 | D164: =IF(B164+F164-D163<=0,B164+F164,IF(AND(OR(Simulador!$U$39=2,Simulador!$U$39=7),J163=0),D163*(1+AA164),IF($AE$3=2,B164*AQ164,D163*(1+AA164)))) -> 0 | F164: 0 | H164: 0 | L164: =IF(Simulador!$T$41=1,0,J164*Simulador!$W$39*1.16) -> 0 | N164: =IF(B164-H164=0,0,N162) -> 0 | R164: 0 | T164: =IFERROR(IF(Simulador!$U$29=1,0,IF($B164<=0,0,$B164*Simulador!$AA$43)),0) -> 0 | V164: =IFERROR(IF(Simulador!$U$29=1,0,IF($B164<=0,0,IF(Simulador!$D$22>0,Simulador!$D$22,Simulador!$O$24)*Simulador!$AA$44)),0) -> 0 | Y164: 0 | AC164: 12 | AD164: 6 | AE164: 0 | AF164: 0 | AG164: 0 | AH164: 0 | AI164: =IF(Simulador!$T$68=1,'Tabla de amortizacion'!AJ164,'Tabla de amortizacion'!AR164) -> 0.1075 | AJ164: 0.1075 | AK164: 0 | AN164: 0.115 | AO164: 0.115 | AP164: 0 | AQ164: 0 | AR164: =IF(AND(Simulador!$T$68=2,Simulador!$T$62=1),AL164,IF(AND(Simulador!$T$68=2,Simulador!$T$62=2),AM164,IF(AND(Simulador!$T$68=2,Simulador!$T$62=3),AN164,AO164))) -> 0.115 | AT164: 0 | AU164: 0 | AV164: 0 | AW164: 0 | AX164: 0 | AZ164: =IFERROR(IF(Simulador!$U$29=1,0,IF($AT164<=0.01,0,$AT164*Simulador!$AA$43)),0)+IFERROR(IF(Simulador!$U$29=1,0,IF($AT164<=0.01,0,IF(Simulador!$D$22>0,Simulador!$D$22,Simulador!$O$24)*Simulador!$AA$44)),0) -> 0 | BB164: 0 | BC164: 0 | BE164: 0 | BF164: 150
A165: 151 | B165: 0 | D165: =IF(B165+F165-D164<=0,B165+F165,IF(AND(OR(Simulador!$U$39=2,Simulador!$U$39=7),J164=0),D164*(1+AA165),IF($AE$3=2,B165*AQ165,D164*(1+AA165)))) -> 0 | F165: 0 | H165: 0 | L165: =IF(Simulador!$T$41=1,0,J165*Simulador!$W$39*1.16) -> 0 | R165: 0 | T165: =IFERROR(IF(Simulador!$U$29=1,0,IF($B165<=0,0,$B165*Simulador!$AA$43)),0) -> 0 | V165: =IFERROR(IF(Simulador!$U$29=1,0,IF($B165<=0,0,IF(Simulador!$D$22>0,Simulador!$D$22,Simulador!$O$24)*Simulador!$AA$44)),0) -> 0 | Y165: 0 | AC165: 12 | AD165: 7 | AE165: 0 | AF165: 0 | AG165: 0 | AH165: 0 | AI165: =IF(Simulador!$T$68=1,'Tabla de amortizacion'!AJ165,'Tabla de amortizacion'!AR165) -> 0.1075 | AJ165: 0.1075 | AK165: 0 | AN165: 0.115 | AO165: 0.115 | AP165: 0 | AQ165: 0 | AR165: =IF(AND(Simulador!$T$68=2,Simulador!$T$62=1),AL165,IF(AND(Simulador!$T$68=2,Simulador!$T$62=2),AM165,IF(AND(Simulador!$T$68=2,Simulador!$T$62=3),AN165,AO165))) -> 0.115 | AT165: 0 | AU165: 0 | AV165: 0 | AW165: 0 | AX165: 0 | AZ165: =IFERROR(IF(Simulador!$U$29=1,0,IF($AT165<=0.01,0,$AT165*Simulador!$AA$43)),0)+IFERROR(IF(Simulador!$U$29=1,0,IF($AT165<=0.01,0,IF(Simulador!$D$22>0,Simulador!$D$22,Simulador!$O$24)*Simulador!$AA$44)),0) -> 0 | BB165: 0 | BC165: 0 | BE165: 0 | BF165: 151
A166: 152 | B166: 0 | D166: =IF(B166+F166-D165<=0,B166+F166,IF(AND(OR(Simulador!$U$39=2,Simulador!$U$39=7),J165=0),D165*(1+AA166),IF($AE$3=2,B166*AQ166,D165*(1+AA166)))) -> 0 | F166: 0 | H166: 0 | L166: =IF(Simulador!$T$41=1,0,J166*Simulador!$W$39*1.16) -> 0 | N166: =IF(B166-H166=0,0,N164) -> 0 | R166: 0 | T166: =IFERROR(IF(Simulador!$U$29=1,0,IF($B166<=0,0,$B166*Simulador!$AA$43)),0) -> 0 | V166: =IFERROR(IF(Simulador!$U$29=1,0,IF($B166<=0,0,IF(Simulador!$D$22>0,Simulador!$D$22,Simulador!$O$24)*Simulador!$AA$44)),0) -> 0 | Y166: 0 | AC166: 12 | AD166: 8 | AE166: 0 | AF166: 0 | AG166: 0 | AH166: 0 | AI166: =IF(Simulador!$T$68=1,'Tabla de amortizacion'!AJ166,'Tabla de amortizacion'!AR166) -> 0.1075 | AJ166: 0.1075 | AK166: 0 | AN166: 0.115 | AO166: 0.115 | AP166: 0 | AQ166: 0 | AR166: =IF(AND(Simulador!$T$68=2,Simulador!$T$62=1),AL166,IF(AND(Simulador!$T$68=2,Simulador!$T$62=2),AM166,IF(AND(Simulador!$T$68=2,Simulador!$T$62=3),AN166,AO166))) -> 0.115 | AT166: 0 | AU166: 0 | AV166: 0 | AW166: 0 | AX166: 0 | AZ166: =IFERROR(IF(Simulador!$U$29=1,0,IF($AT166<=0.01,0,$AT166*Simulador!$AA$43)),0)+IFERROR(IF(Simulador!$U$29=1,0,IF($AT166<=0.01,0,IF(Simulador!$D$22>0,Simulador!$D$22,Simulador!$O$24)*Simulador!$AA$44)),0) -> 0 | BB166: 0 | BC166: 0 | BE166: 0 | BF166: 152
A167: 153 | B167: 0 | D167: =IF(B167+F167-D166<=0,B167+F167,IF(AND(OR(Simulador!$U$39=2,Simulador!$U$39=7),J166=0),D166*(1+AA167),IF($AE$3=2,B167*AQ167,D166*(1+AA167)))) -> 0 | F167: 0 | H167: 0 | L167: =IF(Simulador!$T$41=1,0,J167*Simulador!$W$39*1.16) -> 0 | R167: 0 | T167: =IFERROR(IF(Simulador!$U$29=1,0,IF($B167<=0,0,$B167*Simulador!$AA$43)),0) -> 0 | V167: =IFERROR(IF(Simulador!$U$29=1,0,IF($B167<=0,0,IF(Simulador!$D$22>0,Simulador!$D$22,Simulador!$O$24)*Simulador!$AA$44)),0) -> 0 | Y167: 0 | AC167: 12 | AD167: 9 | AE167: 0 | AF167: 0 | AG167: 0 | AH167: 0 | AI167: =IF(Simulador!$T$68=1,'Tabla de amortizacion'!AJ167,'Tabla de amortizacion'!AR167) -> 0.1075 | AJ167: 0.1075 | AK167: 0 | AN167: 0.115 | AO167: 0.115 | AP167: 0 | AQ167: 0 | AR167: =IF(AND(Simulador!$T$68=2,Simulador!$T$62=1),AL167,IF(AND(Simulador!$T$68=2,Simulador!$T$62=2),AM167,IF(AND(Simulador!$T$68=2,Simulador!$T$62=3),AN167,AO167))) -> 0.115 | AT167: 0 | AU167: 0 | AV167: 0 | AW167: 0 | AX167: 0 | AZ167: =IFERROR(IF(Simulador!$U$29=1,0,IF($AT167<=0.01,0,$AT167*Simulador!$AA$43)),0)+IFERROR(IF(Simulador!$U$29=1,0,IF($AT167<=0.01,0,IF(Simulador!$D$22>0,Simulador!$D$22,Simulador!$O$24)*Simulador!$AA$44)),0) -> 0 | BB167: 0 | BC167: 0 | BE167: 0 | BF167: 153
A168: 154 | B168: 0 | D168: =IF(B168+F168-D167<=0,B168+F168,IF(AND(OR(Simulador!$U$39=2,Simulador!$U$39=7),J167=0),D167*(1+AA168),IF($AE$3=2,B168*AQ168,D167*(1+AA168)))) -> 0 | F168: 0 | H168: 0 | L168: =IF(Simulador!$T$41=1,0,J168*Simulador!$W$39*1.16) -> 0 | N168: =IF(B168-H168=0,0,N166) -> 0 | R168: 0 | T168: =IFERROR(IF(Simulador!$U$29=1,0,IF($B168<=0,0,$B168*Simulador!$AA$43)),0) -> 0 | V168: =IFERROR(IF(Simulador!$U$29=1,0,IF($B168<=0,0,IF(Simulador!$D$22>0,Simulador!$D$22,Simulador!$O$24)*Simulador!$AA$44)),0) -> 0 | Y168: 0 | AC168: 12 | AD168: 10 | AE168: 0 | AF168: 0 | AG168: 0 | AH168: 0 | AI168: =IF(Simulador!$T$68=1,'Tabla de amortizacion'!AJ168,'Tabla de amortizacion'!AR168) -> 0.1075 | AJ168: 0.1075 | AK168: 0 | AN168: 0.115 | AO168: 0.115 | AP168: 0 | AQ168: 0 | AR168: =IF(AND(Simulador!$T$68=2,Simulador!$T$62=1),AL168,IF(AND(Simulador!$T$68=2,Simulador!$T$62=2),AM168,IF(AND(Simulador!$T$68=2,Simulador!$T$62=3),AN168,AO168))) -> 0.115 | AT168: 0 | AU168: 0 | AV168: 0 | AW168: 0 | AX168: 0 | AZ168: =IFERROR(IF(Simulador!$U$29=1,0,IF($AT168<=0.01,0,$AT168*Simulador!$AA$43)),0)+IFERROR(IF(Simulador!$U$29=1,0,IF($AT168<=0.01,0,IF(Simulador!$D$22>0,Simulador!$D$22,Simulador!$O$24)*Simulador!$AA$44)),0) -> 0 | BB168: 0 | BC168: 0 | BE168: 0 | BF168: 154
A169: 155 | B169: 0 | D169: =IF(B169+F169-D168<=0,B169+F169,IF(AND(OR(Simulador!$U$39=2,Simulador!$U$39=7),J168=0),D168*(1+AA169),IF($AE$3=2,B169*AQ169,D168*(1+AA169)))) -> 0 | F169: 0 | H169: 0 | L169: =IF(Simulador!$T$41=1,0,J169*Simulador!$W$39*1.16) -> 0 | R169: 0 | T169: =IFERROR(IF(Simulador!$U$29=1,0,IF($B169<=0,0,$B169*Simulador!$AA$43)),0) -> 0 | V169: =IFERROR(IF(Simulador!$U$29=1,0,IF($B169<=0,0,IF(Simulador!$D$22>0,Simulador!$D$22,Simulador!$O$24)*Simulador!$AA$44)),0) -> 0 | Y169: 0 | AC169: 12 | AD169: 11 | AE169: 0 | AF169: 0 | AG169: 0 | AH169: 0 | AI169: =IF(Simulador!$T$68=1,'Tabla de amortizacion'!AJ169,'Tabla de amortizacion'!AR169) -> 0.1075 | AJ169: 0.1075 | AK169: 0 | AN169: 0.115 | AO169: 0.115 | AP169: 0 | AQ169: 0 | AR169: =IF(AND(Simulador!$T$68=2,Simulador!$T$62=1),AL169,IF(AND(Simulador!$T$68=2,Simulador!$T$62=2),AM169,IF(AND(Simulador!$T$68=2,Simulador!$T$62=3),AN169,AO169))) -> 0.115 | AT169: 0 | AU169: 0 | AV169: 0 | AW169: 0 | AX169: 0 | AZ169: =IFERROR(IF(Simulador!$U$29=1,0,IF($AT169<=0.01,0,$AT169*Simulador!$AA$43)),0)+IFERROR(IF(Simulador!$U$29=1,0,IF($AT169<=0.01,0,IF(Simulador!$D$22>0,Simulador!$D$22,Simulador!$O$24)*Simulador!$AA$44)),0) -> 0 | BB169: 0 | BC169: 0 | BE169: 0 | BF169: 155
A170: 156 | B170: 0 | D170: =IF(B170+F170-D169<=0,B170+F170,IF(AND(OR(Simulador!$U$39=2,Simulador!$U$39=7),J169=0),D169*(1+AA170),IF($AE$3=2,B170*AQ170,D169*(1+AA170)))) -> 0 | F170: 0 | H170: 0 | L170: =IF(Simulador!$T$41=1,0,J170*Simulador!$W$39*1.16) -> 0 | N170: =IF(B170-H170=0,0,N168) -> 0 | R170: 0 | T170: =IFERROR(IF(Simulador!$U$29=1,0,IF($B170<=0,0,$B170*Simulador!$AA$43)),0) -> 0 | V170: =IFERROR(IF(Simulador!$U$29=1,0,IF($B170<=0,0,IF(Simulador!$D$22>0,Simulador!$D$22,Simulador!$O$24)*Simulador!$AA$44)),0) -> 0 | Y170: 0 | AC170: 13 | AD170: 0 | AE170: 0 | AF170: 0 | AG170: 0 | AH170: 0 | AI170: =IF(Simulador!$T$68=1,'Tabla de amortizacion'!AJ170,'Tabla de amortizacion'!AR170) -> 0.1075 | AJ170: 0.1075 | AK170: 0 | AN170: 0.115 | AO170: 0.115 | AP170: 0 | AQ170: 0 | AR170: =IF(AND(Simulador!$T$68=2,Simulador!$T$62=1),AL170,IF(AND(Simulador!$T$68=2,Simulador!$T$62=2),AM170,IF(AND(Simulador!$T$68=2,Simulador!$T$62=3),AN170,AO170))) -> 0.115 | AT170: 0 | AU170: 0 | AV170: 0 | AW170: 0 | AX170: 0 | AZ170: =IFERROR(IF(Simulador!$U$29=1,0,IF($AT170<=0.01,0,$AT170*Simulador!$AA$43)),0)+IFERROR(IF(Simulador!$U$29=1,0,IF($AT170<=0.01,0,IF(Simulador!$D$22>0,Simulador!$D$22,Simulador!$O$24)*Simulador!$AA$44)),0) -> 0 | BB170: 0 | BC170: 0 | BE170: 0 | BF170: 156
A171: 157 | B171: 0 | D171: =IF(B171+F171-D170<=0,B171+F171,IF(AND(OR(Simulador!$U$39=2,Simulador!$U$39=7),J170=0),D170*(1+AA171),IF($AE$3=2,B171*AQ171,D170*(1+AA171)))) -> 0 | F171: 0 | H171: 0 | L171: =IF(Simulador!$T$41=1,0,J171*Simulador!$W$39*1.16) -> 0 | R171: 0 | T171: =IFERROR(IF(Simulador!$U$29=1,0,IF($B171<=0,0,$B171*Simulador!$AA$43)),0) -> 0 | V171: =IFERROR(IF(Simulador!$U$29=1,0,IF($B171<=0,0,IF(Simulador!$D$22>0,Simulador!$D$22,Simulador!$O$24)*Simulador!$AA$44)),0) -> 0 | Y171: 0 | AA171: =IF(B171<=0,0,Simulador!$I$43) -> 0 | AC171: 13 | AD171: 1 | AE171: 0 | AF171: 0 | AG171: 0 | AH171: 0 | AI171: =IF(Simulador!$T$68=1,'Tabla de amortizacion'!AJ171,'Tabla de amortizacion'!AR171) -> 0.1075 | AJ171: =IF(AJ170=$AM$4,AJ170,IF(AJ170-0.25%<=$AM$4,$AM$4,AJ170-0.25%)) -> 0.1075 | AK171: 0 | AN171: 0.115 | AO171: 0.115 | AP171: 0 | AQ171: 0 | AR171: =IF(AND(Simulador!$T$68=2,Simulador!$T$62=1),AL171,IF(AND(Simulador!$T$68=2,Simulador!$T$62=2),AM171,IF(AND(Simulador!$T$68=2,Simulador!$T$62=3),AN171,AO171))) -> 0.115 | AT171: 0 | AU171: 0 | AV171: 0 | AW171: 0 | AX171: 0 | AZ171: =IFERROR(IF(Simulador!$U$29=1,0,IF($AT171<=0.01,0,$AT171*Simulador!$AA$43)),0)+IFERROR(IF(Simulador!$U$29=1,0,IF($AT171<=0.01,0,IF(Simulador!$D$22>0,Simulador!$D$22,Simulador!$O$24)*Simulador!$AA$44)),0) -> 0 | BA171: =IF(AT171<=0,0,$BA$27) -> 0 | BB171: 0 | BC171: 0 | BE171: 0 | BF171: 157
A172: 158 | B172: 0 | D172: =IF(B172+F172-D171<=0,B172+F172,IF(AND(OR(Simulador!$U$39=2,Simulador!$U$39=7),J171=0),D171*(1+AA172),IF($AE$3=2,B172*AQ172,D171*(1+AA172)))) -> 0 | F172: 0 | H172: 0 | L172: =IF(Simulador!$T$41=1,0,J172*Simulador!$W$39*1.16) -> 0 | N172: =IF(B172-H172=0,0,N170*(1+(Simulador!$AF$77))) -> 0 | R172: 0 | T172: =IFERROR(IF(Simulador!$U$29=1,0,IF($B172<=0,0,$B172*Simulador!$AA$43)),0) -> 0 | V172: =IFERROR(IF(Simulador!$U$29=1,0,IF($B172<=0,0,IF(Simulador!$D$22>0,Simulador!$D$22,Simulador!$O$24)*Simulador!$AA$44)),0) -> 0 | Y172: 0 | AC172: 13 | AD172: 2 | AE172: 0 | AF172: 0 | AG172: 0 | AH172: 0 | AI172: =IF(Simulador!$T$68=1,'Tabla de amortizacion'!AJ172,'Tabla de amortizacion'!AR172) -> 0.1075 | AJ172: =AJ171 -> 0.1075 | AK172: 0 | AN172: 0.115 | AO172: 0.115 | AP172: 0 | AQ172: 0 | AR172: =IF(AND(Simulador!$T$68=2,Simulador!$T$62=1),AL172,IF(AND(Simulador!$T$68=2,Simulador!$T$62=2),AM172,IF(AND(Simulador!$T$68=2,Simulador!$T$62=3),AN172,AO172))) -> 0.115 | AT172: 0 | AU172: 0 | AV172: 0 | AW172: 0 | AX172: 0 | AZ172: =IFERROR(IF(Simulador!$U$29=1,0,IF($AT172<=0.01,0,$AT172*Simulador!$AA$43)),0)+IFERROR(IF(Simulador!$U$29=1,0,IF($AT172<=0.01,0,IF(Simulador!$D$22>0,Simulador!$D$22,Simulador!$O$24)*Simulador!$AA$44)),0) -> 0 | BB172: 0 | BC172: 0 | BE172: 0 | BF172: 158
A173: 159 | B173: 0 | D173: =IF(B173+F173-D172<=0,B173+F173,IF(AND(OR(Simulador!$U$39=2,Simulador!$U$39=7),J172=0),D172*(1+AA173),IF($AE$3=2,B173*AQ173,D172*(1+AA173)))) -> 0 | F173: 0 | H173: 0 | L173: =IF(Simulador!$T$41=1,0,J173*Simulador!$W$39*1.16) -> 0 | R173: 0 | T173: =IFERROR(IF(Simulador!$U$29=1,0,IF($B173<=0,0,$B173*Simulador!$AA$43)),0) -> 0 | V173: =IFERROR(IF(Simulador!$U$29=1,0,IF($B173<=0,0,IF(Simulador!$D$22>0,Simulador!$D$22,Simulador!$O$24)*Simulador!$AA$44)),0) -> 0 | Y173: 0 | AC173: 13 | AD173: 3 | AE173: 0 | AF173: 0 | AG173: 0 | AH173: 0 | AI173: =IF(Simulador!$T$68=1,'Tabla de amortizacion'!AJ173,'Tabla de amortizacion'!AR173) -> 0.1075 | AJ173: =AJ172 -> 0.1075 | AK173: 0 | AN173: 0.115 | AO173: 0.115 | AP173: 0 | AQ173: 0 | AR173: =IF(AND(Simulador!$T$68=2,Simulador!$T$62=1),AL173,IF(AND(Simulador!$T$68=2,Simulador!$T$62=2),AM173,IF(AND(Simulador!$T$68=2,Simulador!$T$62=3),AN173,AO173))) -> 0.115 | AT173: 0 | AU173: 0 | AV173: 0 | AW173: 0 | AX173: 0 | AZ173: =IFERROR(IF(Simulador!$U$29=1,0,IF($AT173<=0.01,0,$AT173*Simulador!$AA$43)),0)+IFERROR(IF(Simulador!$U$29=1,0,IF($AT173<=0.01,0,IF(Simulador!$D$22>0,Simulador!$D$22,Simulador!$O$24)*Simulador!$AA$44)),0) -> 0 | BB173: 0 | BC173: 0 | BE173: 0 | BF173: 159
A174: 160 | B174: 0 | D174: =IF(B174+F174-D173<=0,B174+F174,IF(AND(OR(Simulador!$U$39=2,Simulador!$U$39=7),J173=0),D173*(1+AA174),IF($AE$3=2,B174*AQ174,D173*(1+AA174)))) -> 0 | F174: 0 | H174: 0 | L174: =IF(Simulador!$T$41=1,0,J174*Simulador!$W$39*1.16) -> 0 | N174: =IF(B174-H174=0,0,N172) -> 0 | R174: 0 | T174: =IFERROR(IF(Simulador!$U$29=1,0,IF($B174<=0,0,$B174*Simulador!$AA$43)),0) -> 0 | V174: =IFERROR(IF(Simulador!$U$29=1,0,IF($B174<=0,0,IF(Simulador!$D$22>0,Simulador!$D$22,Simulador!$O$24)*Simulador!$AA$44)),0) -> 0 | Y174: 0 | AC174: 13 | AD174: 4 | AE174: 0 | AF174: 0 | AG174: 0 | AH174: 0 | AI174: =IF(Simulador!$T$68=1,'Tabla de amortizacion'!AJ174,'Tabla de amortizacion'!AR174) -> 0.1075 | AJ174: 0.1075 | AK174: 0 | AN174: 0.115 | AO174: 0.115 | AP174: 0 | AQ174: 0 | AR174: =IF(AND(Simulador!$T$68=2,Simulador!$T$62=1),AL174,IF(AND(Simulador!$T$68=2,Simulador!$T$62=2),AM174,IF(AND(Simulador!$T$68=2,Simulador!$T$62=3),AN174,AO174))) -> 0.115 | AT174: 0 | AU174: 0 | AV174: 0 | AW174: 0 | AX174: 0 | AZ174: =IFERROR(IF(Simulador!$U$29=1,0,IF($AT174<=0.01,0,$AT174*Simulador!$AA$43)),0)+IFERROR(IF(Simulador!$U$29=1,0,IF($AT174<=0.01,0,IF(Simulador!$D$22>0,Simulador!$D$22,Simulador!$O$24)*Simulador!$AA$44)),0) -> 0 | BB174: 0 | BC174: 0 | BE174: 0 | BF174: 160
A175: 161 | B175: 0 | D175: =IF(B175+F175-D174<=0,B175+F175,IF(AND(OR(Simulador!$U$39=2,Simulador!$U$39=7),J174=0),D174*(1+AA175),IF($AE$3=2,B175*AQ175,D174*(1+AA175)))) -> 0 | F175: 0 | H175: 0 | L175: =IF(Simulador!$T$41=1,0,J175*Simulador!$W$39*1.16) -> 0 | R175: 0 | T175: =IFERROR(IF(Simulador!$U$29=1,0,IF($B175<=0,0,$B175*Simulador!$AA$43)),0) -> 0 | V175: =IFERROR(IF(Simulador!$U$29=1,0,IF($B175<=0,0,IF(Simulador!$D$22>0,Simulador!$D$22,Simulador!$O$24)*Simulador!$AA$44)),0) -> 0 | Y175: 0 | AC175: 13 | AD175: 5 | AE175: 0 | AF175: 0 | AG175: 0 | AH175: 0 | AI175: =IF(Simulador!$T$68=1,'Tabla de amortizacion'!AJ175,'Tabla de amortizacion'!AR175) -> 0.1075 | AJ175: 0.1075 | AK175: 0 | AN175: 0.115 | AO175: 0.115 | AP175: 0 | AQ175: 0 | AR175: =IF(AND(Simulador!$T$68=2,Simulador!$T$62=1),AL175,IF(AND(Simulador!$T$68=2,Simulador!$T$62=2),AM175,IF(AND(Simulador!$T$68=2,Simulador!$T$62=3),AN175,AO175))) -> 0.115 | AT175: 0 | AU175: 0 | AV175: 0 | AW175: 0 | AX175: 0 | AZ175: =IFERROR(IF(Simulador!$U$29=1,0,IF($AT175<=0.01,0,$AT175*Simulador!$AA$43)),0)+IFERROR(IF(Simulador!$U$29=1,0,IF($AT175<=0.01,0,IF(Simulador!$D$22>0,Simulador!$D$22,Simulador!$O$24)*Simulador!$AA$44)),0) -> 0 | BB175: 0 | BC175: 0 | BE175: 0 | BF175: 161
A176: 162 | B176: 0 | D176: =IF(B176+F176-D175<=0,B176+F176,IF(AND(OR(Simulador!$U$39=2,Simulador!$U$39=7),J175=0),D175*(1+AA176),IF($AE$3=2,B176*AQ176,D175*(1+AA176)))) -> 0 | F176: 0 | H176: 0 | L176: =IF(Simulador!$T$41=1,0,J176*Simulador!$W$39*1.16) -> 0 | N176: =IF(B176-H176=0,0,N174) -> 0 | R176: 0 | T176: =IFERROR(IF(Simulador!$U$29=1,0,IF($B176<=0,0,$B176*Simulador!$AA$43)),0) -> 0 | V176: =IFERROR(IF(Simulador!$U$29=1,0,IF($B176<=0,0,IF(Simulador!$D$22>0,Simulador!$D$22,Simulador!$O$24)*Simulador!$AA$44)),0) -> 0 | Y176: 0 | AC176: 13 | AD176: 6 | AE176: 0 | AF176: 0 | AG176: 0 | AH176: 0 | AI176: =IF(Simulador!$T$68=1,'Tabla de amortizacion'!AJ176,'Tabla de amortizacion'!AR176) -> 0.1075 | AJ176: 0.1075 | AK176: 0 | AN176: 0.115 | AO176: 0.115 | AP176: 0 | AQ176: 0 | AR176: =IF(AND(Simulador!$T$68=2,Simulador!$T$62=1),AL176,IF(AND(Simulador!$T$68=2,Simulador!$T$62=2),AM176,IF(AND(Simulador!$T$68=2,Simulador!$T$62=3),AN176,AO176))) -> 0.115 | AT176: 0 | AU176: 0 | AV176: 0 | AW176: 0 | AX176: 0 | AZ176: =IFERROR(IF(Simulador!$U$29=1,0,IF($AT176<=0.01,0,$AT176*Simulador!$AA$43)),0)+IFERROR(IF(Simulador!$U$29=1,0,IF($AT176<=0.01,0,IF(Simulador!$D$22>0,Simulador!$D$22,Simulador!$O$24)*Simulador!$AA$44)),0) -> 0 | BB176: 0 | BC176: 0 | BE176: 0 | BF176: 162
A177: 163 | B177: 0 | D177: =IF(B177+F177-D176<=0,B177+F177,IF(AND(OR(Simulador!$U$39=2,Simulador!$U$39=7),J176=0),D176*(1+AA177),IF($AE$3=2,B177*AQ177,D176*(1+AA177)))) -> 0 | F177: 0 | H177: 0 | L177: =IF(Simulador!$T$41=1,0,J177*Simulador!$W$39*1.16) -> 0 | R177: 0 | T177: =IFERROR(IF(Simulador!$U$29=1,0,IF($B177<=0,0,$B177*Simulador!$AA$43)),0) -> 0 | V177: =IFERROR(IF(Simulador!$U$29=1,0,IF($B177<=0,0,IF(Simulador!$D$22>0,Simulador!$D$22,Simulador!$O$24)*Simulador!$AA$44)),0) -> 0 | Y177: 0 | AC177: 13 | AD177: 7 | AE177: 0 | AF177: 0 | AG177: 0 | AH177: 0 | AI177: =IF(Simulador!$T$68=1,'Tabla de amortizacion'!AJ177,'Tabla de amortizacion'!AR177) -> 0.1075 | AJ177: 0.1075 | AK177: 0 | AN177: 0.115 | AO177: 0.115 | AP177: 0 | AQ177: 0 | AR177: =IF(AND(Simulador!$T$68=2,Simulador!$T$62=1),AL177,IF(AND(Simulador!$T$68=2,Simulador!$T$62=2),AM177,IF(AND(Simulador!$T$68=2,Simulador!$T$62=3),AN177,AO177))) -> 0.115 | AT177: 0 | AU177: 0 | AV177: 0 | AW177: 0 | AX177: 0 | AZ177: =IFERROR(IF(Simulador!$U$29=1,0,IF($AT177<=0.01,0,$AT177*Simulador!$AA$43)),0)+IFERROR(IF(Simulador!$U$29=1,0,IF($AT177<=0.01,0,IF(Simulador!$D$22>0,Simulador!$D$22,Simulador!$O$24)*Simulador!$AA$44)),0) -> 0 | BB177: 0 | BC177: 0 | BE177: 0 | BF177: 163
A178: 164 | B178: 0 | D178: =IF(B178+F178-D177<=0,B178+F178,IF(AND(OR(Simulador!$U$39=2,Simulador!$U$39=7),J177=0),D177*(1+AA178),IF($AE$3=2,B178*AQ178,D177*(1+AA178)))) -> 0 | F178: 0 | H178: 0 | L178: =IF(Simulador!$T$41=1,0,J178*Simulador!$W$39*1.16) -> 0 | N178: =IF(B178-H178=0,0,N176) -> 0 | R178: 0 | T178: =IFERROR(IF(Simulador!$U$29=1,0,IF($B178<=0,0,$B178*Simulador!$AA$43)),0) -> 0 | V178: =IFERROR(IF(Simulador!$U$29=1,0,IF($B178<=0,0,IF(Simulador!$D$22>0,Simulador!$D$22,Simulador!$O$24)*Simulador!$AA$44)),0) -> 0 | Y178: 0 | AC178: 13 | AD178: 8 | AE178: 0 | AF178: 0 | AG178: 0 | AH178: 0 | AI178: =IF(Simulador!$T$68=1,'Tabla de amortizacion'!AJ178,'Tabla de amortizacion'!AR178) -> 0.1075 | AJ178: 0.1075 | AK178: 0 | AN178: 0.115 | AO178: 0.115 | AP178: 0 | AQ178: 0 | AR178: =IF(AND(Simulador!$T$68=2,Simulador!$T$62=1),AL178,IF(AND(Simulador!$T$68=2,Simulador!$T$62=2),AM178,IF(AND(Simulador!$T$68=2,Simulador!$T$62=3),AN178,AO178))) -> 0.115 | AT178: 0 | AU178: 0 | AV178: 0 | AW178: 0 | AX178: 0 | AZ178: =IFERROR(IF(Simulador!$U$29=1,0,IF($AT178<=0.01,0,$AT178*Simulador!$AA$43)),0)+IFERROR(IF(Simulador!$U$29=1,0,IF($AT178<=0.01,0,IF(Simulador!$D$22>0,Simulador!$D$22,Simulador!$O$24)*Simulador!$AA$44)),0) -> 0 | BB178: 0 | BC178: 0 | BE178: 0 | BF178: 164
A179: 165 | B179: 0 | D179: =IF(B179+F179-D178<=0,B179+F179,IF(AND(OR(Simulador!$U$39=2,Simulador!$U$39=7),J178=0),D178*(1+AA179),IF($AE$3=2,B179*AQ179,D178*(1+AA179)))) -> 0 | F179: 0 | H179: 0 | L179: =IF(Simulador!$T$41=1,0,J179*Simulador!$W$39*1.16) -> 0 | R179: 0 | T179: =IFERROR(IF(Simulador!$U$29=1,0,IF($B179<=0,0,$B179*Simulador!$AA$43)),0) -> 0 | V179: =IFERROR(IF(Simulador!$U$29=1,0,IF($B179<=0,0,IF(Simulador!$D$22>0,Simulador!$D$22,Simulador!$O$24)*Simulador!$AA$44)),0) -> 0 | Y179: 0 | AC179: 13 | AD179: 9 | AE179: 0 | AF179: 0 | AG179: 0 | AH179: 0 | AI179: =IF(Simulador!$T$68=1,'Tabla de amortizacion'!AJ179,'Tabla de amortizacion'!AR179) -> 0.1075 | AJ179: 0.1075 | AK179: 0 | AN179: 0.115 | AO179: 0.115 | AP179: 0 | AQ179: 0 | AR179: =IF(AND(Simulador!$T$68=2,Simulador!$T$62=1),AL179,IF(AND(Simulador!$T$68=2,Simulador!$T$62=2),AM179,IF(AND(Simulador!$T$68=2,Simulador!$T$62=3),AN179,AO179))) -> 0.115 | AT179: 0 | AU179: 0 | AV179: 0 | AW179: 0 | AX179: 0 | AZ179: =IFERROR(IF(Simulador!$U$29=1,0,IF($AT179<=0.01,0,$AT179*Simulador!$AA$43)),0)+IFERROR(IF(Simulador!$U$29=1,0,IF($AT179<=0.01,0,IF(Simulador!$D$22>0,Simulador!$D$22,Simulador!$O$24)*Simulador!$AA$44)),0) -> 0 | BB179: 0 | BC179: 0 | BE179: 0 | BF179: 165
A180: 166 | B180: 0 | D180: =IF(B180+F180-D179<=0,B180+F180,IF(AND(OR(Simulador!$U$39=2,Simulador!$U$39=7),J179=0),D179*(1+AA180),IF($AE$3=2,B180*AQ180,D179*(1+AA180)))) -> 0 | F180: 0 | H180: 0 | L180: =IF(Simulador!$T$41=1,0,J180*Simulador!$W$39*1.16) -> 0 | N180: =IF(B180-H180=0,0,N178) -> 0 | R180: 0 | T180: =IFERROR(IF(Simulador!$U$29=1,0,IF($B180<=0,0,$B180*Simulador!$AA$43)),0) -> 0 | V180: =IFERROR(IF(Simulador!$U$29=1,0,IF($B180<=0,0,IF(Simulador!$D$22>0,Simulador!$D$22,Simulador!$O$24)*Simulador!$AA$44)),0) -> 0 | Y180: 0 | AC180: 13 | AD180: 10 | AE180: 0 | AF180: 0 | AG180: 0 | AH180: 0 | AI180: =IF(Simulador!$T$68=1,'Tabla de amortizacion'!AJ180,'Tabla de amortizacion'!AR180) -> 0.1075 | AJ180: 0.1075 | AK180: 0 | AN180: 0.115 | AO180: 0.115 | AP180: 0 | AQ180: 0 | AR180: =IF(AND(Simulador!$T$68=2,Simulador!$T$62=1),AL180,IF(AND(Simulador!$T$68=2,Simulador!$T$62=2),AM180,IF(AND(Simulador!$T$68=2,Simulador!$T$62=3),AN180,AO180))) -> 0.115 | AT180: 0 | AU180: 0 | AV180: 0 | AW180: 0 | AX180: 0 | AZ180: =IFERROR(IF(Simulador!$U$29=1,0,IF($AT180<=0.01,0,$AT180*Simulador!$AA$43)),0)+IFERROR(IF(Simulador!$U$29=1,0,IF($AT180<=0.01,0,IF(Simulador!$D$22>0,Simulador!$D$22,Simulador!$O$24)*Simulador!$AA$44)),0) -> 0 | BB180: 0 | BC180: 0 | BE180: 0 | BF180: 166
A181: 167 | B181: 0 | D181: =IF(B181+F181-D180<=0,B181+F181,IF(AND(OR(Simulador!$U$39=2,Simulador!$U$39=7),J180=0),D180*(1+AA181),IF($AE$3=2,B181*AQ181,D180*(1+AA181)))) -> 0 | F181: 0 | H181: 0 | L181: =IF(Simulador!$T$41=1,0,J181*Simulador!$W$39*1.16) -> 0 | R181: 0 | T181: =IFERROR(IF(Simulador!$U$29=1,0,IF($B181<=0,0,$B181*Simulador!$AA$43)),0) -> 0 | V181: =IFERROR(IF(Simulador!$U$29=1,0,IF($B181<=0,0,IF(Simulador!$D$22>0,Simulador!$D$22,Simulador!$O$24)*Simulador!$AA$44)),0) -> 0 | Y181: 0 | AC181: 13 | AD181: 11 | AE181: 0 | AF181: 0 | AG181: 0 | AH181: 0 | AI181: =IF(Simulador!$T$68=1,'Tabla de amortizacion'!AJ181,'Tabla de amortizacion'!AR181) -> 0.1075 | AJ181: 0.1075 | AK181: 0 | AN181: 0.115 | AO181: 0.115 | AP181: 0 | AQ181: 0 | AR181: =IF(AND(Simulador!$T$68=2,Simulador!$T$62=1),AL181,IF(AND(Simulador!$T$68=2,Simulador!$T$62=2),AM181,IF(AND(Simulador!$T$68=2,Simulador!$T$62=3),AN181,AO181))) -> 0.115 | AT181: 0 | AU181: 0 | AV181: 0 | AW181: 0 | AX181: 0 | AZ181: =IFERROR(IF(Simulador!$U$29=1,0,IF($AT181<=0.01,0,$AT181*Simulador!$AA$43)),0)+IFERROR(IF(Simulador!$U$29=1,0,IF($AT181<=0.01,0,IF(Simulador!$D$22>0,Simulador!$D$22,Simulador!$O$24)*Simulador!$AA$44)),0) -> 0 | BB181: 0 | BC181: 0 | BE181: 0 | BF181: 167
A182: 168 | B182: 0 | D182: =IF(B182+F182-D181<=0,B182+F182,IF(AND(OR(Simulador!$U$39=2,Simulador!$U$39=7),J181=0),D181*(1+AA182),IF($AE$3=2,B182*AQ182,D181*(1+AA182)))) -> 0 | F182: 0 | H182: 0 | L182: =IF(Simulador!$T$41=1,0,J182*Simulador!$W$39*1.16) -> 0 | N182: =IF(B182-H182=0,0,N180) -> 0 | R182: 0 | T182: =IFERROR(IF(Simulador!$U$29=1,0,IF($B182<=0,0,$B182*Simulador!$AA$43)),0) -> 0 | V182: =IFERROR(IF(Simulador!$U$29=1,0,IF($B182<=0,0,IF(Simulador!$D$22>0,Simulador!$D$22,Simulador!$O$24)*Simulador!$AA$44)),0) -> 0 | Y182: 0 | AC182: 14 | AD182: 0 | AE182: 0 | AF182: 0 | AG182: 0 | AH182: 0 | AI182: =IF(Simulador!$T$68=1,'Tabla de amortizacion'!AJ182,'Tabla de amortizacion'!AR182) -> 0.1075 | AJ182: 0.1075 | AK182: 0 | AN182: 0.115 | AO182: 0.115 | AP182: 0 | AQ182: 0 | AR182: =IF(AND(Simulador!$T$68=2,Simulador!$T$62=1),AL182,IF(AND(Simulador!$T$68=2,Simulador!$T$62=2),AM182,IF(AND(Simulador!$T$68=2,Simulador!$T$62=3),AN182,AO182))) -> 0.115 | AT182: 0 | AU182: 0 | AV182: 0 | AW182: 0 | AX182: 0 | AZ182: =IFERROR(IF(Simulador!$U$29=1,0,IF($AT182<=0.01,0,$AT182*Simulador!$AA$43)),0)+IFERROR(IF(Simulador!$U$29=1,0,IF($AT182<=0.01,0,IF(Simulador!$D$22>0,Simulador!$D$22,Simulador!$O$24)*Simulador!$AA$44)),0) -> 0 | BB182: 0 | BC182: 0 | BE182: 0 | BF182: 168
A183: 169 | B183: 0 | D183: =IF(B183+F183-D182<=0,B183+F183,IF(AND(OR(Simulador!$U$39=2,Simulador!$U$39=7),J182=0),D182*(1+AA183),IF($AE$3=2,B183*AQ183,D182*(1+AA183)))) -> 0 | F183: 0 | H183: 0 | L183: =IF(Simulador!$T$41=1,0,J183*Simulador!$W$39*1.16) -> 0 | R183: 0 | T183: =IFERROR(IF(Simulador!$U$29=1,0,IF($B183<=0,0,$B183*Simulador!$AA$43)),0) -> 0 | V183: =IFERROR(IF(Simulador!$U$29=1,0,IF($B183<=0,0,IF(Simulador!$D$22>0,Simulador!$D$22,Simulador!$O$24)*Simulador!$AA$44)),0) -> 0 | Y183: 0 | AA183: =IF(B183<=0,0,Simulador!$I$43) -> 0 | AC183: 14 | AD183: 1 | AE183: 0 | AF183: 0 | AG183: 0 | AH183: 0 | AI183: =IF(Simulador!$T$68=1,'Tabla de amortizacion'!AJ183,'Tabla de amortizacion'!AR183) -> 0.1075 | AJ183: =IF(AJ182=$AM$4,AJ182,IF(AJ182-0.25%<=$AM$4,$AM$4,AJ182-0.25%)) -> 0.1075 | AK183: 0 | AN183: 0.115 | AO183: 0.115 | AP183: 0 | AQ183: 0 | AR183: =IF(AND(Simulador!$T$68=2,Simulador!$T$62=1),AL183,IF(AND(Simulador!$T$68=2,Simulador!$T$62=2),AM183,IF(AND(Simulador!$T$68=2,Simulador!$T$62=3),AN183,AO183))) -> 0.115 | AT183: 0 | AU183: 0 | AV183: 0 | AW183: 0 | AX183: 0 | AZ183: =IFERROR(IF(Simulador!$U$29=1,0,IF($AT183<=0.01,0,$AT183*Simulador!$AA$43)),0)+IFERROR(IF(Simulador!$U$29=1,0,IF($AT183<=0.01,0,IF(Simulador!$D$22>0,Simulador!$D$22,Simulador!$O$24)*Simulador!$AA$44)),0) -> 0 | BA183: =IF(AT183<=0,0,$BA$27) -> 0 | BB183: 0 | BC183: 0 | BE183: 0 | BF183: 169
A184: 170 | B184: 0 | D184: =IF(B184+F184-D183<=0,B184+F184,IF(AND(OR(Simulador!$U$39=2,Simulador!$U$39=7),J183=0),D183*(1+AA184),IF($AE$3=2,B184*AQ184,D183*(1+AA184)))) -> 0 | F184: 0 | H184: 0 | L184: =IF(Simulador!$T$41=1,0,J184*Simulador!$W$39*1.16) -> 0 | N184: =IF(B184-H184=0,0,N182*(1+(Simulador!$AF$77))) -> 0 | R184: 0 | T184: =IFERROR(IF(Simulador!$U$29=1,0,IF($B184<=0,0,$B184*Simulador!$AA$43)),0) -> 0 | V184: =IFERROR(IF(Simulador!$U$29=1,0,IF($B184<=0,0,IF(Simulador!$D$22>0,Simulador!$D$22,Simulador!$O$24)*Simulador!$AA$44)),0) -> 0 | Y184: 0 | AC184: 14 | AD184: 2 | AE184: 0 | AF184: 0 | AG184: 0 | AH184: 0 | AI184: =IF(Simulador!$T$68=1,'Tabla de amortizacion'!AJ184,'Tabla de amortizacion'!AR184) -> 0.1075 | AJ184: =AJ183 -> 0.1075 | AK184: 0 | AN184: 0.115 | AO184: 0.115 | AP184: 0 | AQ184: 0 | AR184: =IF(AND(Simulador!$T$68=2,Simulador!$T$62=1),AL184,IF(AND(Simulador!$T$68=2,Simulador!$T$62=2),AM184,IF(AND(Simulador!$T$68=2,Simulador!$T$62=3),AN184,AO184))) -> 0.115 | AT184: 0 | AU184: 0 | AV184: 0 | AW184: 0 | AX184: 0 | AZ184: =IFERROR(IF(Simulador!$U$29=1,0,IF($AT184<=0.01,0,$AT184*Simulador!$AA$43)),0)+IFERROR(IF(Simulador!$U$29=1,0,IF($AT184<=0.01,0,IF(Simulador!$D$22>0,Simulador!$D$22,Simulador!$O$24)*Simulador!$AA$44)),0) -> 0 | BB184: 0 | BC184: 0 | BE184: 0 | BF184: 170
A185: 171 | B185: 0 | D185: =IF(B185+F185-D184<=0,B185+F185,IF(AND(OR(Simulador!$U$39=2,Simulador!$U$39=7),J184=0),D184*(1+AA185),IF($AE$3=2,B185*AQ185,D184*(1+AA185)))) -> 0 | F185: 0 | H185: 0 | L185: =IF(Simulador!$T$41=1,0,J185*Simulador!$W$39*1.16) -> 0 | R185: 0 | T185: =IFERROR(IF(Simulador!$U$29=1,0,IF($B185<=0,0,$B185*Simulador!$AA$43)),0) -> 0 | V185: =IFERROR(IF(Simulador!$U$29=1,0,IF($B185<=0,0,IF(Simulador!$D$22>0,Simulador!$D$22,Simulador!$O$24)*Simulador!$AA$44)),0) -> 0 | Y185: 0 | AC185: 14 | AD185: 3 | AE185: 0 | AF185: 0 | AG185: 0 | AH185: 0 | AI185: =IF(Simulador!$T$68=1,'Tabla de amortizacion'!AJ185,'Tabla de amortizacion'!AR185) -> 0.1075 | AJ185: =AJ184 -> 0.1075 | AK185: 0 | AN185: 0.115 | AO185: 0.115 | AP185: 0 | AQ185: 0 | AR185: =IF(AND(Simulador!$T$68=2,Simulador!$T$62=1),AL185,IF(AND(Simulador!$T$68=2,Simulador!$T$62=2),AM185,IF(AND(Simulador!$T$68=2,Simulador!$T$62=3),AN185,AO185))) -> 0.115 | AT185: 0 | AU185: 0 | AV185: 0 | AW185: 0 | AX185: 0 | AZ185: =IFERROR(IF(Simulador!$U$29=1,0,IF($AT185<=0.01,0,$AT185*Simulador!$AA$43)),0)+IFERROR(IF(Simulador!$U$29=1,0,IF($AT185<=0.01,0,IF(Simulador!$D$22>0,Simulador!$D$22,Simulador!$O$24)*Simulador!$AA$44)),0) -> 0 | BB185: 0 | BC185: 0 | BE185: 0 | BF185: 171
A186: 172 | B186: 0 | D186: =IF(B186+F186-D185<=0,B186+F186,IF(AND(OR(Simulador!$U$39=2,Simulador!$U$39=7),J185=0),D185*(1+AA186),IF($AE$3=2,B186*AQ186,D185*(1+AA186)))) -> 0 | F186: 0 | H186: 0 | L186: =IF(Simulador!$T$41=1,0,J186*Simulador!$W$39*1.16) -> 0 | N186: =IF(B186-H186=0,0,N184) -> 0 | R186: 0 | T186: =IFERROR(IF(Simulador!$U$29=1,0,IF($B186<=0,0,$B186*Simulador!$AA$43)),0) -> 0 | V186: =IFERROR(IF(Simulador!$U$29=1,0,IF($B186<=0,0,IF(Simulador!$D$22>0,Simulador!$D$22,Simulador!$O$24)*Simulador!$AA$44)),0) -> 0 | Y186: 0 | AC186: 14 | AD186: 4 | AE186: 0 | AF186: 0 | AG186: 0 | AH186: 0 | AI186: =IF(Simulador!$T$68=1,'Tabla de amortizacion'!AJ186,'Tabla de amortizacion'!AR186) -> 0.1075 | AJ186: 0.1075 | AK186: 0 | AN186: 0.115 | AO186: 0.115 | AP186: 0 | AQ186: 0 | AR186: =IF(AND(Simulador!$T$68=2,Simulador!$T$62=1),AL186,IF(AND(Simulador!$T$68=2,Simulador!$T$62=2),AM186,IF(AND(Simulador!$T$68=2,Simulador!$T$62=3),AN186,AO186))) -> 0.115 | AT186: 0 | AU186: 0 | AV186: 0 | AW186: 0 | AX186: 0 | AZ186: =IFERROR(IF(Simulador!$U$29=1,0,IF($AT186<=0.01,0,$AT186*Simulador!$AA$43)),0)+IFERROR(IF(Simulador!$U$29=1,0,IF($AT186<=0.01,0,IF(Simulador!$D$22>0,Simulador!$D$22,Simulador!$O$24)*Simulador!$AA$44)),0) -> 0 | BB186: 0 | BC186: 0 | BE186: 0 | BF186: 172
A187: 173 | B187: 0 | D187: =IF(B187+F187-D186<=0,B187+F187,IF(AND(OR(Simulador!$U$39=2,Simulador!$U$39=7),J186=0),D186*(1+AA187),IF($AE$3=2,B187*AQ187,D186*(1+AA187)))) -> 0 | F187: 0 | H187: 0 | L187: =IF(Simulador!$T$41=1,0,J187*Simulador!$W$39*1.16) -> 0 | R187: 0 | T187: =IFERROR(IF(Simulador!$U$29=1,0,IF($B187<=0,0,$B187*Simulador!$AA$43)),0) -> 0 | V187: =IFERROR(IF(Simulador!$U$29=1,0,IF($B187<=0,0,IF(Simulador!$D$22>0,Simulador!$D$22,Simulador!$O$24)*Simulador!$AA$44)),0) -> 0 | Y187: 0 | AC187: 14 | AD187: 5 | AE187: 0 | AF187: 0 | AG187: 0 | AH187: 0 | AI187: =IF(Simulador!$T$68=1,'Tabla de amortizacion'!AJ187,'Tabla de amortizacion'!AR187) -> 0.1075 | AJ187: 0.1075 | AK187: 0 | AN187: 0.115 | AO187: 0.115 | AP187: 0 | AQ187: 0 | AR187: =IF(AND(Simulador!$T$68=2,Simulador!$T$62=1),AL187,IF(AND(Simulador!$T$68=2,Simulador!$T$62=2),AM187,IF(AND(Simulador!$T$68=2,Simulador!$T$62=3),AN187,AO187))) -> 0.115 | AT187: 0 | AU187: 0 | AV187: 0 | AW187: 0 | AX187: 0 | AZ187: =IFERROR(IF(Simulador!$U$29=1,0,IF($AT187<=0.01,0,$AT187*Simulador!$AA$43)),0)+IFERROR(IF(Simulador!$U$29=1,0,IF($AT187<=0.01,0,IF(Simulador!$D$22>0,Simulador!$D$22,Simulador!$O$24)*Simulador!$AA$44)),0) -> 0 | BB187: 0 | BC187: 0 | BE187: 0 | BF187: 173
A188: 174 | B188: 0 | D188: =IF(B188+F188-D187<=0,B188+F188,IF(AND(OR(Simulador!$U$39=2,Simulador!$U$39=7),J187=0),D187*(1+AA188),IF($AE$3=2,B188*AQ188,D187*(1+AA188)))) -> 0 | F188: 0 | H188: 0 | L188: =IF(Simulador!$T$41=1,0,J188*Simulador!$W$39*1.16) -> 0 | N188: =IF(B188-H188=0,0,N186) -> 0 | R188: 0 | T188: =IFERROR(IF(Simulador!$U$29=1,0,IF($B188<=0,0,$B188*Simulador!$AA$43)),0) -> 0 | V188: =IFERROR(IF(Simulador!$U$29=1,0,IF($B188<=0,0,IF(Simulador!$D$22>0,Simulador!$D$22,Simulador!$O$24)*Simulador!$AA$44)),0) -> 0 | Y188: 0 | AC188: 14 | AD188: 6 | AE188: 0 | AF188: 0 | AG188: 0 | AH188: 0 | AI188: =IF(Simulador!$T$68=1,'Tabla de amortizacion'!AJ188,'Tabla de amortizacion'!AR188) -> 0.1075 | AJ188: 0.1075 | AK188: 0 | AN188: 0.115 | AO188: 0.115 | AP188: 0 | AQ188: 0 | AR188: =IF(AND(Simulador!$T$68=2,Simulador!$T$62=1),AL188,IF(AND(Simulador!$T$68=2,Simulador!$T$62=2),AM188,IF(AND(Simulador!$T$68=2,Simulador!$T$62=3),AN188,AO188))) -> 0.115 | AT188: 0 | AU188: 0 | AV188: 0 | AW188: 0 | AX188: 0 | AZ188: =IFERROR(IF(Simulador!$U$29=1,0,IF($AT188<=0.01,0,$AT188*Simulador!$AA$43)),0)+IFERROR(IF(Simulador!$U$29=1,0,IF($AT188<=0.01,0,IF(Simulador!$D$22>0,Simulador!$D$22,Simulador!$O$24)*Simulador!$AA$44)),0) -> 0 | BB188: 0 | BC188: 0 | BE188: 0 | BF188: 174
A189: 175 | B189: 0 | D189: =IF(B189+F189-D188<=0,B189+F189,IF(AND(OR(Simulador!$U$39=2,Simulador!$U$39=7),J188=0),D188*(1+AA189),IF($AE$3=2,B189*AQ189,D188*(1+AA189)))) -> 0 | F189: 0 | H189: 0 | L189: =IF(Simulador!$T$41=1,0,J189*Simulador!$W$39*1.16) -> 0 | R189: 0 | T189: =IFERROR(IF(Simulador!$U$29=1,0,IF($B189<=0,0,$B189*Simulador!$AA$43)),0) -> 0 | V189: =IFERROR(IF(Simulador!$U$29=1,0,IF($B189<=0,0,IF(Simulador!$D$22>0,Simulador!$D$22,Simulador!$O$24)*Simulador!$AA$44)),0) -> 0 | Y189: 0 | AC189: 14 | AD189: 7 | AE189: 0 | AF189: 0 | AG189: 0 | AH189: 0 | AI189: =IF(Simulador!$T$68=1,'Tabla de amortizacion'!AJ189,'Tabla de amortizacion'!AR189) -> 0.1075 | AJ189: 0.1075 | AK189: 0 | AN189: 0.115 | AO189: 0.115 | AP189: 0 | AQ189: 0 | AR189: =IF(AND(Simulador!$T$68=2,Simulador!$T$62=1),AL189,IF(AND(Simulador!$T$68=2,Simulador!$T$62=2),AM189,IF(AND(Simulador!$T$68=2,Simulador!$T$62=3),AN189,AO189))) -> 0.115 | AT189: 0 | AU189: 0 | AV189: 0 | AW189: 0 | AX189: 0 | AZ189: =IFERROR(IF(Simulador!$U$29=1,0,IF($AT189<=0.01,0,$AT189*Simulador!$AA$43)),0)+IFERROR(IF(Simulador!$U$29=1,0,IF($AT189<=0.01,0,IF(Simulador!$D$22>0,Simulador!$D$22,Simulador!$O$24)*Simulador!$AA$44)),0) -> 0 | BB189: 0 | BC189: 0 | BE189: 0 | BF189: 175
A190: 176 | B190: 0 | D190: =IF(B190+F190-D189<=0,B190+F190,IF(AND(OR(Simulador!$U$39=2,Simulador!$U$39=7),J189=0),D189*(1+AA190),IF($AE$3=2,B190*AQ190,D189*(1+AA190)))) -> 0 | F190: 0 | H190: 0 | L190: =IF(Simulador!$T$41=1,0,J190*Simulador!$W$39*1.16) -> 0 | N190: =IF(B190-H190=0,0,N188) -> 0 | R190: 0 | T190: =IFERROR(IF(Simulador!$U$29=1,0,IF($B190<=0,0,$B190*Simulador!$AA$43)),0) -> 0 | V190: =IFERROR(IF(Simulador!$U$29=1,0,IF($B190<=0,0,IF(Simulador!$D$22>0,Simulador!$D$22,Simulador!$O$24)*Simulador!$AA$44)),0) -> 0 | Y190: 0 | AC190: 14 | AD190: 8 | AE190: 0 | AF190: 0 | AG190: 0 | AH190: 0 | AI190: =IF(Simulador!$T$68=1,'Tabla de amortizacion'!AJ190,'Tabla de amortizacion'!AR190) -> 0.1075 | AJ190: 0.1075 | AK190: 0 | AN190: 0.115 | AO190: 0.115 | AP190: 0 | AQ190: 0 | AR190: =IF(AND(Simulador!$T$68=2,Simulador!$T$62=1),AL190,IF(AND(Simulador!$T$68=2,Simulador!$T$62=2),AM190,IF(AND(Simulador!$T$68=2,Simulador!$T$62=3),AN190,AO190))) -> 0.115 | AT190: 0 | AU190: 0 | AV190: 0 | AW190: 0 | AX190: 0 | AZ190: =IFERROR(IF(Simulador!$U$29=1,0,IF($AT190<=0.01,0,$AT190*Simulador!$AA$43)),0)+IFERROR(IF(Simulador!$U$29=1,0,IF($AT190<=0.01,0,IF(Simulador!$D$22>0,Simulador!$D$22,Simulador!$O$24)*Simulador!$AA$44)),0) -> 0 | BB190: 0 | BC190: 0 | BE190: 0 | BF190: 176
A191: 177 | B191: 0 | D191: =IF(B191+F191-D190<=0,B191+F191,IF(AND(OR(Simulador!$U$39=2,Simulador!$U$39=7),J190=0),D190*(1+AA191),IF($AE$3=2,B191*AQ191,D190*(1+AA191)))) -> 0 | F191: 0 | H191: 0 | L191: =IF(Simulador!$T$41=1,0,J191*Simulador!$W$39*1.16) -> 0 | R191: 0 | T191: =IFERROR(IF(Simulador!$U$29=1,0,IF($B191<=0,0,$B191*Simulador!$AA$43)),0) -> 0 | V191: =IFERROR(IF(Simulador!$U$29=1,0,IF($B191<=0,0,IF(Simulador!$D$22>0,Simulador!$D$22,Simulador!$O$24)*Simulador!$AA$44)),0) -> 0 | Y191: 0 | AC191: 14 | AD191: 9 | AE191: 0 | AF191: 0 | AG191: 0 | AH191: 0 | AI191: =IF(Simulador!$T$68=1,'Tabla de amortizacion'!AJ191,'Tabla de amortizacion'!AR191) -> 0.1075 | AJ191: 0.1075 | AK191: 0 | AN191: 0.115 | AO191: 0.115 | AP191: 0 | AQ191: 0 | AR191: =IF(AND(Simulador!$T$68=2,Simulador!$T$62=1),AL191,IF(AND(Simulador!$T$68=2,Simulador!$T$62=2),AM191,IF(AND(Simulador!$T$68=2,Simulador!$T$62=3),AN191,AO191))) -> 0.115 | AT191: 0 | AU191: 0 | AV191: 0 | AW191: 0 | AX191: 0 | AZ191: =IFERROR(IF(Simulador!$U$29=1,0,IF($AT191<=0.01,0,$AT191*Simulador!$AA$43)),0)+IFERROR(IF(Simulador!$U$29=1,0,IF($AT191<=0.01,0,IF(Simulador!$D$22>0,Simulador!$D$22,Simulador!$O$24)*Simulador!$AA$44)),0) -> 0 | BB191: 0 | BC191: 0 | BE191: 0 | BF191: 177
A192: 178 | B192: 0 | D192: =IF(B192+F192-D191<=0,B192+F192,IF(AND(OR(Simulador!$U$39=2,Simulador!$U$39=7),J191=0),D191*(1+AA192),IF($AE$3=2,B192*AQ192,D191*(1+AA192)))) -> 0 | F192: 0 | H192: 0 | L192: =IF(Simulador!$T$41=1,0,J192*Simulador!$W$39*1.16) -> 0 | N192: =IF(B192-H192=0,0,N190) -> 0 | R192: 0 | T192: =IFERROR(IF(Simulador!$U$29=1,0,IF($B192<=0,0,$B192*Simulador!$AA$43)),0) -> 0 | V192: =IFERROR(IF(Simulador!$U$29=1,0,IF($B192<=0,0,IF(Simulador!$D$22>0,Simulador!$D$22,Simulador!$O$24)*Simulador!$AA$44)),0) -> 0 | Y192: 0 | AC192: 14 | AD192: 10 | AE192: 0 | AF192: 0 | AG192: 0 | AH192: 0 | AI192: =IF(Simulador!$T$68=1,'Tabla de amortizacion'!AJ192,'Tabla de amortizacion'!AR192) -> 0.1075 | AJ192: 0.1075 | AK192: 0 | AN192: 0.115 | AO192: 0.115 | AP192: 0 | AQ192: 0 | AR192: =IF(AND(Simulador!$T$68=2,Simulador!$T$62=1),AL192,IF(AND(Simulador!$T$68=2,Simulador!$T$62=2),AM192,IF(AND(Simulador!$T$68=2,Simulador!$T$62=3),AN192,AO192))) -> 0.115 | AT192: 0 | AU192: 0 | AV192: 0 | AW192: 0 | AX192: 0 | AZ192: =IFERROR(IF(Simulador!$U$29=1,0,IF($AT192<=0.01,0,$AT192*Simulador!$AA$43)),0)+IFERROR(IF(Simulador!$U$29=1,0,IF($AT192<=0.01,0,IF(Simulador!$D$22>0,Simulador!$D$22,Simulador!$O$24)*Simulador!$AA$44)),0) -> 0 | BB192: 0 | BC192: 0 | BE192: 0 | BF192: 178
A193: 179 | B193: 0 | D193: =IF(B193+F193-D192<=0,B193+F193,IF(AND(OR(Simulador!$U$39=2,Simulador!$U$39=7),J192=0),D192*(1+AA193),IF($AE$3=2,B193*AQ193,D192*(1+AA193)))) -> 0 | F193: 0 | H193: 0 | L193: =IF(Simulador!$T$41=1,0,J193*Simulador!$W$39*1.16) -> 0 | R193: 0 | T193: =IFERROR(IF(Simulador!$U$29=1,0,IF($B193<=0,0,$B193*Simulador!$AA$43)),0) -> 0 | V193: =IFERROR(IF(Simulador!$U$29=1,0,IF($B193<=0,0,IF(Simulador!$D$22>0,Simulador!$D$22,Simulador!$O$24)*Simulador!$AA$44)),0) -> 0 | Y193: 0 | AC193: 14 | AD193: 11 | AE193: 0 | AF193: 0 | AG193: 0 | AH193: 0 | AI193: =IF(Simulador!$T$68=1,'Tabla de amortizacion'!AJ193,'Tabla de amortizacion'!AR193) -> 0.1075 | AJ193: 0.1075 | AK193: 0 | AN193: 0.115 | AO193: 0.115 | AP193: 0 | AQ193: 0 | AR193: =IF(AND(Simulador!$T$68=2,Simulador!$T$62=1),AL193,IF(AND(Simulador!$T$68=2,Simulador!$T$62=2),AM193,IF(AND(Simulador!$T$68=2,Simulador!$T$62=3),AN193,AO193))) -> 0.115 | AT193: 0 | AU193: 0 | AV193: 0 | AW193: 0 | AX193: 0 | AZ193: =IFERROR(IF(Simulador!$U$29=1,0,IF($AT193<=0.01,0,$AT193*Simulador!$AA$43)),0)+IFERROR(IF(Simulador!$U$29=1,0,IF($AT193<=0.01,0,IF(Simulador!$D$22>0,Simulador!$D$22,Simulador!$O$24)*Simulador!$AA$44)),0) -> 0 | BB193: 0 | BC193: 0 | BE193: 0 | BF193: 179
A194: 180 | B194: 0 | D194: =IF(B194+F194-D193<=0,B194+F194,IF(AND(OR(Simulador!$U$39=2,Simulador!$U$39=7),J193=0),D193*(1+AA194),IF($AE$3=2,B194*AQ194,D193*(1+AA194)))) -> 0 | F194: 0 | H194: 0 | L194: =IF(Simulador!$T$41=1,0,J194*Simulador!$W$39*1.16) -> 0 | N194: =IF(B194-H194=0,0,N192) -> 0 | R194: 0 | T194: =IFERROR(IF(Simulador!$U$29=1,0,IF($B194<=0,0,$B194*Simulador!$AA$43)),0) -> 0 | V194: =IFERROR(IF(Simulador!$U$29=1,0,IF($B194<=0,0,IF(Simulador!$D$22>0,Simulador!$D$22,Simulador!$O$24)*Simulador!$AA$44)),0) -> 0 | Y194: 0 | AC194: 15 | AD194: 0 | AE194: 0 | AF194: 0 | AG194: 0 | AH194: 0 | AI194: =IF(Simulador!$T$68=1,'Tabla de amortizacion'!AJ194,'Tabla de amortizacion'!AR194) -> 0.1075 | AJ194: 0.1075 | AK194: 0 | AN194: 0.115 | AO194: 0.115 | AP194: 0 | AQ194: 0 | AR194: =IF(AND(Simulador!$T$68=2,Simulador!$T$62=1),AL194,IF(AND(Simulador!$T$68=2,Simulador!$T$62=2),AM194,IF(AND(Simulador!$T$68=2,Simulador!$T$62=3),AN194,AO194))) -> 0.115 | AT194: 0 | AU194: 0 | AV194: 0 | AW194: 0 | AX194: 0 | AZ194: =IFERROR(IF(Simulador!$U$29=1,0,IF($AT194<=0.01,0,$AT194*Simulador!$AA$43)),0)+IFERROR(IF(Simulador!$U$29=1,0,IF($AT194<=0.01,0,IF(Simulador!$D$22>0,Simulador!$D$22,Simulador!$O$24)*Simulador!$AA$44)),0) -> 0 | BB194: 0 | BC194: 0 | BE194: 0 | BF194: 180
A195: 181 | B195: 0 | D195: =IF(B195+F195-D194<=0,B195+F195,IF(AND(OR(Simulador!$U$39=2,Simulador!$U$39=7),J194=0),D194*(1+AA195),IF($AE$3=2,B195*AQ195,D194*(1+AA195)))) -> 0 | F195: 0 | H195: 0 | L195: =IF(Simulador!$T$41=1,0,J195*Simulador!$W$39*1.16) -> 0 | R195: 0 | T195: =IFERROR(IF(Simulador!$U$29=1,0,IF($B195<=0,0,$B195*Simulador!$AA$43)),0) -> 0 | V195: =IFERROR(IF(Simulador!$U$29=1,0,IF($B195<=0,0,IF(Simulador!$D$22>0,Simulador!$D$22,Simulador!$O$24)*Simulador!$AA$44)),0) -> 0 | Y195: 0 | AA195: =IF(B195<=0,0,Simulador!$I$43) -> 0 | AC195: 15 | AD195: 1 | AE195: 0 | AF195: 0 | AG195: 0 | AH195: 0 | AI195: =IF(Simulador!$T$68=1,'Tabla de amortizacion'!AJ195,'Tabla de amortizacion'!AR195) -> 0.1075 | AJ195: =IF(AJ194=$AM$4,AJ194,IF(AJ194-0.25%<=$AM$4,$AM$4,AJ194-0.25%)) -> 0.1075 | AK195: 0 | AO195: =AO194 -> 0.115 | AP195: 0 | AQ195: 0 | AR195: =IF(AND(Simulador!$T$68=2,Simulador!$T$62=1),AL195,IF(AND(Simulador!$T$68=2,Simulador!$T$62=2),AM195,IF(AND(Simulador!$T$68=2,Simulador!$T$62=3),AN195,AO195))) -> 0.115 | AT195: 0 | AU195: 0 | AV195: 0 | AW195: 0 | AX195: 0 | AZ195: =IFERROR(IF(Simulador!$U$29=1,0,IF($AT195<=0.01,0,$AT195*Simulador!$AA$43)),0)+IFERROR(IF(Simulador!$U$29=1,0,IF($AT195<=0.01,0,IF(Simulador!$D$22>0,Simulador!$D$22,Simulador!$O$24)*Simulador!$AA$44)),0) -> 0 | BA195: =IF(AT195<=0,0,$BA$27) -> 0 | BB195: 0 | BC195: 0 | BE195: 0 | BF195: 181
A196: 182 | B196: 0 | D196: =IF(B196+F196-D195<=0,B196+F196,IF(AND(OR(Simulador!$U$39=2,Simulador!$U$39=7),J195=0),D195*(1+AA196),IF($AE$3=2,B196*AQ196,D195*(1+AA196)))) -> 0 | F196: 0 | H196: 0 | L196: =IF(Simulador!$T$41=1,0,J196*Simulador!$W$39*1.16) -> 0 | N196: =IF(B196-H196=0,0,N194*(1+(Simulador!$AF$77))) -> 0 | R196: 0 | T196: =IFERROR(IF(Simulador!$U$29=1,0,IF($B196<=0,0,$B196*Simulador!$AA$43)),0) -> 0 | V196: =IFERROR(IF(Simulador!$U$29=1,0,IF($B196<=0,0,IF(Simulador!$D$22>0,Simulador!$D$22,Simulador!$O$24)*Simulador!$AA$44)),0) -> 0 | Y196: 0 | AC196: 15 | AD196: 2 | AE196: 0 | AF196: 0 | AG196: 0 | AH196: 0 | AI196: =IF(Simulador!$T$68=1,'Tabla de amortizacion'!AJ196,'Tabla de amortizacion'!AR196) -> 0.1075 | AJ196: =AJ195 -> 0.1075 | AK196: 0 | AO196: 0.115 | AP196: 0 | AQ196: 0 | AR196: =IF(AND(Simulador!$T$68=2,Simulador!$T$62=1),AL196,IF(AND(Simulador!$T$68=2,Simulador!$T$62=2),AM196,IF(AND(Simulador!$T$68=2,Simulador!$T$62=3),AN196,AO196))) -> 0.115 | AT196: 0 | AU196: 0 | AV196: 0 | AW196: 0 | AX196: 0 | AZ196: =IFERROR(IF(Simulador!$U$29=1,0,IF($AT196<=0.01,0,$AT196*Simulador!$AA$43)),0)+IFERROR(IF(Simulador!$U$29=1,0,IF($AT196<=0.01,0,IF(Simulador!$D$22>0,Simulador!$D$22,Simulador!$O$24)*Simulador!$AA$44)),0) -> 0 | BB196: 0 | BC196: 0 | BE196: 0 | BF196: 182
A197: 183 | B197: 0 | D197: =IF(B197+F197-D196<=0,B197+F197,IF(AND(OR(Simulador!$U$39=2,Simulador!$U$39=7),J196=0),D196*(1+AA197),IF($AE$3=2,B197*AQ197,D196*(1+AA197)))) -> 0 | F197: 0 | H197: 0 | L197: =IF(Simulador!$T$41=1,0,J197*Simulador!$W$39*1.16) -> 0 | R197: 0 | T197: =IFERROR(IF(Simulador!$U$29=1,0,IF($B197<=0,0,$B197*Simulador!$AA$43)),0) -> 0 | V197: =IFERROR(IF(Simulador!$U$29=1,0,IF($B197<=0,0,IF(Simulador!$D$22>0,Simulador!$D$22,Simulador!$O$24)*Simulador!$AA$44)),0) -> 0 | Y197: 0 | AC197: 15 | AD197: 3 | AE197: 0 | AF197: 0 | AG197: 0 | AH197: 0 | AI197: =IF(Simulador!$T$68=1,'Tabla de amortizacion'!AJ197,'Tabla de amortizacion'!AR197) -> 0.1075 | AJ197: =AJ196 -> 0.1075 | AK197: 0 | AO197: 0.115 | AP197: 0 | AQ197: 0 | AR197: =IF(AND(Simulador!$T$68=2,Simulador!$T$62=1),AL197,IF(AND(Simulador!$T$68=2,Simulador!$T$62=2),AM197,IF(AND(Simulador!$T$68=2,Simulador!$T$62=3),AN197,AO197))) -> 0.115 | AT197: 0 | AU197: 0 | AV197: 0 | AW197: 0 | AX197: 0 | AZ197: =IFERROR(IF(Simulador!$U$29=1,0,IF($AT197<=0.01,0,$AT197*Simulador!$AA$43)),0)+IFERROR(IF(Simulador!$U$29=1,0,IF($AT197<=0.01,0,IF(Simulador!$D$22>0,Simulador!$D$22,Simulador!$O$24)*Simulador!$AA$44)),0) -> 0 | BB197: 0 | BC197: 0 | BE197: 0 | BF197: 183
A198: 184 | B198: 0 | D198: =IF(B198+F198-D197<=0,B198+F198,IF(AND(OR(Simulador!$U$39=2,Simulador!$U$39=7),J197=0),D197*(1+AA198),IF($AE$3=2,B198*AQ198,D197*(1+AA198)))) -> 0 | F198: 0 | H198: 0 | L198: =IF(Simulador!$T$41=1,0,J198*Simulador!$W$39*1.16) -> 0 | N198: =IF(B198-H198=0,0,N196) -> 0 | R198: 0 | T198: =IFERROR(IF(Simulador!$U$29=1,0,IF($B198<=0,0,$B198*Simulador!$AA$43)),0) -> 0 | V198: =IFERROR(IF(Simulador!$U$29=1,0,IF($B198<=0,0,IF(Simulador!$D$22>0,Simulador!$D$22,Simulador!$O$24)*Simulador!$AA$44)),0) -> 0 | Y198: 0 | AC198: 15 | AD198: 4 | AE198: 0 | AF198: 0 | AG198: 0 | AH198: 0 | AI198: =IF(Simulador!$T$68=1,'Tabla de amortizacion'!AJ198,'Tabla de amortizacion'!AR198) -> 0.1075 | AJ198: 0.1075 | AK198: 0 | AO198: 0.115 | AP198: 0 | AQ198: 0 | AR198: =IF(AND(Simulador!$T$68=2,Simulador!$T$62=1),AL198,IF(AND(Simulador!$T$68=2,Simulador!$T$62=2),AM198,IF(AND(Simulador!$T$68=2,Simulador!$T$62=3),AN198,AO198))) -> 0.115 | AT198: 0 | AU198: 0 | AV198: 0 | AW198: 0 | AX198: 0 | AZ198: =IFERROR(IF(Simulador!$U$29=1,0,IF($AT198<=0.01,0,$AT198*Simulador!$AA$43)),0)+IFERROR(IF(Simulador!$U$29=1,0,IF($AT198<=0.01,0,IF(Simulador!$D$22>0,Simulador!$D$22,Simulador!$O$24)*Simulador!$AA$44)),0) -> 0 | BB198: 0 | BC198: 0 | BE198: 0 | BF198: 184
A199: 185 | B199: 0 | D199: =IF(B199+F199-D198<=0,B199+F199,IF(AND(OR(Simulador!$U$39=2,Simulador!$U$39=7),J198=0),D198*(1+AA199),IF($AE$3=2,B199*AQ199,D198*(1+AA199)))) -> 0 | F199: 0 | H199: 0 | L199: =IF(Simulador!$T$41=1,0,J199*Simulador!$W$39*1.16) -> 0 | R199: 0 | T199: =IFERROR(IF(Simulador!$U$29=1,0,IF($B199<=0,0,$B199*Simulador!$AA$43)),0) -> 0 | V199: =IFERROR(IF(Simulador!$U$29=1,0,IF($B199<=0,0,IF(Simulador!$D$22>0,Simulador!$D$22,Simulador!$O$24)*Simulador!$AA$44)),0) -> 0 | Y199: 0 | AC199: 15 | AD199: 5 | AE199: 0 | AF199: 0 | AG199: 0 | AH199: 0 | AI199: =IF(Simulador!$T$68=1,'Tabla de amortizacion'!AJ199,'Tabla de amortizacion'!AR199) -> 0.1075 | AJ199: 0.1075 | AK199: 0 | AO199: 0.115 | AP199: 0 | AQ199: 0 | AR199: =IF(AND(Simulador!$T$68=2,Simulador!$T$62=1),AL199,IF(AND(Simulador!$T$68=2,Simulador!$T$62=2),AM199,IF(AND(Simulador!$T$68=2,Simulador!$T$62=3),AN199,AO199))) -> 0.115 | AT199: 0 | AU199: 0 | AV199: 0 | AW199: 0 | AX199: 0 | AZ199: =IFERROR(IF(Simulador!$U$29=1,0,IF($AT199<=0.01,0,$AT199*Simulador!$AA$43)),0)+IFERROR(IF(Simulador!$U$29=1,0,IF($AT199<=0.01,0,IF(Simulador!$D$22>0,Simulador!$D$22,Simulador!$O$24)*Simulador!$AA$44)),0) -> 0 | BB199: 0 | BC199: 0 | BE199: 0 | BF199: 185
A200: 186 | B200: 0 | D200: =IF(B200+F200-D199<=0,B200+F200,IF(AND(OR(Simulador!$U$39=2,Simulador!$U$39=7),J199=0),D199*(1+AA200),IF($AE$3=2,B200*AQ200,D199*(1+AA200)))) -> 0 | F200: 0 | H200: 0 | L200: =IF(Simulador!$T$41=1,0,J200*Simulador!$W$39*1.16) -> 0 | N200: =IF(B200-H200=0,0,N198) -> 0 | R200: 0 | T200: =IFERROR(IF(Simulador!$U$29=1,0,IF($B200<=0,0,$B200*Simulador!$AA$43)),0) -> 0 | V200: =IFERROR(IF(Simulador!$U$29=1,0,IF($B200<=0,0,IF(Simulador!$D$22>0,Simulador!$D$22,Simulador!$O$24)*Simulador!$AA$44)),0) -> 0 | Y200: 0 | AC200: 15 | AD200: 6 | AE200: 0 | AF200: 0 | AG200: 0 | AH200: 0 | AI200: =IF(Simulador!$T$68=1,'Tabla de amortizacion'!AJ200,'Tabla de amortizacion'!AR200) -> 0.1075 | AJ200: 0.1075 | AK200: 0 | AO200: 0.115 | AP200: 0 | AQ200: 0 | AR200: =IF(AND(Simulador!$T$68=2,Simulador!$T$62=1),AL200,IF(AND(Simulador!$T$68=2,Simulador!$T$62=2),AM200,IF(AND(Simulador!$T$68=2,Simulador!$T$62=3),AN200,AO200))) -> 0.115 | AT200: 0 | AU200: 0 | AV200: 0 | AW200: 0 | AX200: 0 | AZ200: =IFERROR(IF(Simulador!$U$29=1,0,IF($AT200<=0.01,0,$AT200*Simulador!$AA$43)),0)+IFERROR(IF(Simulador!$U$29=1,0,IF($AT200<=0.01,0,IF(Simulador!$D$22>0,Simulador!$D$22,Simulador!$O$24)*Simulador!$AA$44)),0) -> 0 | BB200: 0 | BC200: 0 | BE200: 0 | BF200: 186
... 57 more rows

Sheet Carat_cont
A2: Carátula de Crédito
D3: Nombre del Acreditado y/o Coacreditado:
D4: =IF(Simulador!M11="","",Simulador!M11) -> 
D5: Número de Crédito:
A7: Nombre comercial del producto: | B7: =INDEX(Simulador!AE32:AE38,Simulador!U39)&" "&UPPER(INDEX(Simulador!S69:S70,Simulador!T68))&" "&A18 -> CREDIRESIDENCIAL VALORA 20 años
A9: Tipo de Crédito: Crédito Hipotecario
A10: CAT | B10: TASA DE INTERES | C10: MONTO O LINEA DE | D10: MONTO TOTAL A PAGAR O
A11: (Costo Anual Total) | B11: ANUAL ORDINARIA | C11: CRÉDITO | D11: MINIMO A PAGAR
A12: =Simulador!I40 -> 0 | B12: =IFERROR(IF(Simulador!D21=0,0,Simulador!I42),0) -> 0 | C12: =IFERROR(IF(Simulador!O25="",Simulador!I25,Simulador!O25),0) -> 0 | D12: =IFERROR(SUM('Tabla de amortizacion'!$Y$15:$Y$254),0) -> 0
A13: Sin IVA | D13: Moneda en
A14: Para fines | D14: Pesos
A15: informativos y de | D15: Mexicanos
A16: comparación | B16: Tasa Fija
A17: PLAZO DEL CRÉDITO: | B17: Fecha Límite de pago: Si tu fecha de corte es el día 3, tu fecha de pago es el día 3 de cada mes. Si tu fecha de corte es el día 17, tu fecha de pago es el día 17 de cada mes.
A18: =INDEX(Simulador!S63:S66,Simulador!T62) -> 20 años | B18: Fecha de corte: Si tu fecha de disposición es entre el dia 3 y 16, tu fecha de corte será el día 3 de cada mes. Si tu fecha de disposición es entre el día 17 y 2, tu fecha de corte será el día 17 de cada mes.
A19: COMISIONES RELEVANTES
A20: ="Apertura: "&TEXT(Simulador!O31,"$###,###.00") -> Apertura: $.00 | C20: =IF(RECAS!A1="7-2-2","Cobranza: $350.00 más IVA por pago tardío ","Cobranza: $500.00 más IVA por pago tardío ") -> Cobranza: $500.00 más IVA por pago tardío
A21: ="Prepago: "&IF(Simulador!T41=1,"0% ","3% ")&"más IVA sobre el monto anticipado" -> Prepago: 0% más IVA sobre el monto anticipado | C21: Para otras comisiones consulte la cláusula décima tercera
A22: ADVERTENCIAS
A24: Incumplir tus obligaciones te puede generar comisiones e intereses moratorios.
A25: Contratar créditos que excedan de tu capacidad de pago afecta tu historial crediticio.
A26: El avalista, obligado solidario o coacreditado responderá como obligado principal por el total del pago frente a la Institución Financiera.
A27: SEGUROS
A28: Seguros Obligatorios: | B28: Aseguradora: | C28: Cláusulas:
A30: Vida y Desempleo | B30: Cardif México Seguros de Vida, S.A. de C.V. | C30: Vigésima Cuarta
C31: Scotiabank Inverlat le ofrece al acreditado y/o coacreditado, la posibilidad de contratar a nombre de este (os) último(s) los seguros establecidos en la cláusula vigésima cuarta. Lo anterior sin perjuicio del derecho innegable que el cliente tiene de contratarlos a través de terceros.
A32: Daños y Responsabilidad Civil | B32: Cardif México Seguros Generales, S.A. de C.V.
A34: ESTADO DE CUENTA
A35: Envío a Domicilio ü Consulta vía Internet ___ Envio por Correo Electrónico ___
A36: Aclaraciones y reclamaciones:
A37: Unidad Especializada de Aclaraciones:
A38: Domicilio: Río Usumacinta S/N, esq. con Fernando Montes de Oca, Col. La Presita, Municipio de Cuautitlán Izcalli, Estado de México, C.P. 54763
A39: Teléfono: (55) 5123 0990
A40: Correo electrónico: une@scotiabank.com.mx
A41: Página de Internet: www.scotiabank.com.mx
A42: ="Registro de Contratos de Adhesión Núm: "&IF(Simulador!D21=0,"",IFERROR(VLOOKUP(RECAS!$A$1,RECAS!$A$3:$D$20,4,0),"Revisa los datos ingresados")) -> Registro de Contratos de Adhesión Núm:
A43: Comisión Nacional para la Protección y Defensa de los Usuarios de Servicios Financieros (CONDUSEF):
A44: Teléfono: 800 999 8080 y (55) 5340 0999. Página de Internet. www.condusef.gob.mx

Sheet RECAS
A1: =Simulador!$U$39&"-"&Simulador!$T$68&"-"&IF(OR(Simulador!$D$42>0,Simulador!$D$44>0),2,IF(AND(Simulador!U39=7,Simulador!D38>0),2,1)) -> 1-1-1 | B1: RELACIÓN RECAS
A2: Clave | B2: No. | C2: Nombre | D2: RECA | E2: Fecha de expedición | F2: Tipo Crédito | G2: Esquema | H2: Mancomunado
A3: =F3&"-"&G3&"-"&H3 -> 1-2-1 | B3: 9 | C3: Adquisición Pagos Oportunos | D3: 0319-138-038229/02-00061-0124 | E3: 2024-01-15 | F3: 1 | G3: 2 | H3: 1
A4: 2-2-1 | B4: 10 | C4: Adquisición Con Apoyo Pagos Oportunos | D4: 0319-138-038230/02-00062-0124 | E4: 2024-01-15 | F4: 2 | G4: 2 | H4: 1
A5: 1-1-1 | B5: 11 | C5: Adquisición Valora | D5: 0319-138-038232/02-00063-0124 | E5: 2024-01-15 | F5: 1 | G5: 1 | H5: 1
A6: 2-1-1 | B6: 12 | C6: Adquisición Con Apoyo Valora | D6: 0319-138-038235/02-00064-0124 | E6: 2024-01-15 | F6: 2 | G6: 1 | H6: 1
A7: 4-2-1 | B7: 21 | C7: Pago de Pasivos Pagos Oportunos | D7: 0319-138-007480/24-00073-0124 | E7: 2024-01-15 | F7: 4 | G7: 2 | H7: 1
A8: 4-1-1 | B8: 22 | C8: Pago de Pasivos Valora | D8: 0319-138-007481/24-00074-0124 | E8: 2024-01-15 | F8: 4 | G8: 1 | H8: 1
A9: 6-2-1 | B9: 25 | C9: Liquidez Vivienda Pagos Oportunos | D9: 0319-138-007482/24-00077-0124 | E9: 2024-01-15 | F9: 6 | G9: 2 | H9: 1
A10: 6-1-1 | B10: 26 | C10: Liquidez Vivienda Valora | D10: 0319-138-007483/24-00078-0124 | E10: 2024-01-15 | F10: 6 | G10: 1 | H10: 1
A11: =F11&"-"&G11&"-"&H11 -> 3-2-1 | B11: 27 | C11: Cofinavit Pagos Oportunos | D11: 0319-138-038237/02-00079-0124 | E11: 2024-01-15 | F11: 3 | G11: 2 | H11: 1
A12: 3-2-2 | B12: 28 | C12: Cofinavit Conyugales Pagos Oportunos | D12: 0319-138-038238/02-00080-0124 | E12: 2024-01-15 | F12: 3 | G12: 2 | H12: 2
A13: 3-1-1 | B13: 29 | C13: Cofinavit Valora | D13: 0319-138-038239/02-00081-0124 | E13: 2024-01-15 | F13: 3 | G13: 1 | H13: 1
A14: 3-1-2 | B14: 30 | C14: Cofinavit Conyugales Valora | D14: 0319-138-038240/02-00082-0124 | E14: 2024-01-15 | F14: 3 | G14: 1 | H14: 2
A15: 5-2-1 | B15: 23 | C15: Pago de Pasivos Pagos Oportunos con Apoyo Infonavit | D15: 0319-138-024405/15-00075-0124 | E15: 2024-01-15 | F15: 5 | G15: 2 | H15: 1
A16: 5-1-1 | B16: 24 | C16: Pago de Pasivos Valora con Apoyo Infonavit | D16: 0319-138-024404/15-00076-0124 | E16: 2024-01-15 | F16: 5 | G16: 1 | H16: 1
A17: 7-1-1 | B17: 44 | C17: Cofinavit CI+CB Valora | D17: 0319-138-035429/06-00096-0124 | E17: 2024-01-15 | F17: 7 | G17: 1 | H17: 1
A18: 7-1-2 | B18: 45 | C18: Cofinavit CI+CB Conyugal Valora | D18: 0319-138-035430/06-00097-0124 | E18: 2024-01-15 | F18: 7 | G18: 1 | H18: 2
A19: 7-2-1 | B19: 46 | C19: Cofinavit CI+CB Pagos Oportunos | D19: 0319-138-035431/06-00098-0124 | E19: 2024-01-15 | F19: 7 | G19: 2 | H19: 1
A20: 7-2-2 | B20: 47 | C20: Cofinavit CI+CB Conyugal Pagos Oportunos | D20: 0319-138-035432/06-00099-0124 | E20: 2024-01-15 | F20: 7 | G20: 2 | H20: 2

Sheet Pol (hidden)
J1: http://mxmtyipr1as2029:90/intranet/normatividad/Manuales%20Publicados/92EF8FF4A3C8837A8625798F005DF729.aspx
A2: A) PORCENTAJE DE AFORO VS. PRODUCTO PARA CRÉDITOS MENORES O IGUALES A $5,000,000 | J2: Visión General del Manual de Créditos al Menudeo, Crédito Hipotecario
A3: El Aforo estará alineado al producto que se desee adquirir vs Índice de Riesgo, acorde a lo siguiente:
A4: IR | B4: VALORA Y PAGOS OPORTUNOS
B5: Adquisición (1) | F5: Liquidez Vivienda Terrenos | G5: Construcción / Renovación II, III y IV | H5: Renovación I
B6: Empleados | C6: Empleados | D6: Independientes | E6: Vivienda
B7: con apoyo | C7: sin apoyo | E7: Descanso
A8: 1 | B8: 0.95 | C8: 0.95 | D8: 0.9 | E8: 0.65 | F8: Hasta el 50% de acuerdo al valor del avalúo de la garantía. | G8: Hasta el 70% del valor proyectado (o de referencia) de la vivienda o el 100% del valor de construcción, el menor. | H8: Hasta el 70% de acuerdo al valor del avalúo de la garantía.
A9: 2 | B9: 0.95 | C9: 0.9 | E9: 0.65
A10: 3 | C10: 0.85 | D10: 0.85 | E10: 0.5 | G10: Nota: en el apartado A.7 se muestra la metodología de cálculo para valor proyectado o de referencia.
A11: 4 | B11: 0.85 | C11: 0.8 | D11: 0.75 | E11: 0.5
A12: 5 | B12: 0.8 | C12: 0.7 | D12: 0.5 | E12: 0.5
B16: B) AFORO PARA CRÉDITOS MAYORES A $5,000,000:
B18: Para créditos que superen los 5,000,000, el Aforo máximo está en función del importe del crédito, como se indica a continuación:
B19: ADQUISICIÓN
B20: Índice de Riesgo / Rango del crédito | C20: Mayor a $5 MDP hasta $6.5 MDP | D20: Mayor a $6.5 MDP hasta $8 MDP | E20: Mayor a $8 MDP
B21: 1 | C21: 0.8 | D21: 0.8 | E21: 0.65
B22: 2
B23: 3 | C23: 0.7 | D23: 0.7 | E23: 0.55
B24: 4 | C24: 0.65 | D24: 0.55
B25: 5 | C25: 0.5 | D25: 0.5 | E25: 0.5
B27: CRÉDITOS DE CONSTRUCCIÓN Y RENOVACIÓN
B28: Índice de Riesgo / Rango del crédito | C28: Mayor a $5 MDP Menor o igual a $6.5 MDP | D28: Mayor a $6.5 MDP
B29: 1 | C29: 0.7 | D29: 0.65
B30: 2
B31: 3 | C31: 0.65
B32: 4
B33: 5
B34: Nota: Para CrediLiquidez, el aforo será de acuerdo a la tabla del inciso A)
B53: 51 | C53: Crediliquidez Libre Valora | D53: 0319-138-027732/02-04095-0717 | E53: 2017-07-28
B54: 52 | C54: Crediliquidez Libre Hipoteca 7X5 | D54: 0319-138-027733/02-04096-0717 | E54: 2017-07-28
B55: 53 | C55: Crediliquidez Libre Pagos Oportunos | D55: 0319-138-027734/02-04097-0717 | E55: 2017-07-28
B61: Pagos Oprtunos (Versión Incorrecta)
B72: 7x5
A82: A aparti del 05 de abril 2017
A84: Esquemas | B84: Valora
A85: Plazo / (IR) | B85: 1+ | C85: 1 | D85: 2 | E85: 3 | F85: 4 | G85: R
A86: Tasa | B86: 0.0975 | C86: 0.1025 | D86: 0.1075 | E86: 0.11 | F86: 0.115 | G86: 0.1175
A87: PPM 20 años | B87: 8.48 | C87: 8.85 | D87: 9.27 | E87: 9.5 | F87: 9.95 | G87: 10.15
A88: PPM 15 años | B88: 9.58 | C88: 9.84 | D88: 10.14 | E88: 10.51 | F88: 10.69 | G88: 10.98
A89: PPM 10 años | B89: 12.06 | C89: 12.32 | D89: 12.63 | E89: 12.98 | F89: 13.2 | G89: 13.46
A90: Inc. Anual (%) | B90: 2.7 | C90: 2.7 | D90: 2.6 | E90: 2.1 | F90: 2.1 | G90: 1.7
A92: Pagos Oprtunos
A93: Año | B93: 7 años | C93: 10 años | D93: 15 años | E93: 20 años
A94: 1 | B94: 0.103 | C94: 0.104 | D94: 0.106 | E94: 0.1075
A95: 2 | B95: 0.101 | C95: 0.102 | D95: 10.40% | E95: 0.1055
A96: 3 | B96: 0.099 | C96: 0.1 | D96: 10.20% | E96: 0.1035
A97: 4 | B97: 0.097 | C97: 0.098 | D97: 10.00% | E97: 0.1015
A98: 5 | B98: 0.0955 | C98: 0.0965 | D98: 9.85% | E98: 0.1
A99: Pago por Mil | B99: 16.84 | C99: 13.53 | D99: 11.22 | E99: 10.26 | F99: 10.26
A104: A.6 Monto mínimo y máximo del préstamo
A106: Residencial | B106: Apoyo Gobierno | D106: Construcción | E106: Liquidez | G106: Renovación
A107: Preventa | E107: Vivienda | F107: Destino Libre
A108: Mínimo | B108: COFINAVIT | C108: INFONAVIT | G108: I y IV | H108: II y III
A109: $250,000 MXN | B109: FOVISSSTE | C109: FOVISSSTE
B110: (Alia2) | C110: (Respalda2) | D110: Mínimo: | E110: Mínimo | F110: Mínimo
A111: Máximo | D111: $ 150,000 MXN | E111: $150,000 MXN | F111: $100,000 MXN
A112: $8,000,000 MXN
D113: Máximo: | E113: Máximo $2,500,000 MXN | F113: Máximo
B114: Mínimo | C114: Mínimo | D114: $5,000,000 MXN | F114: $2,500,000 MXN | G114: Mínimo | H114: Mínimo
B115: $120,000 MXN | C115: $250,000 MXN | G115: 150000 | H115: 250000
B117: Máximo: | C117: Máximo | G117: Máximo $5,000,000 | H117: Máximo $5,000,000
B118: $8,000,000 MXN | C118: $8,000,000 MXN
A121: A.7 Valor mínimo y máximo del inmueble
A124: Valor mínimo del inmueble
A125: COFINAVIT | B125: *Residencial | C125: Construcción | D125: Sustitución de deudor
A126: FOVISSSTE (Alia2 /Respalda2) | B126: Preventa | C126: Liquidez (Vivienda y destino libre)
B127: Apoyo INFONAVIT | C127: Renovación I, II, III, IV
D128: No aplica
A129: MEX, GDL, MTY | B129: $400,000 MXN | C129: MEX, GDL, MTY
A130: $300,000 MXN | C130: $1,000,000 MXN
A132: Resto del país | C132: Resto del país
A133: $275,000 MXN | C133: $750,000 MXN
A136: A.16 Comisiones y Gastos
A138: Al momento de aperturar el crédito, el cliente cuenta con dos opciones para el pago de la comisión son las siguientes:
A140: Esquema | B140: Opción | C140: A) Comisión de Apertura | D140: B) Comisión por Prepago
A141: Valora y | B141: Opción 1 | C141: Ver tabla #1 | D141: 0
A142: Pagos Oportunos | B142: Opción 2 | C142: 0 | D142: 3.00% + IVA
A143: Hipoteca 7x5 (Única) | B143: Opción 1 | C143: Ver tabla #1 | D143: Sin comisión por pre-pago
A145: Tabla #1
B146: Adquisición | C146: Construcción | D146: Apoyo INFONAVIT | E146: CrediLiquidez Libre | F146: Switch Hipotecario (Pago de Pasivos)
B147: Liquidez | C147: Preventa | D147: COFINAVIT | F147: CrediRenovación III
C148: CrediRenovación I,II,III,IV | D148: Cofinanciamiento
D149: FOVISSSTE
D150: Alia2
D151: Respalda2
A152: Comisión por apertura | B152: 0.0125 | C152: 1.00% por cada ministración | D152: 0.0075 | E152: 2% más IVA, financiable a elección del cliente | F152: 0.015
F153: Financiable a elección del cliente
A154: Comisión por apertura especial | B154: Del 0.50%
B156: Aplica para:
B157: · Nominatarios.
B158: · Clientes de Casa de Bolsa y Banca Patrimonial.
B159: · Inversionistas en Pagarés.
B160: · Inversión igual o mayor a $200,000. Deberá estar vigente al momento de la firma y tener una duración mínima de 3 meses, previo a la firma del crédito o contratada a un plazo que garantice la duración mínima (por ejemplo, un pagaré a 91 días).
B161: · La inversión en pagaré se podrá comprobar mediante el estado de cuenta del cliente.
A163: Consideraciones Especiales para Comisión por apertura:
A164: Para Hipoteca 7x5 (Única) no aplica Comisión por apertura para:
A165: créditos con plazo a 5 años,
A166: clientes de Casa de Bolsa y Banca Patrimonial
A167: clientes Premium
A168: Para Switch Hipotecario no aplica la Comisión por apertura especial del 0.50%, para:
A169: nominatarios
A170: clientes de Casa de Bolsa y Patrimonial
A171: inversionistas en pagarés
A172: Para CrediLiquidez Libre no aplica la Comisión por apertura para:
A174: o clientes que hayan liquidado previamente una hipoteca con Scotiabank
A175: B) Comisión por pre-pago
A177: Aplica solo cuando el solicitante haya escogido la modalidad de Pre-pago en lugar de pagar la Comisión de Apertura al frente
